Workbook

Sheet Design the AEF circuit
A1: TPSF12C1/-Q1 & TPSF12C3/-Q1 Common-Mode Active EMI Filter (AEF) Design Tool
B3: About | F3: = Input Box | I3: TERMS OF USE
A6: Step 1: Select system type - single or three phase
A7: System type?
A10: Step 2: Enter CM choke and Y-capacitor data
A11: CM choke model? | E11: ® | F11: =IF(CMdata=1,"Enter CM choke impedance parameters here:","Enter CM choke impedance (magnitude & phase) data vs. frequency in the ""CM choke"" tab") -> Enter CM choke impedance (magnitude & phase) data vs. frequency in the "CM choke" tab | J11: =IF(F9="Simple Model: L || R || C","","") ->  | K11: =IF(F9="Simple Model: L || R || C","","") -> 
F12: CM choke model #1 → | G12: Inductance, LCM [mH] | H12: Resistance, RPAR [kW] | I12: Capacitance, CPAR [pF]
A13: Grid-side Y-capacitors (each) | F13: Grid-side choke, LCM1 | G13: 1 | H13: 5.5 | I13: 11
A14: Capacitance | C14: 10 | D14: nF | F14: Regulator-side choke, LCM2 | G14: 10 | H14: 42.4 | I14: 35
A15: ESR | C15: 0.05 | D15: Ω
A16: ESL | C16: 5.75 | D16: nH
A18: Regulator-side Y-capacitors (each)
A19: Capacitance | C19: 10 | D19: nF
A20: ESR | C20: 0.05 | D20: Ω
A21: ESL | C21: 5.75 | D21: nH
A23: Step 3: Enter source impedances
A24: Grid source impedance (each power line)
A25: LGRID | C25: 10 | D25: µH
A26: RGRID | C26: 13 | D26: mΩ
A27: LISN present? | C27: 10
A29: Regulator CM noise source impedance (parasitic)
A30: CPAR | C30: 467.499 | D30: pF
A31: RPAR | C31: 11 | D31: mΩ
A32: LPAR | C32: 0.27807 | D32: nH
A34: Step 4: Enter SENSE and INJECT capacitor parameters
A35: Sense capacitors - CSENx (each)
A36: Capacitance | C36: 0.68 | D36: nF
A37: ESR | C37: 0.025 | D37: Ω
A38: ESL | C38: 15 | D38: nH
A40: Inject capacitor - CINJ
A41: Capacitance | C41: 4.7 | D41: nF
A42: ESR | C42: 0.1 | D42: Ω
A43: ESL | C43: 5.9585 | D43: nH
A45: Step 5: Set the COMP1-to-COMP2 component values
A46: RG | C46: 1.5 | D46: kΩ
A47: CG1 | C47: 10 | D47: nF
A48: CG2 | C48: 10 | D48: pF
A50: Step 6: Review damping network component values
B51: Calculated | C51: Selected
A52: RD1 | B52: ='Stability calculations'!B52/1000 -> 1 | C52: =B52 -> 1 | D52: kΩ
A53: CD2 | B53: =ROUND('Stability calculations'!B55*1000000000,1) -> 67.9 | C53: =B53 -> 67.9 | D53: nF
A54: CD1 | B54: =ROUND('Stability calculations'!B53*1000000000,1) -> 13.6 | C54: =B54 -> 13.6 | D54: nF
A55: RD2 | B55: ='Stability calculations'!B56 -> 200 | C55: =B55 -> 200 | D55: Ω
A56: RD1A | B56: ='Stability calculations'!B54 -> 10 | C56: =B56 -> 10 | D56: Ω
A57: RD3 | B57: ='Stability calculations'!B57 -> 700 | C57: =B57 -> 700 | D57: Ω
A58: CD3 | B58: =ROUND('Stability calculations'!B58*1000000000,2) -> 4.7 | C58: =B58 -> 4.7 | D58: nF
A59: fLFstability | C59: ='Stability calculations'!D35/1000 -> 11.721 | D59: kHz
A60: fRD1-CD2 | C60: ='Stability calculations'!$D$46/1000 -> 2.34396087 | D60: kHz
A61: fRD1-CD1 | C61: ='Stability calculations'!$D$42/1000 -> 11.70256934 | D61: kHz
A62: fRD2-CD2 | C62: ='Stability calculations'!$D$43/1000 -> 11.71980435 | D62: kHz
A63: fRD3-CD3 | C63: ='Stability calculations'!$D$44/1000 -> 48.37536264 | D63: kHz
A64: fRD1A-CD1 | C64: ='Stability calculations'!$D$45/1000000 -> 1.170256934 | D64: MHz

Sheet Schematic management (hidden)
A1: =SETUP -> 1
A2: =CHOOSE(SETUP,"TPSF12C1","TPSF12C3_4wire","TPSF12C3_3wire") -> TPSF12C1

Sheet CM choke
A2: Enter/paste the CM choke impedance (magnitude & phase) data here:
C4: Grid-side CM choke | E4: Regulator-side CM choke
C5: LCM1 | E5: LCM2
A6: CM Choke Model #2 → | B6: Frequency [Hz] | C6: ZCM1 Magnitude [Ω] | D6: ZCM1 Phase [°] | E6: ZCM2 Magnitude [Ω] | F6: ZCM2 Phase [°]
A7: =IF(CMdata=1,"","Min. frequency") -> Min. frequency | B7: 1000 | C7: 245.2051564 | D7: 86.88323894 | E7: 245.2051564 | F7: 86.88323894
A8: =IF(CMdata=1,"",_xlfn.CONCAT(MIN(B7:B2106)/1000," kHz")) -> 1 kHz | B8: 1026.819843 | C8: 251.755589 | D8: 86.80015367 | E8: 251.755589 | F8: 86.80015367
A9: =IF(CMdata=1,"","Max. frequency") -> Max. frequency | B9: 1054.358991 | C9: 258.4795697 | D9: 86.71485561 | E9: 258.4795697 | F9: 86.71485561
A10: =IF(CMdata=1,"",_xlfn.CONCAT(MAX(B7:B2106)/1000000," MHz")) -> 40 MHz | B10: 1082.636734 | C10: 265.3815783 | D10: 86.62728735 | E10: 265.3815783 | F10: 86.62728735
B11: 1111.672882 | C11: 272.4662001 | D11: 86.53739012 | E11: 272.4662001 | F11: 86.53739012
B12: 1141.487774 | C12: 279.7381282 | D12: 86.44510371 | E12: 279.7381282 | F12: 86.44510371
B13: 1172.102298 | C13: 287.2021648 | D13: 86.35036644 | E13: 287.2021648 | F13: 86.35036644
B14: 1203.537898 | C14: 294.8632228 | D14: 86.25311521 | E14: 294.8632228 | F14: 86.25311521
B15: 1235.816596 | C15: 302.7263277 | D15: 86.15328538 | E15: 302.7263277 | F15: 86.15328538
B16: 1268.961003 | C16: 310.7966184 | D16: 86.0508108 | E16: 310.7966184 | F16: 86.0508108
B17: 1302.994339 | C17: 319.0793491 | D17: 85.94562378 | E17: 319.0793491 | F17: 85.94562378
B18: 1337.940443 | C18: 327.5798904 | D18: 85.83765507 | E18: 327.5798904 | F18: 85.83765507
B19: 1373.823796 | C19: 336.3037305 | D19: 85.72683382 | E19: 336.3037305 | F19: 85.72683382
B20: 1410.669535 | C20: 345.256476 | D20: 85.61308758 | E20: 345.256476 | F20: 85.61308758
B21: 1448.503471 | C21: 354.4438531 | D21: 85.49634226 | E21: 354.4438531 | F21: 85.49634226
B22: 1487.352107 | C22: 363.8717084 | D22: 85.37652214 | E22: 363.8717084 | F22: 85.37652214
B23: 1527.242658 | C23: 373.546009 | D23: 85.25354983 | E23: 373.546009 | F23: 85.25354983
B24: 1568.203067 | C24: 383.4728434 | D24: 85.12734627 | E24: 383.4728434 | F24: 85.12734627
B25: 1610.262028 | C25: 393.6584215 | D25: 84.99783069 | E25: 393.6584215 | F25: 84.99783069
B26: 1653.449003 | C26: 404.1090745 | D26: 84.86492064 | E26: 404.1090745 | F26: 84.86492064
B27: 1697.794246 | C27: 414.8312547 | D27: 84.72853194 | E27: 414.8312547 | F27: 84.72853194
B28: 1743.328822 | C28: 425.831535 | D28: 84.58857873 | E28: 425.831535 | F28: 84.58857873
B29: 1790.084628 | C29: 437.1166076 | D29: 84.44497339 | E29: 437.1166076 | F29: 84.44497339
B30: 1838.094418 | C30: 448.6932835 | D30: 84.29762662 | E30: 448.6932835 | F30: 84.29762662
B31: 1887.391822 | C31: 460.5684902 | D31: 84.14644737 | E31: 460.5684902 | F31: 84.14644737
B32: 1938.011375 | C32: 472.7492703 | D32: 83.99134292 | E32: 472.7492703 | F32: 83.99134292
B33: 1989.988537 | C33: 485.242779 | D33: 83.83221883 | E33: 485.242779 | F33: 83.83221883
B34: 2043.359718 | C34: 498.056281 | D34: 83.66897899 | E34: 498.056281 | F34: 83.66897899
B35: 2098.162306 | C35: 511.1971473 | D35: 83.50152564 | E35: 511.1971473 | F35: 83.50152564
B36: 2154.43469 | C36: 524.6728517 | D36: 83.32975938 | E36: 524.6728517 | F36: 83.32975938
B37: 2212.216291 | C37: 538.4909655 | D37: 83.15357923 | E37: 538.4909655 | F37: 83.15357923
B38: 2271.547586 | C38: 552.6591535 | D38: 82.97288265 | E38: 552.6591535 | F38: 82.97288265
B39: 2332.470136 | C39: 567.1851671 | D39: 82.78756559 | E39: 567.1851671 | F39: 82.78756559
B40: 2395.02662 | C40: 582.0768389 | D40: 82.59752253 | E40: 582.0768389 | F40: 82.59752253
B41: 2459.260859 | C41: 597.3420744 | D41: 82.40264658 | E41: 597.3420744 | F41: 82.40264658
B42: 2525.21785 | C42: 612.9888449 | D42: 82.20282952 | E42: 612.9888449 | F42: 82.20282952
B43: 2592.943797 | C43: 629.0251778 | D43: 81.99796189 | E43: 629.0251778 | F43: 81.99796189
B44: 2662.486144 | C44: 645.4591471 | D44: 81.78793309 | E44: 645.4591471 | F44: 81.78793309
B45: 2733.893606 | C45: 662.2988622 | D45: 81.57263146 | E45: 662.2988622 | F45: 81.57263146
B46: 2807.216204 | C46: 679.5524563 | D46: 81.35194442 | E46: 679.5524563 | F46: 81.35194442
B47: 2882.505303 | C47: 697.2280729 | D47: 81.12575858 | E47: 697.2280729 | F47: 81.12575858
B48: 2959.813644 | C48: 715.3338517 | D48: 80.89395987 | E48: 715.3338517 | F48: 80.89395987
B49: 3039.195382 | C49: 733.877913 | D49: 80.65643373 | E49: 733.877913 | F49: 80.65643373
B50: 3120.706127 | C50: 752.8683412 | D50: 80.41306523 | E50: 752.8683412 | F50: 80.41306523
B51: 3204.402976 | C51: 772.3131657 | D51: 80.16373932 | E51: 772.3131657 | F51: 80.16373932
B52: 3290.344562 | C52: 792.2203421 | D52: 79.90834095 | E52: 792.2203421 | F52: 79.90834095
B53: 3378.591088 | C53: 812.5977306 | D53: 79.64675537 | E53: 812.5977306 | F53: 79.64675537
B54: 3469.204372 | C54: 833.453073 | D54: 79.3788683 | E54: 833.453073 | F54: 79.3788683
B55: 3562.24789 | C55: 854.7939688 | D55: 79.10456625 | E55: 854.7939688 | F55: 79.10456625
B56: 3657.786821 | C56: 876.6278488 | D56: 78.82373676 | E56: 876.6278488 | F56: 78.82373676
B57: 3755.888091 | C57: 898.9619473 | D57: 78.53626871 | E57: 898.9619473 | F57: 78.53626871
B58: 3856.620421 | C58: 921.8032726 | D58: 78.24205265 | E58: 921.8032726 | F58: 78.24205265
B59: 3960.054377 | C59: 945.1585757 | D59: 77.94098114 | E59: 945.1585757 | F59: 77.94098114
B60: 4066.262415 | C60: 969.0343171 | D60: 77.63294913 | E60: 969.0343171 | F60: 77.63294913
B61: 4175.318937 | C61: 993.4366317 | D61: 77.31785436 | E61: 993.4366317 | F61: 77.31785436
B62: 4287.300337 | C62: 1018.371292 | D62: 76.99559777 | E62: 1018.371292 | F62: 76.99559777
B63: 4402.28506 | C63: 1043.843671 | D63: 76.66608395 | E63: 1043.843671 | F63: 76.66608395
B64: 4520.353656 | C64: 1069.858697 | D64: 76.32922165 | E64: 1069.858697 | F64: 76.32922165
B65: 4641.588834 | C65: 1096.420819 | D65: 75.98492423 | E65: 1096.420819 | F65: 75.98492423
B66: 4766.075519 | C66: 1123.533957 | D66: 75.63311024 | E66: 1123.533957 | F66: 75.63311024
B67: 4893.900918 | C67: 1151.201458 | D67: 75.27370395 | E67: 1151.201458 | F67: 75.27370395
B68: 5025.154575 | C68: 1179.426053 | D68: 74.90663594 | E68: 1179.426053 | F68: 74.90663594
B69: 5159.928434 | C69: 1208.209804 | D69: 74.53184374 | E69: 1208.209804 | F69: 74.53184374
B70: 5298.316906 | C70: 1237.55406 | D70: 74.14927244 | E70: 1237.55406 | F70: 74.14927244
B71: 5440.416936 | C71: 1267.459403 | D71: 73.75887537 | E71: 1267.459403 | F71: 73.75887537
B72: 5586.328066 | C72: 1297.925603 | D72: 73.36061477 | E72: 1297.925603 | F72: 73.36061477
B73: 5736.15251 | C73: 1328.951563 | D73: 72.95446254 | E73: 1328.951563 | F73: 72.95446254
B74: 5889.995223 | C74: 1360.535271 | D74: 72.54040092 | E74: 1360.535271 | F74: 72.54040092
B75: 6047.963972 | C75: 1392.673752 | D75: 72.11842328 | E75: 1392.673752 | F75: 72.11842328
B76: 6210.169419 | C76: 1425.363017 | D76: 71.68853488 | E76: 1425.363017 | F76: 71.68853488
B77: 6376.72519 | C77: 1458.598017 | D77: 71.25075361 | E77: 1458.598017 | F77: 71.25075361
B78: 6547.747961 | C78: 1492.372597 | D78: 70.8051108 | E78: 1492.372597 | F78: 70.8051108
B79: 6723.357536 | C79: 1526.679456 | D79: 70.35165199 | E79: 1526.679456 | F79: 70.35165199
B80: 6903.676933 | C80: 1561.510103 | D80: 69.89043775 | E80: 1561.510103 | F80: 69.89043775
B81: 7088.832467 | C81: 1596.854827 | D81: 69.42154438 | E81: 1596.854827 | F81: 69.42154438
B82: 7278.953844 | C82: 1632.702661 | D82: 68.94506474 | E82: 1632.702661 | F82: 68.94506474
B83: 7474.174246 | C83: 1669.04136 | D83: 68.46110894 | E83: 1669.04136 | F83: 68.46110894
B84: 7674.630429 | C84: 1705.857377 | D84: 67.96980508 | E84: 1705.857377 | F84: 67.96980508
B85: 7880.462816 | C85: 1743.135851 | D85: 67.47129992 | E85: 1743.135851 | F85: 67.47129992
B86: 8091.815594 | C86: 1780.860604 | D86: 66.96575951 | E86: 1780.860604 | F86: 66.96575951
B87: 8308.836822 | C87: 1819.014136 | D87: 66.45336976 | E87: 1819.014136 | F87: 66.45336976
B88: 8531.678524 | C88: 1857.577642 | D88: 65.93433699 | E88: 1857.577642 | F88: 65.93433699
B89: 8760.496806 | C89: 1896.531029 | D89: 65.40888836 | E89: 1896.531029 | F89: 65.40888836
B90: 8995.451959 | C90: 1935.852944 | D90: 64.87727225 | E90: 1935.852944 | F90: 64.87727225
B91: 9236.708572 | C91: 1975.52082 | D91: 64.33975857 | E91: 1975.52082 | F91: 64.33975857
B92: 9484.435649 | C92: 2015.510922 | D92: 63.79663893 | E92: 2015.510922 | F92: 63.79663893
B93: 9738.806728 | C93: 2055.79841 | D93: 63.24822674 | E93: 2055.79841 | F93: 63.24822674
B94: 10000 | C94: 2096.357419 | D94: 62.69485719 | E94: 2096.357419 | F94: 62.69485719
B95: 10268.19843 | C95: 2137.161138 | D95: 62.13688713 | E95: 2137.161138 | F95: 62.13688713
B96: 10543.58991 | C96: 2178.181914 | D96: 61.57469477 | E96: 2178.181914 | F96: 61.57469477
B97: 10826.36734 | C97: 2219.391358 | D97: 61.00867931 | E97: 2219.391358 | F97: 61.00867931
B98: 11116.72882 | C98: 2260.760466 | D98: 60.43926042 | E98: 2260.760466 | F98: 60.43926042
B99: 11414.87774 | C99: 2302.259752 | D99: 59.86687753 | E99: 2302.259752 | F99: 59.86687753
B100: 11721.02298 | C100: 2343.859389 | D100: 59.29198904 | E100: 2343.859389 | F100: 59.29198904
B101: 12035.37898 | C101: 2385.529361 | D101: 58.71507138 | E101: 2385.529361 | F101: 58.71507138
B102: 12358.16596 | C102: 2427.239624 | D102: 58.13661786 | E102: 2427.239624 | F102: 58.13661786
B103: 12689.61003 | C103: 2468.960269 | D103: 57.55713747 | E103: 2468.960269 | F103: 57.55713747
B104: 13029.94339 | C104: 2510.661698 | D104: 56.97715348 | E104: 2510.661698 | F104: 56.97715348
B105: 13379.40443 | C105: 2552.314801 | D105: 56.39720196 | E105: 2552.314801 | F105: 56.39720196
B106: 13738.23796 | C106: 2593.891137 | D106: 55.81783008 | E106: 2593.891137 | F106: 55.81783008
B107: 14106.69535 | C107: 2635.363113 | D107: 55.23959441 | E107: 2635.363113 | F107: 55.23959441
B108: 14485.03471 | C108: 2676.704172 | D108: 54.66305905 | E108: 2676.704172 | F108: 54.66305905
B109: 14873.52107 | C109: 2717.888965 | D109: 54.08879365 | E109: 2717.888965 | F109: 54.08879365
B110: 15272.42658 | C110: 2758.893533 | D110: 53.51737137 | E110: 2758.893533 | F110: 53.51737137
B111: 15682.03067 | C111: 2799.695476 | D111: 52.94936681 | E111: 2799.695476 | F111: 52.94936681
B112: 16102.62028 | C112: 2840.274115 | D112: 52.38535378 | E112: 2840.274115 | F112: 52.38535378
B113: 16534.49003 | C113: 2880.610647 | D113: 51.82590314 | E113: 2880.610647 | F113: 51.82590314
B114: 16977.94246 | C114: 2920.688292 | D114: 51.27158053 | E114: 2920.688292 | F114: 51.27158053
B115: 17433.28822 | C115: 2960.492425 | D115: 50.72294414 | E115: 2960.492425 | F115: 50.72294414
B116: 17900.84628 | C116: 3000.010693 | D116: 50.1805425 | E116: 3000.010693 | F116: 50.1805425
B117: 18380.94418 | C117: 3039.233129 | D117: 49.64491219 | E117: 3039.233129 | F117: 49.64491219
B118: 18873.91822 | C118: 3078.152237 | D118: 49.11657572 | E118: 3078.152237 | F118: 49.11657572
B119: 19380.11375 | C119: 3116.76307 | D119: 48.59603937 | E119: 3116.76307 | F119: 48.59603937
B120: 19899.88537 | C120: 3155.063297 | D120: 48.0837911 | E120: 3155.063297 | F120: 48.0837911
B121: 20433.59718 | C121: 3193.05324 | D121: 47.58029859 | E121: 3193.05324 | F121: 47.58029859
B122: 20981.62306 | C122: 3230.73591 | D122: 47.0860073 | E122: 3230.73591 | F122: 47.0860073
B123: 21544.3469 | C123: 3268.117013 | D123: 46.60133864 | E123: 3268.117013 | F123: 46.60133864
B124: 22122.16291 | C124: 3305.204957 | D124: 46.12668829 | E124: 3305.204957 | F124: 46.12668829
B125: 22715.47586 | C125: 3342.010824 | D125: 45.66242458 | E125: 3342.010824 | F125: 45.66242458
B126: 23324.70136 | C126: 3378.548348 | D126: 45.20888699 | E126: 3378.548348 | F126: 45.20888699
B127: 23950.2662 | C127: 3414.833862 | D127: 44.76638483 | E127: 3414.833862 | F127: 44.76638483
B128: 24592.60859 | C128: 3450.886239 | D128: 44.33519595 | E128: 3450.886239 | F128: 44.33519595
B129: 25252.1785 | C129: 3486.726828 | D129: 43.91556566 | E129: 3486.726828 | F129: 43.91556566
B130: 25929.43797 | C130: 3522.37936 | D130: 43.50770575 | E130: 3522.37936 | F130: 43.50770575
B131: 26624.86144 | C131: 3557.869867 | D131: 43.11179367 | E131: 3557.869867 | F131: 43.11179367
B132: 27338.93606 | C132: 3593.22657 | D132: 42.72797176 | E132: 3593.22657 | F132: 42.72797176
B133: 28072.16204 | C133: 3628.479772 | D133: 42.35634673 | E133: 3628.479772 | F133: 42.35634673
B134: 28825.05303 | C134: 3663.661743 | D134: 41.99698915 | E134: 3663.661743 | F134: 41.99698915
B135: 29598.13644 | C135: 3698.806587 | D135: 41.64993322 | E135: 3698.806587 | F135: 41.64993322
B136: 30391.95382 | C136: 3733.950118 | D136: 41.31517649 | E136: 3733.950118 | F136: 41.31517649
B137: 31207.06127 | C137: 3769.129722 | D137: 40.99267989 | E137: 3769.129722 | F137: 40.99267989
B138: 32044.02976 | C138: 3804.384216 | D138: 40.68236774 | E138: 3804.384216 | F138: 40.68236774
B139: 32903.44562 | C139: 3839.753703 | D139: 40.38412799 | E139: 3839.753703 | F139: 40.38412799
B140: 33785.91088 | C140: 3875.279431 | D140: 40.09781258 | E140: 3875.279431 | F140: 40.09781258
B141: 34692.04372 | C141: 3911.003635 | D141: 39.82323784 | E141: 3911.003635 | F141: 39.82323784
B142: 35622.4789 | C142: 3946.969396 | D142: 39.56018515 | E142: 3946.969396 | F142: 39.56018515
B143: 36577.86821 | C143: 3983.22048 | D143: 39.30840165 | E143: 3983.22048 | F143: 39.30840165
B144: 37558.88091 | C144: 4019.801191 | D144: 39.06760105 | E144: 4019.801191 | F144: 39.06760105
B145: 38566.20421 | C145: 4056.756212 | D145: 38.83746471 | E145: 4056.756212 | F145: 38.83746471
B146: 39600.54377 | C146: 4094.130458 | D146: 38.61764269 | E146: 4094.130458 | F146: 38.61764269
B147: 40662.62415 | C147: 4131.968915 | D147: 38.40775503 | E147: 4131.968915 | F147: 38.40775503
B148: 41753.18937 | C148: 4170.316496 | D148: 38.20739314 | E148: 4170.316496 | F148: 38.20739314
B149: 42873.00337 | C149: 4209.217882 | D149: 38.01612131 | E149: 4209.217882 | F149: 38.01612131
B150: 44022.8506 | C150: 4248.717381 | D150: 37.83347834 | E150: 4248.717381 | F150: 37.83347834
B151: 45203.53656 | C151: 4288.858775 | D151: 37.65897936 | E151: 4288.858775 | F151: 37.65897936
B152: 46415.88834 | C152: 4329.685182 | D152: 37.49211765 | E152: 4329.685182 | F152: 37.49211765
B153: 47660.75519 | C153: 4371.238917 | D153: 37.33236671 | E153: 4371.238917 | F153: 37.33236671
B154: 48939.00918 | C154: 4413.561354 | D154: 37.17918234 | E154: 4413.561354 | F154: 37.17918234
B155: 50251.54575 | C155: 4456.692803 | D155: 37.03200488 | E155: 4456.692803 | F155: 37.03200488
B156: 51599.28434 | C156: 4500.672386 | D156: 36.89026148 | E156: 4500.672386 | F156: 36.89026148
B157: 52983.16906 | C157: 4545.537924 | D157: 36.75336853 | E157: 4545.537924 | F157: 36.75336853
B158: 54404.16936 | C158: 4591.325832 | D158: 36.62073407 | E158: 4591.325832 | F158: 36.62073407
B159: 55863.28066 | C159: 4638.071028 | D159: 36.4917603 | E159: 4638.071028 | F159: 36.4917603
B160: 57361.5251 | C160: 4685.806847 | D160: 36.36584611 | E160: 4685.806847 | F160: 36.36584611
B161: 58899.95223 | C161: 4734.564973 | D161: 36.24238959 | E161: 4734.564973 | F161: 36.24238959
B162: 60479.63972 | C162: 4784.375382 | D162: 36.12079057 | E162: 4784.375382 | F162: 36.12079057
B163: 62101.69419 | C163: 4835.266308 | D163: 36.0004531 | E163: 4835.266308 | F163: 36.0004531
B164: 63767.2519 | C164: 4887.264213 | D164: 35.88078788 | E164: 4887.264213 | F164: 35.88078788
B165: 65477.47961 | C165: 4940.393789 | D165: 35.76121463 | E165: 4940.393789 | F165: 35.76121463
B166: 67233.57536 | C166: 4994.677969 | D166: 35.6411643 | E166: 4994.677969 | F166: 35.6411643
B167: 69036.76933 | C167: 5050.137968 | D167: 35.52008116 | E167: 5050.137968 | F167: 35.52008116
B168: 70888.32467 | C168: 5106.79334 | D168: 35.39742483 | E168: 5106.79334 | F168: 35.39742483
B169: 72789.53844 | C169: 5164.662061 | D169: 35.27267193 | E169: 5164.662061 | F169: 35.27267193
B170: 74741.74246 | C170: 5223.760631 | D170: 35.14531772 | E170: 5223.760631 | F170: 35.14531772
B171: 76746.30429 | C171: 5284.104212 | D171: 35.01487739 | E171: 5284.104212 | F171: 35.01487739
B172: 78804.62816 | C172: 5345.706774 | D172: 34.88088711 | E172: 5345.706774 | F172: 34.88088711
B173: 80918.15594 | C173: 5408.581286 | D173: 34.74290482 | E173: 5408.581286 | F173: 34.74290482
B174: 83088.36822 | C174: 5472.739909 | D174: 34.60051075 | E174: 5472.739909 | F174: 34.60051075
B175: 85316.78524 | C175: 5538.194237 | D175: 34.45330756 | E175: 5538.194237 | F175: 34.45330756
B176: 87604.96806 | C176: 5604.955541 | D176: 34.30092024 | E176: 5604.955541 | F176: 34.30092024
B177: 89954.51959 | C177: 5673.03505 | D177: 34.14299558 | E177: 5673.03505 | F177: 34.14299558
B178: 92367.08572 | C178: 5742.444245 | D178: 33.97920139 | E178: 5742.444245 | F178: 33.97920139
B179: 94844.35649 | C179: 5813.195171 | D179: 33.80922529 | E179: 5813.195171 | F179: 33.80922529
B180: 97388.06728 | C180: 5885.300774 | D180: 33.63277321 | E180: 5885.300774 | F180: 33.63277321
B181: 100000 | C181: 5958.775244 | D181: 33.4495675 | E181: 5958.775244 | F181: 33.4495675
B182: 102681.9843 | C182: 6033.634369 | D182: 33.25934471 | E182: 6033.634369 | F182: 33.25934471
B183: 105435.8991 | C183: 6109.895902 | D183: 33.06185306 | E183: 6109.895902 | F183: 33.06185306
B184: 108263.6734 | C184: 6187.57993 | D184: 32.8568495 | E184: 6187.57993 | F184: 32.8568495
B185: 111167.2882 | C185: 6266.709239 | D185: 32.64409656 | E185: 6266.709239 | F185: 32.64409656
B186: 114148.7774 | C186: 6347.30968 | D186: 32.42335881 | E186: 6347.30968 | F186: 32.42335881
B187: 117210.2298 | C187: 6429.410522 | D187: 32.19439913 | E187: 6429.410522 | F187: 32.19439913
B188: 120353.7898 | C188: 6513.044795 | D188: 31.95697459 | E188: 6513.044795 | F188: 31.95697459
B189: 123581.6596 | C189: 6598.249612 | D189: 31.71083227 | E189: 6598.249612 | F189: 31.71083227
B190: 126896.1003 | C190: 6685.066463 | D190: 31.45570468 | E190: 6685.066463 | F190: 31.45570468
B191: 130299.4339 | C191: 6773.541488 | D191: 31.19130512 | E191: 6773.541488 | F191: 31.19130512
B192: 133794.0443 | C192: 6863.725705 | D192: 30.9173228 | E192: 6863.725705 | F192: 30.9173228
B193: 137382.3796 | C193: 6955.675202 | D193: 30.63341788 | E193: 6955.675202 | F193: 30.63341788
B194: 141066.9535 | C194: 7049.451274 | D194: 30.33921636 | E194: 7049.451274 | F194: 30.33921636
B195: 144850.3471 | C195: 7145.12051 | D195: 30.03430487 | E195: 7145.12051 | F195: 30.03430487
B196: 148735.2107 | C196: 7242.754813 | D196: 29.71822548 | E196: 7242.754813 | F196: 29.71822548
B197: 152724.2658 | C197: 7342.431347 | D197: 29.39047036 | E197: 7342.431347 | F197: 29.39047036
B198: 156820.3067 | C198: 7444.232403 | D198: 29.05047657 | E198: 7444.232403 | F198: 29.05047657
B199: 161026.2028 | C199: 7548.245174 | D199: 28.69762078 | E199: 7548.245174 | F199: 28.69762078
B200: 165344.9003 | C200: 7654.561426 | D200: 28.3312141 | E200: 7654.561426 | F200: 28.3312141
B201: 169779.4246 | C201: 7763.277053 | D201: 27.95049697 | E201: 7763.277053 | F201: 27.95049697
B202: 174332.8822 | C202: 7874.491498 | D202: 27.55463417 | E202: 7874.491498 | F202: 27.55463417
... 206 more rows

Sheet Frequency vector (hidden)
A2: Number of points per decade | B2: ndec | C2: 300 | D2: index | E2: freq_generated [Hz] | F2: freq_customer [Hz] | G2: freq_selected [Hz] | H2: freq_selected [kHz]
A3: Logscale generator | B3: klog | C3: =10^(1/C2) -> 1.007704814 | D3: 0 | E3: =10*('Frequency vector'!$C$3)^D3 -> 10 | F3: ='CM choke'!B7 -> 1000 | G3: =IF(CMdata=1,'Frequency vector'!E3,'Frequency vector'!F3) -> 1000 | H3: =G3/1000 -> 1
D4: 1 | E4: =10*('Frequency vector'!$C$3)^D4 -> 10.07704814 | F4: =IF('CM choke'!B8=0, F3, 'CM choke'!B8) -> 1026.819843 | G4: =IF(CMdata=1,'Frequency vector'!E4,'Frequency vector'!F4) -> 1026.819843 | H4: =G4/1000 -> 1.026819843
D5: 2 | E5: =10*('Frequency vector'!$C$3)^D5 -> 10.15468992 | F5: =IF('CM choke'!B9=0, F4, 'CM choke'!B9) -> 1054.358991 | G5: =IF(CMdata=1,'Frequency vector'!E5,'Frequency vector'!F5) -> 1054.358991 | H5: 1.054358991
D6: 3 | E6: =10*('Frequency vector'!$C$3)^D6 -> 10.23292992 | F6: =IF('CM choke'!B10=0, F5, 'CM choke'!B10) -> 1082.636734 | G6: =IF(CMdata=1,'Frequency vector'!E6,'Frequency vector'!F6) -> 1082.636734 | H6: 1.082636734
D7: 4 | E7: =10*('Frequency vector'!$C$3)^D7 -> 10.31177275 | F7: =IF('CM choke'!B11=0, F6, 'CM choke'!B11) -> 1111.672882 | G7: =IF(CMdata=1,'Frequency vector'!E7,'Frequency vector'!F7) -> 1111.672882 | H7: 1.111672882
D8: 5 | E8: =10*('Frequency vector'!$C$3)^D8 -> 10.39122304 | F8: =IF('CM choke'!B12=0, F7, 'CM choke'!B12) -> 1141.487774 | G8: =IF(CMdata=1,'Frequency vector'!E8,'Frequency vector'!F8) -> 1141.487774 | H8: 1.141487774
D9: 6 | E9: =10*('Frequency vector'!$C$3)^D9 -> 10.47128548 | F9: =IF('CM choke'!B13=0, F8, 'CM choke'!B13) -> 1172.102298 | G9: =IF(CMdata=1,'Frequency vector'!E9,'Frequency vector'!F9) -> 1172.102298 | H9: 1.172102298
D10: 7 | E10: =10*('Frequency vector'!$C$3)^D10 -> 10.55196479 | F10: =IF('CM choke'!B14=0, F9, 'CM choke'!B14) -> 1203.537898 | G10: =IF(CMdata=1,'Frequency vector'!E10,'Frequency vector'!F10) -> 1203.537898 | H10: 1.203537898
D11: 8 | E11: =10*('Frequency vector'!$C$3)^D11 -> 10.63326572 | F11: =IF('CM choke'!B15=0, F10, 'CM choke'!B15) -> 1235.816596 | G11: =IF(CMdata=1,'Frequency vector'!E11,'Frequency vector'!F11) -> 1235.816596 | H11: 1.235816596
D12: 9 | E12: =10*('Frequency vector'!$C$3)^D12 -> 10.71519305 | F12: =IF('CM choke'!B16=0, F11, 'CM choke'!B16) -> 1268.961003 | G12: =IF(CMdata=1,'Frequency vector'!E12,'Frequency vector'!F12) -> 1268.961003 | H12: 1.268961003
D13: 10 | E13: =10*('Frequency vector'!$C$3)^D13 -> 10.79775162 | F13: =IF('CM choke'!B17=0, F12, 'CM choke'!B17) -> 1302.994339 | G13: =IF(CMdata=1,'Frequency vector'!E13,'Frequency vector'!F13) -> 1302.994339 | H13: 1.302994339
D14: 11 | E14: =10*('Frequency vector'!$C$3)^D14 -> 10.88094629 | F14: =IF('CM choke'!B18=0, F13, 'CM choke'!B18) -> 1337.940443 | G14: =IF(CMdata=1,'Frequency vector'!E14,'Frequency vector'!F14) -> 1337.940443 | H14: 1.337940443
D15: 12 | E15: =10*('Frequency vector'!$C$3)^D15 -> 10.96478196 | F15: =IF('CM choke'!B19=0, F14, 'CM choke'!B19) -> 1373.823796 | G15: =IF(CMdata=1,'Frequency vector'!E15,'Frequency vector'!F15) -> 1373.823796 | H15: 1.373823796
D16: 13 | E16: =10*('Frequency vector'!$C$3)^D16 -> 11.04926357 | F16: =IF('CM choke'!B20=0, F15, 'CM choke'!B20) -> 1410.669535 | G16: =IF(CMdata=1,'Frequency vector'!E16,'Frequency vector'!F16) -> 1410.669535 | H16: 1.410669535
D17: 14 | E17: =10*('Frequency vector'!$C$3)^D17 -> 11.13439609 | F17: =IF('CM choke'!B21=0, F16, 'CM choke'!B21) -> 1448.503471 | G17: =IF(CMdata=1,'Frequency vector'!E17,'Frequency vector'!F17) -> 1448.503471 | H17: 1.448503471
D18: 15 | E18: =10*('Frequency vector'!$C$3)^D18 -> 11.22018454 | F18: =IF('CM choke'!B22=0, F17, 'CM choke'!B22) -> 1487.352107 | G18: =IF(CMdata=1,'Frequency vector'!E18,'Frequency vector'!F18) -> 1487.352107 | H18: 1.487352107
D19: 16 | E19: =10*('Frequency vector'!$C$3)^D19 -> 11.30663398 | F19: =IF('CM choke'!B23=0, F18, 'CM choke'!B23) -> 1527.242658 | G19: =IF(CMdata=1,'Frequency vector'!E19,'Frequency vector'!F19) -> 1527.242658 | H19: 1.527242658
D20: 17 | E20: =10*('Frequency vector'!$C$3)^D20 -> 11.39374949 | F20: =IF('CM choke'!B24=0, F19, 'CM choke'!B24) -> 1568.203067 | G20: =IF(CMdata=1,'Frequency vector'!E20,'Frequency vector'!F20) -> 1568.203067 | H20: 1.568203067
D21: 18 | E21: =10*('Frequency vector'!$C$3)^D21 -> 11.48153621 | F21: =IF('CM choke'!B25=0, F20, 'CM choke'!B25) -> 1610.262028 | G21: =IF(CMdata=1,'Frequency vector'!E21,'Frequency vector'!F21) -> 1610.262028 | H21: 1.610262028
D22: 19 | E22: =10*('Frequency vector'!$C$3)^D22 -> 11.56999932 | F22: =IF('CM choke'!B26=0, F21, 'CM choke'!B26) -> 1653.449003 | G22: =IF(CMdata=1,'Frequency vector'!E22,'Frequency vector'!F22) -> 1653.449003 | H22: 1.653449003
D23: 20 | E23: =10*('Frequency vector'!$C$3)^D23 -> 11.65914401 | F23: =IF('CM choke'!B27=0, F22, 'CM choke'!B27) -> 1697.794246 | G23: =IF(CMdata=1,'Frequency vector'!E23,'Frequency vector'!F23) -> 1697.794246 | H23: 1.697794246
D24: 21 | E24: =10*('Frequency vector'!$C$3)^D24 -> 11.74897555 | F24: =IF('CM choke'!B28=0, F23, 'CM choke'!B28) -> 1743.328822 | G24: =IF(CMdata=1,'Frequency vector'!E24,'Frequency vector'!F24) -> 1743.328822 | H24: 1.743328822
D25: 22 | E25: =10*('Frequency vector'!$C$3)^D25 -> 11.83949922 | F25: =IF('CM choke'!B29=0, F24, 'CM choke'!B29) -> 1790.084628 | G25: =IF(CMdata=1,'Frequency vector'!E25,'Frequency vector'!F25) -> 1790.084628 | H25: 1.790084628
D26: 23 | E26: =10*('Frequency vector'!$C$3)^D26 -> 11.93072036 | F26: =IF('CM choke'!B30=0, F25, 'CM choke'!B30) -> 1838.094418 | G26: =IF(CMdata=1,'Frequency vector'!E26,'Frequency vector'!F26) -> 1838.094418 | H26: 1.838094418
D27: 24 | E27: =10*('Frequency vector'!$C$3)^D27 -> 12.02264435 | F27: =IF('CM choke'!B31=0, F26, 'CM choke'!B31) -> 1887.391822 | G27: =IF(CMdata=1,'Frequency vector'!E27,'Frequency vector'!F27) -> 1887.391822 | H27: 1.887391822
D28: 25 | E28: =10*('Frequency vector'!$C$3)^D28 -> 12.11527659 | F28: =IF('CM choke'!B32=0, F27, 'CM choke'!B32) -> 1938.011375 | G28: =IF(CMdata=1,'Frequency vector'!E28,'Frequency vector'!F28) -> 1938.011375 | H28: 1.938011375
D29: 26 | E29: =10*('Frequency vector'!$C$3)^D29 -> 12.20862254 | F29: =IF('CM choke'!B33=0, F28, 'CM choke'!B33) -> 1989.988537 | G29: =IF(CMdata=1,'Frequency vector'!E29,'Frequency vector'!F29) -> 1989.988537 | H29: 1.989988537
D30: 27 | E30: =10*('Frequency vector'!$C$3)^D30 -> 12.30268771 | F30: =IF('CM choke'!B34=0, F29, 'CM choke'!B34) -> 2043.359718 | G30: =IF(CMdata=1,'Frequency vector'!E30,'Frequency vector'!F30) -> 2043.359718 | H30: 2.043359718
D31: 28 | E31: =10*('Frequency vector'!$C$3)^D31 -> 12.39747763 | F31: =IF('CM choke'!B35=0, F30, 'CM choke'!B35) -> 2098.162306 | G31: =IF(CMdata=1,'Frequency vector'!E31,'Frequency vector'!F31) -> 2098.162306 | H31: 2.098162306
D32: 29 | E32: =10*('Frequency vector'!$C$3)^D32 -> 12.49299789 | F32: =IF('CM choke'!B36=0, F31, 'CM choke'!B36) -> 2154.43469 | G32: =IF(CMdata=1,'Frequency vector'!E32,'Frequency vector'!F32) -> 2154.43469 | H32: 2.15443469
D33: 30 | E33: =10*('Frequency vector'!$C$3)^D33 -> 12.58925412 | F33: =IF('CM choke'!B37=0, F32, 'CM choke'!B37) -> 2212.216291 | G33: =IF(CMdata=1,'Frequency vector'!E33,'Frequency vector'!F33) -> 2212.216291 | H33: 2.212216291
D34: 31 | E34: =10*('Frequency vector'!$C$3)^D34 -> 12.68625198 | F34: =IF('CM choke'!B38=0, F33, 'CM choke'!B38) -> 2271.547586 | G34: =IF(CMdata=1,'Frequency vector'!E34,'Frequency vector'!F34) -> 2271.547586 | H34: 2.271547586
D35: 32 | E35: =10*('Frequency vector'!$C$3)^D35 -> 12.78399719 | F35: =IF('CM choke'!B39=0, F34, 'CM choke'!B39) -> 2332.470136 | G35: =IF(CMdata=1,'Frequency vector'!E35,'Frequency vector'!F35) -> 2332.470136 | H35: 2.332470136
D36: 33 | E36: =10*('Frequency vector'!$C$3)^D36 -> 12.88249552 | F36: =IF('CM choke'!B40=0, F35, 'CM choke'!B40) -> 2395.02662 | G36: =IF(CMdata=1,'Frequency vector'!E36,'Frequency vector'!F36) -> 2395.02662 | H36: 2.39502662
D37: 34 | E37: =10*('Frequency vector'!$C$3)^D37 -> 12.98175275 | F37: =IF('CM choke'!B41=0, F36, 'CM choke'!B41) -> 2459.260859 | G37: =IF(CMdata=1,'Frequency vector'!E37,'Frequency vector'!F37) -> 2459.260859 | H37: 2.459260859
D38: 35 | E38: =10*('Frequency vector'!$C$3)^D38 -> 13.08177474 | F38: =IF('CM choke'!B42=0, F37, 'CM choke'!B42) -> 2525.21785 | G38: =IF(CMdata=1,'Frequency vector'!E38,'Frequency vector'!F38) -> 2525.21785 | H38: 2.52521785
D39: 36 | E39: =10*('Frequency vector'!$C$3)^D39 -> 13.18256739 | F39: =IF('CM choke'!B43=0, F38, 'CM choke'!B43) -> 2592.943797 | G39: =IF(CMdata=1,'Frequency vector'!E39,'Frequency vector'!F39) -> 2592.943797 | H39: 2.592943797
D40: 37 | E40: =10*('Frequency vector'!$C$3)^D40 -> 13.28413662 | F40: =IF('CM choke'!B44=0, F39, 'CM choke'!B44) -> 2662.486144 | G40: =IF(CMdata=1,'Frequency vector'!E40,'Frequency vector'!F40) -> 2662.486144 | H40: 2.662486144
D41: 38 | E41: =10*('Frequency vector'!$C$3)^D41 -> 13.38648842 | F41: =IF('CM choke'!B45=0, F40, 'CM choke'!B45) -> 2733.893606 | G41: =IF(CMdata=1,'Frequency vector'!E41,'Frequency vector'!F41) -> 2733.893606 | H41: 2.733893606
D42: 39 | E42: =10*('Frequency vector'!$C$3)^D42 -> 13.48962883 | F42: =IF('CM choke'!B46=0, F41, 'CM choke'!B46) -> 2807.216204 | G42: =IF(CMdata=1,'Frequency vector'!E42,'Frequency vector'!F42) -> 2807.216204 | H42: 2.807216204
D43: 40 | E43: =10*('Frequency vector'!$C$3)^D43 -> 13.59356391 | F43: =IF('CM choke'!B47=0, F42, 'CM choke'!B47) -> 2882.505303 | G43: =IF(CMdata=1,'Frequency vector'!E43,'Frequency vector'!F43) -> 2882.505303 | H43: 2.882505303
D44: 41 | E44: =10*('Frequency vector'!$C$3)^D44 -> 13.69829979 | F44: =IF('CM choke'!B48=0, F43, 'CM choke'!B48) -> 2959.813644 | G44: =IF(CMdata=1,'Frequency vector'!E44,'Frequency vector'!F44) -> 2959.813644 | H44: 2.959813644
D45: 42 | E45: =10*('Frequency vector'!$C$3)^D45 -> 13.80384265 | F45: =IF('CM choke'!B49=0, F44, 'CM choke'!B49) -> 3039.195382 | G45: =IF(CMdata=1,'Frequency vector'!E45,'Frequency vector'!F45) -> 3039.195382 | H45: 3.039195382
D46: 43 | E46: =10*('Frequency vector'!$C$3)^D46 -> 13.91019869 | F46: =IF('CM choke'!B50=0, F45, 'CM choke'!B50) -> 3120.706127 | G46: =IF(CMdata=1,'Frequency vector'!E46,'Frequency vector'!F46) -> 3120.706127 | H46: 3.120706127
D47: 44 | E47: =10*('Frequency vector'!$C$3)^D47 -> 14.01737418 | F47: =IF('CM choke'!B51=0, F46, 'CM choke'!B51) -> 3204.402976 | G47: =IF(CMdata=1,'Frequency vector'!E47,'Frequency vector'!F47) -> 3204.402976 | H47: 3.204402976
D48: 45 | E48: =10*('Frequency vector'!$C$3)^D48 -> 14.12537545 | F48: =IF('CM choke'!B52=0, F47, 'CM choke'!B52) -> 3290.344562 | G48: =IF(CMdata=1,'Frequency vector'!E48,'Frequency vector'!F48) -> 3290.344562 | H48: 3.290344562
D49: 46 | E49: =10*('Frequency vector'!$C$3)^D49 -> 14.23420884 | F49: =IF('CM choke'!B53=0, F48, 'CM choke'!B53) -> 3378.591088 | G49: =IF(CMdata=1,'Frequency vector'!E49,'Frequency vector'!F49) -> 3378.591088 | H49: 3.378591088
D50: 47 | E50: =10*('Frequency vector'!$C$3)^D50 -> 14.34388077 | F50: =IF('CM choke'!B54=0, F49, 'CM choke'!B54) -> 3469.204372 | G50: =IF(CMdata=1,'Frequency vector'!E50,'Frequency vector'!F50) -> 3469.204372 | H50: 3.469204372
D51: 48 | E51: =10*('Frequency vector'!$C$3)^D51 -> 14.45439771 | F51: =IF('CM choke'!B55=0, F50, 'CM choke'!B55) -> 3562.24789 | G51: =IF(CMdata=1,'Frequency vector'!E51,'Frequency vector'!F51) -> 3562.24789 | H51: 3.56224789
D52: 49 | E52: =10*('Frequency vector'!$C$3)^D52 -> 14.56576616 | F52: =IF('CM choke'!B56=0, F51, 'CM choke'!B56) -> 3657.786821 | G52: =IF(CMdata=1,'Frequency vector'!E52,'Frequency vector'!F52) -> 3657.786821 | H52: 3.657786821
D53: 50 | E53: =10*('Frequency vector'!$C$3)^D53 -> 14.67799268 | F53: =IF('CM choke'!B57=0, F52, 'CM choke'!B57) -> 3755.888091 | G53: =IF(CMdata=1,'Frequency vector'!E53,'Frequency vector'!F53) -> 3755.888091 | H53: 3.755888091
D54: 51 | E54: =10*('Frequency vector'!$C$3)^D54 -> 14.79108388 | F54: =IF('CM choke'!B58=0, F53, 'CM choke'!B58) -> 3856.620421 | G54: =IF(CMdata=1,'Frequency vector'!E54,'Frequency vector'!F54) -> 3856.620421 | H54: 3.856620421
D55: 52 | E55: =10*('Frequency vector'!$C$3)^D55 -> 14.90504643 | F55: =IF('CM choke'!B59=0, F54, 'CM choke'!B59) -> 3960.054377 | G55: =IF(CMdata=1,'Frequency vector'!E55,'Frequency vector'!F55) -> 3960.054377 | H55: 3.960054377
D56: 53 | E56: =10*('Frequency vector'!$C$3)^D56 -> 15.01988705 | F56: =IF('CM choke'!B60=0, F55, 'CM choke'!B60) -> 4066.262415 | G56: =IF(CMdata=1,'Frequency vector'!E56,'Frequency vector'!F56) -> 4066.262415 | H56: 4.066262415
D57: 54 | E57: =10*('Frequency vector'!$C$3)^D57 -> 15.13561248 | F57: =IF('CM choke'!B61=0, F56, 'CM choke'!B61) -> 4175.318937 | G57: =IF(CMdata=1,'Frequency vector'!E57,'Frequency vector'!F57) -> 4175.318937 | H57: 4.175318937
D58: 55 | E58: =10*('Frequency vector'!$C$3)^D58 -> 15.25222957 | F58: =IF('CM choke'!B62=0, F57, 'CM choke'!B62) -> 4287.300337 | G58: =IF(CMdata=1,'Frequency vector'!E58,'Frequency vector'!F58) -> 4287.300337 | H58: 4.287300337
D59: 56 | E59: =10*('Frequency vector'!$C$3)^D59 -> 15.36974516 | F59: =IF('CM choke'!B63=0, F58, 'CM choke'!B63) -> 4402.28506 | G59: =IF(CMdata=1,'Frequency vector'!E59,'Frequency vector'!F59) -> 4402.28506 | H59: 4.40228506
D60: 57 | E60: =10*('Frequency vector'!$C$3)^D60 -> 15.48816619 | F60: =IF('CM choke'!B64=0, F59, 'CM choke'!B64) -> 4520.353656 | G60: =IF(CMdata=1,'Frequency vector'!E60,'Frequency vector'!F60) -> 4520.353656 | H60: 4.520353656
D61: 58 | E61: =10*('Frequency vector'!$C$3)^D61 -> 15.60749963 | F61: =IF('CM choke'!B65=0, F60, 'CM choke'!B65) -> 4641.588834 | G61: =IF(CMdata=1,'Frequency vector'!E61,'Frequency vector'!F61) -> 4641.588834 | H61: 4.641588834
D62: 59 | E62: =10*('Frequency vector'!$C$3)^D62 -> 15.72775251 | F62: =IF('CM choke'!B66=0, F61, 'CM choke'!B66) -> 4766.075519 | G62: =IF(CMdata=1,'Frequency vector'!E62,'Frequency vector'!F62) -> 4766.075519 | H62: 4.766075519
D63: 60 | E63: =10*('Frequency vector'!$C$3)^D63 -> 15.84893192 | F63: =IF('CM choke'!B67=0, F62, 'CM choke'!B67) -> 4893.900918 | G63: =IF(CMdata=1,'Frequency vector'!E63,'Frequency vector'!F63) -> 4893.900918 | H63: 4.893900918
D64: 61 | E64: =10*('Frequency vector'!$C$3)^D64 -> 15.971045 | F64: =IF('CM choke'!B68=0, F63, 'CM choke'!B68) -> 5025.154575 | G64: =IF(CMdata=1,'Frequency vector'!E64,'Frequency vector'!F64) -> 5025.154575 | H64: 5.025154575
D65: 62 | E65: =10*('Frequency vector'!$C$3)^D65 -> 16.09409893 | F65: =IF('CM choke'!B69=0, F64, 'CM choke'!B69) -> 5159.928434 | G65: =IF(CMdata=1,'Frequency vector'!E65,'Frequency vector'!F65) -> 5159.928434 | H65: 5.159928434
D66: 63 | E66: =10*('Frequency vector'!$C$3)^D66 -> 16.21810097 | F66: =IF('CM choke'!B70=0, F65, 'CM choke'!B70) -> 5298.316906 | G66: =IF(CMdata=1,'Frequency vector'!E66,'Frequency vector'!F66) -> 5298.316906 | H66: 5.298316906
D67: 64 | E67: =10*('Frequency vector'!$C$3)^D67 -> 16.34305843 | F67: =IF('CM choke'!B71=0, F66, 'CM choke'!B71) -> 5440.416936 | G67: =IF(CMdata=1,'Frequency vector'!E67,'Frequency vector'!F67) -> 5440.416936 | H67: 5.440416936
D68: 65 | E68: =10*('Frequency vector'!$C$3)^D68 -> 16.46897865 | F68: =IF('CM choke'!B72=0, F67, 'CM choke'!B72) -> 5586.328066 | G68: =IF(CMdata=1,'Frequency vector'!E68,'Frequency vector'!F68) -> 5586.328066 | H68: =G68/1000 -> 5.586328066
D69: 66 | E69: =10*('Frequency vector'!$C$3)^D69 -> 16.59586907 | F69: =IF('CM choke'!B73=0, F68, 'CM choke'!B73) -> 5736.15251 | G69: =IF(CMdata=1,'Frequency vector'!E69,'Frequency vector'!F69) -> 5736.15251 | H69: 5.73615251
D70: 67 | E70: =10*('Frequency vector'!$C$3)^D70 -> 16.72373716 | F70: =IF('CM choke'!B74=0, F69, 'CM choke'!B74) -> 5889.995223 | G70: =IF(CMdata=1,'Frequency vector'!E70,'Frequency vector'!F70) -> 5889.995223 | H70: 5.889995223
D71: 68 | E71: =10*('Frequency vector'!$C$3)^D71 -> 16.85259045 | F71: =IF('CM choke'!B75=0, F70, 'CM choke'!B75) -> 6047.963972 | G71: =IF(CMdata=1,'Frequency vector'!E71,'Frequency vector'!F71) -> 6047.963972 | H71: 6.047963972
D72: 69 | E72: =10*('Frequency vector'!$C$3)^D72 -> 16.98243652 | F72: =IF('CM choke'!B76=0, F71, 'CM choke'!B76) -> 6210.169419 | G72: =IF(CMdata=1,'Frequency vector'!E72,'Frequency vector'!F72) -> 6210.169419 | H72: 6.210169419
D73: 70 | E73: =10*('Frequency vector'!$C$3)^D73 -> 17.11328304 | F73: =IF('CM choke'!B77=0, F72, 'CM choke'!B77) -> 6376.72519 | G73: =IF(CMdata=1,'Frequency vector'!E73,'Frequency vector'!F73) -> 6376.72519 | H73: 6.37672519
D74: 71 | E74: =10*('Frequency vector'!$C$3)^D74 -> 17.24513771 | F74: =IF('CM choke'!B78=0, F73, 'CM choke'!B78) -> 6547.747961 | G74: =IF(CMdata=1,'Frequency vector'!E74,'Frequency vector'!F74) -> 6547.747961 | H74: 6.547747961
D75: 72 | E75: =10*('Frequency vector'!$C$3)^D75 -> 17.37800829 | F75: =IF('CM choke'!B79=0, F74, 'CM choke'!B79) -> 6723.357536 | G75: =IF(CMdata=1,'Frequency vector'!E75,'Frequency vector'!F75) -> 6723.357536 | H75: 6.723357536
D76: 73 | E76: =10*('Frequency vector'!$C$3)^D76 -> 17.51190261 | F76: =IF('CM choke'!B80=0, F75, 'CM choke'!B80) -> 6903.676933 | G76: =IF(CMdata=1,'Frequency vector'!E76,'Frequency vector'!F76) -> 6903.676933 | H76: 6.903676933
D77: 74 | E77: =10*('Frequency vector'!$C$3)^D77 -> 17.64682857 | F77: =IF('CM choke'!B81=0, F76, 'CM choke'!B81) -> 7088.832467 | G77: =IF(CMdata=1,'Frequency vector'!E77,'Frequency vector'!F77) -> 7088.832467 | H77: 7.088832467
D78: 75 | E78: =10*('Frequency vector'!$C$3)^D78 -> 17.7827941 | F78: =IF('CM choke'!B82=0, F77, 'CM choke'!B82) -> 7278.953844 | G78: =IF(CMdata=1,'Frequency vector'!E78,'Frequency vector'!F78) -> 7278.953844 | H78: 7.278953844
D79: 76 | E79: =10*('Frequency vector'!$C$3)^D79 -> 17.91980722 | F79: =IF('CM choke'!B83=0, F78, 'CM choke'!B83) -> 7474.174246 | G79: =IF(CMdata=1,'Frequency vector'!E79,'Frequency vector'!F79) -> 7474.174246 | H79: 7.474174246
D80: 77 | E80: =10*('Frequency vector'!$C$3)^D80 -> 18.05787601 | F80: =IF('CM choke'!B84=0, F79, 'CM choke'!B84) -> 7674.630429 | G80: =IF(CMdata=1,'Frequency vector'!E80,'Frequency vector'!F80) -> 7674.630429 | H80: 7.674630429
D81: 78 | E81: =10*('Frequency vector'!$C$3)^D81 -> 18.19700859 | F81: =IF('CM choke'!B85=0, F80, 'CM choke'!B85) -> 7880.462816 | G81: =IF(CMdata=1,'Frequency vector'!E81,'Frequency vector'!F81) -> 7880.462816 | H81: 7.880462816
D82: 79 | E82: =10*('Frequency vector'!$C$3)^D82 -> 18.33721316 | F82: =IF('CM choke'!B86=0, F81, 'CM choke'!B86) -> 8091.815594 | G82: =IF(CMdata=1,'Frequency vector'!E82,'Frequency vector'!F82) -> 8091.815594 | H82: 8.091815594
D83: 80 | E83: =10*('Frequency vector'!$C$3)^D83 -> 18.47849797 | F83: =IF('CM choke'!B87=0, F82, 'CM choke'!B87) -> 8308.836822 | G83: =IF(CMdata=1,'Frequency vector'!E83,'Frequency vector'!F83) -> 8308.836822 | H83: 8.308836822
D84: 81 | E84: =10*('Frequency vector'!$C$3)^D84 -> 18.62087137 | F84: =IF('CM choke'!B88=0, F83, 'CM choke'!B88) -> 8531.678524 | G84: =IF(CMdata=1,'Frequency vector'!E84,'Frequency vector'!F84) -> 8531.678524 | H84: 8.531678524
D85: 82 | E85: =10*('Frequency vector'!$C$3)^D85 -> 18.76434172 | F85: =IF('CM choke'!B89=0, F84, 'CM choke'!B89) -> 8760.496806 | G85: =IF(CMdata=1,'Frequency vector'!E85,'Frequency vector'!F85) -> 8760.496806 | H85: 8.760496806
D86: 83 | E86: =10*('Frequency vector'!$C$3)^D86 -> 18.90891748 | F86: =IF('CM choke'!B90=0, F85, 'CM choke'!B90) -> 8995.451959 | G86: =IF(CMdata=1,'Frequency vector'!E86,'Frequency vector'!F86) -> 8995.451959 | H86: 8.995451959
D87: 84 | E87: =10*('Frequency vector'!$C$3)^D87 -> 19.05460718 | F87: =IF('CM choke'!B91=0, F86, 'CM choke'!B91) -> 9236.708572 | G87: =IF(CMdata=1,'Frequency vector'!E87,'Frequency vector'!F87) -> 9236.708572 | H87: 9.236708572
D88: 85 | E88: =10*('Frequency vector'!$C$3)^D88 -> 19.20141939 | F88: =IF('CM choke'!B92=0, F87, 'CM choke'!B92) -> 9484.435649 | G88: =IF(CMdata=1,'Frequency vector'!E88,'Frequency vector'!F88) -> 9484.435649 | H88: 9.484435649
D89: 86 | E89: =10*('Frequency vector'!$C$3)^D89 -> 19.34936275 | F89: =IF('CM choke'!B93=0, F88, 'CM choke'!B93) -> 9738.806728 | G89: =IF(CMdata=1,'Frequency vector'!E89,'Frequency vector'!F89) -> 9738.806728 | H89: 9.738806728
D90: 87 | E90: =10*('Frequency vector'!$C$3)^D90 -> 19.498446 | F90: =IF('CM choke'!B94=0, F89, 'CM choke'!B94) -> 10000 | G90: =IF(CMdata=1,'Frequency vector'!E90,'Frequency vector'!F90) -> 10000 | H90: 10
D91: 88 | E91: =10*('Frequency vector'!$C$3)^D91 -> 19.6486779 | F91: =IF('CM choke'!B95=0, F90, 'CM choke'!B95) -> 10268.19843 | G91: =IF(CMdata=1,'Frequency vector'!E91,'Frequency vector'!F91) -> 10268.19843 | H91: 10.26819843
D92: 89 | E92: =10*('Frequency vector'!$C$3)^D92 -> 19.80006731 | F92: =IF('CM choke'!B96=0, F91, 'CM choke'!B96) -> 10543.58991 | G92: =IF(CMdata=1,'Frequency vector'!E92,'Frequency vector'!F92) -> 10543.58991 | H92: 10.54358991
D93: 90 | E93: =10*('Frequency vector'!$C$3)^D93 -> 19.95262315 | F93: =IF('CM choke'!B97=0, F92, 'CM choke'!B97) -> 10826.36734 | G93: =IF(CMdata=1,'Frequency vector'!E93,'Frequency vector'!F93) -> 10826.36734 | H93: 10.82636734
D94: 91 | E94: =10*('Frequency vector'!$C$3)^D94 -> 20.1063544 | F94: =IF('CM choke'!B98=0, F93, 'CM choke'!B98) -> 11116.72882 | G94: =IF(CMdata=1,'Frequency vector'!E94,'Frequency vector'!F94) -> 11116.72882 | H94: 11.11672882
D95: 92 | E95: =10*('Frequency vector'!$C$3)^D95 -> 20.26127013 | F95: =IF('CM choke'!B99=0, F94, 'CM choke'!B99) -> 11414.87774 | G95: =IF(CMdata=1,'Frequency vector'!E95,'Frequency vector'!F95) -> 11414.87774 | H95: 11.41487774
D96: 93 | E96: =10*('Frequency vector'!$C$3)^D96 -> 20.41737945 | F96: =IF('CM choke'!B100=0, F95, 'CM choke'!B100) -> 11721.02298 | G96: =IF(CMdata=1,'Frequency vector'!E96,'Frequency vector'!F96) -> 11721.02298 | H96: 11.72102298
D97: 94 | E97: =10*('Frequency vector'!$C$3)^D97 -> 20.57469156 | F97: =IF('CM choke'!B101=0, F96, 'CM choke'!B101) -> 12035.37898 | G97: =IF(CMdata=1,'Frequency vector'!E97,'Frequency vector'!F97) -> 12035.37898 | H97: 12.03537898
D98: 95 | E98: =10*('Frequency vector'!$C$3)^D98 -> 20.73321573 | F98: =IF('CM choke'!B102=0, F97, 'CM choke'!B102) -> 12358.16596 | G98: =IF(CMdata=1,'Frequency vector'!E98,'Frequency vector'!F98) -> 12358.16596 | H98: 12.35816596
D99: 96 | E99: =10*('Frequency vector'!$C$3)^D99 -> 20.89296131 | F99: =IF('CM choke'!B103=0, F98, 'CM choke'!B103) -> 12689.61003 | G99: =IF(CMdata=1,'Frequency vector'!E99,'Frequency vector'!F99) -> 12689.61003 | H99: 12.68961003
D100: 97 | E100: =10*('Frequency vector'!$C$3)^D100 -> 21.05393769 | F100: =IF('CM choke'!B104=0, F99, 'CM choke'!B104) -> 13029.94339 | G100: =IF(CMdata=1,'Frequency vector'!E100,'Frequency vector'!F100) -> 13029.94339 | H100: 13.02994339
D101: 98 | E101: =10*('Frequency vector'!$C$3)^D101 -> 21.21615437 | F101: =IF('CM choke'!B105=0, F100, 'CM choke'!B105) -> 13379.40443 | G101: =IF(CMdata=1,'Frequency vector'!E101,'Frequency vector'!F101) -> 13379.40443 | H101: 13.37940443
D102: 99 | E102: =10*('Frequency vector'!$C$3)^D102 -> 21.3796209 | F102: =IF('CM choke'!B106=0, F101, 'CM choke'!B106) -> 13738.23796 | G102: =IF(CMdata=1,'Frequency vector'!E102,'Frequency vector'!F102) -> 13738.23796 | H102: 13.73823796
D103: 100 | E103: =10*('Frequency vector'!$C$3)^D103 -> 21.5443469 | F103: =IF('CM choke'!B107=0, F102, 'CM choke'!B107) -> 14106.69535 | G103: =IF(CMdata=1,'Frequency vector'!E103,'Frequency vector'!F103) -> 14106.69535 | H103: 14.10669535
D104: 101 | E104: =10*('Frequency vector'!$C$3)^D104 -> 21.71034209 | F104: =IF('CM choke'!B108=0, F103, 'CM choke'!B108) -> 14485.03471 | G104: =IF(CMdata=1,'Frequency vector'!E104,'Frequency vector'!F104) -> 14485.03471 | H104: 14.48503471
D105: 102 | E105: =10*('Frequency vector'!$C$3)^D105 -> 21.87761624 | F105: =IF('CM choke'!B109=0, F104, 'CM choke'!B109) -> 14873.52107 | G105: =IF(CMdata=1,'Frequency vector'!E105,'Frequency vector'!F105) -> 14873.52107 | H105: 14.87352107
D106: 103 | E106: =10*('Frequency vector'!$C$3)^D106 -> 22.04617921 | F106: =IF('CM choke'!B110=0, F105, 'CM choke'!B110) -> 15272.42658 | G106: =IF(CMdata=1,'Frequency vector'!E106,'Frequency vector'!F106) -> 15272.42658 | H106: 15.27242658
D107: 104 | E107: =10*('Frequency vector'!$C$3)^D107 -> 22.21604092 | F107: =IF('CM choke'!B111=0, F106, 'CM choke'!B111) -> 15682.03067 | G107: =IF(CMdata=1,'Frequency vector'!E107,'Frequency vector'!F107) -> 15682.03067 | H107: 15.68203067
D108: 105 | E108: =10*('Frequency vector'!$C$3)^D108 -> 22.38721139 | F108: =IF('CM choke'!B112=0, F107, 'CM choke'!B112) -> 16102.62028 | G108: =IF(CMdata=1,'Frequency vector'!E108,'Frequency vector'!F108) -> 16102.62028 | H108: 16.10262028
D109: 106 | E109: =10*('Frequency vector'!$C$3)^D109 -> 22.55970069 | F109: =IF('CM choke'!B113=0, F108, 'CM choke'!B113) -> 16534.49003 | G109: =IF(CMdata=1,'Frequency vector'!E109,'Frequency vector'!F109) -> 16534.49003 | H109: 16.53449003
D110: 107 | E110: =10*('Frequency vector'!$C$3)^D110 -> 22.73351899 | F110: =IF('CM choke'!B114=0, F109, 'CM choke'!B114) -> 16977.94246 | G110: =IF(CMdata=1,'Frequency vector'!E110,'Frequency vector'!F110) -> 16977.94246 | H110: 16.97794246
D111: 108 | E111: =10*('Frequency vector'!$C$3)^D111 -> 22.90867653 | F111: =IF('CM choke'!B115=0, F110, 'CM choke'!B115) -> 17433.28822 | G111: =IF(CMdata=1,'Frequency vector'!E111,'Frequency vector'!F111) -> 17433.28822 | H111: 17.43328822
D112: 109 | E112: =10*('Frequency vector'!$C$3)^D112 -> 23.08518362 | F112: =IF('CM choke'!B116=0, F111, 'CM choke'!B116) -> 17900.84628 | G112: =IF(CMdata=1,'Frequency vector'!E112,'Frequency vector'!F112) -> 17900.84628 | H112: 17.90084628
D113: 110 | E113: =10*('Frequency vector'!$C$3)^D113 -> 23.26305067 | F113: =IF('CM choke'!B117=0, F112, 'CM choke'!B117) -> 18380.94418 | G113: =IF(CMdata=1,'Frequency vector'!E113,'Frequency vector'!F113) -> 18380.94418 | H113: 18.38094418
D114: 111 | E114: =10*('Frequency vector'!$C$3)^D114 -> 23.44228815 | F114: =IF('CM choke'!B118=0, F113, 'CM choke'!B118) -> 18873.91822 | G114: =IF(CMdata=1,'Frequency vector'!E114,'Frequency vector'!F114) -> 18873.91822 | H114: 18.87391822
D115: 112 | E115: =10*('Frequency vector'!$C$3)^D115 -> 23.62290663 | F115: =IF('CM choke'!B119=0, F114, 'CM choke'!B119) -> 19380.11375 | G115: =IF(CMdata=1,'Frequency vector'!E115,'Frequency vector'!F115) -> 19380.11375 | H115: 19.38011375
D116: 113 | E116: =10*('Frequency vector'!$C$3)^D116 -> 23.80491673 | F116: =IF('CM choke'!B120=0, F115, 'CM choke'!B120) -> 19899.88537 | G116: =IF(CMdata=1,'Frequency vector'!E116,'Frequency vector'!F116) -> 19899.88537 | H116: 19.89988537
D117: 114 | E117: =10*('Frequency vector'!$C$3)^D117 -> 23.98832919 | F117: =IF('CM choke'!B121=0, F116, 'CM choke'!B121) -> 20433.59718 | G117: =IF(CMdata=1,'Frequency vector'!E117,'Frequency vector'!F117) -> 20433.59718 | H117: 20.43359718
D118: 115 | E118: =10*('Frequency vector'!$C$3)^D118 -> 24.17315481 | F118: =IF('CM choke'!B122=0, F117, 'CM choke'!B122) -> 20981.62306 | G118: =IF(CMdata=1,'Frequency vector'!E118,'Frequency vector'!F118) -> 20981.62306 | H118: 20.98162306
D119: 116 | E119: =10*('Frequency vector'!$C$3)^D119 -> 24.35940447 | F119: =IF('CM choke'!B123=0, F118, 'CM choke'!B123) -> 21544.3469 | G119: =IF(CMdata=1,'Frequency vector'!E119,'Frequency vector'!F119) -> 21544.3469 | H119: 21.5443469
D120: 117 | E120: =10*('Frequency vector'!$C$3)^D120 -> 24.54708916 | F120: =IF('CM choke'!B124=0, F119, 'CM choke'!B124) -> 22122.16291 | G120: =IF(CMdata=1,'Frequency vector'!E120,'Frequency vector'!F120) -> 22122.16291 | H120: 22.12216291
D121: 118 | E121: =10*('Frequency vector'!$C$3)^D121 -> 24.73621992 | F121: =IF('CM choke'!B125=0, F120, 'CM choke'!B125) -> 22715.47586 | G121: =IF(CMdata=1,'Frequency vector'!E121,'Frequency vector'!F121) -> 22715.47586 | H121: 22.71547586
D122: 119 | E122: =10*('Frequency vector'!$C$3)^D122 -> 24.92680789 | F122: =IF('CM choke'!B126=0, F121, 'CM choke'!B126) -> 23324.70136 | G122: =IF(CMdata=1,'Frequency vector'!E122,'Frequency vector'!F122) -> 23324.70136 | H122: 23.32470136
D123: 120 | E123: =10*('Frequency vector'!$C$3)^D123 -> 25.11886432 | F123: =IF('CM choke'!B127=0, F122, 'CM choke'!B127) -> 23950.2662 | G123: =IF(CMdata=1,'Frequency vector'!E123,'Frequency vector'!F123) -> 23950.2662 | H123: 23.9502662
D124: 121 | E124: =10*('Frequency vector'!$C$3)^D124 -> 25.3124005 | F124: =IF('CM choke'!B128=0, F123, 'CM choke'!B128) -> 24592.60859 | G124: =IF(CMdata=1,'Frequency vector'!E124,'Frequency vector'!F124) -> 24592.60859 | H124: 24.59260859
D125: 122 | E125: =10*('Frequency vector'!$C$3)^D125 -> 25.50742784 | F125: =IF('CM choke'!B129=0, F124, 'CM choke'!B129) -> 25252.1785 | G125: =IF(CMdata=1,'Frequency vector'!E125,'Frequency vector'!F125) -> 25252.1785 | H125: 25.2521785
D126: 123 | E126: =10*('Frequency vector'!$C$3)^D126 -> 25.70395783 | F126: =IF('CM choke'!B130=0, F125, 'CM choke'!B130) -> 25929.43797 | G126: =IF(CMdata=1,'Frequency vector'!E126,'Frequency vector'!F126) -> 25929.43797 | H126: 25.92943797
D127: 124 | E127: =10*('Frequency vector'!$C$3)^D127 -> 25.90200205 | F127: =IF('CM choke'!B131=0, F126, 'CM choke'!B131) -> 26624.86144 | G127: =IF(CMdata=1,'Frequency vector'!E127,'Frequency vector'!F127) -> 26624.86144 | H127: 26.62486144
D128: 125 | E128: =10*('Frequency vector'!$C$3)^D128 -> 26.10157216 | F128: =IF('CM choke'!B132=0, F127, 'CM choke'!B132) -> 27338.93606 | G128: =IF(CMdata=1,'Frequency vector'!E128,'Frequency vector'!F128) -> 27338.93606 | H128: 27.33893606
D129: 126 | E129: =10*('Frequency vector'!$C$3)^D129 -> 26.30267992 | F129: =IF('CM choke'!B133=0, F128, 'CM choke'!B133) -> 28072.16204 | G129: =IF(CMdata=1,'Frequency vector'!E129,'Frequency vector'!F129) -> 28072.16204 | H129: 28.07216204
D130: 127 | E130: =10*('Frequency vector'!$C$3)^D130 -> 26.50533718 | F130: =IF('CM choke'!B134=0, F129, 'CM choke'!B134) -> 28825.05303 | G130: =IF(CMdata=1,'Frequency vector'!E130,'Frequency vector'!F130) -> 28825.05303 | H130: 28.82505303
D131: 128 | E131: =10*('Frequency vector'!$C$3)^D131 -> 26.70955588 | F131: =IF('CM choke'!B135=0, F130, 'CM choke'!B135) -> 29598.13644 | G131: =IF(CMdata=1,'Frequency vector'!E131,'Frequency vector'!F131) -> 29598.13644 | H131: 29.59813644
D132: 129 | E132: =10*('Frequency vector'!$C$3)^D132 -> 26.91534804 | F132: =IF('CM choke'!B136=0, F131, 'CM choke'!B136) -> 30391.95382 | G132: =IF(CMdata=1,'Frequency vector'!E132,'Frequency vector'!F132) -> 30391.95382 | H132: =G132/1000 -> 30.39195382
D133: 130 | E133: =10*('Frequency vector'!$C$3)^D133 -> 27.12272579 | F133: =IF('CM choke'!B137=0, F132, 'CM choke'!B137) -> 31207.06127 | G133: =IF(CMdata=1,'Frequency vector'!E133,'Frequency vector'!F133) -> 31207.06127 | H133: 31.20706127
D134: 131 | E134: =10*('Frequency vector'!$C$3)^D134 -> 27.33170135 | F134: =IF('CM choke'!B138=0, F133, 'CM choke'!B138) -> 32044.02976 | G134: =IF(CMdata=1,'Frequency vector'!E134,'Frequency vector'!F134) -> 32044.02976 | H134: 32.04402976
D135: 132 | E135: =10*('Frequency vector'!$C$3)^D135 -> 27.54228703 | F135: =IF('CM choke'!B139=0, F134, 'CM choke'!B139) -> 32903.44562 | G135: =IF(CMdata=1,'Frequency vector'!E135,'Frequency vector'!F135) -> 32903.44562 | H135: 32.90344562
D136: 133 | E136: =10*('Frequency vector'!$C$3)^D136 -> 27.75449524 | F136: =IF('CM choke'!B140=0, F135, 'CM choke'!B140) -> 33785.91088 | G136: =IF(CMdata=1,'Frequency vector'!E136,'Frequency vector'!F136) -> 33785.91088 | H136: 33.78591088
D137: 134 | E137: =10*('Frequency vector'!$C$3)^D137 -> 27.96833846 | F137: =IF('CM choke'!B141=0, F136, 'CM choke'!B141) -> 34692.04372 | G137: =IF(CMdata=1,'Frequency vector'!E137,'Frequency vector'!F137) -> 34692.04372 | H137: 34.69204372
D138: 135 | E138: =10*('Frequency vector'!$C$3)^D138 -> 28.18382931 | F138: =IF('CM choke'!B142=0, F137, 'CM choke'!B142) -> 35622.4789 | G138: =IF(CMdata=1,'Frequency vector'!E138,'Frequency vector'!F138) -> 35622.4789 | H138: 35.6224789
D139: 136 | E139: =10*('Frequency vector'!$C$3)^D139 -> 28.40098048 | F139: =IF('CM choke'!B143=0, F138, 'CM choke'!B143) -> 36577.86821 | G139: =IF(CMdata=1,'Frequency vector'!E139,'Frequency vector'!F139) -> 36577.86821 | H139: 36.57786821
D140: 137 | E140: =10*('Frequency vector'!$C$3)^D140 -> 28.61980476 | F140: =IF('CM choke'!B144=0, F139, 'CM choke'!B144) -> 37558.88091 | G140: =IF(CMdata=1,'Frequency vector'!E140,'Frequency vector'!F140) -> 37558.88091 | H140: 37.55888091
D141: 138 | E141: =10*('Frequency vector'!$C$3)^D141 -> 28.84031503 | F141: =IF('CM choke'!B145=0, F140, 'CM choke'!B145) -> 38566.20421 | G141: =IF(CMdata=1,'Frequency vector'!E141,'Frequency vector'!F141) -> 38566.20421 | H141: 38.56620421
D142: 139 | E142: =10*('Frequency vector'!$C$3)^D142 -> 29.0625243 | F142: =IF('CM choke'!B146=0, F141, 'CM choke'!B146) -> 39600.54377 | G142: =IF(CMdata=1,'Frequency vector'!E142,'Frequency vector'!F142) -> 39600.54377 | H142: 39.60054377
D143: 140 | E143: =10*('Frequency vector'!$C$3)^D143 -> 29.28644565 | F143: =IF('CM choke'!B147=0, F142, 'CM choke'!B147) -> 40662.62415 | G143: =IF(CMdata=1,'Frequency vector'!E143,'Frequency vector'!F143) -> 40662.62415 | H143: 40.66262415
D144: 141 | E144: =10*('Frequency vector'!$C$3)^D144 -> 29.51209227 | F144: =IF('CM choke'!B148=0, F143, 'CM choke'!B148) -> 41753.18937 | G144: =IF(CMdata=1,'Frequency vector'!E144,'Frequency vector'!F144) -> 41753.18937 | H144: 41.75318937
D145: 142 | E145: =10*('Frequency vector'!$C$3)^D145 -> 29.73947745 | F145: =IF('CM choke'!B149=0, F144, 'CM choke'!B149) -> 42873.00337 | G145: =IF(CMdata=1,'Frequency vector'!E145,'Frequency vector'!F145) -> 42873.00337 | H145: 42.87300337
D146: 143 | E146: =10*('Frequency vector'!$C$3)^D146 -> 29.9686146 | F146: =IF('CM choke'!B150=0, F145, 'CM choke'!B150) -> 44022.8506 | G146: =IF(CMdata=1,'Frequency vector'!E146,'Frequency vector'!F146) -> 44022.8506 | H146: 44.0228506
D147: 144 | E147: =10*('Frequency vector'!$C$3)^D147 -> 30.1995172 | F147: =IF('CM choke'!B151=0, F146, 'CM choke'!B151) -> 45203.53656 | G147: =IF(CMdata=1,'Frequency vector'!E147,'Frequency vector'!F147) -> 45203.53656 | H147: 45.20353656
D148: 145 | E148: =10*('Frequency vector'!$C$3)^D148 -> 30.43219887 | F148: =IF('CM choke'!B152=0, F147, 'CM choke'!B152) -> 46415.88834 | G148: =IF(CMdata=1,'Frequency vector'!E148,'Frequency vector'!F148) -> 46415.88834 | H148: 46.41588834
D149: 146 | E149: =10*('Frequency vector'!$C$3)^D149 -> 30.66667331 | F149: =IF('CM choke'!B153=0, F148, 'CM choke'!B153) -> 47660.75519 | G149: =IF(CMdata=1,'Frequency vector'!E149,'Frequency vector'!F149) -> 47660.75519 | H149: 47.66075519
D150: 147 | E150: =10*('Frequency vector'!$C$3)^D150 -> 30.90295433 | F150: =IF('CM choke'!B154=0, F149, 'CM choke'!B154) -> 48939.00918 | G150: =IF(CMdata=1,'Frequency vector'!E150,'Frequency vector'!F150) -> 48939.00918 | H150: 48.93900918
D151: 148 | E151: =10*('Frequency vector'!$C$3)^D151 -> 31.14105584 | F151: =IF('CM choke'!B155=0, F150, 'CM choke'!B155) -> 50251.54575 | G151: =IF(CMdata=1,'Frequency vector'!E151,'Frequency vector'!F151) -> 50251.54575 | H151: 50.25154575
D152: 149 | E152: =10*('Frequency vector'!$C$3)^D152 -> 31.38099189 | F152: =IF('CM choke'!B156=0, F151, 'CM choke'!B156) -> 51599.28434 | G152: =IF(CMdata=1,'Frequency vector'!E152,'Frequency vector'!F152) -> 51599.28434 | H152: 51.59928434
D153: 150 | E153: =10*('Frequency vector'!$C$3)^D153 -> 31.6227766 | F153: =IF('CM choke'!B157=0, F152, 'CM choke'!B157) -> 52983.16906 | G153: =IF(CMdata=1,'Frequency vector'!E153,'Frequency vector'!F153) -> 52983.16906 | H153: 52.98316906
D154: 151 | E154: =10*('Frequency vector'!$C$3)^D154 -> 31.86642422 | F154: =IF('CM choke'!B158=0, F153, 'CM choke'!B158) -> 54404.16936 | G154: =IF(CMdata=1,'Frequency vector'!E154,'Frequency vector'!F154) -> 54404.16936 | H154: 54.40416936
D155: 152 | E155: =10*('Frequency vector'!$C$3)^D155 -> 32.11194909 | F155: =IF('CM choke'!B159=0, F154, 'CM choke'!B159) -> 55863.28066 | G155: =IF(CMdata=1,'Frequency vector'!E155,'Frequency vector'!F155) -> 55863.28066 | H155: 55.86328066
D156: 153 | E156: =10*('Frequency vector'!$C$3)^D156 -> 32.35936569 | F156: =IF('CM choke'!B160=0, F155, 'CM choke'!B160) -> 57361.5251 | G156: =IF(CMdata=1,'Frequency vector'!E156,'Frequency vector'!F156) -> 57361.5251 | H156: 57.3615251
D157: 154 | E157: =10*('Frequency vector'!$C$3)^D157 -> 32.60868859 | F157: =IF('CM choke'!B161=0, F156, 'CM choke'!B161) -> 58899.95223 | G157: =IF(CMdata=1,'Frequency vector'!E157,'Frequency vector'!F157) -> 58899.95223 | H157: 58.89995223
D158: 155 | E158: =10*('Frequency vector'!$C$3)^D158 -> 32.85993248 | F158: =IF('CM choke'!B162=0, F157, 'CM choke'!B162) -> 60479.63972 | G158: =IF(CMdata=1,'Frequency vector'!E158,'Frequency vector'!F158) -> 60479.63972 | H158: 60.47963972
D159: 156 | E159: =10*('Frequency vector'!$C$3)^D159 -> 33.11311215 | F159: =IF('CM choke'!B163=0, F158, 'CM choke'!B163) -> 62101.69419 | G159: =IF(CMdata=1,'Frequency vector'!E159,'Frequency vector'!F159) -> 62101.69419 | H159: 62.10169419
D160: 157 | E160: =10*('Frequency vector'!$C$3)^D160 -> 33.36824252 | F160: =IF('CM choke'!B164=0, F159, 'CM choke'!B164) -> 63767.2519 | G160: =IF(CMdata=1,'Frequency vector'!E160,'Frequency vector'!F160) -> 63767.2519 | H160: 63.7672519
D161: 158 | E161: =10*('Frequency vector'!$C$3)^D161 -> 33.62533863 | F161: =IF('CM choke'!B165=0, F160, 'CM choke'!B165) -> 65477.47961 | G161: =IF(CMdata=1,'Frequency vector'!E161,'Frequency vector'!F161) -> 65477.47961 | H161: 65.47747961
D162: 159 | E162: =10*('Frequency vector'!$C$3)^D162 -> 33.88441561 | F162: =IF('CM choke'!B166=0, F161, 'CM choke'!B166) -> 67233.57536 | G162: =IF(CMdata=1,'Frequency vector'!E162,'Frequency vector'!F162) -> 67233.57536 | H162: 67.23357536
D163: 160 | E163: =10*('Frequency vector'!$C$3)^D163 -> 34.14548874 | F163: =IF('CM choke'!B167=0, F162, 'CM choke'!B167) -> 69036.76933 | G163: =IF(CMdata=1,'Frequency vector'!E163,'Frequency vector'!F163) -> 69036.76933 | H163: 69.03676933
D164: 161 | E164: =10*('Frequency vector'!$C$3)^D164 -> 34.40857338 | F164: =IF('CM choke'!B168=0, F163, 'CM choke'!B168) -> 70888.32467 | G164: =IF(CMdata=1,'Frequency vector'!E164,'Frequency vector'!F164) -> 70888.32467 | H164: 70.88832467
D165: 162 | E165: =10*('Frequency vector'!$C$3)^D165 -> 34.67368505 | F165: =IF('CM choke'!B169=0, F164, 'CM choke'!B169) -> 72789.53844 | G165: =IF(CMdata=1,'Frequency vector'!E165,'Frequency vector'!F165) -> 72789.53844 | H165: 72.78953844
D166: 163 | E166: =10*('Frequency vector'!$C$3)^D166 -> 34.94083934 | F166: =IF('CM choke'!B170=0, F165, 'CM choke'!B170) -> 74741.74246 | G166: =IF(CMdata=1,'Frequency vector'!E166,'Frequency vector'!F166) -> 74741.74246 | H166: 74.74174246
D167: 164 | E167: =10*('Frequency vector'!$C$3)^D167 -> 35.21005202 | F167: =IF('CM choke'!B171=0, F166, 'CM choke'!B171) -> 76746.30429 | G167: =IF(CMdata=1,'Frequency vector'!E167,'Frequency vector'!F167) -> 76746.30429 | H167: 76.74630429
D168: 165 | E168: =10*('Frequency vector'!$C$3)^D168 -> 35.48133892 | F168: =IF('CM choke'!B172=0, F167, 'CM choke'!B172) -> 78804.62816 | G168: =IF(CMdata=1,'Frequency vector'!E168,'Frequency vector'!F168) -> 78804.62816 | H168: 78.80462816
D169: 166 | E169: =10*('Frequency vector'!$C$3)^D169 -> 35.75471605 | F169: =IF('CM choke'!B173=0, F168, 'CM choke'!B173) -> 80918.15594 | G169: =IF(CMdata=1,'Frequency vector'!E169,'Frequency vector'!F169) -> 80918.15594 | H169: 80.91815594
D170: 167 | E170: =10*('Frequency vector'!$C$3)^D170 -> 36.03019949 | F170: =IF('CM choke'!B174=0, F169, 'CM choke'!B174) -> 83088.36822 | G170: =IF(CMdata=1,'Frequency vector'!E170,'Frequency vector'!F170) -> 83088.36822 | H170: 83.08836822
D171: 168 | E171: =10*('Frequency vector'!$C$3)^D171 -> 36.30780548 | F171: =IF('CM choke'!B175=0, F170, 'CM choke'!B175) -> 85316.78524 | G171: =IF(CMdata=1,'Frequency vector'!E171,'Frequency vector'!F171) -> 85316.78524 | H171: 85.31678524
D172: 169 | E172: =10*('Frequency vector'!$C$3)^D172 -> 36.58755037 | F172: =IF('CM choke'!B176=0, F171, 'CM choke'!B176) -> 87604.96806 | G172: =IF(CMdata=1,'Frequency vector'!E172,'Frequency vector'!F172) -> 87604.96806 | H172: 87.60496806
D173: 170 | E173: =10*('Frequency vector'!$C$3)^D173 -> 36.86945065 | F173: =IF('CM choke'!B177=0, F172, 'CM choke'!B177) -> 89954.51959 | G173: =IF(CMdata=1,'Frequency vector'!E173,'Frequency vector'!F173) -> 89954.51959 | H173: 89.95451959
D174: 171 | E174: =10*('Frequency vector'!$C$3)^D174 -> 37.15352291 | F174: =IF('CM choke'!B178=0, F173, 'CM choke'!B178) -> 92367.08572 | G174: =IF(CMdata=1,'Frequency vector'!E174,'Frequency vector'!F174) -> 92367.08572 | H174: 92.36708572
D175: 172 | E175: =10*('Frequency vector'!$C$3)^D175 -> 37.4397839 | F175: =IF('CM choke'!B179=0, F174, 'CM choke'!B179) -> 94844.35649 | G175: =IF(CMdata=1,'Frequency vector'!E175,'Frequency vector'!F175) -> 94844.35649 | H175: 94.84435649
D176: 173 | E176: =10*('Frequency vector'!$C$3)^D176 -> 37.72825047 | F176: =IF('CM choke'!B180=0, F175, 'CM choke'!B180) -> 97388.06728 | G176: =IF(CMdata=1,'Frequency vector'!E176,'Frequency vector'!F176) -> 97388.06728 | H176: 97.38806728
D177: 174 | E177: =10*('Frequency vector'!$C$3)^D177 -> 38.01893963 | F177: =IF('CM choke'!B181=0, F176, 'CM choke'!B181) -> 100000 | G177: =IF(CMdata=1,'Frequency vector'!E177,'Frequency vector'!F177) -> 100000 | H177: 100
D178: 175 | E178: =10*('Frequency vector'!$C$3)^D178 -> 38.3118685 | F178: =IF('CM choke'!B182=0, F177, 'CM choke'!B182) -> 102681.9843 | G178: =IF(CMdata=1,'Frequency vector'!E178,'Frequency vector'!F178) -> 102681.9843 | H178: 102.6819843
D179: 176 | E179: =10*('Frequency vector'!$C$3)^D179 -> 38.60705432 | F179: =IF('CM choke'!B183=0, F178, 'CM choke'!B183) -> 105435.8991 | G179: =IF(CMdata=1,'Frequency vector'!E179,'Frequency vector'!F179) -> 105435.8991 | H179: 105.4358991
D180: 177 | E180: =10*('Frequency vector'!$C$3)^D180 -> 38.9045145 | F180: =IF('CM choke'!B184=0, F179, 'CM choke'!B184) -> 108263.6734 | G180: =IF(CMdata=1,'Frequency vector'!E180,'Frequency vector'!F180) -> 108263.6734 | H180: 108.2636734
D181: 178 | E181: =10*('Frequency vector'!$C$3)^D181 -> 39.20426655 | F181: =IF('CM choke'!B185=0, F180, 'CM choke'!B185) -> 111167.2882 | G181: =IF(CMdata=1,'Frequency vector'!E181,'Frequency vector'!F181) -> 111167.2882 | H181: 111.1672882
D182: 179 | E182: =10*('Frequency vector'!$C$3)^D182 -> 39.50632814 | F182: =IF('CM choke'!B186=0, F181, 'CM choke'!B186) -> 114148.7774 | G182: =IF(CMdata=1,'Frequency vector'!E182,'Frequency vector'!F182) -> 114148.7774 | H182: 114.1487774
D183: 180 | E183: =10*('Frequency vector'!$C$3)^D183 -> 39.81071706 | F183: =IF('CM choke'!B187=0, F182, 'CM choke'!B187) -> 117210.2298 | G183: =IF(CMdata=1,'Frequency vector'!E183,'Frequency vector'!F183) -> 117210.2298 | H183: 117.2102298
D184: 181 | E184: =10*('Frequency vector'!$C$3)^D184 -> 40.11745123 | F184: =IF('CM choke'!B188=0, F183, 'CM choke'!B188) -> 120353.7898 | G184: =IF(CMdata=1,'Frequency vector'!E184,'Frequency vector'!F184) -> 120353.7898 | H184: 120.3537898
D185: 182 | E185: =10*('Frequency vector'!$C$3)^D185 -> 40.42654874 | F185: =IF('CM choke'!B189=0, F184, 'CM choke'!B189) -> 123581.6596 | G185: =IF(CMdata=1,'Frequency vector'!E185,'Frequency vector'!F185) -> 123581.6596 | H185: 123.5816596
D186: 183 | E186: =10*('Frequency vector'!$C$3)^D186 -> 40.73802778 | F186: =IF('CM choke'!B190=0, F185, 'CM choke'!B190) -> 126896.1003 | G186: =IF(CMdata=1,'Frequency vector'!E186,'Frequency vector'!F186) -> 126896.1003 | H186: 126.8961003
D187: 184 | E187: =10*('Frequency vector'!$C$3)^D187 -> 41.05190671 | F187: =IF('CM choke'!B191=0, F186, 'CM choke'!B191) -> 130299.4339 | G187: =IF(CMdata=1,'Frequency vector'!E187,'Frequency vector'!F187) -> 130299.4339 | H187: 130.2994339
D188: 185 | E188: =10*('Frequency vector'!$C$3)^D188 -> 41.36820402 | F188: =IF('CM choke'!B192=0, F187, 'CM choke'!B192) -> 133794.0443 | G188: =IF(CMdata=1,'Frequency vector'!E188,'Frequency vector'!F188) -> 133794.0443 | H188: 133.7940443
D189: 186 | E189: =10*('Frequency vector'!$C$3)^D189 -> 41.68693835 | F189: =IF('CM choke'!B193=0, F188, 'CM choke'!B193) -> 137382.3796 | G189: =IF(CMdata=1,'Frequency vector'!E189,'Frequency vector'!F189) -> 137382.3796 | H189: 137.3823796
D190: 187 | E190: =10*('Frequency vector'!$C$3)^D190 -> 42.00812846 | F190: =IF('CM choke'!B194=0, F189, 'CM choke'!B194) -> 141066.9535 | G190: =IF(CMdata=1,'Frequency vector'!E190,'Frequency vector'!F190) -> 141066.9535 | H190: 141.0669535
D191: 188 | E191: =10*('Frequency vector'!$C$3)^D191 -> 42.33179328 | F191: =IF('CM choke'!B195=0, F190, 'CM choke'!B195) -> 144850.3471 | G191: =IF(CMdata=1,'Frequency vector'!E191,'Frequency vector'!F191) -> 144850.3471 | H191: 144.8503471
D192: 189 | E192: =10*('Frequency vector'!$C$3)^D192 -> 42.65795188 | F192: =IF('CM choke'!B196=0, F191, 'CM choke'!B196) -> 148735.2107 | G192: =IF(CMdata=1,'Frequency vector'!E192,'Frequency vector'!F192) -> 148735.2107 | H192: 148.7352107
D193: 190 | E193: =10*('Frequency vector'!$C$3)^D193 -> 42.98662347 | F193: =IF('CM choke'!B197=0, F192, 'CM choke'!B197) -> 152724.2658 | G193: =IF(CMdata=1,'Frequency vector'!E193,'Frequency vector'!F193) -> 152724.2658 | H193: 152.7242658
D194: 191 | E194: =10*('Frequency vector'!$C$3)^D194 -> 43.31782742 | F194: =IF('CM choke'!B198=0, F193, 'CM choke'!B198) -> 156820.3067 | G194: =IF(CMdata=1,'Frequency vector'!E194,'Frequency vector'!F194) -> 156820.3067 | H194: 156.8203067
D195: 192 | E195: =10*('Frequency vector'!$C$3)^D195 -> 43.65158322 | F195: =IF('CM choke'!B199=0, F194, 'CM choke'!B199) -> 161026.2028 | G195: =IF(CMdata=1,'Frequency vector'!E195,'Frequency vector'!F195) -> 161026.2028 | H195: 161.0262028
D196: 193 | E196: =10*('Frequency vector'!$C$3)^D196 -> 43.98791056 | F196: =IF('CM choke'!B200=0, F195, 'CM choke'!B200) -> 165344.9003 | G196: =IF(CMdata=1,'Frequency vector'!E196,'Frequency vector'!F196) -> 165344.9003 | H196: =G196/1000 -> 165.3449003
D197: 194 | E197: =10*('Frequency vector'!$C$3)^D197 -> 44.32682923 | F197: =IF('CM choke'!B201=0, F196, 'CM choke'!B201) -> 169779.4246 | G197: =IF(CMdata=1,'Frequency vector'!E197,'Frequency vector'!F197) -> 169779.4246 | H197: 169.7794246
D198: 195 | E198: =10*('Frequency vector'!$C$3)^D198 -> 44.66835922 | F198: =IF('CM choke'!B202=0, F197, 'CM choke'!B202) -> 174332.8822 | G198: =IF(CMdata=1,'Frequency vector'!E198,'Frequency vector'!F198) -> 174332.8822 | H198: 174.3328822
D199: 196 | E199: =10*('Frequency vector'!$C$3)^D199 -> 45.01252062 | F199: =IF('CM choke'!B203=0, F198, 'CM choke'!B203) -> 179008.4628 | G199: =IF(CMdata=1,'Frequency vector'!E199,'Frequency vector'!F199) -> 179008.4628 | H199: 179.0084628
D200: 197 | E200: =10*('Frequency vector'!$C$3)^D200 -> 45.35933373 | F200: =IF('CM choke'!B204=0, F199, 'CM choke'!B204) -> 183809.4418 | G200: =IF(CMdata=1,'Frequency vector'!E200,'Frequency vector'!F200) -> 183809.4418 | H200: 183.8094418
D201: 198 | E201: =10*('Frequency vector'!$C$3)^D201 -> 45.70881896 | F201: =IF('CM choke'!B205=0, F200, 'CM choke'!B205) -> 188739.1822 | G201: =IF(CMdata=1,'Frequency vector'!E201,'Frequency vector'!F201) -> 188739.1822 | H201: 188.7391822
... 1902 more rows

Sheet Choke impedance calculations (hidden)
C1: ZL1 (mag, phase) | E1: ZL2 (mag, phase) | G1: ZL1 (real, imag) | I1: ZL2 (real, imag) | K1: ZL1 (complex) | L1: ZL2 (complex)
A2: freq_selected [Hz] | B2: j*w [rad] | C2: ZL1_mag [Ω] | D2: ZL1_phase [°] | E2: ZL2_mag [Ω] | F2: ZL2_phase [°] | G2: ZL1_real [Ω] | H2: ZL1_imag [Ω] | I2: ZL2_real [Ω] | J2: ZL2_imag [Ω] | K2: Zch1 [Ω] | L2: Zch2 [Ω]
A3: ='Frequency vector'!G3 -> 1000 | B3: =COMPLEX(0,2*PI()*'Frequency vector'!G3,"j") -> 6283,18530717959j | C3: =IF(CMdata=1,IMABS(K3),'CM choke'!C7) -> 245.2051564 | D3: =IF(CMdata=1,DEGREES(IMARGUMENT(K3)),'CM choke'!D7) -> 86.88323894 | E3: =IF(CMdata=1,IMABS(L3),'CM choke'!E7) -> 245.2051564 | F3: =IF(CMdata=1,DEGREES(IMARGUMENT(L3)),'CM choke'!F7) -> 86.88323894 | G3: =C3*COS(RADIANS(D3)) -> 13.33202952 | H3: =C3*SIN(RADIANS(D3)) -> 244.8424508 | I3: =E3*COS(RADIANS(F3)) -> 13.33202952 | J3: =E3*SIN(RADIANS(F3)) -> 244.8424508 | K3: =IF(CMdata=1,IMDIV(1,IMSUM(IMDIV(1,IMPRODUCT(B3,'Design the AEF circuit'!$G$13*0.001)),IMDIV(1,'Design the AEF circuit'!$H$13*1000),IMPRODUCT(B3,'Design the AEF circuit'!$I$13*0.000000000001))),COMPLEX(G3,H3,"j")) -> 13,3320295220732+244,842450819252j | L3: =IF(CMdata=1,IMDIV(1, IMSUM(IMDIV(1,IMPRODUCT(B3,'Design the AEF circuit'!$G$14*0.001)), IMDIV(1,'Design the AEF circuit'!$H$14*1000), IMPRODUCT(B3,'Design the AEF circuit'!$I$14*0.000000000001))), COMPLEX(I3,J3,"j")) -> 13,3320295220732+244,842450819252j
A4: ='Frequency vector'!G4 -> 1026.819843 | B4: =COMPLEX(0,2*PI()*'Frequency vector'!G4,"j") -> 6451,69935327745j | C4: =IF(IF(CMdata=1,IMABS(K4),'CM choke'!C8)=0, C3, IF(CMdata=1,IMABS(K4),'CM choke'!C8)) -> 251.755589 | D4: =IF(IF(CMdata=1,DEGREES(IMARGUMENT(K4)),'CM choke'!D8)=0, D3, IF(CMdata=1,DEGREES(IMARGUMENT(K4)),'CM choke'!D8)) -> 86.80015367 | E4: =IF(IF(CMdata=1,IMABS(L4),'CM choke'!E8)=0, E3, IF(CMdata=1,IMABS(L4),'CM choke'!E8)) -> 251.755589 | F4: =IF(IF(CMdata=1,DEGREES(IMARGUMENT(L4)),'CM choke'!F8)=0, F3, IF(CMdata=1,DEGREES(IMARGUMENT(L4)),'CM choke'!F8)) -> 86.80015367 | G4: =C4*COS(RADIANS(D4)) -> 14.05270168 | H4: 251.3630803 | I4: 14.05270168 | J4: 251.3630803 | K4: =IF(CMdata=1,IMDIV(1,IMSUM(IMDIV(1,IMPRODUCT(B4,'Design the AEF circuit'!$G$13*0.001)),IMDIV(1,'Design the AEF circuit'!$H$13*1000),IMPRODUCT(B4,'Design the AEF circuit'!$I$13*0.000000000001))),COMPLEX(G4,H4,"j")) -> 14,0527016811332+251,363080327545j | L4: =IF(CMdata=1,IMDIV(1,IMSUM(IMDIV(1,IMPRODUCT(B4,'Design the AEF circuit'!$G$14*0.001)),IMDIV(1,'Design the AEF circuit'!$H$14*1000),IMPRODUCT(B4,'Design the AEF circuit'!$I$14*0.000000000001))),COMPLEX(I4,J4,"j")) -> 14,0527016811332+251,363080327545j
A5: ='Frequency vector'!G5 -> 1054.358991 | B5: =COMPLEX(0,2*PI()*'Frequency vector'!G5,"j") -> 6624,73291970516j | C5: =IF(IF(CMdata=1,IMABS(K5),'CM choke'!C9)=0, C4, IF(CMdata=1,IMABS(K5),'CM choke'!C9)) -> 258.4795697 | D5: =IF(IF(CMdata=1,DEGREES(IMARGUMENT(K5)),'CM choke'!D9)=0, D4, IF(CMdata=1,DEGREES(IMARGUMENT(K5)),'CM choke'!D9)) -> 86.71485561 | E5: =IF(IF(CMdata=1,IMABS(L5),'CM choke'!E9)=0, E4, IF(CMdata=1,IMABS(L5),'CM choke'!E9)) -> 258.4795697 | F5: =IF(IF(CMdata=1,DEGREES(IMARGUMENT(L5)),'CM choke'!F9)=0, F4, IF(CMdata=1,DEGREES(IMARGUMENT(L5)),'CM choke'!F9)) -> 86.71485561 | G5: 14.81221715 | H5: 258.0548124 | I5: 14.81221715 | J5: 258.0548124 | K5: =IF(CMdata=1,IMDIV(1,IMSUM(IMDIV(1,IMPRODUCT(B5,'Design the AEF circuit'!$G$13*0.001)),IMDIV(1,'Design the AEF circuit'!$H$13*1000),IMPRODUCT(B5,'Design the AEF circuit'!$I$13*0.000000000001))),COMPLEX(G5,H5,"j")) -> 14,8122171499923+258,054812379169j | L5: =IF(CMdata=1,IMDIV(1,IMSUM(IMDIV(1,IMPRODUCT(B5,'Design the AEF circuit'!$G$14*0.001)),IMDIV(1,'Design the AEF circuit'!$H$14*1000),IMPRODUCT(B5,'Design the AEF circuit'!$I$14*0.000000000001))),COMPLEX(I5,J5,"j")) -> 14,8122171499923+258,054812379169j
A6: ='Frequency vector'!G6 -> 1082.636734 | B6: =COMPLEX(0,2*PI()*'Frequency vector'!G6,"j") -> 6802,40721929033j | C6: =IF(IF(CMdata=1,IMABS(K6),'CM choke'!C10)=0, C5, IF(CMdata=1,IMABS(K6),'CM choke'!C10)) -> 265.3815783 | D6: =IF(IF(CMdata=1,DEGREES(IMARGUMENT(K6)),'CM choke'!D10)=0, D5, IF(CMdata=1,DEGREES(IMARGUMENT(K6)),'CM choke'!D10)) -> 86.62728735 | E6: =IF(IF(CMdata=1,IMABS(L6),'CM choke'!E10)=0, E5, IF(CMdata=1,IMABS(L6),'CM choke'!E10)) -> 265.3815783 | F6: =IF(IF(CMdata=1,DEGREES(IMARGUMENT(L6)),'CM choke'!F10)=0, F5, IF(CMdata=1,DEGREES(IMARGUMENT(L6)),'CM choke'!F10)) -> 86.62728735 | G6: 15.61265062 | H6: 264.9219267 | I6: 15.61265062 | J6: 264.9219267 | K6: =IF(CMdata=1,IMDIV(1,IMSUM(IMDIV(1,IMPRODUCT(B6,'Design the AEF circuit'!$G$13*0.001)),IMDIV(1,'Design the AEF circuit'!$H$13*1000),IMPRODUCT(B6,'Design the AEF circuit'!$I$13*0.000000000001))),COMPLEX(G6,H6,"j")) -> 15,6126506225145+264,921926686738j | L6: =IF(CMdata=1,IMDIV(1,IMSUM(IMDIV(1,IMPRODUCT(B6,'Design the AEF circuit'!$G$14*0.001)),IMDIV(1,'Design the AEF circuit'!$H$14*1000),IMPRODUCT(B6,'Design the AEF circuit'!$I$14*0.000000000001))),COMPLEX(I6,J6,"j")) -> 15,6126506225145+264,921926686738j
A7: ='Frequency vector'!G7 -> 1111.672882 | B7: =COMPLEX(0,2*PI()*'Frequency vector'!G7,"j") -> 6984,84671576965j | C7: =IF(IF(CMdata=1,IMABS(K7),'CM choke'!C11)=0, C6, IF(CMdata=1,IMABS(K7),'CM choke'!C11)) -> 272.4662001 | D7: =IF(IF(CMdata=1,DEGREES(IMARGUMENT(K7)),'CM choke'!D11)=0, D6, IF(CMdata=1,DEGREES(IMARGUMENT(K7)),'CM choke'!D11)) -> 86.53739012 | E7: =IF(IF(CMdata=1,IMABS(L7),'CM choke'!E11)=0, E6, IF(CMdata=1,IMABS(L7),'CM choke'!E11)) -> 272.4662001 | F7: =IF(IF(CMdata=1,DEGREES(IMARGUMENT(L7)),'CM choke'!F11)=0, F6, IF(CMdata=1,DEGREES(IMARGUMENT(L7)),'CM choke'!F11)) -> 86.53739012 | G7: 16.45618551 | H7: 271.9687926 | I7: 16.45618551 | J7: 271.9687926 | K7: =IF(CMdata=1,IMDIV(1,IMSUM(IMDIV(1,IMPRODUCT(B7,'Design the AEF circuit'!$G$13*0.001)),IMDIV(1,'Design the AEF circuit'!$H$13*1000),IMPRODUCT(B7,'Design the AEF circuit'!$I$13*0.000000000001))),COMPLEX(G7,H7,"j")) -> 16,4561855056899+271,968792627187j | L7: =IF(CMdata=1,IMDIV(1,IMSUM(IMDIV(1,IMPRODUCT(B7,'Design the AEF circuit'!$G$14*0.001)),IMDIV(1,'Design the AEF circuit'!$H$14*1000),IMPRODUCT(B7,'Design the AEF circuit'!$I$14*0.000000000001))),COMPLEX(I7,J7,"j")) -> 16,4561855056899+271,968792627187j
A8: ='Frequency vector'!G8 -> 1141.487774 | B8: =COMPLEX(0,2*PI()*'Frequency vector'!G8,"j") -> 7172,17921097751j | C8: =IF(IF(CMdata=1,IMABS(K8),'CM choke'!C12)=0, C7, IF(CMdata=1,IMABS(K8),'CM choke'!C12)) -> 279.7381282 | D8: =IF(IF(CMdata=1,DEGREES(IMARGUMENT(K8)),'CM choke'!D12)=0, D7, IF(CMdata=1,DEGREES(IMARGUMENT(K8)),'CM choke'!D12)) -> 86.44510371 | E8: =IF(IF(CMdata=1,IMABS(L8),'CM choke'!E12)=0, E7, IF(CMdata=1,IMABS(L8),'CM choke'!E12)) -> 279.7381282 | F8: =IF(IF(CMdata=1,DEGREES(IMARGUMENT(L8)),'CM choke'!F12)=0, F7, IF(CMdata=1,DEGREES(IMARGUMENT(L8)),'CM choke'!F12)) -> 86.44510371 | G8: 17.34511938 | H8: 279.1998696 | I8: 17.34511938 | J8: 279.1998696 | K8: =IF(CMdata=1,IMDIV(1,IMSUM(IMDIV(1,IMPRODUCT(B8,'Design the AEF circuit'!$G$13*0.001)),IMDIV(1,'Design the AEF circuit'!$H$13*1000),IMPRODUCT(B8,'Design the AEF circuit'!$I$13*0.000000000001))),COMPLEX(G8,H8,"j")) -> 17,3451193825943+279,199869632077j | L8: =IF(CMdata=1,IMDIV(1,IMSUM(IMDIV(1,IMPRODUCT(B8,'Design the AEF circuit'!$G$14*0.001)),IMDIV(1,'Design the AEF circuit'!$H$14*1000),IMPRODUCT(B8,'Design the AEF circuit'!$I$14*0.000000000001))),COMPLEX(I8,J8,"j")) -> 17,3451193825943+279,199869632077j
A9: ='Frequency vector'!G9 -> 1172.102298 | B9: =COMPLEX(0,2*PI()*'Frequency vector'!G9,"j") -> 7364,5359343738j | C9: =IF(IF(CMdata=1,IMABS(K9),'CM choke'!C13)=0, C8, IF(CMdata=1,IMABS(K9),'CM choke'!C13)) -> 287.2021648 | D9: =IF(IF(CMdata=1,DEGREES(IMARGUMENT(K9)),'CM choke'!D13)=0, D8, IF(CMdata=1,DEGREES(IMARGUMENT(K9)),'CM choke'!D13)) -> 86.35036644 | E9: =IF(IF(CMdata=1,IMABS(L9),'CM choke'!E13)=0, E8, IF(CMdata=1,IMABS(L9),'CM choke'!E13)) -> 287.2021648 | F9: =IF(IF(CMdata=1,DEGREES(IMARGUMENT(L9)),'CM choke'!F13)=0, F8, IF(CMdata=1,DEGREES(IMARGUMENT(L9)),'CM choke'!F13)) -> 86.35036644 | G9: 18.28186972 | H9: 286.6197074 | I9: 18.28186972 | J9: 286.6197074 | K9: =IF(CMdata=1,IMDIV(1,IMSUM(IMDIV(1,IMPRODUCT(B9,'Design the AEF circuit'!$G$13*0.001)),IMDIV(1,'Design the AEF circuit'!$H$13*1000),IMPRODUCT(B9,'Design the AEF circuit'!$I$13*0.000000000001))),COMPLEX(G9,H9,"j")) -> 18,2818697236636+286,619707430437j | L9: =IF(CMdata=1,IMDIV(1,IMSUM(IMDIV(1,IMPRODUCT(B9,'Design the AEF circuit'!$G$14*0.001)),IMDIV(1,'Design the AEF circuit'!$H$14*1000),IMPRODUCT(B9,'Design the AEF circuit'!$I$14*0.000000000001))),COMPLEX(I9,J9,"j")) -> 18,2818697236636+286,619707430437j
A10: ='Frequency vector'!G10 -> 1203.537898 | B10: =COMPLEX(0,2*PI()*'Frequency vector'!G10,"j") -> 7562,05163497173j | C10: =IF(IF(CMdata=1,IMABS(K10),'CM choke'!C14)=0, C9, IF(CMdata=1,IMABS(K10),'CM choke'!C14)) -> 294.8632228 | D10: =IF(IF(CMdata=1,DEGREES(IMARGUMENT(K10)),'CM choke'!D14)=0, D9, IF(CMdata=1,DEGREES(IMARGUMENT(K10)),'CM choke'!D14)) -> 86.25311521 | E10: =IF(IF(CMdata=1,IMABS(L10),'CM choke'!E14)=0, E9, IF(CMdata=1,IMABS(L10),'CM choke'!E14)) -> 294.8632228 | F10: =IF(IF(CMdata=1,DEGREES(IMARGUMENT(L10)),'CM choke'!F14)=0, F9, IF(CMdata=1,DEGREES(IMARGUMENT(L10)),'CM choke'!F14)) -> 86.25311521 | G10: 19.26897985 | H10: 294.2329461 | I10: 19.26897985 | J10: 294.2329461 | K10: =IF(CMdata=1,IMDIV(1,IMSUM(IMDIV(1,IMPRODUCT(B10,'Design the AEF circuit'!$G$13*0.001)),IMDIV(1,'Design the AEF circuit'!$H$13*1000),IMPRODUCT(B10,'Design the AEF circuit'!$I$13*0.000000000001))),COMPLEX(G10,H10,"j")) -> 19,2689798546125+294,232946128218j | L10: =IF(CMdata=1,IMDIV(1,IMSUM(IMDIV(1,IMPRODUCT(B10,'Design the AEF circuit'!$G$14*0.001)),IMDIV(1,'Design the AEF circuit'!$H$14*1000),IMPRODUCT(B10,'Design the AEF circuit'!$I$14*0.000000000001))),COMPLEX(I10,J10,"j")) -> 19,2689798546125+294,232946128218j
A11: ='Frequency vector'!G11 -> 1235.816596 | B11: =COMPLEX(0,2*PI()*'Frequency vector'!G11,"j") -> 7764,86467573209j | C11: =IF(IF(CMdata=1,IMABS(K11),'CM choke'!C15)=0, C10, IF(CMdata=1,IMABS(K11),'CM choke'!C15)) -> 302.7263277 | D11: =IF(IF(CMdata=1,DEGREES(IMARGUMENT(K11)),'CM choke'!D15)=0, D10, IF(CMdata=1,DEGREES(IMARGUMENT(K11)),'CM choke'!D15)) -> 86.15328538 | E11: =IF(IF(CMdata=1,IMABS(L11),'CM choke'!E15)=0, E10, IF(CMdata=1,IMABS(L11),'CM choke'!E15)) -> 302.7263277 | F11: =IF(IF(CMdata=1,DEGREES(IMARGUMENT(L11)),'CM choke'!F15)=0, F10, IF(CMdata=1,DEGREES(IMARGUMENT(L11)),'CM choke'!F15)) -> 86.15328538 | G11: 20.30912519 | H11: 302.0443161 | I11: 20.30912519 | J11: 302.0443161 | K11: =IF(CMdata=1,IMDIV(1,IMSUM(IMDIV(1,IMPRODUCT(B11,'Design the AEF circuit'!$G$13*0.001)),IMDIV(1,'Design the AEF circuit'!$H$13*1000),IMPRODUCT(B11,'Design the AEF circuit'!$I$13*0.000000000001))),COMPLEX(G11,H11,"j")) -> 20,3091251891556+302,044316107401j | L11: =IF(CMdata=1,IMDIV(1,IMSUM(IMDIV(1,IMPRODUCT(B11,'Design the AEF circuit'!$G$14*0.001)),IMDIV(1,'Design the AEF circuit'!$H$14*1000),IMPRODUCT(B11,'Design the AEF circuit'!$I$14*0.000000000001))),COMPLEX(I11,J11,"j")) -> 20,3091251891556+302,044316107401j
A12: ='Frequency vector'!G12 -> 1268.961003 | B12: =COMPLEX(0,2*PI()*'Frequency vector'!G12,"j") -> 7973,11713048854j | C12: =IF(IF(CMdata=1,IMABS(K12),'CM choke'!C16)=0, C11, IF(CMdata=1,IMABS(K12),'CM choke'!C16)) -> 310.7966184 | D12: =IF(IF(CMdata=1,DEGREES(IMARGUMENT(K12)),'CM choke'!D16)=0, D11, IF(CMdata=1,DEGREES(IMARGUMENT(K12)),'CM choke'!D16)) -> 86.0508108 | E12: =IF(IF(CMdata=1,IMABS(L12),'CM choke'!E16)=0, E11, IF(CMdata=1,IMABS(L12),'CM choke'!E16)) -> 310.7966184 | F12: =IF(IF(CMdata=1,DEGREES(IMARGUMENT(L12)),'CM choke'!F16)=0, F11, IF(CMdata=1,DEGREES(IMARGUMENT(L12)),'CM choke'!F16)) -> 86.0508108 | G12: 21.40511973 | H12: 310.0586377 | I12: 21.40511973 | J12: 310.0586377 | K12: =IF(CMdata=1,IMDIV(1,IMSUM(IMDIV(1,IMPRODUCT(B12,'Design the AEF circuit'!$G$13*0.001)),IMDIV(1,'Design the AEF circuit'!$H$13*1000),IMPRODUCT(B12,'Design the AEF circuit'!$I$13*0.000000000001))),COMPLEX(G12,H12,"j")) -> 21,4051197345748+310,05863772622j | L12: =IF(CMdata=1,IMDIV(1,IMSUM(IMDIV(1,IMPRODUCT(B12,'Design the AEF circuit'!$G$14*0.001)),IMDIV(1,'Design the AEF circuit'!$H$14*1000),IMPRODUCT(B12,'Design the AEF circuit'!$I$14*0.000000000001))),COMPLEX(I12,J12,"j")) -> 21,4051197345748+310,05863772622j
A13: ='Frequency vector'!G13 -> 1302.994339 | B13: =COMPLEX(0,2*PI()*'Frequency vector'!G13,"j") -> 8186,95488347275j | C13: =IF(IF(CMdata=1,IMABS(K13),'CM choke'!C17)=0, C12, IF(CMdata=1,IMABS(K13),'CM choke'!C17)) -> 319.0793491 | D13: =IF(IF(CMdata=1,DEGREES(IMARGUMENT(K13)),'CM choke'!D17)=0, D12, IF(CMdata=1,DEGREES(IMARGUMENT(K13)),'CM choke'!D17)) -> 85.94562378 | E13: =IF(IF(CMdata=1,IMABS(L13),'CM choke'!E17)=0, E12, IF(CMdata=1,IMABS(L13),'CM choke'!E17)) -> 319.0793491 | F13: =IF(IF(CMdata=1,DEGREES(IMARGUMENT(L13)),'CM choke'!F17)=0, F12, IF(CMdata=1,DEGREES(IMARGUMENT(L13)),'CM choke'!F17)) -> 85.94562378 | G13: 22.55992288 | H13: 318.2808208 | I13: 22.55992288 | J13: 318.2808208 | K13: =IF(CMdata=1,IMDIV(1,IMSUM(IMDIV(1,IMPRODUCT(B13,'Design the AEF circuit'!$G$13*0.001)),IMDIV(1,'Design the AEF circuit'!$H$13*1000),IMPRODUCT(B13,'Design the AEF circuit'!$I$13*0.000000000001))),COMPLEX(G13,H13,"j")) -> 22,5599228779157+318,280820800796j | L13: =IF(CMdata=1,IMDIV(1,IMSUM(IMDIV(1,IMPRODUCT(B13,'Design the AEF circuit'!$G$14*0.001)),IMDIV(1,'Design the AEF circuit'!$H$14*1000),IMPRODUCT(B13,'Design the AEF circuit'!$I$14*0.000000000001))),COMPLEX(I13,J13,"j")) -> 22,5599228779157+318,280820800796j
A14: ='Frequency vector'!G14 -> 1337.940443 | B14: =COMPLEX(0,2*PI()*'Frequency vector'!G14,"j") -> 8406,52773150866j | C14: =IF(IF(CMdata=1,IMABS(K14),'CM choke'!C18)=0, C13, IF(CMdata=1,IMABS(K14),'CM choke'!C18)) -> 327.5798904 | D14: =IF(IF(CMdata=1,DEGREES(IMARGUMENT(K14)),'CM choke'!D18)=0, D13, IF(CMdata=1,DEGREES(IMARGUMENT(K14)),'CM choke'!D18)) -> 85.83765507 | E14: =IF(IF(CMdata=1,IMABS(L14),'CM choke'!E18)=0, E13, IF(CMdata=1,IMABS(L14),'CM choke'!E18)) -> 327.5798904 | F14: =IF(IF(CMdata=1,DEGREES(IMARGUMENT(L14)),'CM choke'!F18)=0, F13, IF(CMdata=1,DEGREES(IMARGUMENT(L14)),'CM choke'!F18)) -> 85.83765507 | G14: 23.77664646 | H14: 326.7158638 | I14: 23.77664646 | J14: 326.7158638 | K14: =IF(CMdata=1,IMDIV(1,IMSUM(IMDIV(1,IMPRODUCT(B14,'Design the AEF circuit'!$G$13*0.001)),IMDIV(1,'Design the AEF circuit'!$H$13*1000),IMPRODUCT(B14,'Design the AEF circuit'!$I$13*0.000000000001))),COMPLEX(G14,H14,"j")) -> 23,7766464603359+326,715863846809j | L14: =IF(CMdata=1,IMDIV(1,IMSUM(IMDIV(1,IMPRODUCT(B14,'Design the AEF circuit'!$G$14*0.001)),IMDIV(1,'Design the AEF circuit'!$H$14*1000),IMPRODUCT(B14,'Design the AEF circuit'!$I$14*0.000000000001))),COMPLEX(I14,J14,"j")) -> 23,7766464603359+326,715863846809j
A15: ='Frequency vector'!G15 -> 1373.823796 | B15: =COMPLEX(0,2*PI()*'Frequency vector'!G15,"j") -> 8631,98948894739j | C15: =IF(IF(CMdata=1,IMABS(K15),'CM choke'!C19)=0, C14, IF(CMdata=1,IMABS(K15),'CM choke'!C19)) -> 336.3037305 | D15: =IF(IF(CMdata=1,DEGREES(IMARGUMENT(K15)),'CM choke'!D19)=0, D14, IF(CMdata=1,DEGREES(IMARGUMENT(K15)),'CM choke'!D19)) -> 85.72683382 | E15: =IF(IF(CMdata=1,IMABS(L15),'CM choke'!E19)=0, E14, IF(CMdata=1,IMABS(L15),'CM choke'!E19)) -> 336.3037305 | F15: =IF(IF(CMdata=1,DEGREES(IMARGUMENT(L15)),'CM choke'!F19)=0, F14, IF(CMdata=1,DEGREES(IMARGUMENT(L15)),'CM choke'!F19)) -> 85.72683382 | G15: 25.05856215 | H15: 335.3688531 | I15: 25.05856215 | J15: 335.3688531 | K15: =IF(CMdata=1,IMDIV(1,IMSUM(IMDIV(1,IMPRODUCT(B15,'Design the AEF circuit'!$G$13*0.001)),IMDIV(1,'Design the AEF circuit'!$H$13*1000),IMPRODUCT(B15,'Design the AEF circuit'!$I$13*0.000000000001))),COMPLEX(G15,H15,"j")) -> 25,0585621467079+335,368853058318j | L15: =IF(CMdata=1,IMDIV(1,IMSUM(IMDIV(1,IMPRODUCT(B15,'Design the AEF circuit'!$G$14*0.001)),IMDIV(1,'Design the AEF circuit'!$H$14*1000),IMPRODUCT(B15,'Design the AEF circuit'!$I$14*0.000000000001))),COMPLEX(I15,J15,"j")) -> 25,0585621467079+335,368853058318j
A16: ='Frequency vector'!G16 -> 1410.669535 | B16: =COMPLEX(0,2*PI()*'Frequency vector'!G16,"j") -> 8863,49809541722j | C16: =IF(IF(CMdata=1,IMABS(K16),'CM choke'!C20)=0, C15, IF(CMdata=1,IMABS(K16),'CM choke'!C20)) -> 345.256476 | D16: =IF(IF(CMdata=1,DEGREES(IMARGUMENT(K16)),'CM choke'!D20)=0, D15, IF(CMdata=1,DEGREES(IMARGUMENT(K16)),'CM choke'!D20)) -> 85.61308758 | E16: =IF(IF(CMdata=1,IMABS(L16),'CM choke'!E20)=0, E15, IF(CMdata=1,IMABS(L16),'CM choke'!E20)) -> 345.256476 | F16: =IF(IF(CMdata=1,DEGREES(IMARGUMENT(L16)),'CM choke'!F20)=0, F15, IF(CMdata=1,DEGREES(IMARGUMENT(L16)),'CM choke'!F20)) -> 85.61308758 | G16: 26.4091091 | H16: 344.244961 | I16: 26.4091091 | J16: 344.244961 | K16: =IF(CMdata=1,IMDIV(1,IMSUM(IMDIV(1,IMPRODUCT(B16,'Design the AEF circuit'!$G$13*0.001)),IMDIV(1,'Design the AEF circuit'!$H$13*1000),IMPRODUCT(B16,'Design the AEF circuit'!$I$13*0.000000000001))),COMPLEX(G16,H16,"j")) -> 26,4091090970586+344,244960999232j | L16: =IF(CMdata=1,IMDIV(1,IMSUM(IMDIV(1,IMPRODUCT(B16,'Design the AEF circuit'!$G$14*0.001)),IMDIV(1,'Design the AEF circuit'!$H$14*1000),IMPRODUCT(B16,'Design the AEF circuit'!$I$14*0.000000000001))),COMPLEX(I16,J16,"j")) -> 26,4091090970586+344,244960999232j
A17: ='Frequency vector'!G17 -> 1448.503471 | B17: =COMPLEX(0,2*PI()*'Frequency vector'!G17,"j") -> 9101,21572646217j | C17: =IF(IF(CMdata=1,IMABS(K17),'CM choke'!C21)=0, C16, IF(CMdata=1,IMABS(K17),'CM choke'!C21)) -> 354.4438531 | D17: =IF(IF(CMdata=1,DEGREES(IMARGUMENT(K17)),'CM choke'!D21)=0, D16, IF(CMdata=1,DEGREES(IMARGUMENT(K17)),'CM choke'!D21)) -> 85.49634226 | E17: =IF(IF(CMdata=1,IMABS(L17),'CM choke'!E21)=0, E16, IF(CMdata=1,IMABS(L17),'CM choke'!E21)) -> 354.4438531 | F17: =IF(IF(CMdata=1,DEGREES(IMARGUMENT(L17)),'CM choke'!F21)=0, F16, IF(CMdata=1,DEGREES(IMARGUMENT(L17)),'CM choke'!F21)) -> 85.49634226 | G17: 27.83190195 | H17: 353.349445 | I17: 27.83190195 | J17: 353.349445 | K17: =IF(CMdata=1,IMDIV(1,IMSUM(IMDIV(1,IMPRODUCT(B17,'Design the AEF circuit'!$G$13*0.001)),IMDIV(1,'Design the AEF circuit'!$H$13*1000),IMPRODUCT(B17,'Design the AEF circuit'!$I$13*0.000000000001))),COMPLEX(G17,H17,"j")) -> 27,8319019459086+353,349444980959j | L17: =IF(CMdata=1,IMDIV(1,IMSUM(IMDIV(1,IMPRODUCT(B17,'Design the AEF circuit'!$G$14*0.001)),IMDIV(1,'Design the AEF circuit'!$H$14*1000),IMPRODUCT(B17,'Design the AEF circuit'!$I$14*0.000000000001))),COMPLEX(I17,J17,"j")) -> 27,8319019459086+353,349444980959j
A18: ='Frequency vector'!G18 -> 1487.352107 | B18: =COMPLEX(0,2*PI()*'Frequency vector'!G18,"j") -> 9345,30890714918j | C18: =IF(IF(CMdata=1,IMABS(K18),'CM choke'!C22)=0, C17, IF(CMdata=1,IMABS(K18),'CM choke'!C22)) -> 363.8717084 | D18: =IF(IF(CMdata=1,DEGREES(IMARGUMENT(K18)),'CM choke'!D22)=0, D17, IF(CMdata=1,DEGREES(IMARGUMENT(K18)),'CM choke'!D22)) -> 85.37652214 | E18: =IF(IF(CMdata=1,IMABS(L18),'CM choke'!E22)=0, E17, IF(CMdata=1,IMABS(L18),'CM choke'!E22)) -> 363.8717084 | F18: =IF(IF(CMdata=1,DEGREES(IMARGUMENT(L18)),'CM choke'!F22)=0, F17, IF(CMdata=1,DEGREES(IMARGUMENT(L18)),'CM choke'!F22)) -> 85.37652214 | G18: 29.33073909 | H18: 362.6876451 | I18: 29.33073909 | J18: 362.6876451 | K18: =IF(CMdata=1,IMDIV(1,IMSUM(IMDIV(1,IMPRODUCT(B18,'Design the AEF circuit'!$G$13*0.001)),IMDIV(1,'Design the AEF circuit'!$H$13*1000),IMPRODUCT(B18,'Design the AEF circuit'!$I$13*0.000000000001))),COMPLEX(G18,H18,"j")) -> 29,3307390947409+362,687645098214j | L18: =IF(CMdata=1,IMDIV(1,IMSUM(IMDIV(1,IMPRODUCT(B18,'Design the AEF circuit'!$G$14*0.001)),IMDIV(1,'Design the AEF circuit'!$H$14*1000),IMPRODUCT(B18,'Design the AEF circuit'!$I$14*0.000000000001))),COMPLEX(I18,J18,"j")) -> 29,3307390947409+362,687645098214j
A19: ='Frequency vector'!G19 -> 1527.242658 | B19: =COMPLEX(0,2*PI()*'Frequency vector'!G19,"j") -> 9595,94862872137j | C19: =IF(IF(CMdata=1,IMABS(K19),'CM choke'!C23)=0, C18, IF(CMdata=1,IMABS(K19),'CM choke'!C23)) -> 373.546009 | D19: =IF(IF(CMdata=1,DEGREES(IMARGUMENT(K19)),'CM choke'!D23)=0, D18, IF(CMdata=1,DEGREES(IMARGUMENT(K19)),'CM choke'!D23)) -> 85.25354983 | E19: =IF(IF(CMdata=1,IMABS(L19),'CM choke'!E23)=0, E18, IF(CMdata=1,IMABS(L19),'CM choke'!E23)) -> 373.546009 | F19: =IF(IF(CMdata=1,DEGREES(IMARGUMENT(L19)),'CM choke'!F23)=0, F18, IF(CMdata=1,DEGREES(IMARGUMENT(L19)),'CM choke'!F23)) -> 85.25354983 | G19: 30.90961132 | H19: 372.2649819 | I19: 30.90961132 | J19: 372.2649819 | K19: =IF(CMdata=1,IMDIV(1,IMSUM(IMDIV(1,IMPRODUCT(B19,'Design the AEF circuit'!$G$13*0.001)),IMDIV(1,'Design the AEF circuit'!$H$13*1000),IMPRODUCT(B19,'Design the AEF circuit'!$I$13*0.000000000001))),COMPLEX(G19,H19,"j")) -> 30,9096113220443+372,264981892705j | L19: =IF(CMdata=1,IMDIV(1,IMSUM(IMDIV(1,IMPRODUCT(B19,'Design the AEF circuit'!$G$14*0.001)),IMDIV(1,'Design the AEF circuit'!$H$14*1000),IMPRODUCT(B19,'Design the AEF circuit'!$I$14*0.000000000001))),COMPLEX(I19,J19,"j")) -> 30,9096113220443+372,264981892705j
A20: ='Frequency vector'!G20 -> 1568.203067 | B20: =COMPLEX(0,2*PI()*'Frequency vector'!G20,"j") -> 9853,31046838015j | C20: =IF(IF(CMdata=1,IMABS(K20),'CM choke'!C24)=0, C19, IF(CMdata=1,IMABS(K20),'CM choke'!C24)) -> 383.4728434 | D20: =IF(IF(CMdata=1,DEGREES(IMARGUMENT(K20)),'CM choke'!D24)=0, D19, IF(CMdata=1,DEGREES(IMARGUMENT(K20)),'CM choke'!D24)) -> 85.12734627 | E20: =IF(IF(CMdata=1,IMABS(L20),'CM choke'!E24)=0, E19, IF(CMdata=1,IMABS(L20),'CM choke'!E24)) -> 383.4728434 | F20: =IF(IF(CMdata=1,DEGREES(IMARGUMENT(L20)),'CM choke'!F24)=0, F19, IF(CMdata=1,DEGREES(IMARGUMENT(L20)),'CM choke'!F24)) -> 85.12734627 | G20: 32.57271071 | H20: 382.0869536 | I20: 32.57271071 | J20: 382.0869536 | K20: =IF(CMdata=1,IMDIV(1,IMSUM(IMDIV(1,IMPRODUCT(B20,'Design the AEF circuit'!$G$13*0.001)),IMDIV(1,'Design the AEF circuit'!$H$13*1000),IMPRODUCT(B20,'Design the AEF circuit'!$I$13*0.000000000001))),COMPLEX(G20,H20,"j")) -> 32,5727107142821+382,086953612529j | L20: =IF(CMdata=1,IMDIV(1,IMSUM(IMDIV(1,IMPRODUCT(B20,'Design the AEF circuit'!$G$14*0.001)),IMDIV(1,'Design the AEF circuit'!$H$14*1000),IMPRODUCT(B20,'Design the AEF circuit'!$I$14*0.000000000001))),COMPLEX(I20,J20,"j")) -> 32,5727107142821+382,086953612529j
A21: ='Frequency vector'!G21 -> 1610.262028 | B21: =COMPLEX(0,2*PI()*'Frequency vector'!G21,"j") -> 10117,5747122801j | C21: =IF(IF(CMdata=1,IMABS(K21),'CM choke'!C25)=0, C20, IF(CMdata=1,IMABS(K21),'CM choke'!C25)) -> 393.6584215 | D21: =IF(IF(CMdata=1,DEGREES(IMARGUMENT(K21)),'CM choke'!D25)=0, D20, IF(CMdata=1,DEGREES(IMARGUMENT(K21)),'CM choke'!D25)) -> 84.99783069 | E21: =IF(IF(CMdata=1,IMABS(L21),'CM choke'!E25)=0, E20, IF(CMdata=1,IMABS(L21),'CM choke'!E25)) -> 393.6584215 | F21: =IF(IF(CMdata=1,DEGREES(IMARGUMENT(L21)),'CM choke'!F25)=0, F20, IF(CMdata=1,DEGREES(IMARGUMENT(L21)),'CM choke'!F25)) -> 84.99783069 | G21: 34.32443992 | H21: 392.159133 | I21: 34.32443992 | J21: 392.159133 | K21: =IF(CMdata=1,IMDIV(1,IMSUM(IMDIV(1,IMPRODUCT(B21,'Design the AEF circuit'!$G$13*0.001)),IMDIV(1,'Design the AEF circuit'!$H$13*1000),IMPRODUCT(B21,'Design the AEF circuit'!$I$13*0.000000000001))),COMPLEX(G21,H21,"j")) -> 34,3244399199967+392,159133033008j | L21: =IF(CMdata=1,IMDIV(1,IMSUM(IMDIV(1,IMPRODUCT(B21,'Design the AEF circuit'!$G$14*0.001)),IMDIV(1,'Design the AEF circuit'!$H$14*1000),IMPRODUCT(B21,'Design the AEF circuit'!$I$14*0.000000000001))),COMPLEX(I21,J21,"j")) -> 34,3244399199967+392,159133033008j
A22: ='Frequency vector'!G22 -> 1653.449003 | B22: =COMPLEX(0,2*PI()*'Frequency vector'!G22,"j") -> 10388,9264818221j | C22: =IF(IF(CMdata=1,IMABS(K22),'CM choke'!C26)=0, C21, IF(CMdata=1,IMABS(K22),'CM choke'!C26)) -> 404.1090745 | D22: =IF(IF(CMdata=1,DEGREES(IMARGUMENT(K22)),'CM choke'!D26)=0, D21, IF(CMdata=1,DEGREES(IMARGUMENT(K22)),'CM choke'!D26)) -> 84.86492064 | E22: =IF(IF(CMdata=1,IMABS(L22),'CM choke'!E26)=0, E21, IF(CMdata=1,IMABS(L22),'CM choke'!E26)) -> 404.1090745 | F22: =IF(IF(CMdata=1,DEGREES(IMARGUMENT(L22)),'CM choke'!F26)=0, F21, IF(CMdata=1,DEGREES(IMARGUMENT(L22)),'CM choke'!F26)) -> 84.86492064 | G22: 36.16942173 | H22: 402.4871638 | I22: 36.16942173 | J22: 402.4871638 | K22: =IF(CMdata=1,IMDIV(1,IMSUM(IMDIV(1,IMPRODUCT(B22,'Design the AEF circuit'!$G$13*0.001)),IMDIV(1,'Design the AEF circuit'!$H$13*1000),IMPRODUCT(B22,'Design the AEF circuit'!$I$13*0.000000000001))),COMPLEX(G22,H22,"j")) -> 36,1694217278072+402,487163802253j | L22: =IF(CMdata=1,IMDIV(1,IMSUM(IMDIV(1,IMPRODUCT(B22,'Design the AEF circuit'!$G$14*0.001)),IMDIV(1,'Design the AEF circuit'!$H$14*1000),IMPRODUCT(B22,'Design the AEF circuit'!$I$14*0.000000000001))),COMPLEX(I22,J22,"j")) -> 36,1694217278072+402,487163802253j
A23: ='Frequency vector'!G23 -> 1697.794246 | B23: =COMPLEX(0,2*PI()*'Frequency vector'!G23,"j") -> 10667,5558633341j | C23: =IF(IF(CMdata=1,IMABS(K23),'CM choke'!C27)=0, C22, IF(CMdata=1,IMABS(K23),'CM choke'!C27)) -> 414.8312547 | D23: =IF(IF(CMdata=1,DEGREES(IMARGUMENT(K23)),'CM choke'!D27)=0, D22, IF(CMdata=1,DEGREES(IMARGUMENT(K23)),'CM choke'!D27)) -> 84.72853194 | E23: =IF(IF(CMdata=1,IMABS(L23),'CM choke'!E27)=0, E22, IF(CMdata=1,IMABS(L23),'CM choke'!E27)) -> 414.8312547 | F23: =IF(IF(CMdata=1,DEGREES(IMARGUMENT(L23)),'CM choke'!F27)=0, F22, IF(CMdata=1,DEGREES(IMARGUMENT(L23)),'CM choke'!F27)) -> 84.72853194 | G23: 38.11250897 | H23: 413.0767563 | I23: 38.11250897 | J23: 413.0767563 | K23: =IF(CMdata=1,IMDIV(1,IMSUM(IMDIV(1,IMPRODUCT(B23,'Design the AEF circuit'!$G$13*0.001)),IMDIV(1,'Design the AEF circuit'!$H$13*1000),IMPRODUCT(B23,'Design the AEF circuit'!$I$13*0.000000000001))),COMPLEX(G23,H23,"j")) -> 38,1125089674982+413,076756272704j | L23: =IF(CMdata=1,IMDIV(1,IMSUM(IMDIV(1,IMPRODUCT(B23,'Design the AEF circuit'!$G$14*0.001)),IMDIV(1,'Design the AEF circuit'!$H$14*1000),IMPRODUCT(B23,'Design the AEF circuit'!$I$14*0.000000000001))),COMPLEX(I23,J23,"j")) -> 38,1125089674982+413,076756272704j
A24: ='Frequency vector'!G24 -> 1743.328822 | B24: =COMPLEX(0,2*PI()*'Frequency vector'!G24,"j") -> 10953,6580412297j | C24: =IF(IF(CMdata=1,IMABS(K24),'CM choke'!C28)=0, C23, IF(CMdata=1,IMABS(K24),'CM choke'!C28)) -> 425.831535 | D24: =IF(IF(CMdata=1,DEGREES(IMARGUMENT(K24)),'CM choke'!D28)=0, D23, IF(CMdata=1,DEGREES(IMARGUMENT(K24)),'CM choke'!D28)) -> 84.58857873 | E24: =IF(IF(CMdata=1,IMABS(L24),'CM choke'!E28)=0, E23, IF(CMdata=1,IMABS(L24),'CM choke'!E28)) -> 425.831535 | F24: =IF(IF(CMdata=1,DEGREES(IMARGUMENT(L24)),'CM choke'!F28)=0, F23, IF(CMdata=1,DEGREES(IMARGUMENT(L24)),'CM choke'!F28)) -> 84.58857873 | G24: 40.15879473 | H24: 423.9336828 | I24: 40.15879473 | J24: 423.9336828 | K24: =IF(CMdata=1,IMDIV(1,IMSUM(IMDIV(1,IMPRODUCT(B24,'Design the AEF circuit'!$G$13*0.001)),IMDIV(1,'Design the AEF circuit'!$H$13*1000),IMPRODUCT(B24,'Design the AEF circuit'!$I$13*0.000000000001))),COMPLEX(G24,H24,"j")) -> 40,1587947315116+423,933682777204j | L24: =IF(CMdata=1,IMDIV(1,IMSUM(IMDIV(1,IMPRODUCT(B24,'Design the AEF circuit'!$G$14*0.001)),IMDIV(1,'Design the AEF circuit'!$H$14*1000),IMPRODUCT(B24,'Design the AEF circuit'!$I$14*0.000000000001))),COMPLEX(I24,J24,"j")) -> 40,1587947315116+423,933682777204j
A25: ='Frequency vector'!G25 -> 1790.084628 | B25: =COMPLEX(0,2*PI()*'Frequency vector'!G25,"j") -> 11247,4334347376j | C25: =IF(IF(CMdata=1,IMABS(K25),'CM choke'!C29)=0, C24, IF(CMdata=1,IMABS(K25),'CM choke'!C29)) -> 437.1166076 | D25: =IF(IF(CMdata=1,DEGREES(IMARGUMENT(K25)),'CM choke'!D29)=0, D24, IF(CMdata=1,DEGREES(IMARGUMENT(K25)),'CM choke'!D29)) -> 84.44497339 | E25: =IF(IF(CMdata=1,IMABS(L25),'CM choke'!E29)=0, E24, IF(CMdata=1,IMABS(L25),'CM choke'!E29)) -> 437.1166076 | F25: =IF(IF(CMdata=1,DEGREES(IMARGUMENT(L25)),'CM choke'!F29)=0, F24, IF(CMdata=1,DEGREES(IMARGUMENT(L25)),'CM choke'!F29)) -> 84.44497339 | G25: 42.31362291 | H25: 435.0637723 | I25: 42.31362291 | J25: 435.0637723 | K25: =IF(CMdata=1,IMDIV(1,IMSUM(IMDIV(1,IMPRODUCT(B25,'Design the AEF circuit'!$G$13*0.001)),IMDIV(1,'Design the AEF circuit'!$H$13*1000),IMPRODUCT(B25,'Design the AEF circuit'!$I$13*0.000000000001))),COMPLEX(G25,H25,"j")) -> 42,3136229120844+435,063772305916j | L25: =IF(CMdata=1,IMDIV(1,IMSUM(IMDIV(1,IMPRODUCT(B25,'Design the AEF circuit'!$G$14*0.001)),IMDIV(1,'Design the AEF circuit'!$H$14*1000),IMPRODUCT(B25,'Design the AEF circuit'!$I$14*0.000000000001))),COMPLEX(I25,J25,"j")) -> 42,3136229120844+435,063772305916j
A26: ='Frequency vector'!G26 -> 1838.094418 | B26: =COMPLEX(0,2*PI()*'Frequency vector'!G26,"j") -> 11549,0878382991j | C26: =IF(IF(CMdata=1,IMABS(K26),'CM choke'!C30)=0, C25, IF(CMdata=1,IMABS(K26),'CM choke'!C30)) -> 448.6932835 | D26: =IF(IF(CMdata=1,DEGREES(IMARGUMENT(K26)),'CM choke'!D30)=0, D25, IF(CMdata=1,DEGREES(IMARGUMENT(K26)),'CM choke'!D30)) -> 84.29762662 | E26: =IF(IF(CMdata=1,IMABS(L26),'CM choke'!E30)=0, E25, IF(CMdata=1,IMABS(L26),'CM choke'!E30)) -> 448.6932835 | F26: =IF(IF(CMdata=1,DEGREES(IMARGUMENT(L26)),'CM choke'!F30)=0, F25, IF(CMdata=1,DEGREES(IMARGUMENT(L26)),'CM choke'!F30)) -> 84.29762662 | G26: 44.58259905 | H26: 446.4729045 | I26: 44.58259905 | J26: 446.4729045 | K26: =IF(CMdata=1,IMDIV(1,IMSUM(IMDIV(1,IMPRODUCT(B26,'Design the AEF circuit'!$G$13*0.001)),IMDIV(1,'Design the AEF circuit'!$H$13*1000),IMPRODUCT(B26,'Design the AEF circuit'!$I$13*0.000000000001))),COMPLEX(G26,H26,"j")) -> 44,5825990468719+446,472904537671j | L26: =IF(CMdata=1,IMDIV(1,IMSUM(IMDIV(1,IMPRODUCT(B26,'Design the AEF circuit'!$G$14*0.001)),IMDIV(1,'Design the AEF circuit'!$H$14*1000),IMPRODUCT(B26,'Design the AEF circuit'!$I$14*0.000000000001))),COMPLEX(I26,J26,"j")) -> 44,5825990468719+446,472904537671j
A27: ='Frequency vector'!G27 -> 1887.391822 | B27: =COMPLEX(0,2*PI()*'Frequency vector'!G27,"j") -> 11858,8325657302j | C27: =IF(IF(CMdata=1,IMABS(K27),'CM choke'!C31)=0, C26, IF(CMdata=1,IMABS(K27),'CM choke'!C31)) -> 460.5684902 | D27: =IF(IF(CMdata=1,DEGREES(IMARGUMENT(K27)),'CM choke'!D31)=0, D26, IF(CMdata=1,DEGREES(IMARGUMENT(K27)),'CM choke'!D31)) -> 84.14644737 | E27: =IF(IF(CMdata=1,IMABS(L27),'CM choke'!E31)=0, E26, IF(CMdata=1,IMABS(L27),'CM choke'!E31)) -> 460.5684902 | F27: =IF(IF(CMdata=1,DEGREES(IMARGUMENT(L27)),'CM choke'!F31)=0, F26, IF(CMdata=1,DEGREES(IMARGUMENT(L27)),'CM choke'!F31)) -> 84.14644737 | G27: 46.97160146 | H27: 458.1670032 | I27: 46.97160146 | J27: 458.1670032 | K27: =IF(CMdata=1,IMDIV(1,IMSUM(IMDIV(1,IMPRODUCT(B27,'Design the AEF circuit'!$G$13*0.001)),IMDIV(1,'Design the AEF circuit'!$H$13*1000),IMPRODUCT(B27,'Design the AEF circuit'!$I$13*0.000000000001))),COMPLEX(G27,H27,"j")) -> 46,9716014631795+458,167003176892j | L27: =IF(CMdata=1,IMDIV(1,IMSUM(IMDIV(1,IMPRODUCT(B27,'Design the AEF circuit'!$G$14*0.001)),IMDIV(1,'Design the AEF circuit'!$H$14*1000),IMPRODUCT(B27,'Design the AEF circuit'!$I$14*0.000000000001))),COMPLEX(I27,J27,"j")) -> 46,9716014631795+458,167003176892j
A28: ='Frequency vector'!G28 -> 1938.011375 | B28: =COMPLEX(0,2*PI()*'Frequency vector'!G28,"j") -> 12176,8845982502j | C28: =IF(IF(CMdata=1,IMABS(K28),'CM choke'!C32)=0, C27, IF(CMdata=1,IMABS(K28),'CM choke'!C32)) -> 472.7492703 | D28: =IF(IF(CMdata=1,DEGREES(IMARGUMENT(K28)),'CM choke'!D32)=0, D27, IF(CMdata=1,DEGREES(IMARGUMENT(K28)),'CM choke'!D32)) -> 83.99134292 | E28: =IF(IF(CMdata=1,IMABS(L28),'CM choke'!E32)=0, E27, IF(CMdata=1,IMABS(L28),'CM choke'!E32)) -> 472.7492703 | F28: =IF(IF(CMdata=1,DEGREES(IMARGUMENT(L28)),'CM choke'!F32)=0, F27, IF(CMdata=1,DEGREES(IMARGUMENT(L28)),'CM choke'!F32)) -> 83.99134292 | G28: 49.48679271 | H28: 470.1520285 | I28: 49.48679271 | J28: 470.1520285 | K28: =IF(CMdata=1,IMDIV(1,IMSUM(IMDIV(1,IMPRODUCT(B28,'Design the AEF circuit'!$G$13*0.001)),IMDIV(1,'Design the AEF circuit'!$H$13*1000),IMPRODUCT(B28,'Design the AEF circuit'!$I$13*0.000000000001))),COMPLEX(G28,H28,"j")) -> 49,4867927079179+470,152028544399j | L28: =IF(CMdata=1,IMDIV(1,IMSUM(IMDIV(1,IMPRODUCT(B28,'Design the AEF circuit'!$G$14*0.001)),IMDIV(1,'Design the AEF circuit'!$H$14*1000),IMPRODUCT(B28,'Design the AEF circuit'!$I$14*0.000000000001))),COMPLEX(I28,J28,"j")) -> 49,4867927079179+470,152028544399j
A29: ='Frequency vector'!G29 -> 1989.988537 | B29: =COMPLEX(0,2*PI()*'Frequency vector'!G29,"j") -> 12503,4667364807j | C29: =IF(IF(CMdata=1,IMABS(K29),'CM choke'!C33)=0, C28, IF(CMdata=1,IMABS(K29),'CM choke'!C33)) -> 485.242779 | D29: =IF(IF(CMdata=1,DEGREES(IMARGUMENT(K29)),'CM choke'!D33)=0, D28, IF(CMdata=1,DEGREES(IMARGUMENT(K29)),'CM choke'!D33)) -> 83.83221883 | E29: =IF(IF(CMdata=1,IMABS(L29),'CM choke'!E33)=0, E28, IF(CMdata=1,IMABS(L29),'CM choke'!E33)) -> 485.242779 | F29: =IF(IF(CMdata=1,DEGREES(IMARGUMENT(L29)),'CM choke'!F33)=0, F28, IF(CMdata=1,DEGREES(IMARGUMENT(L29)),'CM choke'!F33)) -> 83.83221883 | G29: 52.13463125 | H29: 482.4339694 | I29: 52.13463125 | J29: 482.4339694 | K29: =IF(CMdata=1,IMDIV(1,IMSUM(IMDIV(1,IMPRODUCT(B29,'Design the AEF circuit'!$G$13*0.001)),IMDIV(1,'Design the AEF circuit'!$H$13*1000),IMPRODUCT(B29,'Design the AEF circuit'!$I$13*0.000000000001))),COMPLEX(G29,H29,"j")) -> 52,1346312469647+482,433969367942j | L29: =IF(CMdata=1,IMDIV(1,IMSUM(IMDIV(1,IMPRODUCT(B29,'Design the AEF circuit'!$G$14*0.001)),IMDIV(1,'Design the AEF circuit'!$H$14*1000),IMPRODUCT(B29,'Design the AEF circuit'!$I$14*0.000000000001))),COMPLEX(I29,J29,"j")) -> 52,1346312469647+482,433969367942j
A30: ='Frequency vector'!G30 -> 2043.359718 | B30: =COMPLEX(0,2*PI()*'Frequency vector'!G30,"j") -> 12838,8077565213j | C30: =IF(IF(CMdata=1,IMABS(K30),'CM choke'!C34)=0, C29, IF(CMdata=1,IMABS(K30),'CM choke'!C34)) -> 498.056281 | D30: =IF(IF(CMdata=1,DEGREES(IMARGUMENT(K30)),'CM choke'!D34)=0, D29, IF(CMdata=1,DEGREES(IMARGUMENT(K30)),'CM choke'!D34)) -> 83.66897899 | E30: =IF(IF(CMdata=1,IMABS(L30),'CM choke'!E34)=0, E29, IF(CMdata=1,IMABS(L30),'CM choke'!E34)) -> 498.056281 | F30: =IF(IF(CMdata=1,DEGREES(IMARGUMENT(L30)),'CM choke'!F34)=0, F29, IF(CMdata=1,DEGREES(IMARGUMENT(L30)),'CM choke'!F34)) -> 83.66897899 | G30: 54.92188341 | H30: 495.0188337 | I30: 54.92188341 | J30: 495.0188337 | K30: =IF(CMdata=1,IMDIV(1,IMSUM(IMDIV(1,IMPRODUCT(B30,'Design the AEF circuit'!$G$13*0.001)),IMDIV(1,'Design the AEF circuit'!$H$13*1000),IMPRODUCT(B30,'Design the AEF circuit'!$I$13*0.000000000001))),COMPLEX(G30,H30,"j")) -> 54,9218834137901+495,018833715483j | L30: =IF(CMdata=1,IMDIV(1,IMSUM(IMDIV(1,IMPRODUCT(B30,'Design the AEF circuit'!$G$14*0.001)),IMDIV(1,'Design the AEF circuit'!$H$14*1000),IMPRODUCT(B30,'Design the AEF circuit'!$I$14*0.000000000001))),COMPLEX(I30,J30,"j")) -> 54,9218834137901+495,018833715483j
A31: ='Frequency vector'!G31 -> 2098.162306 | B31: =COMPLEX(0,2*PI()*'Frequency vector'!G31,"j") -> 13183,1425702108j | C31: =IF(IF(CMdata=1,IMABS(K31),'CM choke'!C35)=0, C30, IF(CMdata=1,IMABS(K31),'CM choke'!C35)) -> 511.1971473 | D31: =IF(IF(CMdata=1,DEGREES(IMARGUMENT(K31)),'CM choke'!D35)=0, D30, IF(CMdata=1,DEGREES(IMARGUMENT(K31)),'CM choke'!D35)) -> 83.50152564 | E31: =IF(IF(CMdata=1,IMABS(L31),'CM choke'!E35)=0, E30, IF(CMdata=1,IMABS(L31),'CM choke'!E35)) -> 511.1971473 | F31: =IF(IF(CMdata=1,DEGREES(IMARGUMENT(L31)),'CM choke'!F35)=0, F30, IF(CMdata=1,DEGREES(IMARGUMENT(L31)),'CM choke'!F35)) -> 83.50152564 | G31: 57.85563558 | H31: 507.912639 | I31: 57.85563558 | J31: 507.912639 | K31: =IF(CMdata=1,IMDIV(1,IMSUM(IMDIV(1,IMPRODUCT(B31,'Design the AEF circuit'!$G$13*0.001)),IMDIV(1,'Design the AEF circuit'!$H$13*1000),IMPRODUCT(B31,'Design the AEF circuit'!$I$13*0.000000000001))),COMPLEX(G31,H31,"j")) -> 57,8556355829943+507,912639011696j | L31: =IF(CMdata=1,IMDIV(1,IMSUM(IMDIV(1,IMPRODUCT(B31,'Design the AEF circuit'!$G$14*0.001)),IMDIV(1,'Design the AEF circuit'!$H$14*1000),IMPRODUCT(B31,'Design the AEF circuit'!$I$14*0.000000000001))),COMPLEX(I31,J31,"j")) -> 57,8556355829943+507,912639011696j
A32: ='Frequency vector'!G32 -> 2154.43469 | B32: =COMPLEX(0,2*PI()*'Frequency vector'!G32,"j") -> 13536,7123896864j | C32: =IF(IF(CMdata=1,IMABS(K32),'CM choke'!C36)=0, C31, IF(CMdata=1,IMABS(K32),'CM choke'!C36)) -> 524.6728517 | D32: =IF(IF(CMdata=1,DEGREES(IMARGUMENT(K32)),'CM choke'!D36)=0, D31, IF(CMdata=1,DEGREES(IMARGUMENT(K32)),'CM choke'!D36)) -> 83.32975938 | E32: =IF(IF(CMdata=1,IMABS(L32),'CM choke'!E36)=0, E31, IF(CMdata=1,IMABS(L32),'CM choke'!E36)) -> 524.6728517 | F32: =IF(IF(CMdata=1,DEGREES(IMARGUMENT(L32)),'CM choke'!F36)=0, F31, IF(CMdata=1,DEGREES(IMARGUMENT(L32)),'CM choke'!F36)) -> 83.32975938 | G32: 60.94330654 | H32: 521.1214011 | I32: 60.94330654 | J32: 521.1214011 | K32: =IF(CMdata=1,IMDIV(1,IMSUM(IMDIV(1,IMPRODUCT(B32,'Design the AEF circuit'!$G$13*0.001)),IMDIV(1,'Design the AEF circuit'!$H$13*1000),IMPRODUCT(B32,'Design the AEF circuit'!$I$13*0.000000000001))),COMPLEX(G32,H32,"j")) -> 60,9433065396477+521,121401075524j | L32: =IF(CMdata=1,IMDIV(1,IMSUM(IMDIV(1,IMPRODUCT(B32,'Design the AEF circuit'!$G$14*0.001)),IMDIV(1,'Design the AEF circuit'!$H$14*1000),IMPRODUCT(B32,'Design the AEF circuit'!$I$14*0.000000000001))),COMPLEX(I32,J32,"j")) -> 60,9433065396477+521,121401075524j
A33: ='Frequency vector'!G33 -> 2212.216291 | B33: =COMPLEX(0,2*PI()*'Frequency vector'!G33,"j") -> 13899,7648963571j | C33: =IF(IF(CMdata=1,IMABS(K33),'CM choke'!C37)=0, C32, IF(CMdata=1,IMABS(K33),'CM choke'!C37)) -> 538.4909655 | D33: =IF(IF(CMdata=1,DEGREES(IMARGUMENT(K33)),'CM choke'!D37)=0, D32, IF(CMdata=1,DEGREES(IMARGUMENT(K33)),'CM choke'!D37)) -> 83.15357923 | E33: =IF(IF(CMdata=1,IMABS(L33),'CM choke'!E37)=0, E32, IF(CMdata=1,IMABS(L33),'CM choke'!E37)) -> 538.4909655 | F33: =IF(IF(CMdata=1,DEGREES(IMARGUMENT(L33)),'CM choke'!F37)=0, F32, IF(CMdata=1,DEGREES(IMARGUMENT(L33)),'CM choke'!F37)) -> 83.15357923 | G33: 64.19266001 | H33: 534.6511221 | I33: 64.19266001 | J33: 534.6511221 | K33: =IF(CMdata=1,IMDIV(1,IMSUM(IMDIV(1,IMPRODUCT(B33,'Design the AEF circuit'!$G$13*0.001)),IMDIV(1,'Design the AEF circuit'!$H$13*1000),IMPRODUCT(B33,'Design the AEF circuit'!$I$13*0.000000000001))),COMPLEX(G33,H33,"j")) -> 64,1926600101103+534,651122114107j | L33: =IF(CMdata=1,IMDIV(1,IMSUM(IMDIV(1,IMPRODUCT(B33,'Design the AEF circuit'!$G$14*0.001)),IMDIV(1,'Design the AEF circuit'!$H$14*1000),IMPRODUCT(B33,'Design the AEF circuit'!$I$14*0.000000000001))),COMPLEX(I33,J33,"j")) -> 64,1926600101103+534,651122114107j
A34: ='Frequency vector'!G34 -> 2271.547586 | B34: =COMPLEX(0,2*PI()*'Frequency vector'!G34,"j") -> 14272,554414409j | C34: =IF(IF(CMdata=1,IMABS(K34),'CM choke'!C38)=0, C33, IF(CMdata=1,IMABS(K34),'CM choke'!C38)) -> 552.6591535 | D34: =IF(IF(CMdata=1,DEGREES(IMARGUMENT(K34)),'CM choke'!D38)=0, D33, IF(CMdata=1,DEGREES(IMARGUMENT(K34)),'CM choke'!D38)) -> 82.97288265 | E34: =IF(IF(CMdata=1,IMABS(L34),'CM choke'!E38)=0, E33, IF(CMdata=1,IMABS(L34),'CM choke'!E38)) -> 552.6591535 | F34: =IF(IF(CMdata=1,DEGREES(IMARGUMENT(L34)),'CM choke'!F38)=0, F33, IF(CMdata=1,DEGREES(IMARGUMENT(L34)),'CM choke'!F38)) -> 82.97288265 | G34: 67.61181731 | H34: 548.5077776 | I34: 67.61181731 | J34: 548.5077776 | K34: =IF(CMdata=1,IMDIV(1,IMSUM(IMDIV(1,IMPRODUCT(B34,'Design the AEF circuit'!$G$13*0.001)),IMDIV(1,'Design the AEF circuit'!$H$13*1000),IMPRODUCT(B34,'Design the AEF circuit'!$I$13*0.000000000001))),COMPLEX(G34,H34,"j")) -> 67,6118173142701+548,507777606163j | L34: =IF(CMdata=1,IMDIV(1,IMSUM(IMDIV(1,IMPRODUCT(B34,'Design the AEF circuit'!$G$14*0.001)),IMDIV(1,'Design the AEF circuit'!$H$14*1000),IMPRODUCT(B34,'Design the AEF circuit'!$I$14*0.000000000001))),COMPLEX(I34,J34,"j")) -> 67,6118173142701+548,507777606163j
A35: ='Frequency vector'!G35 -> 2332.470136 | B35: =COMPLEX(0,2*PI()*'Frequency vector'!G35,"j") -> 14655,3420889625j | C35: =IF(IF(CMdata=1,IMABS(K35),'CM choke'!C39)=0, C34, IF(CMdata=1,IMABS(K35),'CM choke'!C39)) -> 567.1851671 | D35: =IF(IF(CMdata=1,DEGREES(IMARGUMENT(K35)),'CM choke'!D39)=0, D34, IF(CMdata=1,DEGREES(IMARGUMENT(K35)),'CM choke'!D39)) -> 82.78756559 | E35: =IF(IF(CMdata=1,IMABS(L35),'CM choke'!E39)=0, E34, IF(CMdata=1,IMABS(L35),'CM choke'!E39)) -> 567.1851671 | F35: =IF(IF(CMdata=1,DEGREES(IMARGUMENT(L35)),'CM choke'!F39)=0, F34, IF(CMdata=1,DEGREES(IMARGUMENT(L35)),'CM choke'!F39)) -> 82.78756559 | G35: 71.20927009 | H35: 562.697302 | I35: 71.20927009 | J35: 562.697302 | K35: =IF(CMdata=1,IMDIV(1,IMSUM(IMDIV(1,IMPRODUCT(B35,'Design the AEF circuit'!$G$13*0.001)),IMDIV(1,'Design the AEF circuit'!$H$13*1000),IMPRODUCT(B35,'Design the AEF circuit'!$I$13*0.000000000001))),COMPLEX(G35,H35,"j")) -> 71,2092700927616+562,697302005465j | L35: =IF(CMdata=1,IMDIV(1,IMSUM(IMDIV(1,IMPRODUCT(B35,'Design the AEF circuit'!$G$14*0.001)),IMDIV(1,'Design the AEF circuit'!$H$14*1000),IMPRODUCT(B35,'Design the AEF circuit'!$I$14*0.000000000001))),COMPLEX(I35,J35,"j")) -> 71,2092700927616+562,697302005465j
A36: ='Frequency vector'!G36 -> 2395.02662 | B36: =COMPLEX(0,2*PI()*'Frequency vector'!G36,"j") -> 15048,3960690094j | C36: =IF(IF(CMdata=1,IMABS(K36),'CM choke'!C40)=0, C35, IF(CMdata=1,IMABS(K36),'CM choke'!C40)) -> 582.0768389 | D36: =IF(IF(CMdata=1,DEGREES(IMARGUMENT(K36)),'CM choke'!D40)=0, D35, IF(CMdata=1,DEGREES(IMARGUMENT(K36)),'CM choke'!D40)) -> 82.59752253 | E36: =IF(IF(CMdata=1,IMABS(L36),'CM choke'!E40)=0, E35, IF(CMdata=1,IMABS(L36),'CM choke'!E40)) -> 582.0768389 | F36: =IF(IF(CMdata=1,DEGREES(IMARGUMENT(L36)),'CM choke'!F40)=0, F35, IF(CMdata=1,DEGREES(IMARGUMENT(L36)),'CM choke'!F40)) -> 82.59752253 | G36: 74.99389306 | H36: 577.2255732 | I36: 74.99389306 | J36: 577.2255732 | K36: =IF(CMdata=1,IMDIV(1,IMSUM(IMDIV(1,IMPRODUCT(B36,'Design the AEF circuit'!$G$13*0.001)),IMDIV(1,'Design the AEF circuit'!$H$13*1000),IMPRODUCT(B36,'Design the AEF circuit'!$I$13*0.000000000001))),COMPLEX(G36,H36,"j")) -> 74,9938930558081+577,225573193404j | L36: =IF(CMdata=1,IMDIV(1,IMSUM(IMDIV(1,IMPRODUCT(B36,'Design the AEF circuit'!$G$14*0.001)),IMDIV(1,'Design the AEF circuit'!$H$14*1000),IMPRODUCT(B36,'Design the AEF circuit'!$I$14*0.000000000001))),COMPLEX(I36,J36,"j")) -> 74,9938930558081+577,225573193404j
A37: ='Frequency vector'!G37 -> 2459.260859 | B37: =COMPLEX(0,2*PI()*'Frequency vector'!G37,"j") -> 15451,9916952555j | C37: =IF(IF(CMdata=1,IMABS(K37),'CM choke'!C41)=0, C36, IF(CMdata=1,IMABS(K37),'CM choke'!C41)) -> 597.3420744 | D37: =IF(IF(CMdata=1,DEGREES(IMARGUMENT(K37)),'CM choke'!D41)=0, D36, IF(CMdata=1,DEGREES(IMARGUMENT(K37)),'CM choke'!D41)) -> 82.40264658 | E37: =IF(IF(CMdata=1,IMABS(L37),'CM choke'!E41)=0, E36, IF(CMdata=1,IMABS(L37),'CM choke'!E41)) -> 597.3420744 | F37: =IF(IF(CMdata=1,DEGREES(IMARGUMENT(L37)),'CM choke'!F41)=0, F36, IF(CMdata=1,DEGREES(IMARGUMENT(L37)),'CM choke'!F41)) -> 82.40264658 | G37: 78.97495669 | H37: 592.0983956 | I37: 78.97495669 | J37: 592.0983956 | K37: =IF(CMdata=1,IMDIV(1,IMSUM(IMDIV(1,IMPRODUCT(B37,'Design the AEF circuit'!$G$13*0.001)),IMDIV(1,'Design the AEF circuit'!$H$13*1000),IMPRODUCT(B37,'Design the AEF circuit'!$I$13*0.000000000001))),COMPLEX(G37,H37,"j")) -> 78,9749566927158+592,098395607702j | L37: =IF(CMdata=1,IMDIV(1,IMSUM(IMDIV(1,IMPRODUCT(B37,'Design the AEF circuit'!$G$14*0.001)),IMDIV(1,'Design the AEF circuit'!$H$14*1000),IMPRODUCT(B37,'Design the AEF circuit'!$I$14*0.000000000001))),COMPLEX(I37,J37,"j")) -> 78,9749566927158+592,098395607702j
A38: ='Frequency vector'!G38 -> 2525.21785 | B38: =COMPLEX(0,2*PI()*'Frequency vector'!G38,"j") -> 15866,4116930013j | C38: =IF(IF(CMdata=1,IMABS(K38),'CM choke'!C42)=0, C37, IF(CMdata=1,IMABS(K38),'CM choke'!C42)) -> 612.9888449 | D38: =IF(IF(CMdata=1,DEGREES(IMARGUMENT(K38)),'CM choke'!D42)=0, D37, IF(CMdata=1,DEGREES(IMARGUMENT(K38)),'CM choke'!D42)) -> 82.20282952 | E38: =IF(IF(CMdata=1,IMABS(L38),'CM choke'!E42)=0, E37, IF(CMdata=1,IMABS(L38),'CM choke'!E42)) -> 612.9888449 | F38: =IF(IF(CMdata=1,DEGREES(IMARGUMENT(L38)),'CM choke'!F42)=0, F37, IF(CMdata=1,DEGREES(IMARGUMENT(L38)),'CM choke'!F42)) -> 82.20282952 | G38: 83.16213987 | H38: 607.321482 | I38: 83.16213987 | J38: 607.321482 | K38: =IF(CMdata=1,IMDIV(1,IMSUM(IMDIV(1,IMPRODUCT(B38,'Design the AEF circuit'!$G$13*0.001)),IMDIV(1,'Design the AEF circuit'!$H$13*1000),IMPRODUCT(B38,'Design the AEF circuit'!$I$13*0.000000000001))),COMPLEX(G38,H38,"j")) -> 83,1621398727884+607,321481973192j | L38: =IF(CMdata=1,IMDIV(1,IMSUM(IMDIV(1,IMPRODUCT(B38,'Design the AEF circuit'!$G$14*0.001)),IMDIV(1,'Design the AEF circuit'!$H$14*1000),IMPRODUCT(B38,'Design the AEF circuit'!$I$14*0.000000000001))),COMPLEX(I38,J38,"j")) -> 83,1621398727884+607,321481973192j
A39: ='Frequency vector'!G39 -> 2592.943797 | B39: =COMPLEX(0,2*PI()*'Frequency vector'!G39,"j") -> 16291,9463701955j | C39: =IF(IF(CMdata=1,IMABS(K39),'CM choke'!C43)=0, C38, IF(CMdata=1,IMABS(K39),'CM choke'!C43)) -> 629.0251778 | D39: =IF(IF(CMdata=1,DEGREES(IMARGUMENT(K39)),'CM choke'!D43)=0, D38, IF(CMdata=1,DEGREES(IMARGUMENT(K39)),'CM choke'!D43)) -> 81.99796189 | E39: =IF(IF(CMdata=1,IMABS(L39),'CM choke'!E43)=0, E38, IF(CMdata=1,IMABS(L39),'CM choke'!E43)) -> 629.0251778 | F39: =IF(IF(CMdata=1,DEGREES(IMARGUMENT(L39)),'CM choke'!F43)=0, F38, IF(CMdata=1,DEGREES(IMARGUMENT(L39)),'CM choke'!F43)) -> 81.99796189 | G39: 87.56554226 | H39: 622.9004336 | I39: 87.56554226 | J39: 622.9004336 | K39: =IF(CMdata=1,IMDIV(1,IMSUM(IMDIV(1,IMPRODUCT(B39,'Design the AEF circuit'!$G$13*0.001)),IMDIV(1,'Design the AEF circuit'!$H$13*1000),IMPRODUCT(B39,'Design the AEF circuit'!$I$13*0.000000000001))),COMPLEX(G39,H39,"j")) -> 87,565542259434+622,900433559748j | L39: =IF(CMdata=1,IMDIV(1,IMSUM(IMDIV(1,IMPRODUCT(B39,'Design the AEF circuit'!$G$14*0.001)),IMDIV(1,'Design the AEF circuit'!$H$14*1000),IMPRODUCT(B39,'Design the AEF circuit'!$I$14*0.000000000001))),COMPLEX(I39,J39,"j")) -> 87,565542259434+622,900433559748j
A40: ='Frequency vector'!G40 -> 2662.486144 | B40: =COMPLEX(0,2*PI()*'Frequency vector'!G40,"j") -> 16728,8938208005j | C40: =IF(IF(CMdata=1,IMABS(K40),'CM choke'!C44)=0, C39, IF(CMdata=1,IMABS(K40),'CM choke'!C44)) -> 645.4591471 | D40: =IF(IF(CMdata=1,DEGREES(IMARGUMENT(K40)),'CM choke'!D44)=0, D39, IF(CMdata=1,DEGREES(IMARGUMENT(K40)),'CM choke'!D44)) -> 81.78793309 | E40: =IF(IF(CMdata=1,IMABS(L40),'CM choke'!E44)=0, E39, IF(CMdata=1,IMABS(L40),'CM choke'!E44)) -> 645.4591471 | F40: =IF(IF(CMdata=1,DEGREES(IMARGUMENT(L40)),'CM choke'!F44)=0, F39, IF(CMdata=1,DEGREES(IMARGUMENT(L40)),'CM choke'!F44)) -> 81.78793309 | G40: 92.19569645 | H40: 638.8407189 | I40: 92.19569645 | J40: 638.8407189 | K40: =IF(CMdata=1,IMDIV(1,IMSUM(IMDIV(1,IMPRODUCT(B40,'Design the AEF circuit'!$G$13*0.001)),IMDIV(1,'Design the AEF circuit'!$H$13*1000),IMPRODUCT(B40,'Design the AEF circuit'!$I$13*0.000000000001))),COMPLEX(G40,H40,"j")) -> 92,1956964495165+638,840718891958j | L40: =IF(CMdata=1,IMDIV(1,IMSUM(IMDIV(1,IMPRODUCT(B40,'Design the AEF circuit'!$G$14*0.001)),IMDIV(1,'Design the AEF circuit'!$H$14*1000),IMPRODUCT(B40,'Design the AEF circuit'!$I$14*0.000000000001))),COMPLEX(I40,J40,"j")) -> 92,1956964495165+638,840718891958j
A41: ='Frequency vector'!G41 -> 2733.893606 | B41: =COMPLEX(0,2*PI()*'Frequency vector'!G41,"j") -> 17177,5601336121j | C41: =IF(IF(CMdata=1,IMABS(K41),'CM choke'!C45)=0, C40, IF(CMdata=1,IMABS(K41),'CM choke'!C45)) -> 662.2988622 | D41: =IF(IF(CMdata=1,DEGREES(IMARGUMENT(K41)),'CM choke'!D45)=0, D40, IF(CMdata=1,DEGREES(IMARGUMENT(K41)),'CM choke'!D45)) -> 81.57263146 | E41: =IF(IF(CMdata=1,IMABS(L41),'CM choke'!E45)=0, E40, IF(CMdata=1,IMABS(L41),'CM choke'!E45)) -> 662.2988622 | F41: =IF(IF(CMdata=1,DEGREES(IMARGUMENT(L41)),'CM choke'!F45)=0, F40, IF(CMdata=1,DEGREES(IMARGUMENT(L41)),'CM choke'!F45)) -> 81.57263146 | G41: 97.06357974 | H41: 655.1476508 | I41: 97.06357974 | J41: 655.1476508 | K41: =IF(CMdata=1,IMDIV(1,IMSUM(IMDIV(1,IMPRODUCT(B41,'Design the AEF circuit'!$G$13*0.001)),IMDIV(1,'Design the AEF circuit'!$H$13*1000),IMPRODUCT(B41,'Design the AEF circuit'!$I$13*0.000000000001))),COMPLEX(G41,H41,"j")) -> 97,0635797395655+655,147650835709j | L41: =IF(CMdata=1,IMDIV(1,IMSUM(IMDIV(1,IMPRODUCT(B41,'Design the AEF circuit'!$G$14*0.001)),IMDIV(1,'Design the AEF circuit'!$H$14*1000),IMPRODUCT(B41,'Design the AEF circuit'!$I$14*0.000000000001))),COMPLEX(I41,J41,"j")) -> 97,0635797395655+655,147650835709j
A42: ='Frequency vector'!G42 -> 2807.216204 | B42: =COMPLEX(0,2*PI()*'Frequency vector'!G42,"j") -> 17638,2596066797j | C42: =IF(IF(CMdata=1,IMABS(K42),'CM choke'!C46)=0, C41, IF(CMdata=1,IMABS(K42),'CM choke'!C46)) -> 679.5524563 | D42: =IF(IF(CMdata=1,DEGREES(IMARGUMENT(K42)),'CM choke'!D46)=0, D41, IF(CMdata=1,DEGREES(IMARGUMENT(K42)),'CM choke'!D46)) -> 81.35194442 | E42: =IF(IF(CMdata=1,IMABS(L42),'CM choke'!E46)=0, E41, IF(CMdata=1,IMABS(L42),'CM choke'!E46)) -> 679.5524563 | F42: =IF(IF(CMdata=1,DEGREES(IMARGUMENT(L42)),'CM choke'!F46)=0, F41, IF(CMdata=1,DEGREES(IMARGUMENT(L42)),'CM choke'!F46)) -> 81.35194442 | G42: 102.1806254 | H42: 671.826362 | I42: 102.1806254 | J42: 671.826362 | K42: =IF(CMdata=1,IMDIV(1,IMSUM(IMDIV(1,IMPRODUCT(B42,'Design the AEF circuit'!$G$13*0.001)),IMDIV(1,'Design the AEF circuit'!$H$13*1000),IMPRODUCT(B42,'Design the AEF circuit'!$I$13*0.000000000001))),COMPLEX(G42,H42,"j")) -> 102,180625409146+671,826361987796j | L42: =IF(CMdata=1,IMDIV(1,IMSUM(IMDIV(1,IMPRODUCT(B42,'Design the AEF circuit'!$G$14*0.001)),IMDIV(1,'Design the AEF circuit'!$H$14*1000),IMPRODUCT(B42,'Design the AEF circuit'!$I$14*0.000000000001))),COMPLEX(I42,J42,"j")) -> 102,180625409146+671,826361987796j
A43: ='Frequency vector'!G43 -> 2882.505303 | B43: =COMPLEX(0,2*PI()*'Frequency vector'!G43,"j") -> 18111,3149674773j | C43: =IF(IF(CMdata=1,IMABS(K43),'CM choke'!C47)=0, C42, IF(CMdata=1,IMABS(K43),'CM choke'!C47)) -> 697.2280729 | D43: =IF(IF(CMdata=1,DEGREES(IMARGUMENT(K43)),'CM choke'!D47)=0, D42, IF(CMdata=1,DEGREES(IMARGUMENT(K43)),'CM choke'!D47)) -> 81.12575858 | E43: =IF(IF(CMdata=1,IMABS(L43),'CM choke'!E47)=0, E42, IF(CMdata=1,IMABS(L43),'CM choke'!E47)) -> 697.2280729 | F43: =IF(IF(CMdata=1,DEGREES(IMARGUMENT(L43)),'CM choke'!F47)=0, F42, IF(CMdata=1,DEGREES(IMARGUMENT(L43)),'CM choke'!F47)) -> 81.12575858 | G43: 107.5587334 | H43: 688.8817783 | I43: 107.5587334 | J43: 688.8817783 | K43: =IF(CMdata=1,IMDIV(1,IMSUM(IMDIV(1,IMPRODUCT(B43,'Design the AEF circuit'!$G$13*0.001)),IMDIV(1,'Design the AEF circuit'!$H$13*1000),IMPRODUCT(B43,'Design the AEF circuit'!$I$13*0.000000000001))),COMPLEX(G43,H43,"j")) -> 107,558733399735+688,881778296471j | L43: =IF(CMdata=1,IMDIV(1,IMSUM(IMDIV(1,IMPRODUCT(B43,'Design the AEF circuit'!$G$14*0.001)),IMDIV(1,'Design the AEF circuit'!$H$14*1000),IMPRODUCT(B43,'Design the AEF circuit'!$I$14*0.000000000001))),COMPLEX(I43,J43,"j")) -> 107,558733399735+688,881778296471j
A44: ='Frequency vector'!G44 -> 2959.813644 | B44: =COMPLEX(0,2*PI()*'Frequency vector'!G44,"j") -> 18597,0575989789j | C44: =IF(IF(CMdata=1,IMABS(K44),'CM choke'!C48)=0, C43, IF(CMdata=1,IMABS(K44),'CM choke'!C48)) -> 715.3338517 | D44: =IF(IF(CMdata=1,DEGREES(IMARGUMENT(K44)),'CM choke'!D48)=0, D43, IF(CMdata=1,DEGREES(IMARGUMENT(K44)),'CM choke'!D48)) -> 80.89395987 | E44: =IF(IF(CMdata=1,IMABS(L44),'CM choke'!E48)=0, E43, IF(CMdata=1,IMABS(L44),'CM choke'!E48)) -> 715.3338517 | F44: =IF(IF(CMdata=1,DEGREES(IMARGUMENT(L44)),'CM choke'!F48)=0, F43, IF(CMdata=1,DEGREES(IMARGUMENT(L44)),'CM choke'!F48)) -> 80.89395987 | G44: 113.2102803 | H44: 706.3185908 | I44: 113.2102803 | J44: 706.3185908 | K44: =IF(CMdata=1,IMDIV(1,IMSUM(IMDIV(1,IMPRODUCT(B44,'Design the AEF circuit'!$G$13*0.001)),IMDIV(1,'Design the AEF circuit'!$H$13*1000),IMPRODUCT(B44,'Design the AEF circuit'!$I$13*0.000000000001))),COMPLEX(G44,H44,"j")) -> 113,210280254613+706,318590844119j | L44: =IF(CMdata=1,IMDIV(1,IMSUM(IMDIV(1,IMPRODUCT(B44,'Design the AEF circuit'!$G$14*0.001)),IMDIV(1,'Design the AEF circuit'!$H$14*1000),IMPRODUCT(B44,'Design the AEF circuit'!$I$14*0.000000000001))),COMPLEX(I44,J44,"j")) -> 113,210280254613+706,318590844119j
A45: ='Frequency vector'!G45 -> 3039.195382 | B45: =COMPLEX(0,2*PI()*'Frequency vector'!G45,"j") -> 19095,8277717984j | C45: =IF(IF(CMdata=1,IMABS(K45),'CM choke'!C49)=0, C44, IF(CMdata=1,IMABS(K45),'CM choke'!C49)) -> 733.877913 | D45: =IF(IF(CMdata=1,DEGREES(IMARGUMENT(K45)),'CM choke'!D49)=0, D44, IF(CMdata=1,DEGREES(IMARGUMENT(K45)),'CM choke'!D49)) -> 80.65643373 | E45: =IF(IF(CMdata=1,IMABS(L45),'CM choke'!E49)=0, E44, IF(CMdata=1,IMABS(L45),'CM choke'!E49)) -> 733.877913 | F45: =IF(IF(CMdata=1,DEGREES(IMARGUMENT(L45)),'CM choke'!F49)=0, F44, IF(CMdata=1,DEGREES(IMARGUMENT(L45)),'CM choke'!F49)) -> 80.65643373 | G45: 119.1481282 | H45: 724.1412257 | I45: 119.1481282 | J45: 724.1412257 | K45: =IF(CMdata=1,IMDIV(1,IMSUM(IMDIV(1,IMPRODUCT(B45,'Design the AEF circuit'!$G$13*0.001)),IMDIV(1,'Design the AEF circuit'!$H$13*1000),IMPRODUCT(B45,'Design the AEF circuit'!$I$13*0.000000000001))),COMPLEX(G45,H45,"j")) -> 119,14812817173+724,141225727035j | L45: =IF(CMdata=1,IMDIV(1,IMSUM(IMDIV(1,IMPRODUCT(B45,'Design the AEF circuit'!$G$14*0.001)),IMDIV(1,'Design the AEF circuit'!$H$14*1000),IMPRODUCT(B45,'Design the AEF circuit'!$I$14*0.000000000001))),COMPLEX(I45,J45,"j")) -> 119,14812817173+724,141225727035j
A46: ='Frequency vector'!G46 -> 3120.706127 | B46: =COMPLEX(0,2*PI()*'Frequency vector'!G46,"j") -> 19607,9748825538j | C46: =IF(IF(CMdata=1,IMABS(K46),'CM choke'!C50)=0, C45, IF(CMdata=1,IMABS(K46),'CM choke'!C50)) -> 752.8683412 | D46: =IF(IF(CMdata=1,DEGREES(IMARGUMENT(K46)),'CM choke'!D50)=0, D45, IF(CMdata=1,DEGREES(IMARGUMENT(K46)),'CM choke'!D50)) -> 80.41306523 | E46: =IF(IF(CMdata=1,IMABS(L46),'CM choke'!E50)=0, E45, IF(CMdata=1,IMABS(L46),'CM choke'!E50)) -> 752.8683412 | F46: =IF(IF(CMdata=1,DEGREES(IMARGUMENT(L46)),'CM choke'!F50)=0, F45, IF(CMdata=1,DEGREES(IMARGUMENT(L46)),'CM choke'!F50)) -> 80.41306523 | G46: 125.385633 | H46: 742.353812 | I46: 125.385633 | J46: 742.353812 | K46: =IF(CMdata=1,IMDIV(1,IMSUM(IMDIV(1,IMPRODUCT(B46,'Design the AEF circuit'!$G$13*0.001)),IMDIV(1,'Design the AEF circuit'!$H$13*1000),IMPRODUCT(B46,'Design the AEF circuit'!$I$13*0.000000000001))),COMPLEX(G46,H46,"j")) -> 125,385633007219+742,353811972867j | L46: =IF(CMdata=1,IMDIV(1,IMSUM(IMDIV(1,IMPRODUCT(B46,'Design the AEF circuit'!$G$14*0.001)),IMDIV(1,'Design the AEF circuit'!$H$14*1000),IMPRODUCT(B46,'Design the AEF circuit'!$I$14*0.000000000001))),COMPLEX(I46,J46,"j")) -> 125,385633007219+742,353811972867j
A47: ='Frequency vector'!G47 -> 3204.402976 | B47: =COMPLEX(0,2*PI()*'Frequency vector'!G47,"j") -> 20133,8576986263j | C47: =IF(IF(CMdata=1,IMABS(K47),'CM choke'!C51)=0, C46, IF(CMdata=1,IMABS(K47),'CM choke'!C51)) -> 772.3131657 | D47: =IF(IF(CMdata=1,DEGREES(IMARGUMENT(K47)),'CM choke'!D51)=0, D46, IF(CMdata=1,DEGREES(IMARGUMENT(K47)),'CM choke'!D51)) -> 80.16373932 | E47: =IF(IF(CMdata=1,IMABS(L47),'CM choke'!E51)=0, E46, IF(CMdata=1,IMABS(L47),'CM choke'!E51)) -> 772.3131657 | F47: =IF(IF(CMdata=1,DEGREES(IMARGUMENT(L47)),'CM choke'!F51)=0, F46, IF(CMdata=1,DEGREES(IMARGUMENT(L47)),'CM choke'!F51)) -> 80.16373932 | G47: 131.9366511 | H47: 760.9601474 | I47: 131.9366511 | J47: 760.9601474 | K47: =IF(CMdata=1,IMDIV(1,IMSUM(IMDIV(1,IMPRODUCT(B47,'Design the AEF circuit'!$G$13*0.001)),IMDIV(1,'Design the AEF circuit'!$H$13*1000),IMPRODUCT(B47,'Design the AEF circuit'!$I$13*0.000000000001))),COMPLEX(G47,H47,"j")) -> 131,936651052255+760,960147443106j | L47: =IF(CMdata=1,IMDIV(1,IMSUM(IMDIV(1,IMPRODUCT(B47,'Design the AEF circuit'!$G$14*0.001)),IMDIV(1,'Design the AEF circuit'!$H$14*1000),IMPRODUCT(B47,'Design the AEF circuit'!$I$14*0.000000000001))),COMPLEX(I47,J47,"j")) -> 131,936651052255+760,960147443106j
A48: ='Frequency vector'!G48 -> 3290.344562 | B48: =COMPLEX(0,2*PI()*'Frequency vector'!G48,"j") -> 20673,8446094813j | C48: =IF(IF(CMdata=1,IMABS(K48),'CM choke'!C52)=0, C47, IF(CMdata=1,IMABS(K48),'CM choke'!C52)) -> 792.2203421 | D48: =IF(IF(CMdata=1,DEGREES(IMARGUMENT(K48)),'CM choke'!D52)=0, D47, IF(CMdata=1,DEGREES(IMARGUMENT(K48)),'CM choke'!D52)) -> 79.90834095 | E48: =IF(IF(CMdata=1,IMABS(L48),'CM choke'!E52)=0, E47, IF(CMdata=1,IMABS(L48),'CM choke'!E52)) -> 792.2203421 | F48: =IF(IF(CMdata=1,DEGREES(IMARGUMENT(L48)),'CM choke'!F52)=0, F47, IF(CMdata=1,DEGREES(IMARGUMENT(L48)),'CM choke'!F52)) -> 79.90834095 | G48: 138.8155444 | H48: 779.9636627 | I48: 138.8155444 | J48: 779.9636627 | K48: =IF(CMdata=1,IMDIV(1,IMSUM(IMDIV(1,IMPRODUCT(B48,'Design the AEF circuit'!$G$13*0.001)),IMDIV(1,'Design the AEF circuit'!$H$13*1000),IMPRODUCT(B48,'Design the AEF circuit'!$I$13*0.000000000001))),COMPLEX(G48,H48,"j")) -> 138,815544390386+779,963662676607j | L48: =IF(CMdata=1,IMDIV(1,IMSUM(IMDIV(1,IMPRODUCT(B48,'Design the AEF circuit'!$G$14*0.001)),IMDIV(1,'Design the AEF circuit'!$H$14*1000),IMPRODUCT(B48,'Design the AEF circuit'!$I$14*0.000000000001))),COMPLEX(I48,J48,"j")) -> 138,815544390386+779,963662676607j
A49: ='Frequency vector'!G49 -> 3378.591088 | B49: =COMPLEX(0,2*PI()*'Frequency vector'!G49,"j") -> 21228,3138847326j | C49: =IF(IF(CMdata=1,IMABS(K49),'CM choke'!C53)=0, C48, IF(CMdata=1,IMABS(K49),'CM choke'!C53)) -> 812.5977306 | D49: =IF(IF(CMdata=1,DEGREES(IMARGUMENT(K49)),'CM choke'!D53)=0, D48, IF(CMdata=1,DEGREES(IMARGUMENT(K49)),'CM choke'!D53)) -> 79.64675537 | E49: =IF(IF(CMdata=1,IMABS(L49),'CM choke'!E53)=0, E48, IF(CMdata=1,IMABS(L49),'CM choke'!E53)) -> 812.5977306 | F49: =IF(IF(CMdata=1,DEGREES(IMARGUMENT(L49)),'CM choke'!F53)=0, F48, IF(CMdata=1,DEGREES(IMARGUMENT(L49)),'CM choke'!F53)) -> 79.64675537 | G49: 146.0371846 | H49: 799.3673826 | I49: 146.0371846 | J49: 799.3673826 | K49: =IF(CMdata=1,IMDIV(1,IMSUM(IMDIV(1,IMPRODUCT(B49,'Design the AEF circuit'!$G$13*0.001)),IMDIV(1,'Design the AEF circuit'!$H$13*1000),IMPRODUCT(B49,'Design the AEF circuit'!$I$13*0.000000000001))),COMPLEX(G49,H49,"j")) -> 146,037184626363+799,367382640434j | L49: =IF(CMdata=1,IMDIV(1,IMSUM(IMDIV(1,IMPRODUCT(B49,'Design the AEF circuit'!$G$14*0.001)),IMDIV(1,'Design the AEF circuit'!$H$14*1000),IMPRODUCT(B49,'Design the AEF circuit'!$I$14*0.000000000001))),COMPLEX(I49,J49,"j")) -> 146,037184626363+799,367382640434j
A50: ='Frequency vector'!G50 -> 3469.204372 | B50: =COMPLEX(0,2*PI()*'Frequency vector'!G50,"j") -> 21797,6539391257j | C50: =IF(IF(CMdata=1,IMABS(K50),'CM choke'!C54)=0, C49, IF(CMdata=1,IMABS(K50),'CM choke'!C54)) -> 833.453073 | D50: =IF(IF(CMdata=1,DEGREES(IMARGUMENT(K50)),'CM choke'!D54)=0, D49, IF(CMdata=1,DEGREES(IMARGUMENT(K50)),'CM choke'!D54)) -> 79.3788683 | E50: =IF(IF(CMdata=1,IMABS(L50),'CM choke'!E54)=0, E49, IF(CMdata=1,IMABS(L50),'CM choke'!E54)) -> 833.453073 | F50: =IF(IF(CMdata=1,DEGREES(IMARGUMENT(L50)),'CM choke'!F54)=0, F49, IF(CMdata=1,DEGREES(IMARGUMENT(L50)),'CM choke'!F54)) -> 79.3788683 | G50: 153.6169548 | H50: 819.1738864 | I50: 153.6169548 | J50: 819.1738864 | K50: =IF(CMdata=1,IMDIV(1,IMSUM(IMDIV(1,IMPRODUCT(B50,'Design the AEF circuit'!$G$13*0.001)),IMDIV(1,'Design the AEF circuit'!$H$13*1000),IMPRODUCT(B50,'Design the AEF circuit'!$I$13*0.000000000001))),COMPLEX(G50,H50,"j")) -> 153,616954760925+819,173886367036j | L50: =IF(CMdata=1,IMDIV(1,IMSUM(IMDIV(1,IMPRODUCT(B50,'Design the AEF circuit'!$G$14*0.001)),IMDIV(1,'Design the AEF circuit'!$H$14*1000),IMPRODUCT(B50,'Design the AEF circuit'!$I$14*0.000000000001))),COMPLEX(I50,J50,"j")) -> 153,616954760925+819,173886367036j
A51: ='Frequency vector'!G51 -> 3562.24789 | B51: =COMPLEX(0,2*PI()*'Frequency vector'!G51,"j") -> 22382,2636046285j | C51: =IF(IF(CMdata=1,IMABS(K51),'CM choke'!C55)=0, C50, IF(CMdata=1,IMABS(K51),'CM choke'!C55)) -> 854.7939688 | D51: =IF(IF(CMdata=1,DEGREES(IMARGUMENT(K51)),'CM choke'!D55)=0, D50, IF(CMdata=1,DEGREES(IMARGUMENT(K51)),'CM choke'!D55)) -> 79.10456625 | E51: =IF(IF(CMdata=1,IMABS(L51),'CM choke'!E55)=0, E50, IF(CMdata=1,IMABS(L51),'CM choke'!E55)) -> 854.7939688 | F51: =IF(IF(CMdata=1,DEGREES(IMARGUMENT(L51)),'CM choke'!F55)=0, F50, IF(CMdata=1,DEGREES(IMARGUMENT(L51)),'CM choke'!F55)) -> 79.10456625 | G51: 161.570749 | H51: 839.3852645 | I51: 161.570749 | J51: 839.3852645 | K51: =IF(CMdata=1,IMDIV(1,IMSUM(IMDIV(1,IMPRODUCT(B51,'Design the AEF circuit'!$G$13*0.001)),IMDIV(1,'Design the AEF circuit'!$H$13*1000),IMPRODUCT(B51,'Design the AEF circuit'!$I$13*0.000000000001))),COMPLEX(G51,H51,"j")) -> 161,570748969315+839,385264471146j | L51: =IF(CMdata=1,IMDIV(1,IMSUM(IMDIV(1,IMPRODUCT(B51,'Design the AEF circuit'!$G$14*0.001)),IMDIV(1,'Design the AEF circuit'!$H$14*1000),IMPRODUCT(B51,'Design the AEF circuit'!$I$14*0.000000000001))),COMPLEX(I51,J51,"j")) -> 161,570748969315+839,385264471146j
A52: ='Frequency vector'!G52 -> 3657.786821 | B52: =COMPLEX(0,2*PI()*'Frequency vector'!G52,"j") -> 22982,5524098202j | C52: =IF(IF(CMdata=1,IMABS(K52),'CM choke'!C56)=0, C51, IF(CMdata=1,IMABS(K52),'CM choke'!C56)) -> 876.6278488 | D52: =IF(IF(CMdata=1,DEGREES(IMARGUMENT(K52)),'CM choke'!D56)=0, D51, IF(CMdata=1,DEGREES(IMARGUMENT(K52)),'CM choke'!D56)) -> 78.82373676 | E52: =IF(IF(CMdata=1,IMABS(L52),'CM choke'!E56)=0, E51, IF(CMdata=1,IMABS(L52),'CM choke'!E56)) -> 876.6278488 | F52: =IF(IF(CMdata=1,DEGREES(IMARGUMENT(L52)),'CM choke'!F56)=0, F51, IF(CMdata=1,DEGREES(IMARGUMENT(L52)),'CM choke'!F56)) -> 78.82373676 | G52: 169.91497 | H52: 860.0030746 | I52: 169.91497 | J52: 860.0030746 | K52: =IF(CMdata=1,IMDIV(1,IMSUM(IMDIV(1,IMPRODUCT(B52,'Design the AEF circuit'!$G$13*0.001)),IMDIV(1,'Design the AEF circuit'!$H$13*1000),IMPRODUCT(B52,'Design the AEF circuit'!$I$13*0.000000000001))),COMPLEX(G52,H52,"j")) -> 169,914970024379+860,003074557325j | L52: =IF(CMdata=1,IMDIV(1,IMSUM(IMDIV(1,IMPRODUCT(B52,'Design the AEF circuit'!$G$14*0.001)),IMDIV(1,'Design the AEF circuit'!$H$14*1000),IMPRODUCT(B52,'Design the AEF circuit'!$I$14*0.000000000001))),COMPLEX(I52,J52,"j")) -> 169,914970024379+860,003074557325j
A53: ='Frequency vector'!G53 -> 3755.888091 | B53: =COMPLEX(0,2*PI()*'Frequency vector'!G53,"j") -> 23598,9408667719j | C53: =IF(IF(CMdata=1,IMABS(K53),'CM choke'!C57)=0, C52, IF(CMdata=1,IMABS(K53),'CM choke'!C57)) -> 898.9619473 | D53: =IF(IF(CMdata=1,DEGREES(IMARGUMENT(K53)),'CM choke'!D57)=0, D52, IF(CMdata=1,DEGREES(IMARGUMENT(K53)),'CM choke'!D57)) -> 78.53626871 | E53: =IF(IF(CMdata=1,IMABS(L53),'CM choke'!E57)=0, E52, IF(CMdata=1,IMABS(L53),'CM choke'!E57)) -> 898.9619473 | F53: =IF(IF(CMdata=1,DEGREES(IMARGUMENT(L53)),'CM choke'!F57)=0, F52, IF(CMdata=1,DEGREES(IMARGUMENT(L53)),'CM choke'!F57)) -> 78.53626871 | G53: 178.6665241 | H53: 881.0282945 | I53: 178.6665241 | J53: 881.0282945 | K53: =IF(CMdata=1,IMDIV(1,IMSUM(IMDIV(1,IMPRODUCT(B53,'Design the AEF circuit'!$G$13*0.001)),IMDIV(1,'Design the AEF circuit'!$H$13*1000),IMPRODUCT(B53,'Design the AEF circuit'!$I$13*0.000000000001))),COMPLEX(G53,H53,"j")) -> 178,666524088485+881,028294549008j | L53: =IF(CMdata=1,IMDIV(1,IMSUM(IMDIV(1,IMPRODUCT(B53,'Design the AEF circuit'!$G$14*0.001)),IMDIV(1,'Design the AEF circuit'!$H$14*1000),IMPRODUCT(B53,'Design the AEF circuit'!$I$14*0.000000000001))),COMPLEX(I53,J53,"j")) -> 178,666524088485+881,028294549008j
A54: ='Frequency vector'!G54 -> 3856.620421 | B54: =COMPLEX(0,2*PI()*'Frequency vector'!G54,"j") -> 24231,8607656231j | C54: =IF(IF(CMdata=1,IMABS(K54),'CM choke'!C58)=0, C53, IF(CMdata=1,IMABS(K54),'CM choke'!C58)) -> 921.8032726 | D54: =IF(IF(CMdata=1,DEGREES(IMARGUMENT(K54)),'CM choke'!D58)=0, D53, IF(CMdata=1,DEGREES(IMARGUMENT(K54)),'CM choke'!D58)) -> 78.24205265 | E54: =IF(IF(CMdata=1,IMABS(L54),'CM choke'!E58)=0, E53, IF(CMdata=1,IMABS(L54),'CM choke'!E58)) -> 921.8032726 | F54: =IF(IF(CMdata=1,DEGREES(IMARGUMENT(L54)),'CM choke'!F58)=0, F53, IF(CMdata=1,DEGREES(IMARGUMENT(L54)),'CM choke'!F58)) -> 78.24205265 | G54: 187.8428126 | H54: 902.461274 | I54: 187.8428126 | J54: 902.461274 | K54: =IF(CMdata=1,IMDIV(1,IMSUM(IMDIV(1,IMPRODUCT(B54,'Design the AEF circuit'!$G$13*0.001)),IMDIV(1,'Design the AEF circuit'!$H$13*1000),IMPRODUCT(B54,'Design the AEF circuit'!$I$13*0.000000000001))),COMPLEX(G54,H54,"j")) -> 187,842812582123+902,46127399233j | L54: =IF(CMdata=1,IMDIV(1,IMSUM(IMDIV(1,IMPRODUCT(B54,'Design the AEF circuit'!$G$14*0.001)),IMDIV(1,'Design the AEF circuit'!$H$14*1000),IMPRODUCT(B54,'Design the AEF circuit'!$I$14*0.000000000001))),COMPLEX(I54,J54,"j")) -> 187,842812582123+902,46127399233j
A55: ='Frequency vector'!G55 -> 3960.054377 | B55: =COMPLEX(0,2*PI()*'Frequency vector'!G55,"j") -> 24881,755477057j | C55: =IF(IF(CMdata=1,IMABS(K55),'CM choke'!C59)=0, C54, IF(CMdata=1,IMABS(K55),'CM choke'!C59)) -> 945.1585757 | D55: =IF(IF(CMdata=1,DEGREES(IMARGUMENT(K55)),'CM choke'!D59)=0, D54, IF(CMdata=1,DEGREES(IMARGUMENT(K55)),'CM choke'!D59)) -> 77.94098114 | E55: =IF(IF(CMdata=1,IMABS(L55),'CM choke'!E59)=0, E54, IF(CMdata=1,IMABS(L55),'CM choke'!E59)) -> 945.1585757 | F55: =IF(IF(CMdata=1,DEGREES(IMARGUMENT(L55)),'CM choke'!F59)=0, F54, IF(CMdata=1,DEGREES(IMARGUMENT(L55)),'CM choke'!F59)) -> 77.94098114 | G55: 197.4617208 | H55: 924.3016834 | I55: 197.4617208 | J55: 924.3016834 | K55: =IF(CMdata=1,IMDIV(1,IMSUM(IMDIV(1,IMPRODUCT(B55,'Design the AEF circuit'!$G$13*0.001)),IMDIV(1,'Design the AEF circuit'!$H$13*1000),IMPRODUCT(B55,'Design the AEF circuit'!$I$13*0.000000000001))),COMPLEX(G55,H55,"j")) -> 197,461720821615+924,30168341472j | L55: =IF(CMdata=1,IMDIV(1,IMSUM(IMDIV(1,IMPRODUCT(B55,'Design the AEF circuit'!$G$14*0.001)),IMDIV(1,'Design the AEF circuit'!$H$14*1000),IMPRODUCT(B55,'Design the AEF circuit'!$I$14*0.000000000001))),COMPLEX(I55,J55,"j")) -> 197,461720821615+924,30168341472j
A56: ='Frequency vector'!G56 -> 4066.262415 | B56: =COMPLEX(0,2*PI()*'Frequency vector'!G56,"j") -> 25549,0802628889j | C56: =IF(IF(CMdata=1,IMABS(K56),'CM choke'!C60)=0, C55, IF(CMdata=1,IMABS(K56),'CM choke'!C60)) -> 969.0343171 | D56: =IF(IF(CMdata=1,DEGREES(IMARGUMENT(K56)),'CM choke'!D60)=0, D55, IF(CMdata=1,DEGREES(IMARGUMENT(K56)),'CM choke'!D60)) -> 77.63294913 | E56: =IF(IF(CMdata=1,IMABS(L56),'CM choke'!E60)=0, E55, IF(CMdata=1,IMABS(L56),'CM choke'!E60)) -> 969.0343171 | F56: =IF(IF(CMdata=1,DEGREES(IMARGUMENT(L56)),'CM choke'!F60)=0, F55, IF(CMdata=1,DEGREES(IMARGUMENT(L56)),'CM choke'!F60)) -> 77.63294913 | G56: 207.5416031 | H56: 946.5484618 | I56: 207.5416031 | J56: 946.5484618 | K56: =IF(CMdata=1,IMDIV(1,IMSUM(IMDIV(1,IMPRODUCT(B56,'Design the AEF circuit'!$G$13*0.001)),IMDIV(1,'Design the AEF circuit'!$H$13*1000),IMPRODUCT(B56,'Design the AEF circuit'!$I$13*0.000000000001))),COMPLEX(G56,H56,"j")) -> 207,541603103773+946,54846184664j | L56: =IF(CMdata=1,IMDIV(1,IMSUM(IMDIV(1,IMPRODUCT(B56,'Design the AEF circuit'!$G$14*0.001)),IMDIV(1,'Design the AEF circuit'!$H$14*1000),IMPRODUCT(B56,'Design the AEF circuit'!$I$14*0.000000000001))),COMPLEX(I56,J56,"j")) -> 207,541603103773+946,54846184664j
A57: ='Frequency vector'!G57 -> 4175.318937 | B57: =COMPLEX(0,2*PI()*'Frequency vector'!G57,"j") -> 26234,3025949851j | C57: =IF(IF(CMdata=1,IMABS(K57),'CM choke'!C61)=0, C56, IF(CMdata=1,IMABS(K57),'CM choke'!C61)) -> 993.4366317 | D57: =IF(IF(CMdata=1,DEGREES(IMARGUMENT(K57)),'CM choke'!D61)=0, D56, IF(CMdata=1,DEGREES(IMARGUMENT(K57)),'CM choke'!D61)) -> 77.31785436 | E57: =IF(IF(CMdata=1,IMABS(L57),'CM choke'!E61)=0, E56, IF(CMdata=1,IMABS(L57),'CM choke'!E61)) -> 993.4366317 | F57: =IF(IF(CMdata=1,DEGREES(IMARGUMENT(L57)),'CM choke'!F61)=0, F56, IF(CMdata=1,DEGREES(IMARGUMENT(L57)),'CM choke'!F61)) -> 77.31785436 | G57: 218.1012639 | H57: 969.1997626 | I57: 218.1012639 | J57: 969.1997626 | K57: =IF(CMdata=1,IMDIV(1,IMSUM(IMDIV(1,IMPRODUCT(B57,'Design the AEF circuit'!$G$13*0.001)),IMDIV(1,'Design the AEF circuit'!$H$13*1000),IMPRODUCT(B57,'Design the AEF circuit'!$I$13*0.000000000001))),COMPLEX(G57,H57,"j")) -> 218,101263902449+969,199762648361j | L57: =IF(CMdata=1,IMDIV(1,IMSUM(IMDIV(1,IMPRODUCT(B57,'Design the AEF circuit'!$G$14*0.001)),IMDIV(1,'Design the AEF circuit'!$H$14*1000),IMPRODUCT(B57,'Design the AEF circuit'!$I$14*0.000000000001))),COMPLEX(I57,J57,"j")) -> 218,101263902449+969,199762648361j
A58: ='Frequency vector'!G58 -> 4287.300337 | B58: =COMPLEX(0,2*PI()*'Frequency vector'!G58,"j") -> 26937,9024827338j | C58: =IF(IF(CMdata=1,IMABS(K58),'CM choke'!C62)=0, C57, IF(CMdata=1,IMABS(K58),'CM choke'!C62)) -> 1018.371292 | D58: =IF(IF(CMdata=1,DEGREES(IMARGUMENT(K58)),'CM choke'!D62)=0, D57, IF(CMdata=1,DEGREES(IMARGUMENT(K58)),'CM choke'!D62)) -> 76.99559777 | E58: =IF(IF(CMdata=1,IMABS(L58),'CM choke'!E62)=0, E57, IF(CMdata=1,IMABS(L58),'CM choke'!E62)) -> 1018.371292 | F58: =IF(IF(CMdata=1,DEGREES(IMARGUMENT(L58)),'CM choke'!F62)=0, F57, IF(CMdata=1,DEGREES(IMARGUMENT(L58)),'CM choke'!F62)) -> 76.99559777 | G58: 229.1599348 | H58: 992.2528978 | I58: 229.1599348 | J58: 992.2528978 | K58: =IF(CMdata=1,IMDIV(1,IMSUM(IMDIV(1,IMPRODUCT(B58,'Design the AEF circuit'!$G$13*0.001)),IMDIV(1,'Design the AEF circuit'!$H$13*1000),IMPRODUCT(B58,'Design the AEF circuit'!$I$13*0.000000000001))),COMPLEX(G58,H58,"j")) -> 229,159934831007+992,252897819643j | L58: =IF(CMdata=1,IMDIV(1,IMSUM(IMDIV(1,IMPRODUCT(B58,'Design the AEF circuit'!$G$14*0.001)),IMDIV(1,'Design the AEF circuit'!$H$14*1000),IMPRODUCT(B58,'Design the AEF circuit'!$I$14*0.000000000001))),COMPLEX(I58,J58,"j")) -> 229,159934831007+992,252897819643j
A59: ='Frequency vector'!G59 -> 4402.28506 | B59: =COMPLEX(0,2*PI()*'Frequency vector'!G59,"j") -> 27660,3728093001j | C59: =IF(IF(CMdata=1,IMABS(K59),'CM choke'!C63)=0, C58, IF(CMdata=1,IMABS(K59),'CM choke'!C63)) -> 1043.843671 | D59: =IF(IF(CMdata=1,DEGREES(IMARGUMENT(K59)),'CM choke'!D63)=0, D58, IF(CMdata=1,DEGREES(IMARGUMENT(K59)),'CM choke'!D63)) -> 76.66608395 | E59: =IF(IF(CMdata=1,IMABS(L59),'CM choke'!E63)=0, E58, IF(CMdata=1,IMABS(L59),'CM choke'!E63)) -> 1043.843671 | F59: =IF(IF(CMdata=1,DEGREES(IMARGUMENT(L59)),'CM choke'!F63)=0, F58, IF(CMdata=1,DEGREES(IMARGUMENT(L59)),'CM choke'!F63)) -> 76.66608395 | G59: 240.737247 | H59: 1015.704281 | I59: 240.737247 | J59: 1015.704281 | K59: =IF(CMdata=1,IMDIV(1,IMSUM(IMDIV(1,IMPRODUCT(B59,'Design the AEF circuit'!$G$13*0.001)),IMDIV(1,'Design the AEF circuit'!$H$13*1000),IMPRODUCT(B59,'Design the AEF circuit'!$I$13*0.000000000001))),COMPLEX(G59,H59,"j")) -> 240,737247015975+1015,70428101008j | L59: =IF(CMdata=1,IMDIV(1,IMSUM(IMDIV(1,IMPRODUCT(B59,'Design the AEF circuit'!$G$14*0.001)),IMDIV(1,'Design the AEF circuit'!$H$14*1000),IMPRODUCT(B59,'Design the AEF circuit'!$I$14*0.000000000001))),COMPLEX(I59,J59,"j")) -> 240,737247015975+1015,70428101008j
A60: ='Frequency vector'!G60 -> 4520.353656 | B60: =COMPLEX(0,2*PI()*'Frequency vector'!G60,"j") -> 28402,2196768983j | C60: =IF(IF(CMdata=1,IMABS(K60),'CM choke'!C64)=0, C59, IF(CMdata=1,IMABS(K60),'CM choke'!C64)) -> 1069.858697 | D60: =IF(IF(CMdata=1,DEGREES(IMARGUMENT(K60)),'CM choke'!D64)=0, D59, IF(CMdata=1,DEGREES(IMARGUMENT(K60)),'CM choke'!D64)) -> 76.32922165 | E60: =IF(IF(CMdata=1,IMABS(L60),'CM choke'!E64)=0, E59, IF(CMdata=1,IMABS(L60),'CM choke'!E64)) -> 1069.858697 | F60: =IF(IF(CMdata=1,DEGREES(IMARGUMENT(L60)),'CM choke'!F64)=0, F59, IF(CMdata=1,DEGREES(IMARGUMENT(L60)),'CM choke'!F64)) -> 76.32922165 | G60: 252.8531985 | H60: 1039.549369 | I60: 252.8531985 | J60: 1039.549369 | K60: =IF(CMdata=1,IMDIV(1,IMSUM(IMDIV(1,IMPRODUCT(B60,'Design the AEF circuit'!$G$13*0.001)),IMDIV(1,'Design the AEF circuit'!$H$13*1000),IMPRODUCT(B60,'Design the AEF circuit'!$I$13*0.000000000001))),COMPLEX(G60,H60,"j")) -> 252,853198522164+1039,5493694924j | L60: =IF(CMdata=1,IMDIV(1,IMSUM(IMDIV(1,IMPRODUCT(B60,'Design the AEF circuit'!$G$14*0.001)),IMDIV(1,'Design the AEF circuit'!$H$14*1000),IMPRODUCT(B60,'Design the AEF circuit'!$I$14*0.000000000001))),COMPLEX(I60,J60,"j")) -> 252,853198522164+1039,5493694924j
A61: ='Frequency vector'!G61 -> 4641.588834 | B61: =COMPLEX(0,2*PI()*'Frequency vector'!G61,"j") -> 29163,9627613248j | C61: =IF(IF(CMdata=1,IMABS(K61),'CM choke'!C65)=0, C60, IF(CMdata=1,IMABS(K61),'CM choke'!C65)) -> 1096.420819 | D61: =IF(IF(CMdata=1,DEGREES(IMARGUMENT(K61)),'CM choke'!D65)=0, D60, IF(CMdata=1,DEGREES(IMARGUMENT(K61)),'CM choke'!D65)) -> 75.98492423 | E61: =IF(IF(CMdata=1,IMABS(L61),'CM choke'!E65)=0, E60, IF(CMdata=1,IMABS(L61),'CM choke'!E65)) -> 1096.420819 | F61: =IF(IF(CMdata=1,DEGREES(IMARGUMENT(L61)),'CM choke'!F65)=0, F60, IF(CMdata=1,DEGREES(IMARGUMENT(L61)),'CM choke'!F65)) -> 75.98492423 | G61: 265.5281165 | H61: 1063.782605 | I61: 265.5281165 | J61: 1063.782605 | K61: =IF(CMdata=1,IMDIV(1,IMSUM(IMDIV(1,IMPRODUCT(B61,'Design the AEF circuit'!$G$13*0.001)),IMDIV(1,'Design the AEF circuit'!$H$13*1000),IMPRODUCT(B61,'Design the AEF circuit'!$I$13*0.000000000001))),COMPLEX(G61,H61,"j")) -> 265,528116467484+1063,78260540768j | L61: =IF(CMdata=1,IMDIV(1,IMSUM(IMDIV(1,IMPRODUCT(B61,'Design the AEF circuit'!$G$14*0.001)),IMDIV(1,'Design the AEF circuit'!$H$14*1000),IMPRODUCT(B61,'Design the AEF circuit'!$I$14*0.000000000001))),COMPLEX(I61,J61,"j")) -> 265,528116467484+1063,78260540768j
A62: ='Frequency vector'!G62 -> 4766.075519 | B62: =COMPLEX(0,2*PI()*'Frequency vector'!G62,"j") -> 29946,1356759994j | C62: =IF(IF(CMdata=1,IMABS(K62),'CM choke'!C66)=0, C61, IF(CMdata=1,IMABS(K62),'CM choke'!C66)) -> 1123.533957 | D62: =IF(IF(CMdata=1,DEGREES(IMARGUMENT(K62)),'CM choke'!D66)=0, D61, IF(CMdata=1,DEGREES(IMARGUMENT(K62)),'CM choke'!D66)) -> 75.63311024 | E62: =IF(IF(CMdata=1,IMABS(L62),'CM choke'!E66)=0, E61, IF(CMdata=1,IMABS(L62),'CM choke'!E66)) -> 1123.533957 | F62: =IF(IF(CMdata=1,DEGREES(IMARGUMENT(L62)),'CM choke'!F66)=0, F61, IF(CMdata=1,DEGREES(IMARGUMENT(L62)),'CM choke'!F66)) -> 75.63311024 | G62: 278.7826135 | H62: 1088.397357 | I62: 278.7826135 | J62: 1088.397357 | K62: =IF(CMdata=1,IMDIV(1,IMSUM(IMDIV(1,IMPRODUCT(B62,'Design the AEF circuit'!$G$13*0.001)),IMDIV(1,'Design the AEF circuit'!$H$13*1000),IMPRODUCT(B62,'Design the AEF circuit'!$I$13*0.000000000001))),COMPLEX(G62,H62,"j")) -> 278,78261346874+1088,39735664355j | L62: =IF(CMdata=1,IMDIV(1,IMSUM(IMDIV(1,IMPRODUCT(B62,'Design the AEF circuit'!$G$14*0.001)),IMDIV(1,'Design the AEF circuit'!$H$14*1000),IMPRODUCT(B62,'Design the AEF circuit'!$I$14*0.000000000001))),COMPLEX(I62,J62,"j")) -> 278,78261346874+1088,39735664355j
A63: ='Frequency vector'!G63 -> 4893.900918 | B63: =COMPLEX(0,2*PI()*'Frequency vector'!G63,"j") -> 30749,2863457706j | C63: =IF(IF(CMdata=1,IMABS(K63),'CM choke'!C67)=0, C62, IF(CMdata=1,IMABS(K63),'CM choke'!C67)) -> 1151.201458 | D63: =IF(IF(CMdata=1,DEGREES(IMARGUMENT(K63)),'CM choke'!D67)=0, D62, IF(CMdata=1,DEGREES(IMARGUMENT(K63)),'CM choke'!D67)) -> 75.27370395 | E63: =IF(IF(CMdata=1,IMABS(L63),'CM choke'!E67)=0, E62, IF(CMdata=1,IMABS(L63),'CM choke'!E67)) -> 1151.201458 | F63: =IF(IF(CMdata=1,DEGREES(IMARGUMENT(L63)),'CM choke'!F67)=0, F62, IF(CMdata=1,DEGREES(IMARGUMENT(L63)),'CM choke'!F67)) -> 75.27370395 | G63: 292.6375381 | H63: 1113.385858 | I63: 292.6375381 | J63: 1113.385858 | K63: =IF(CMdata=1,IMDIV(1,IMSUM(IMDIV(1,IMPRODUCT(B63,'Design the AEF circuit'!$G$13*0.001)),IMDIV(1,'Design the AEF circuit'!$H$13*1000),IMPRODUCT(B63,'Design the AEF circuit'!$I$13*0.000000000001))),COMPLEX(G63,H63,"j")) -> 292,637538067559+1113,38585776044j | L63: =IF(CMdata=1,IMDIV(1,IMSUM(IMDIV(1,IMPRODUCT(B63,'Design the AEF circuit'!$G$14*0.001)),IMDIV(1,'Design the AEF circuit'!$H$14*1000),IMPRODUCT(B63,'Design the AEF circuit'!$I$14*0.000000000001))),COMPLEX(I63,J63,"j")) -> 292,637538067559+1113,38585776044j
A64: ='Frequency vector'!G64 -> 5025.154575 | B64: =COMPLEX(0,2*PI()*'Frequency vector'!G64,"j") -> 31573,9773907452j | C64: =IF(IF(CMdata=1,IMABS(K64),'CM choke'!C68)=0, C63, IF(CMdata=1,IMABS(K64),'CM choke'!C68)) -> 1179.426053 | D64: =IF(IF(CMdata=1,DEGREES(IMARGUMENT(K64)),'CM choke'!D68)=0, D63, IF(CMdata=1,DEGREES(IMARGUMENT(K64)),'CM choke'!D68)) -> 74.90663594 | E64: =IF(IF(CMdata=1,IMABS(L64),'CM choke'!E68)=0, E63, IF(CMdata=1,IMABS(L64),'CM choke'!E68)) -> 1179.426053 | F64: =IF(IF(CMdata=1,DEGREES(IMARGUMENT(L64)),'CM choke'!F68)=0, F63, IF(CMdata=1,DEGREES(IMARGUMENT(L64)),'CM choke'!F68)) -> 74.90663594 | G64: 307.1139188 | H64: 1138.739151 | I64: 307.1139188 | J64: 1138.739151 | K64: =IF(CMdata=1,IMDIV(1,IMSUM(IMDIV(1,IMPRODUCT(B64,'Design the AEF circuit'!$G$13*0.001)),IMDIV(1,'Design the AEF circuit'!$H$13*1000),IMPRODUCT(B64,'Design the AEF circuit'!$I$13*0.000000000001))),COMPLEX(G64,H64,"j")) -> 307,113918799636+1138,73915143943j | L64: =IF(CMdata=1,IMDIV(1,IMSUM(IMDIV(1,IMPRODUCT(B64,'Design the AEF circuit'!$G$14*0.001)),IMDIV(1,'Design the AEF circuit'!$H$14*1000),IMPRODUCT(B64,'Design the AEF circuit'!$I$14*0.000000000001))),COMPLEX(I64,J64,"j")) -> 307,113918799636+1138,73915143943j
A65: ='Frequency vector'!G65 -> 5159.928434 | B65: =COMPLEX(0,2*PI()*'Frequency vector'!G65,"j") -> 32420,7865204133j | C65: =IF(IF(CMdata=1,IMABS(K65),'CM choke'!C69)=0, C64, IF(CMdata=1,IMABS(K65),'CM choke'!C69)) -> 1208.209804 | D65: =IF(IF(CMdata=1,DEGREES(IMARGUMENT(K65)),'CM choke'!D69)=0, D64, IF(CMdata=1,DEGREES(IMARGUMENT(K65)),'CM choke'!D69)) -> 74.53184374 | E65: =IF(IF(CMdata=1,IMABS(L65),'CM choke'!E69)=0, E64, IF(CMdata=1,IMABS(L65),'CM choke'!E69)) -> 1208.209804 | F65: =IF(IF(CMdata=1,DEGREES(IMARGUMENT(L65)),'CM choke'!F69)=0, F64, IF(CMdata=1,DEGREES(IMARGUMENT(L65)),'CM choke'!F69)) -> 74.53184374 | G65: 322.2329016 | H65: 1164.447031 | I65: 322.2329016 | J65: 1164.447031 | K65: =IF(CMdata=1,IMDIV(1,IMSUM(IMDIV(1,IMPRODUCT(B65,'Design the AEF circuit'!$G$13*0.001)),IMDIV(1,'Design the AEF circuit'!$H$13*1000),IMPRODUCT(B65,'Design the AEF circuit'!$I$13*0.000000000001))),COMPLEX(G65,H65,"j")) -> 322,232901591269+1164,44703098533j | L65: =IF(CMdata=1,IMDIV(1,IMSUM(IMDIV(1,IMPRODUCT(B65,'Design the AEF circuit'!$G$14*0.001)),IMDIV(1,'Design the AEF circuit'!$H$14*1000),IMPRODUCT(B65,'Design the AEF circuit'!$I$14*0.000000000001))),COMPLEX(I65,J65,"j")) -> 322,232901591269+1164,44703098533j
A66: ='Frequency vector'!G66 -> 5298.316906 | B66: =COMPLEX(0,2*PI()*'Frequency vector'!G66,"j") -> 33290,3069383431j | C66: =IF(IF(CMdata=1,IMABS(K66),'CM choke'!C70)=0, C65, IF(CMdata=1,IMABS(K66),'CM choke'!C70)) -> 1237.55406 | D66: =IF(IF(CMdata=1,DEGREES(IMARGUMENT(K66)),'CM choke'!D70)=0, D65, IF(CMdata=1,DEGREES(IMARGUMENT(K66)),'CM choke'!D70)) -> 74.14927244 | E66: =IF(IF(CMdata=1,IMABS(L66),'CM choke'!E70)=0, E65, IF(CMdata=1,IMABS(L66),'CM choke'!E70)) -> 1237.55406 | F66: =IF(IF(CMdata=1,DEGREES(IMARGUMENT(L66)),'CM choke'!F70)=0, F65, IF(CMdata=1,DEGREES(IMARGUMENT(L66)),'CM choke'!F70)) -> 74.14927244 | G66: 338.0156802 | H66: 1190.497984 | I66: 338.0156802 | J66: 1190.497984 | K66: =IF(CMdata=1,IMDIV(1,IMSUM(IMDIV(1,IMPRODUCT(B66,'Design the AEF circuit'!$G$13*0.001)),IMDIV(1,'Design the AEF circuit'!$H$13*1000),IMPRODUCT(B66,'Design the AEF circuit'!$I$13*0.000000000001))),COMPLEX(G66,H66,"j")) -> 338,015680195714+1190,49798448203j | L66: =IF(CMdata=1,IMDIV(1,IMSUM(IMDIV(1,IMPRODUCT(B66,'Design the AEF circuit'!$G$14*0.001)),IMDIV(1,'Design the AEF circuit'!$H$14*1000),IMPRODUCT(B66,'Design the AEF circuit'!$I$14*0.000000000001))),COMPLEX(I66,J66,"j")) -> 338,015680195714+1190,49798448203j
A67: ='Frequency vector'!G67 -> 5440.416936 | B67: =COMPLEX(0,2*PI()*'Frequency vector'!G67,"j") -> 34183,1477577296j | C67: =IF(IF(CMdata=1,IMABS(K67),'CM choke'!C71)=0, C66, IF(CMdata=1,IMABS(K67),'CM choke'!C71)) -> 1267.459403 | D67: =IF(IF(CMdata=1,DEGREES(IMARGUMENT(K67)),'CM choke'!D71)=0, D66, IF(CMdata=1,DEGREES(IMARGUMENT(K67)),'CM choke'!D71)) -> 73.75887537 | E67: =IF(IF(CMdata=1,IMABS(L67),'CM choke'!E71)=0, E66, IF(CMdata=1,IMABS(L67),'CM choke'!E71)) -> 1267.459403 | F67: =IF(IF(CMdata=1,DEGREES(IMARGUMENT(L67)),'CM choke'!F71)=0, F66, IF(CMdata=1,DEGREES(IMARGUMENT(L67)),'CM choke'!F71)) -> 73.75887537 | G67: =C67*COS(RADIANS(D67)) -> 354.4834194 | H67: =C67*SIN(RADIANS(D67)) -> 1216.879141 | I67: =E67*COS(RADIANS(F67)) -> 354.4834194 | J67: =E67*SIN(RADIANS(F67)) -> 1216.879141 | K67: =IF(CMdata=1,IMDIV(1,IMSUM(IMDIV(1,IMPRODUCT(B67,'Design the AEF circuit'!$G$13*0.001)),IMDIV(1,'Design the AEF circuit'!$H$13*1000),IMPRODUCT(B67,'Design the AEF circuit'!$I$13*0.000000000001))),COMPLEX(G67,H67,"j")) -> 354,483419418882+1216,87914126091j | L67: =IF(CMdata=1,IMDIV(1,IMSUM(IMDIV(1,IMPRODUCT(B67,'Design the AEF circuit'!$G$14*0.001)),IMDIV(1,'Design the AEF circuit'!$H$14*1000),IMPRODUCT(B67,'Design the AEF circuit'!$I$14*0.000000000001))),COMPLEX(I67,J67,"j")) -> 354,483419418882+1216,87914126091j
A68: ='Frequency vector'!G68 -> 5586.328066 | B68: =COMPLEX(0,2*PI()*'Frequency vector'!G68,"j") -> 35099,9344280882j | C68: =IF(IF(CMdata=1,IMABS(K68),'CM choke'!C72)=0, C67, IF(CMdata=1,IMABS(K68),'CM choke'!C72)) -> 1297.925603 | D68: =IF(IF(CMdata=1,DEGREES(IMARGUMENT(K68)),'CM choke'!D72)=0, D67, IF(CMdata=1,DEGREES(IMARGUMENT(K68)),'CM choke'!D72)) -> 73.36061477 | E68: =IF(IF(CMdata=1,IMABS(L68),'CM choke'!E72)=0, E67, IF(CMdata=1,IMABS(L68),'CM choke'!E72)) -> 1297.925603 | F68: =IF(IF(CMdata=1,DEGREES(IMARGUMENT(L68)),'CM choke'!F72)=0, F67, IF(CMdata=1,DEGREES(IMARGUMENT(L68)),'CM choke'!F72)) -> 73.36061477 | G68: 371.6571709 | H68: 1243.576221 | I68: 371.6571709 | J68: 1243.576221 | K68: =IF(CMdata=1,IMDIV(1,IMSUM(IMDIV(1,IMPRODUCT(B68,'Design the AEF circuit'!$G$13*0.001)),IMDIV(1,'Design the AEF circuit'!$H$13*1000),IMPRODUCT(B68,'Design the AEF circuit'!$I$13*0.000000000001))),COMPLEX(G68,H68,"j")) -> 371,657170930422+1243,57622140871j | L68: =IF(CMdata=1,IMDIV(1,IMSUM(IMDIV(1,IMPRODUCT(B68,'Design the AEF circuit'!$G$14*0.001)),IMDIV(1,'Design the AEF circuit'!$H$14*1000),IMPRODUCT(B68,'Design the AEF circuit'!$I$14*0.000000000001))),COMPLEX(I68,J68,"j")) -> 371,657170930422+1243,57622140871j
A69: ='Frequency vector'!G69 -> 5736.15251 | B69: =COMPLEX(0,2*PI()*'Frequency vector'!G69,"j") -> 36041,3091733925j | C69: =IF(IF(CMdata=1,IMABS(K69),'CM choke'!C73)=0, C68, IF(CMdata=1,IMABS(K69),'CM choke'!C73)) -> 1328.951563 | D69: =IF(IF(CMdata=1,DEGREES(IMARGUMENT(K69)),'CM choke'!D73)=0, D68, IF(CMdata=1,DEGREES(IMARGUMENT(K69)),'CM choke'!D73)) -> 72.95446254 | E69: =IF(IF(CMdata=1,IMABS(L69),'CM choke'!E73)=0, E68, IF(CMdata=1,IMABS(L69),'CM choke'!E73)) -> 1328.951563 | F69: =IF(IF(CMdata=1,DEGREES(IMARGUMENT(L69)),'CM choke'!F73)=0, F68, IF(CMdata=1,DEGREES(IMARGUMENT(L69)),'CM choke'!F73)) -> 72.95446254 | G69: 389.5577815 | H69: 1270.573489 | I69: 389.5577815 | J69: 1270.573489 | K69: =IF(CMdata=1,IMDIV(1,IMSUM(IMDIV(1,IMPRODUCT(B69,'Design the AEF circuit'!$G$13*0.001)),IMDIV(1,'Design the AEF circuit'!$H$13*1000),IMPRODUCT(B69,'Design the AEF circuit'!$I$13*0.000000000001))),COMPLEX(G69,H69,"j")) -> 389,557781512701+1270,57348910496j | L69: =IF(CMdata=1,IMDIV(1,IMSUM(IMDIV(1,IMPRODUCT(B69,'Design the AEF circuit'!$G$14*0.001)),IMDIV(1,'Design the AEF circuit'!$H$14*1000),IMPRODUCT(B69,'Design the AEF circuit'!$I$14*0.000000000001))),COMPLEX(I69,J69,"j")) -> 389,557781512701+1270,57348910496j
A70: ='Frequency vector'!G70 -> 5889.995223 | B70: =COMPLEX(0,2*PI()*'Frequency vector'!G70,"j") -> 37007,9314419626j | C70: =IF(IF(CMdata=1,IMABS(K70),'CM choke'!C74)=0, C69, IF(CMdata=1,IMABS(K70),'CM choke'!C74)) -> 1360.535271 | D70: =IF(IF(CMdata=1,DEGREES(IMARGUMENT(K70)),'CM choke'!D74)=0, D69, IF(CMdata=1,DEGREES(IMARGUMENT(K70)),'CM choke'!D74)) -> 72.54040092 | E70: =IF(IF(CMdata=1,IMABS(L70),'CM choke'!E74)=0, E69, IF(CMdata=1,IMABS(L70),'CM choke'!E74)) -> 1360.535271 | F70: =IF(IF(CMdata=1,DEGREES(IMARGUMENT(L70)),'CM choke'!F74)=0, F69, IF(CMdata=1,DEGREES(IMARGUMENT(L70)),'CM choke'!F74)) -> 72.54040092 | G70: 408.2057937 | H70: 1297.853711 | I70: 408.2057937 | J70: 1297.853711 | K70: =IF(CMdata=1,IMDIV(1,IMSUM(IMDIV(1,IMPRODUCT(B70,'Design the AEF circuit'!$G$13*0.001)),IMDIV(1,'Design the AEF circuit'!$H$13*1000),IMPRODUCT(B70,'Design the AEF circuit'!$I$13*0.000000000001))),COMPLEX(G70,H70,"j")) -> 408,20579366795+1297,85371064264j | L70: =IF(CMdata=1,IMDIV(1,IMSUM(IMDIV(1,IMPRODUCT(B70,'Design the AEF circuit'!$G$14*0.001)),IMDIV(1,'Design the AEF circuit'!$H$14*1000),IMPRODUCT(B70,'Design the AEF circuit'!$I$14*0.000000000001))),COMPLEX(I70,J70,"j")) -> 408,20579366795+1297,85371064264j
A71: ='Frequency vector'!G71 -> 6047.963972 | B71: =COMPLEX(0,2*PI()*'Frequency vector'!G71,"j") -> 38000,478368419j | C71: =IF(IF(CMdata=1,IMABS(K71),'CM choke'!C75)=0, C70, IF(CMdata=1,IMABS(K71),'CM choke'!C75)) -> 1392.673752 | D71: =IF(IF(CMdata=1,DEGREES(IMARGUMENT(K71)),'CM choke'!D75)=0, D70, IF(CMdata=1,DEGREES(IMARGUMENT(K71)),'CM choke'!D75)) -> 72.11842328 | E71: =IF(IF(CMdata=1,IMABS(L71),'CM choke'!E75)=0, E70, IF(CMdata=1,IMABS(L71),'CM choke'!E75)) -> 1392.673752 | F71: =IF(IF(CMdata=1,DEGREES(IMARGUMENT(L71)),'CM choke'!F75)=0, F70, IF(CMdata=1,DEGREES(IMARGUMENT(L71)),'CM choke'!F75)) -> 72.11842328 | G71: 427.6213386 | H71: 1325.398118 | I71: 427.6213386 | J71: 1325.398118 | K71: =IF(CMdata=1,IMDIV(1,IMSUM(IMDIV(1,IMPRODUCT(B71,'Design the AEF circuit'!$G$13*0.001)),IMDIV(1,'Design the AEF circuit'!$H$13*1000),IMPRODUCT(B71,'Design the AEF circuit'!$I$13*0.000000000001))),COMPLEX(G71,H71,"j")) -> 427,621338582572+1325,39811804455j | L71: =IF(CMdata=1,IMDIV(1,IMSUM(IMDIV(1,IMPRODUCT(B71,'Design the AEF circuit'!$G$14*0.001)),IMDIV(1,'Design the AEF circuit'!$H$14*1000),IMPRODUCT(B71,'Design the AEF circuit'!$I$14*0.000000000001))),COMPLEX(I71,J71,"j")) -> 427,621338582572+1325,39811804455j
A72: ='Frequency vector'!G72 -> 6210.169419 | B72: =COMPLEX(0,2*PI()*'Frequency vector'!G72,"j") -> 39019,6452480267j | C72: =IF(IF(CMdata=1,IMABS(K72),'CM choke'!C76)=0, C71, IF(CMdata=1,IMABS(K72),'CM choke'!C76)) -> 1425.363017 | D72: =IF(IF(CMdata=1,DEGREES(IMARGUMENT(K72)),'CM choke'!D76)=0, D71, IF(CMdata=1,DEGREES(IMARGUMENT(K72)),'CM choke'!D76)) -> 71.68853488 | E72: =IF(IF(CMdata=1,IMABS(L72),'CM choke'!E76)=0, E71, IF(CMdata=1,IMABS(L72),'CM choke'!E76)) -> 1425.363017 | F72: =IF(IF(CMdata=1,DEGREES(IMARGUMENT(L72)),'CM choke'!F76)=0, F71, IF(CMdata=1,DEGREES(IMARGUMENT(L72)),'CM choke'!F76)) -> 71.68853488 | G72: 447.8240215 | H72: 1353.186379 | I72: 447.8240215 | J72: 1353.186379 | K72: =IF(CMdata=1,IMDIV(1,IMSUM(IMDIV(1,IMPRODUCT(B72,'Design the AEF circuit'!$G$13*0.001)),IMDIV(1,'Design the AEF circuit'!$H$13*1000),IMPRODUCT(B72,'Design the AEF circuit'!$I$13*0.000000000001))),COMPLEX(G72,H72,"j")) -> 447,824021538797+1353,18637924317j | L72: =IF(CMdata=1,IMDIV(1,IMSUM(IMDIV(1,IMPRODUCT(B72,'Design the AEF circuit'!$G$14*0.001)),IMDIV(1,'Design the AEF circuit'!$H$14*1000),IMPRODUCT(B72,'Design the AEF circuit'!$I$14*0.000000000001))),COMPLEX(I72,J72,"j")) -> 447,824021538797+1353,18637924317j
A73: ='Frequency vector'!G73 -> 6376.72519 | B73: =COMPLEX(0,2*PI()*'Frequency vector'!G73,"j") -> 40066,1460237613j | C73: =IF(IF(CMdata=1,IMABS(K73),'CM choke'!C77)=0, C72, IF(CMdata=1,IMABS(K73),'CM choke'!C77)) -> 1458.598017 | D73: =IF(IF(CMdata=1,DEGREES(IMARGUMENT(K73)),'CM choke'!D77)=0, D72, IF(CMdata=1,DEGREES(IMARGUMENT(K73)),'CM choke'!D77)) -> 71.25075361 | E73: =IF(IF(CMdata=1,IMABS(L73),'CM choke'!E77)=0, E72, IF(CMdata=1,IMABS(L73),'CM choke'!E77)) -> 1458.598017 | F73: =IF(IF(CMdata=1,DEGREES(IMARGUMENT(L73)),'CM choke'!F77)=0, F72, IF(CMdata=1,DEGREES(IMARGUMENT(L73)),'CM choke'!F77)) -> 71.25075361 | G73: 468.8328 | H73: 1381.196576 | I73: 468.8328 | J73: 1381.196576 | K73: =IF(CMdata=1,IMDIV(1,IMSUM(IMDIV(1,IMPRODUCT(B73,'Design the AEF circuit'!$G$13*0.001)),IMDIV(1,'Design the AEF circuit'!$H$13*1000),IMPRODUCT(B73,'Design the AEF circuit'!$I$13*0.000000000001))),COMPLEX(G73,H73,"j")) -> 468,832799966972+1381,19657583926j | L73: =IF(CMdata=1,IMDIV(1,IMSUM(IMDIV(1,IMPRODUCT(B73,'Design the AEF circuit'!$G$14*0.001)),IMDIV(1,'Design the AEF circuit'!$H$14*1000),IMPRODUCT(B73,'Design the AEF circuit'!$I$14*0.000000000001))),COMPLEX(I73,J73,"j")) -> 468,832799966972+1381,19657583926j
A74: ='Frequency vector'!G74 -> 6547.747961 | B74: =COMPLEX(0,2*PI()*'Frequency vector'!G74,"j") -> 41140,7137864367j | C74: =IF(IF(CMdata=1,IMABS(K74),'CM choke'!C78)=0, C73, IF(CMdata=1,IMABS(K74),'CM choke'!C78)) -> 1492.372597 | D74: =IF(IF(CMdata=1,DEGREES(IMARGUMENT(K74)),'CM choke'!D78)=0, D73, IF(CMdata=1,DEGREES(IMARGUMENT(K74)),'CM choke'!D78)) -> 70.8051108 | E74: =IF(IF(CMdata=1,IMABS(L74),'CM choke'!E78)=0, E73, IF(CMdata=1,IMABS(L74),'CM choke'!E78)) -> 1492.372597 | F74: =IF(IF(CMdata=1,DEGREES(IMARGUMENT(L74)),'CM choke'!F78)=0, F73, IF(CMdata=1,DEGREES(IMARGUMENT(L74)),'CM choke'!F78)) -> 70.8051108 | G74: 490.6658544 | H74: 1409.405189 | I74: 490.6658544 | J74: 1409.405189 | K74: =IF(CMdata=1,IMDIV(1,IMSUM(IMDIV(1,IMPRODUCT(B74,'Design the AEF circuit'!$G$13*0.001)),IMDIV(1,'Design the AEF circuit'!$H$13*1000),IMPRODUCT(B74,'Design the AEF circuit'!$I$13*0.000000000001))),COMPLEX(G74,H74,"j")) -> 490,66585444725+1409,40518949412j | L74: =IF(CMdata=1,IMDIV(1,IMSUM(IMDIV(1,IMPRODUCT(B74,'Design the AEF circuit'!$G$14*0.001)),IMDIV(1,'Design the AEF circuit'!$H$14*1000),IMPRODUCT(B74,'Design the AEF circuit'!$I$14*0.000000000001))),COMPLEX(I74,J74,"j")) -> 490,66585444725+1409,40518949412j
A75: ='Frequency vector'!G75 -> 6723.357536 | B75: =COMPLEX(0,2*PI()*'Frequency vector'!G75,"j") -> 42244,101288248j | C75: =IF(IF(CMdata=1,IMABS(K75),'CM choke'!C79)=0, C74, IF(CMdata=1,IMABS(K75),'CM choke'!C79)) -> 1526.679456 | D75: =IF(IF(CMdata=1,DEGREES(IMARGUMENT(K75)),'CM choke'!D79)=0, D74, IF(CMdata=1,DEGREES(IMARGUMENT(K75)),'CM choke'!D79)) -> 70.35165199 | E75: =IF(IF(CMdata=1,IMABS(L75),'CM choke'!E79)=0, E74, IF(CMdata=1,IMABS(L75),'CM choke'!E79)) -> 1526.679456 | F75: =IF(IF(CMdata=1,DEGREES(IMARGUMENT(L75)),'CM choke'!F79)=0, F74, IF(CMdata=1,DEGREES(IMARGUMENT(L75)),'CM choke'!F79)) -> 70.35165199 | G75: 513.3404531 | H75: 1437.787098 | I75: 513.3404531 | J75: 1437.787098 | K75: =IF(CMdata=1,IMDIV(1,IMSUM(IMDIV(1,IMPRODUCT(B75,'Design the AEF circuit'!$G$13*0.001)),IMDIV(1,'Design the AEF circuit'!$H$13*1000),IMPRODUCT(B75,'Design the AEF circuit'!$I$13*0.000000000001))),COMPLEX(G75,H75,"j")) -> 513,340453096847+1437,78709803826j | L75: =IF(CMdata=1,IMDIV(1,IMSUM(IMDIV(1,IMPRODUCT(B75,'Design the AEF circuit'!$G$14*0.001)),IMDIV(1,'Design the AEF circuit'!$H$14*1000),IMPRODUCT(B75,'Design the AEF circuit'!$I$14*0.000000000001))),COMPLEX(I75,J75,"j")) -> 513,340453096847+1437,78709803826j
A76: ='Frequency vector'!G76 -> 6903.676933 | B76: =COMPLEX(0,2*PI()*'Frequency vector'!G76,"j") -> 43377,0814700859j | C76: =IF(IF(CMdata=1,IMABS(K76),'CM choke'!C80)=0, C75, IF(CMdata=1,IMABS(K76),'CM choke'!C80)) -> 1561.510103 | D76: =IF(IF(CMdata=1,DEGREES(IMARGUMENT(K76)),'CM choke'!D80)=0, D75, IF(CMdata=1,DEGREES(IMARGUMENT(K76)),'CM choke'!D80)) -> 69.89043775 | E76: =IF(IF(CMdata=1,IMABS(L76),'CM choke'!E80)=0, E75, IF(CMdata=1,IMABS(L76),'CM choke'!E80)) -> 1561.510103 | F76: =IF(IF(CMdata=1,DEGREES(IMARGUMENT(L76)),'CM choke'!F80)=0, F75, IF(CMdata=1,DEGREES(IMARGUMENT(L76)),'CM choke'!F80)) -> 69.89043775 | G76: 536.8728099 | H76: 1466.315582 | I76: 536.8728099 | J76: 1466.315582 | K76: =IF(CMdata=1,IMDIV(1,IMSUM(IMDIV(1,IMPRODUCT(B76,'Design the AEF circuit'!$G$13*0.001)),IMDIV(1,'Design the AEF circuit'!$H$13*1000),IMPRODUCT(B76,'Design the AEF circuit'!$I$13*0.000000000001))),COMPLEX(G76,H76,"j")) -> 536,872809917764+1466,31558239427j | L76: =IF(CMdata=1,IMDIV(1,IMSUM(IMDIV(1,IMPRODUCT(B76,'Design the AEF circuit'!$G$14*0.001)),IMDIV(1,'Design the AEF circuit'!$H$14*1000),IMPRODUCT(B76,'Design the AEF circuit'!$I$14*0.000000000001))),COMPLEX(I76,J76,"j")) -> 536,872809917764+1466,31558239427j
A77: ='Frequency vector'!G77 -> 7088.832467 | B77: =COMPLEX(0,2*PI()*'Frequency vector'!G77,"j") -> 44540,4480029952j | C77: =IF(IF(CMdata=1,IMABS(K77),'CM choke'!C81)=0, C76, IF(CMdata=1,IMABS(K77),'CM choke'!C81)) -> 1596.854827 | D77: =IF(IF(CMdata=1,DEGREES(IMARGUMENT(K77)),'CM choke'!D81)=0, D76, IF(CMdata=1,DEGREES(IMARGUMENT(K77)),'CM choke'!D81)) -> 69.42154438 | E77: =IF(IF(CMdata=1,IMABS(L77),'CM choke'!E81)=0, E76, IF(CMdata=1,IMABS(L77),'CM choke'!E81)) -> 1596.854827 | F77: =IF(IF(CMdata=1,DEGREES(IMARGUMENT(L77)),'CM choke'!F81)=0, F76, IF(CMdata=1,DEGREES(IMARGUMENT(L77)),'CM choke'!F81)) -> 69.42154438 | G77: 561.2779378 | H77: 1494.962345 | I77: 561.2779378 | J77: 1494.962345 | K77: =IF(CMdata=1,IMDIV(1,IMSUM(IMDIV(1,IMPRODUCT(B77,'Design the AEF circuit'!$G$13*0.001)),IMDIV(1,'Design the AEF circuit'!$H$13*1000),IMPRODUCT(B77,'Design the AEF circuit'!$I$13*0.000000000001))),COMPLEX(G77,H77,"j")) -> 561,277937829025+1494,96234541082j | L77: =IF(CMdata=1,IMDIV(1,IMSUM(IMDIV(1,IMPRODUCT(B77,'Design the AEF circuit'!$G$14*0.001)),IMDIV(1,'Design the AEF circuit'!$H$14*1000),IMPRODUCT(B77,'Design the AEF circuit'!$I$14*0.000000000001))),COMPLEX(I77,J77,"j")) -> 561,277937829025+1494,96234541082j
A78: ='Frequency vector'!G78 -> 7278.953844 | B78: =COMPLEX(0,2*PI()*'Frequency vector'!G78,"j") -> 45735,0158441535j | C78: =IF(IF(CMdata=1,IMABS(K78),'CM choke'!C82)=0, C77, IF(CMdata=1,IMABS(K78),'CM choke'!C82)) -> 1632.702661 | D78: =IF(IF(CMdata=1,DEGREES(IMARGUMENT(K78)),'CM choke'!D82)=0, D77, IF(CMdata=1,DEGREES(IMARGUMENT(K78)),'CM choke'!D82)) -> 68.94506474 | E78: =IF(IF(CMdata=1,IMABS(L78),'CM choke'!E82)=0, E77, IF(CMdata=1,IMABS(L78),'CM choke'!E82)) -> 1632.702661 | F78: =IF(IF(CMdata=1,DEGREES(IMARGUMENT(L78)),'CM choke'!F82)=0, F77, IF(CMdata=1,DEGREES(IMARGUMENT(L78)),'CM choke'!F82)) -> 68.94506474 | G78: 586.5694973 | H78: 1523.697544 | I78: 586.5694973 | J78: 1523.697544 | K78: =IF(CMdata=1,IMDIV(1,IMSUM(IMDIV(1,IMPRODUCT(B78,'Design the AEF circuit'!$G$13*0.001)),IMDIV(1,'Design the AEF circuit'!$H$13*1000),IMPRODUCT(B78,'Design the AEF circuit'!$I$13*0.000000000001))),COMPLEX(G78,H78,"j")) -> 586,56949726561+1523,69754368575j | L78: =IF(CMdata=1,IMDIV(1,IMSUM(IMDIV(1,IMPRODUCT(B78,'Design the AEF circuit'!$G$14*0.001)),IMDIV(1,'Design the AEF circuit'!$H$14*1000),IMPRODUCT(B78,'Design the AEF circuit'!$I$14*0.000000000001))),COMPLEX(I78,J78,"j")) -> 586,56949726561+1523,69754368575j
A79: ='Frequency vector'!G79 -> 7474.174246 | B79: =COMPLEX(0,2*PI()*'Frequency vector'!G79,"j") -> 46961,6218077625j | C79: =IF(IF(CMdata=1,IMABS(K79),'CM choke'!C83)=0, C78, IF(CMdata=1,IMABS(K79),'CM choke'!C83)) -> 1669.04136 | D79: =IF(IF(CMdata=1,DEGREES(IMARGUMENT(K79)),'CM choke'!D83)=0, D78, IF(CMdata=1,DEGREES(IMARGUMENT(K79)),'CM choke'!D83)) -> 68.46110894 | E79: =IF(IF(CMdata=1,IMABS(L79),'CM choke'!E83)=0, E78, IF(CMdata=1,IMABS(L79),'CM choke'!E83)) -> 1669.04136 | F79: =IF(IF(CMdata=1,DEGREES(IMARGUMENT(L79)),'CM choke'!F83)=0, F78, IF(CMdata=1,DEGREES(IMARGUMENT(L79)),'CM choke'!F83)) -> 68.46110894 | G79: 612.7596414 | H79: 1552.489833 | I79: 612.7596414 | J79: 1552.489833 | K79: =IF(CMdata=1,IMDIV(1,IMSUM(IMDIV(1,IMPRODUCT(B79,'Design the AEF circuit'!$G$13*0.001)),IMDIV(1,'Design the AEF circuit'!$H$13*1000),IMPRODUCT(B79,'Design the AEF circuit'!$I$13*0.000000000001))),COMPLEX(G79,H79,"j")) -> 612,759641391072+1552,48983341606j | L79: =IF(CMdata=1,IMDIV(1,IMSUM(IMDIV(1,IMPRODUCT(B79,'Design the AEF circuit'!$G$14*0.001)),IMDIV(1,'Design the AEF circuit'!$H$14*1000),IMPRODUCT(B79,'Design the AEF circuit'!$I$14*0.000000000001))),COMPLEX(I79,J79,"j")) -> 612,759641391072+1552,48983341606j
A80: ='Frequency vector'!G80 -> 7674.630429 | B80: =COMPLEX(0,2*PI()*'Frequency vector'!G80,"j") -> 48221,1251512498j | C80: =IF(IF(CMdata=1,IMABS(K80),'CM choke'!C84)=0, C79, IF(CMdata=1,IMABS(K80),'CM choke'!C84)) -> 1705.857377 | D80: =IF(IF(CMdata=1,DEGREES(IMARGUMENT(K80)),'CM choke'!D84)=0, D79, IF(CMdata=1,DEGREES(IMARGUMENT(K80)),'CM choke'!D84)) -> 67.96980508 | E80: =IF(IF(CMdata=1,IMABS(L80),'CM choke'!E84)=0, E79, IF(CMdata=1,IMABS(L80),'CM choke'!E84)) -> 1705.857377 | F80: =IF(IF(CMdata=1,DEGREES(IMARGUMENT(L80)),'CM choke'!F84)=0, F79, IF(CMdata=1,DEGREES(IMARGUMENT(L80)),'CM choke'!F84)) -> 67.96980508 | G80: 639.8588591 | H80: 1581.306431 | I80: 639.8588591 | J80: 1581.306431 | K80: =IF(CMdata=1,IMDIV(1,IMSUM(IMDIV(1,IMPRODUCT(B80,'Design the AEF circuit'!$G$13*0.001)),IMDIV(1,'Design the AEF circuit'!$H$13*1000),IMPRODUCT(B80,'Design the AEF circuit'!$I$13*0.000000000001))),COMPLEX(G80,H80,"j")) -> 639,858859140773+1581,30643125079j | L80: =IF(CMdata=1,IMDIV(1,IMSUM(IMDIV(1,IMPRODUCT(B80,'Design the AEF circuit'!$G$14*0.001)),IMDIV(1,'Design the AEF circuit'!$H$14*1000),IMPRODUCT(B80,'Design the AEF circuit'!$I$14*0.000000000001))),COMPLEX(I80,J80,"j")) -> 639,858859140773+1581,30643125079j
A81: ='Frequency vector'!G81 -> 7880.462816 | B81: =COMPLEX(0,2*PI()*'Frequency vector'!G81,"j") -> 49514,4081771925j | C81: =IF(IF(CMdata=1,IMABS(K81),'CM choke'!C85)=0, C80, IF(CMdata=1,IMABS(K81),'CM choke'!C85)) -> 1743.135851 | D81: =IF(IF(CMdata=1,DEGREES(IMARGUMENT(K81)),'CM choke'!D85)=0, D80, IF(CMdata=1,DEGREES(IMARGUMENT(K81)),'CM choke'!D85)) -> 67.47129992 | E81: =IF(IF(CMdata=1,IMABS(L81),'CM choke'!E85)=0, E80, IF(CMdata=1,IMABS(L81),'CM choke'!E85)) -> 1743.135851 | F81: =IF(IF(CMdata=1,DEGREES(IMARGUMENT(L81)),'CM choke'!F85)=0, F80, IF(CMdata=1,DEGREES(IMARGUMENT(L81)),'CM choke'!F85)) -> 67.47129992 | G81: 667.8758175 | H81: 1610.113191 | I81: 667.8758175 | J81: 1610.113191 | K81: =IF(CMdata=1,IMDIV(1,IMSUM(IMDIV(1,IMPRODUCT(B81,'Design the AEF circuit'!$G$13*0.001)),IMDIV(1,'Design the AEF circuit'!$H$13*1000),IMPRODUCT(B81,'Design the AEF circuit'!$I$13*0.000000000001))),COMPLEX(G81,H81,"j")) -> 667,875817483665+1610,11319103418j | L81: =IF(CMdata=1,IMDIV(1,IMSUM(IMDIV(1,IMPRODUCT(B81,'Design the AEF circuit'!$G$14*0.001)),IMDIV(1,'Design the AEF circuit'!$H$14*1000),IMPRODUCT(B81,'Design the AEF circuit'!$I$14*0.000000000001))),COMPLEX(I81,J81,"j")) -> 667,875817483665+1610,11319103418j
A82: ='Frequency vector'!G82 -> 8091.815594 | B82: =COMPLEX(0,2*PI()*'Frequency vector'!G82,"j") -> 50842,3768513846j | C82: =IF(IF(CMdata=1,IMABS(K82),'CM choke'!C86)=0, C81, IF(CMdata=1,IMABS(K82),'CM choke'!C86)) -> 1780.860604 | D82: =IF(IF(CMdata=1,DEGREES(IMARGUMENT(K82)),'CM choke'!D86)=0, D81, IF(CMdata=1,DEGREES(IMARGUMENT(K82)),'CM choke'!D86)) -> 66.96575951 | E82: =IF(IF(CMdata=1,IMABS(L82),'CM choke'!E86)=0, E81, IF(CMdata=1,IMABS(L82),'CM choke'!E86)) -> 1780.860604 | F82: =IF(IF(CMdata=1,DEGREES(IMARGUMENT(L82)),'CM choke'!F86)=0, F81, IF(CMdata=1,DEGREES(IMARGUMENT(L82)),'CM choke'!F86)) -> 66.96575951 | G82: 696.8172045 | H82: 1638.874697 | I82: 696.8172045 | J82: 1638.874697 | K82: =IF(CMdata=1,IMDIV(1,IMSUM(IMDIV(1,IMPRODUCT(B82,'Design the AEF circuit'!$G$13*0.001)),IMDIV(1,'Design the AEF circuit'!$H$13*1000),IMPRODUCT(B82,'Design the AEF circuit'!$I$13*0.000000000001))),COMPLEX(G82,H82,"j")) -> 696,817204460222+1638,87469721294j | L82: =IF(CMdata=1,IMDIV(1,IMSUM(IMDIV(1,IMPRODUCT(B82,'Design the AEF circuit'!$G$14*0.001)),IMDIV(1,'Design the AEF circuit'!$H$14*1000),IMPRODUCT(B82,'Design the AEF circuit'!$I$14*0.000000000001))),COMPLEX(I82,J82,"j")) -> 696,817204460222+1638,87469721294j
A83: ='Frequency vector'!G83 -> 8308.836822 | B83: =COMPLEX(0,2*PI()*'Frequency vector'!G83,"j") -> 52205,9614374812j | C83: =IF(IF(CMdata=1,IMABS(K83),'CM choke'!C87)=0, C82, IF(CMdata=1,IMABS(K83),'CM choke'!C87)) -> 1819.014136 | D83: =IF(IF(CMdata=1,DEGREES(IMARGUMENT(K83)),'CM choke'!D87)=0, D82, IF(CMdata=1,DEGREES(IMARGUMENT(K83)),'CM choke'!D87)) -> 66.45336976 | E83: =IF(IF(CMdata=1,IMABS(L83),'CM choke'!E87)=0, E82, IF(CMdata=1,IMABS(L83),'CM choke'!E87)) -> 1819.014136 | F83: =IF(IF(CMdata=1,DEGREES(IMARGUMENT(L83)),'CM choke'!F87)=0, F82, IF(CMdata=1,DEGREES(IMARGUMENT(L83)),'CM choke'!F87)) -> 66.45336976 | G83: 726.6875747 | H83: 1667.554376 | I83: 726.6875747 | J83: 1667.554376 | K83: =IF(CMdata=1,IMDIV(1,IMSUM(IMDIV(1,IMPRODUCT(B83,'Design the AEF circuit'!$G$13*0.001)),IMDIV(1,'Design the AEF circuit'!$H$13*1000),IMPRODUCT(B83,'Design the AEF circuit'!$I$13*0.000000000001))),COMPLEX(G83,H83,"j")) -> 726,687574717756+1667,5543755386j | L83: =IF(CMdata=1,IMDIV(1,IMSUM(IMDIV(1,IMPRODUCT(B83,'Design the AEF circuit'!$G$14*0.001)),IMDIV(1,'Design the AEF circuit'!$H$14*1000),IMPRODUCT(B83,'Design the AEF circuit'!$I$14*0.000000000001))),COMPLEX(I83,J83,"j")) -> 726,687574717756+1667,5543755386j
A84: ='Frequency vector'!G84 -> 8531.678524 | B84: =COMPLEX(0,2*PI()*'Frequency vector'!G84,"j") -> 53606,1171486625j | C84: =IF(IF(CMdata=1,IMABS(K84),'CM choke'!C88)=0, C83, IF(CMdata=1,IMABS(K84),'CM choke'!C88)) -> 1857.577642 | D84: =IF(IF(CMdata=1,DEGREES(IMARGUMENT(K84)),'CM choke'!D88)=0, D83, IF(CMdata=1,DEGREES(IMARGUMENT(K84)),'CM choke'!D88)) -> 65.93433699 | E84: =IF(IF(CMdata=1,IMABS(L84),'CM choke'!E88)=0, E83, IF(CMdata=1,IMABS(L84),'CM choke'!E88)) -> 1857.577642 | F84: =IF(IF(CMdata=1,DEGREES(IMARGUMENT(L84)),'CM choke'!F88)=0, F83, IF(CMdata=1,DEGREES(IMARGUMENT(L84)),'CM choke'!F88)) -> 65.93433699 | G84: 757.4891994 | H84: 1696.114622 | I84: 757.4891994 | J84: 1696.114622 | K84: =IF(CMdata=1,IMDIV(1,IMSUM(IMDIV(1,IMPRODUCT(B84,'Design the AEF circuit'!$G$13*0.001)),IMDIV(1,'Design the AEF circuit'!$H$13*1000),IMPRODUCT(B84,'Design the AEF circuit'!$I$13*0.000000000001))),COMPLEX(G84,H84,"j")) -> 757,489199417936+1696,11462152478j | L84: =IF(CMdata=1,IMDIV(1,IMSUM(IMDIV(1,IMPRODUCT(B84,'Design the AEF circuit'!$G$14*0.001)),IMDIV(1,'Design the AEF circuit'!$H$14*1000),IMPRODUCT(B84,'Design the AEF circuit'!$I$14*0.000000000001))),COMPLEX(I84,J84,"j")) -> 757,489199417936+1696,11462152478j
A85: ='Frequency vector'!G85 -> 8760.496806 | B85: =COMPLEX(0,2*PI()*'Frequency vector'!G85,"j") -> 55043,8248167769j | C85: =IF(IF(CMdata=1,IMABS(K85),'CM choke'!C89)=0, C84, IF(CMdata=1,IMABS(K85),'CM choke'!C89)) -> 1896.531029 | D85: =IF(IF(CMdata=1,DEGREES(IMARGUMENT(K85)),'CM choke'!D89)=0, D84, IF(CMdata=1,DEGREES(IMARGUMENT(K85)),'CM choke'!D89)) -> 65.40888836 | E85: =IF(IF(CMdata=1,IMABS(L85),'CM choke'!E89)=0, E84, IF(CMdata=1,IMABS(L85),'CM choke'!E89)) -> 1896.531029 | F85: =IF(IF(CMdata=1,DEGREES(IMARGUMENT(L85)),'CM choke'!F89)=0, F84, IF(CMdata=1,DEGREES(IMARGUMENT(L85)),'CM choke'!F89)) -> 65.40888836 | G85: 789.2219225 | H85: 1724.516947 | I85: 789.2219225 | J85: 1724.516947 | K85: =IF(CMdata=1,IMDIV(1,IMSUM(IMDIV(1,IMPRODUCT(B85,'Design the AEF circuit'!$G$13*0.001)),IMDIV(1,'Design the AEF circuit'!$H$13*1000),IMPRODUCT(B85,'Design the AEF circuit'!$I$13*0.000000000001))),COMPLEX(G85,H85,"j")) -> 789,221922529688+1724,51694691884j | L85: =IF(CMdata=1,IMDIV(1,IMSUM(IMDIV(1,IMPRODUCT(B85,'Design the AEF circuit'!$G$14*0.001)),IMDIV(1,'Design the AEF circuit'!$H$14*1000),IMPRODUCT(B85,'Design the AEF circuit'!$I$14*0.000000000001))),COMPLEX(I85,J85,"j")) -> 789,221922529688+1724,51694691884j
A86: ='Frequency vector'!G86 -> 8995.451959 | B86: =COMPLEX(0,2*PI()*'Frequency vector'!G86,"j") -> 56520,0915794295j | C86: =IF(IF(CMdata=1,IMABS(K86),'CM choke'!C90)=0, C85, IF(CMdata=1,IMABS(K86),'CM choke'!C90)) -> 1935.852944 | D86: =IF(IF(CMdata=1,DEGREES(IMARGUMENT(K86)),'CM choke'!D90)=0, D85, IF(CMdata=1,DEGREES(IMARGUMENT(K86)),'CM choke'!D90)) -> 64.87727225 | E86: =IF(IF(CMdata=1,IMABS(L86),'CM choke'!E90)=0, E85, IF(CMdata=1,IMABS(L86),'CM choke'!E90)) -> 1935.852944 | F86: =IF(IF(CMdata=1,DEGREES(IMARGUMENT(L86)),'CM choke'!F90)=0, F85, IF(CMdata=1,DEGREES(IMARGUMENT(L86)),'CM choke'!F90)) -> 64.87727225 | G86: 821.8830256 | H86: 1752.722144 | I86: 821.8830256 | J86: 1752.722144 | K86: =IF(CMdata=1,IMDIV(1,IMSUM(IMDIV(1,IMPRODUCT(B86,'Design the AEF circuit'!$G$13*0.001)),IMDIV(1,'Design the AEF circuit'!$H$13*1000),IMPRODUCT(B86,'Design the AEF circuit'!$I$13*0.000000000001))),COMPLEX(G86,H86,"j")) -> 821,883025639214+1752,72214421897j | L86: =IF(CMdata=1,IMDIV(1,IMSUM(IMDIV(1,IMPRODUCT(B86,'Design the AEF circuit'!$G$14*0.001)),IMDIV(1,'Design the AEF circuit'!$H$14*1000),IMPRODUCT(B86,'Design the AEF circuit'!$I$14*0.000000000001))),COMPLEX(I86,J86,"j")) -> 821,883025639214+1752,72214421897j
A87: ='Frequency vector'!G87 -> 9236.708572 | B87: =COMPLEX(0,2*PI()*'Frequency vector'!G87,"j") -> 58035,9515854979j | C87: =IF(IF(CMdata=1,IMABS(K87),'CM choke'!C91)=0, C86, IF(CMdata=1,IMABS(K87),'CM choke'!C91)) -> 1975.52082 | D87: =IF(IF(CMdata=1,DEGREES(IMARGUMENT(K87)),'CM choke'!D91)=0, D86, IF(CMdata=1,DEGREES(IMARGUMENT(K87)),'CM choke'!D91)) -> 64.33975857 | E87: =IF(IF(CMdata=1,IMABS(L87),'CM choke'!E91)=0, E86, IF(CMdata=1,IMABS(L87),'CM choke'!E91)) -> 1975.52082 | F87: =IF(IF(CMdata=1,DEGREES(IMARGUMENT(L87)),'CM choke'!F91)=0, F86, IF(CMdata=1,DEGREES(IMARGUMENT(L87)),'CM choke'!F91)) -> 64.33975857 | G87: 855.4671035 | H87: 1780.690469 | I87: 855.4671035 | J87: 1780.690469 | K87: =IF(CMdata=1,IMDIV(1,IMSUM(IMDIV(1,IMPRODUCT(B87,'Design the AEF circuit'!$G$13*0.001)),IMDIV(1,'Design the AEF circuit'!$H$13*1000),IMPRODUCT(B87,'Design the AEF circuit'!$I$13*0.000000000001))),COMPLEX(G87,H87,"j")) -> 855,467103501844+1780,6904690129j | L87: =IF(CMdata=1,IMDIV(1,IMSUM(IMDIV(1,IMPRODUCT(B87,'Design the AEF circuit'!$G$14*0.001)),IMDIV(1,'Design the AEF circuit'!$H$14*1000),IMPRODUCT(B87,'Design the AEF circuit'!$I$14*0.000000000001))),COMPLEX(I87,J87,"j")) -> 855,467103501844+1780,6904690129j
A88: ='Frequency vector'!G88 -> 9484.435649 | B88: =COMPLEX(0,2*PI()*'Frequency vector'!G88,"j") -> 59592,466719571j | C88: =IF(IF(CMdata=1,IMABS(K88),'CM choke'!C92)=0, C87, IF(CMdata=1,IMABS(K88),'CM choke'!C92)) -> 2015.510922 | D88: =IF(IF(CMdata=1,DEGREES(IMARGUMENT(K88)),'CM choke'!D92)=0, D87, IF(CMdata=1,DEGREES(IMARGUMENT(K88)),'CM choke'!D92)) -> 63.79663893 | E88: =IF(IF(CMdata=1,IMABS(L88),'CM choke'!E92)=0, E87, IF(CMdata=1,IMABS(L88),'CM choke'!E92)) -> 2015.510922 | F88: =IF(IF(CMdata=1,DEGREES(IMARGUMENT(L88)),'CM choke'!F92)=0, F87, IF(CMdata=1,DEGREES(IMARGUMENT(L88)),'CM choke'!F92)) -> 63.79663893 | G88: 889.9659526 | H88: 1808.38184 | I88: 889.9659526 | J88: 1808.38184 | K88: =IF(CMdata=1,IMDIV(1,IMSUM(IMDIV(1,IMPRODUCT(B88,'Design the AEF circuit'!$G$13*0.001)),IMDIV(1,'Design the AEF circuit'!$H$13*1000),IMPRODUCT(B88,'Design the AEF circuit'!$I$13*0.000000000001))),COMPLEX(G88,H88,"j")) -> 889,965952622373+1808,3818396345j | L88: =IF(CMdata=1,IMDIV(1,IMSUM(IMDIV(1,IMPRODUCT(B88,'Design the AEF circuit'!$G$14*0.001)),IMDIV(1,'Design the AEF circuit'!$H$14*1000),IMPRODUCT(B88,'Design the AEF circuit'!$I$14*0.000000000001))),COMPLEX(I88,J88,"j")) -> 889,965952622373+1808,3818396345j
A89: ='Frequency vector'!G89 -> 9738.806728 | B89: =COMPLEX(0,2*PI()*'Frequency vector'!G89,"j") -> 61190,7273458159j | C89: =IF(IF(CMdata=1,IMABS(K89),'CM choke'!C93)=0, C88, IF(CMdata=1,IMABS(K89),'CM choke'!C93)) -> 2055.79841 | D89: =IF(IF(CMdata=1,DEGREES(IMARGUMENT(K89)),'CM choke'!D93)=0, D88, IF(CMdata=1,DEGREES(IMARGUMENT(K89)),'CM choke'!D93)) -> 63.24822674 | E89: =IF(IF(CMdata=1,IMABS(L89),'CM choke'!E93)=0, E88, IF(CMdata=1,IMABS(L89),'CM choke'!E93)) -> 2055.79841 | F89: =IF(IF(CMdata=1,DEGREES(IMARGUMENT(L89)),'CM choke'!F93)=0, F88, IF(CMdata=1,DEGREES(IMARGUMENT(L89)),'CM choke'!F93)) -> 63.24822674 | G89: 925.3684752 | H89: 1835.756053 | I89: 925.3684752 | J89: 1835.756053 | K89: =IF(CMdata=1,IMDIV(1,IMSUM(IMDIV(1,IMPRODUCT(B89,'Design the AEF circuit'!$G$13*0.001)),IMDIV(1,'Design the AEF circuit'!$H$13*1000),IMPRODUCT(B89,'Design the AEF circuit'!$I$13*0.000000000001))),COMPLEX(G89,H89,"j")) -> 925,368475177373+1835,75605333552j | L89: =IF(CMdata=1,IMDIV(1,IMSUM(IMDIV(1,IMPRODUCT(B89,'Design the AEF circuit'!$G$14*0.001)),IMDIV(1,'Design the AEF circuit'!$H$14*1000),IMPRODUCT(B89,'Design the AEF circuit'!$I$14*0.000000000001))),COMPLEX(I89,J89,"j")) -> 925,368475177373+1835,75605333552j
A90: ='Frequency vector'!G90 -> 10000 | B90: =COMPLEX(0,2*PI()*'Frequency vector'!G90,"j") -> 62831,8530717965j | C90: =IF(IF(CMdata=1,IMABS(K90),'CM choke'!C94)=0, C89, IF(CMdata=1,IMABS(K90),'CM choke'!C94)) -> 2096.357419 | D90: =IF(IF(CMdata=1,DEGREES(IMARGUMENT(K90)),'CM choke'!D94)=0, D89, IF(CMdata=1,DEGREES(IMARGUMENT(K90)),'CM choke'!D94)) -> 62.69485719 | E90: =IF(IF(CMdata=1,IMABS(L90),'CM choke'!E94)=0, E89, IF(CMdata=1,IMABS(L90),'CM choke'!E94)) -> 2096.357419 | F90: =IF(IF(CMdata=1,DEGREES(IMARGUMENT(L90)),'CM choke'!F94)=0, F89, IF(CMdata=1,DEGREES(IMARGUMENT(L90)),'CM choke'!F94)) -> 62.69485719 | G90: 961.6606006 | H90: 1862.773018 | I90: 961.6606006 | J90: 1862.773018 | K90: =IF(CMdata=1,IMDIV(1,IMSUM(IMDIV(1,IMPRODUCT(B90,'Design the AEF circuit'!$G$13*0.001)),IMDIV(1,'Design the AEF circuit'!$H$13*1000),IMPRODUCT(B90,'Design the AEF circuit'!$I$13*0.000000000001))),COMPLEX(G90,H90,"j")) -> 961,660600578002+1862,77301785306j | L90: =IF(CMdata=1,IMDIV(1,IMSUM(IMDIV(1,IMPRODUCT(B90,'Design the AEF circuit'!$G$14*0.001)),IMDIV(1,'Design the AEF circuit'!$H$14*1000),IMPRODUCT(B90,'Design the AEF circuit'!$I$14*0.000000000001))),COMPLEX(I90,J90,"j")) -> 961,660600578002+1862,77301785306j
A91: ='Frequency vector'!G91 -> 10268.19843 | B91: =COMPLEX(0,2*PI()*'Frequency vector'!G91,"j") -> 64516,9935327745j | C91: =IF(IF(CMdata=1,IMABS(K91),'CM choke'!C95)=0, C90, IF(CMdata=1,IMABS(K91),'CM choke'!C95)) -> 2137.161138 | D91: =IF(IF(CMdata=1,DEGREES(IMARGUMENT(K91)),'CM choke'!D95)=0, D90, IF(CMdata=1,DEGREES(IMARGUMENT(K91)),'CM choke'!D95)) -> 62.13688713 | E91: =IF(IF(CMdata=1,IMABS(L91),'CM choke'!E95)=0, E90, IF(CMdata=1,IMABS(L91),'CM choke'!E95)) -> 2137.161138 | F91: =IF(IF(CMdata=1,DEGREES(IMARGUMENT(L91)),'CM choke'!F95)=0, F90, IF(CMdata=1,DEGREES(IMARGUMENT(L91)),'CM choke'!F95)) -> 62.13688713 | G91: 998.8252269 | H91: 1889.392997 | I91: 998.8252269 | J91: 1889.392997 | K91: =IF(CMdata=1,IMDIV(1,IMSUM(IMDIV(1,IMPRODUCT(B91,'Design the AEF circuit'!$G$13*0.001)),IMDIV(1,'Design the AEF circuit'!$H$13*1000),IMPRODUCT(B91,'Design the AEF circuit'!$I$13*0.000000000001))),COMPLEX(G91,H91,"j")) -> 998,825226913065+1889,39299692844j | L91: =IF(CMdata=1,IMDIV(1,IMSUM(IMDIV(1,IMPRODUCT(B91,'Design the AEF circuit'!$G$14*0.001)),IMDIV(1,'Design the AEF circuit'!$H$14*1000),IMPRODUCT(B91,'Design the AEF circuit'!$I$14*0.000000000001))),COMPLEX(I91,J91,"j")) -> 998,825226913065+1889,39299692844j
A92: ='Frequency vector'!G92 -> 10543.58991 | B92: =COMPLEX(0,2*PI()*'Frequency vector'!G92,"j") -> 66247,3291970522j | C92: =IF(IF(CMdata=1,IMABS(K92),'CM choke'!C96)=0, C91, IF(CMdata=1,IMABS(K92),'CM choke'!C96)) -> 2178.181914 | D92: =IF(IF(CMdata=1,DEGREES(IMARGUMENT(K92)),'CM choke'!D96)=0, D91, IF(CMdata=1,DEGREES(IMARGUMENT(K92)),'CM choke'!D96)) -> 61.57469477 | E92: =IF(IF(CMdata=1,IMABS(L92),'CM choke'!E96)=0, E91, IF(CMdata=1,IMABS(L92),'CM choke'!E96)) -> 2178.181914 | F92: =IF(IF(CMdata=1,DEGREES(IMARGUMENT(L92)),'CM choke'!F96)=0, F91, IF(CMdata=1,DEGREES(IMARGUMENT(L92)),'CM choke'!F96)) -> 61.57469477 | G92: 1036.842184 | H92: 1915.576868 | I92: 1036.842184 | J92: 1915.576868 | K92: =IF(CMdata=1,IMDIV(1,IMSUM(IMDIV(1,IMPRODUCT(B92,'Design the AEF circuit'!$G$13*0.001)),IMDIV(1,'Design the AEF circuit'!$H$13*1000),IMPRODUCT(B92,'Design the AEF circuit'!$I$13*0.000000000001))),COMPLEX(G92,H92,"j")) -> 1036,842184404+1915,57686800261j | L92: =IF(CMdata=1,IMDIV(1,IMSUM(IMDIV(1,IMPRODUCT(B92,'Design the AEF circuit'!$G$14*0.001)),IMDIV(1,'Design the AEF circuit'!$H$14*1000),IMPRODUCT(B92,'Design the AEF circuit'!$I$14*0.000000000001))),COMPLEX(I92,J92,"j")) -> 1036,842184404+1915,57686800261j
A93: ='Frequency vector'!G93 -> 10826.36734 | B93: =COMPLEX(0,2*PI()*'Frequency vector'!G93,"j") -> 68024,0721929039j | C93: =IF(IF(CMdata=1,IMABS(K93),'CM choke'!C97)=0, C92, IF(CMdata=1,IMABS(K93),'CM choke'!C97)) -> 2219.391358 | D93: =IF(IF(CMdata=1,DEGREES(IMARGUMENT(K93)),'CM choke'!D97)=0, D92, IF(CMdata=1,DEGREES(IMARGUMENT(K93)),'CM choke'!D97)) -> 61.00867931 | E93: =IF(IF(CMdata=1,IMABS(L93),'CM choke'!E97)=0, E92, IF(CMdata=1,IMABS(L93),'CM choke'!E97)) -> 2219.391358 | F93: =IF(IF(CMdata=1,DEGREES(IMARGUMENT(L93)),'CM choke'!F97)=0, F92, IF(CMdata=1,DEGREES(IMARGUMENT(L93)),'CM choke'!F97)) -> 61.00867931 | G93: 1075.688223 | H93: 1941.28639 | I93: 1075.688223 | J93: 1941.28639 | K93: =IF(CMdata=1,IMDIV(1,IMSUM(IMDIV(1,IMPRODUCT(B93,'Design the AEF circuit'!$G$13*0.001)),IMDIV(1,'Design the AEF circuit'!$H$13*1000),IMPRODUCT(B93,'Design the AEF circuit'!$I$13*0.000000000001))),COMPLEX(G93,H93,"j")) -> 1075,6882228452+1941,28638998864j | L93: =IF(CMdata=1,IMDIV(1,IMSUM(IMDIV(1,IMPRODUCT(B93,'Design the AEF circuit'!$G$14*0.001)),IMDIV(1,'Design the AEF circuit'!$H$14*1000),IMPRODUCT(B93,'Design the AEF circuit'!$I$14*0.000000000001))),COMPLEX(I93,J93,"j")) -> 1075,6882228452+1941,28638998864j
A94: ='Frequency vector'!G94 -> 11116.72882 | B94: =COMPLEX(0,2*PI()*'Frequency vector'!G94,"j") -> 69848,4671576964j | C94: =IF(IF(CMdata=1,IMABS(K94),'CM choke'!C98)=0, C93, IF(CMdata=1,IMABS(K94),'CM choke'!C98)) -> 2260.760466 | D94: =IF(IF(CMdata=1,DEGREES(IMARGUMENT(K94)),'CM choke'!D98)=0, D93, IF(CMdata=1,DEGREES(IMARGUMENT(K94)),'CM choke'!D98)) -> 60.43926042 | E94: =IF(IF(CMdata=1,IMABS(L94),'CM choke'!E98)=0, E93, IF(CMdata=1,IMABS(L94),'CM choke'!E98)) -> 2260.760466 | F94: =IF(IF(CMdata=1,DEGREES(IMARGUMENT(L94)),'CM choke'!F98)=0, F93, IF(CMdata=1,DEGREES(IMARGUMENT(L94)),'CM choke'!F98)) -> 60.43926042 | G94: 1115.337025 | H94: 1966.484479 | I94: 1115.337025 | J94: 1966.484479 | K94: =IF(CMdata=1,IMDIV(1,IMSUM(IMDIV(1,IMPRODUCT(B94,'Design the AEF circuit'!$G$13*0.001)),IMDIV(1,'Design the AEF circuit'!$H$13*1000),IMPRODUCT(B94,'Design the AEF circuit'!$I$13*0.000000000001))),COMPLEX(G94,H94,"j")) -> 1115,3370247924+1966,48447870795j | L94: =IF(CMdata=1,IMDIV(1,IMSUM(IMDIV(1,IMPRODUCT(B94,'Design the AEF circuit'!$G$14*0.001)),IMDIV(1,'Design the AEF circuit'!$H$14*1000),IMPRODUCT(B94,'Design the AEF circuit'!$I$14*0.000000000001))),COMPLEX(I94,J94,"j")) -> 1115,3370247924+1966,48447870795j
A95: ='Frequency vector'!G95 -> 11414.87774 | B95: =COMPLEX(0,2*PI()*'Frequency vector'!G95,"j") -> 71721,7921097757j | C95: =IF(IF(CMdata=1,IMABS(K95),'CM choke'!C99)=0, C94, IF(CMdata=1,IMABS(K95),'CM choke'!C99)) -> 2302.259752 | D95: =IF(IF(CMdata=1,DEGREES(IMARGUMENT(K95)),'CM choke'!D99)=0, D94, IF(CMdata=1,DEGREES(IMARGUMENT(K95)),'CM choke'!D99)) -> 59.86687753 | E95: =IF(IF(CMdata=1,IMABS(L95),'CM choke'!E99)=0, E94, IF(CMdata=1,IMABS(L95),'CM choke'!E99)) -> 2302.259752 | F95: =IF(IF(CMdata=1,DEGREES(IMARGUMENT(L95)),'CM choke'!F99)=0, F94, IF(CMdata=1,DEGREES(IMARGUMENT(L95)),'CM choke'!F99)) -> 59.86687753 | G95: 1155.759246 | H95: 1991.135487 | I95: 1155.759246 | J95: 1991.135487 | K95: =IF(CMdata=1,IMDIV(1,IMSUM(IMDIV(1,IMPRODUCT(B95,'Design the AEF circuit'!$G$13*0.001)),IMDIV(1,'Design the AEF circuit'!$H$13*1000),IMPRODUCT(B95,'Design the AEF circuit'!$I$13*0.000000000001))),COMPLEX(G95,H95,"j")) -> 1155,75924599996+1991,13548728529j | L95: =IF(CMdata=1,IMDIV(1,IMSUM(IMDIV(1,IMPRODUCT(B95,'Design the AEF circuit'!$G$14*0.001)),IMDIV(1,'Design the AEF circuit'!$H$14*1000),IMPRODUCT(B95,'Design the AEF circuit'!$I$14*0.000000000001))),COMPLEX(I95,J95,"j")) -> 1155,75924599996+1991,13548728529j
A96: ='Frequency vector'!G96 -> 11721.02298 | B96: =COMPLEX(0,2*PI()*'Frequency vector'!G96,"j") -> 73645,3593437386j | C96: =IF(IF(CMdata=1,IMABS(K96),'CM choke'!C100)=0, C95, IF(CMdata=1,IMABS(K96),'CM choke'!C100)) -> 2343.859389 | D96: =IF(IF(CMdata=1,DEGREES(IMARGUMENT(K96)),'CM choke'!D100)=0, D95, IF(CMdata=1,DEGREES(IMARGUMENT(K96)),'CM choke'!D100)) -> 59.29198904 | E96: =IF(IF(CMdata=1,IMABS(L96),'CM choke'!E100)=0, E95, IF(CMdata=1,IMABS(L96),'CM choke'!E100)) -> 2343.859389 | F96: =IF(IF(CMdata=1,DEGREES(IMARGUMENT(L96)),'CM choke'!F100)=0, F95, IF(CMdata=1,DEGREES(IMARGUMENT(L96)),'CM choke'!F100)) -> 59.29198904 | G96: 1196.922584 | H96: 2015.205489 | I96: 1196.922584 | J96: 2015.205489 | K96: =IF(CMdata=1,IMDIV(1,IMSUM(IMDIV(1,IMPRODUCT(B96,'Design the AEF circuit'!$G$13*0.001)),IMDIV(1,'Design the AEF circuit'!$H$13*1000),IMPRODUCT(B96,'Design the AEF circuit'!$I$13*0.000000000001))),COMPLEX(G96,H96,"j")) -> 1196,92258429566+2015,20548853537j | L96: =IF(CMdata=1,IMDIV(1,IMSUM(IMDIV(1,IMPRODUCT(B96,'Design the AEF circuit'!$G$14*0.001)),IMDIV(1,'Design the AEF circuit'!$H$14*1000),IMPRODUCT(B96,'Design the AEF circuit'!$I$14*0.000000000001))),COMPLEX(I96,J96,"j")) -> 1196,92258429566+2015,20548853537j
A97: ='Frequency vector'!G97 -> 12035.37898 | B97: =COMPLEX(0,2*PI()*'Frequency vector'!G97,"j") -> 75620,5163497179j | C97: =IF(IF(CMdata=1,IMABS(K97),'CM choke'!C101)=0, C96, IF(CMdata=1,IMABS(K97),'CM choke'!C101)) -> 2385.529361 | D97: =IF(IF(CMdata=1,DEGREES(IMARGUMENT(K97)),'CM choke'!D101)=0, D96, IF(CMdata=1,DEGREES(IMARGUMENT(K97)),'CM choke'!D101)) -> 58.71507138 | E97: =IF(IF(CMdata=1,IMABS(L97),'CM choke'!E101)=0, E96, IF(CMdata=1,IMABS(L97),'CM choke'!E101)) -> 2385.529361 | F97: =IF(IF(CMdata=1,DEGREES(IMARGUMENT(L97)),'CM choke'!F101)=0, F96, IF(CMdata=1,DEGREES(IMARGUMENT(L97)),'CM choke'!F101)) -> 58.71507138 | G97: 1238.791878 | H97: 2038.662556 | I97: 1238.791878 | J97: 2038.662556 | K97: =IF(CMdata=1,IMDIV(1,IMSUM(IMDIV(1,IMPRODUCT(B97,'Design the AEF circuit'!$G$13*0.001)),IMDIV(1,'Design the AEF circuit'!$H$13*1000),IMPRODUCT(B97,'Design the AEF circuit'!$I$13*0.000000000001))),COMPLEX(G97,H97,"j")) -> 1238,79187772319+2038,66255615102j | L97: =IF(CMdata=1,IMDIV(1,IMSUM(IMDIV(1,IMPRODUCT(B97,'Design the AEF circuit'!$G$14*0.001)),IMDIV(1,'Design the AEF circuit'!$H$14*1000),IMPRODUCT(B97,'Design the AEF circuit'!$I$14*0.000000000001))),COMPLEX(I97,J97,"j")) -> 1238,79187772319+2038,66255615102j
A98: ='Frequency vector'!G98 -> 12358.16596 | B98: =COMPLEX(0,2*PI()*'Frequency vector'!G98,"j") -> 77648,6467573216j | C98: =IF(IF(CMdata=1,IMABS(K98),'CM choke'!C102)=0, C97, IF(CMdata=1,IMABS(K98),'CM choke'!C102)) -> 2427.239624 | D98: =IF(IF(CMdata=1,DEGREES(IMARGUMENT(K98)),'CM choke'!D102)=0, D97, IF(CMdata=1,DEGREES(IMARGUMENT(K98)),'CM choke'!D102)) -> 58.13661786 | E98: =IF(IF(CMdata=1,IMABS(L98),'CM choke'!E102)=0, E97, IF(CMdata=1,IMABS(L98),'CM choke'!E102)) -> 2427.239624 | F98: =IF(IF(CMdata=1,DEGREES(IMARGUMENT(L98)),'CM choke'!F102)=0, F97, IF(CMdata=1,DEGREES(IMARGUMENT(L98)),'CM choke'!F102)) -> 58.13661786 | G98: 1281.329232 | H98: 2061.477041 | I98: 1281.329232 | J98: 2061.477041 | K98: =IF(CMdata=1,IMDIV(1,IMSUM(IMDIV(1,IMPRODUCT(B98,'Design the AEF circuit'!$G$13*0.001)),IMDIV(1,'Design the AEF circuit'!$H$13*1000),IMPRODUCT(B98,'Design the AEF circuit'!$I$13*0.000000000001))),COMPLEX(G98,H98,"j")) -> 1281,3292323831+2061,47704132813j | L98: =IF(CMdata=1,IMDIV(1,IMSUM(IMDIV(1,IMPRODUCT(B98,'Design the AEF circuit'!$G$14*0.001)),IMDIV(1,'Design the AEF circuit'!$H$14*1000),IMPRODUCT(B98,'Design the AEF circuit'!$I$14*0.000000000001))),COMPLEX(I98,J98,"j")) -> 1281,3292323831+2061,47704132813j
A99: ='Frequency vector'!G99 -> 12689.61003 | B99: =COMPLEX(0,2*PI()*'Frequency vector'!G99,"j") -> 79731,1713048861j | C99: =IF(IF(CMdata=1,IMABS(K99),'CM choke'!C103)=0, C98, IF(CMdata=1,IMABS(K99),'CM choke'!C103)) -> 2468.960269 | D99: =IF(IF(CMdata=1,DEGREES(IMARGUMENT(K99)),'CM choke'!D103)=0, D98, IF(CMdata=1,DEGREES(IMARGUMENT(K99)),'CM choke'!D103)) -> 57.55713747 | E99: =IF(IF(CMdata=1,IMABS(L99),'CM choke'!E103)=0, E98, IF(CMdata=1,IMABS(L99),'CM choke'!E103)) -> 2468.960269 | F99: =IF(IF(CMdata=1,DEGREES(IMARGUMENT(L99)),'CM choke'!F103)=0, F98, IF(CMdata=1,DEGREES(IMARGUMENT(L99)),'CM choke'!F103)) -> 57.55713747 | G99: 1324.49418 | H99: 2083.621841 | I99: 1324.49418 | J99: 2083.621841 | K99: =IF(CMdata=1,IMDIV(1,IMSUM(IMDIV(1,IMPRODUCT(B99,'Design the AEF circuit'!$G$13*0.001)),IMDIV(1,'Design the AEF circuit'!$H$13*1000),IMPRODUCT(B99,'Design the AEF circuit'!$I$13*0.000000000001))),COMPLEX(G99,H99,"j")) -> 1324,49417996936+2083,62184134285j | L99: =IF(CMdata=1,IMDIV(1,IMSUM(IMDIV(1,IMPRODUCT(B99,'Design the AEF circuit'!$G$14*0.001)),IMDIV(1,'Design the AEF circuit'!$H$14*1000),IMPRODUCT(B99,'Design the AEF circuit'!$I$14*0.000000000001))),COMPLEX(I99,J99,"j")) -> 1324,49417996936+2083,62184134285j
A100: ='Frequency vector'!G100 -> 13029.94339 | B100: =COMPLEX(0,2*PI()*'Frequency vector'!G100,"j") -> 81869,5488347281j | C100: =IF(IF(CMdata=1,IMABS(K100),'CM choke'!C104)=0, C99, IF(CMdata=1,IMABS(K100),'CM choke'!C104)) -> 2510.661698 | D100: =IF(IF(CMdata=1,DEGREES(IMARGUMENT(K100)),'CM choke'!D104)=0, D99, IF(CMdata=1,DEGREES(IMARGUMENT(K100)),'CM choke'!D104)) -> 56.97715348 | E100: =IF(IF(CMdata=1,IMABS(L100),'CM choke'!E104)=0, E99, IF(CMdata=1,IMABS(L100),'CM choke'!E104)) -> 2510.661698 | F100: =IF(IF(CMdata=1,DEGREES(IMARGUMENT(L100)),'CM choke'!F104)=0, F99, IF(CMdata=1,DEGREES(IMARGUMENT(L100)),'CM choke'!F104)) -> 56.97715348 | G100: 1368.243865 | H100: 2105.072657 | I100: 1368.243865 | J100: 2105.072657 | K100: =IF(CMdata=1,IMDIV(1,IMSUM(IMDIV(1,IMPRODUCT(B100,'Design the AEF circuit'!$G$13*0.001)),IMDIV(1,'Design the AEF circuit'!$H$13*1000),IMPRODUCT(B100,'Design the AEF circuit'!$I$13*0.000000000001))),COMPLEX(G100,H100,"j")) -> 1368,24386453928+2105,07265653949j | L100: =IF(CMdata=1,IMDIV(1,IMSUM(IMDIV(1,IMPRODUCT(B100,'Design the AEF circuit'!$G$14*0.001)),IMDIV(1,'Design the AEF circuit'!$H$14*1000),IMPRODUCT(B100,'Design the AEF circuit'!$I$14*0.000000000001))),COMPLEX(I100,J100,"j")) -> 1368,24386453928+2105,07265653949j
A101: ='Frequency vector'!G101 -> 13379.40443 | B101: =COMPLEX(0,2*PI()*'Frequency vector'!G101,"j") -> 84065,2773150866j | C101: =IF(IF(CMdata=1,IMABS(K101),'CM choke'!C105)=0, C100, IF(CMdata=1,IMABS(K101),'CM choke'!C105)) -> 2552.314801 | D101: =IF(IF(CMdata=1,DEGREES(IMARGUMENT(K101)),'CM choke'!D105)=0, D100, IF(CMdata=1,DEGREES(IMARGUMENT(K101)),'CM choke'!D105)) -> 56.39720196 | E101: =IF(IF(CMdata=1,IMABS(L101),'CM choke'!E105)=0, E100, IF(CMdata=1,IMABS(L101),'CM choke'!E105)) -> 2552.314801 | F101: =IF(IF(CMdata=1,DEGREES(IMARGUMENT(L101)),'CM choke'!F105)=0, F100, IF(CMdata=1,DEGREES(IMARGUMENT(L101)),'CM choke'!F105)) -> 56.39720196 | G101: 1412.533258 | H101: 2125.808232 | I101: 1412.533258 | J101: 2125.808232 | K101: =IF(CMdata=1,IMDIV(1,IMSUM(IMDIV(1,IMPRODUCT(B101,'Design the AEF circuit'!$G$13*0.001)),IMDIV(1,'Design the AEF circuit'!$H$13*1000),IMPRODUCT(B101,'Design the AEF circuit'!$I$13*0.000000000001))),COMPLEX(G101,H101,"j")) -> 1412,53325757945+2125,80823219841j | L101: =IF(CMdata=1,IMDIV(1,IMSUM(IMDIV(1,IMPRODUCT(B101,'Design the AEF circuit'!$G$14*0.001)),IMDIV(1,'Design the AEF circuit'!$H$14*1000),IMPRODUCT(B101,'Design the AEF circuit'!$I$14*0.000000000001))),COMPLEX(I101,J101,"j")) -> 1412,53325757945+2125,80823219841j
A102: ='Frequency vector'!G102 -> 13738.23796 | B102: =COMPLEX(0,2*PI()*'Frequency vector'!G102,"j") -> 86319,8948894745j | C102: =IF(IF(CMdata=1,IMABS(K102),'CM choke'!C106)=0, C101, IF(CMdata=1,IMABS(K102),'CM choke'!C106)) -> 2593.891137 | D102: =IF(IF(CMdata=1,DEGREES(IMARGUMENT(K102)),'CM choke'!D106)=0, D101, IF(CMdata=1,DEGREES(IMARGUMENT(K102)),'CM choke'!D106)) -> 55.81783008 | E102: =IF(IF(CMdata=1,IMABS(L102),'CM choke'!E106)=0, E101, IF(CMdata=1,IMABS(L102),'CM choke'!E106)) -> 2593.891137 | F102: =IF(IF(CMdata=1,DEGREES(IMARGUMENT(L102)),'CM choke'!F106)=0, F101, IF(CMdata=1,DEGREES(IMARGUMENT(L102)),'CM choke'!F106)) -> 55.81783008 | G102: 1457.3154 | H102: 2145.810582 | I102: 1457.3154 | J102: 2145.810582 | K102: =IF(CMdata=1,IMDIV(1,IMSUM(IMDIV(1,IMPRODUCT(B102,'Design the AEF circuit'!$G$13*0.001)),IMDIV(1,'Design the AEF circuit'!$H$13*1000),IMPRODUCT(B102,'Design the AEF circuit'!$I$13*0.000000000001))),COMPLEX(G102,H102,"j")) -> 1457,31539995129+2145,8105818354j | L102: =IF(CMdata=1,IMDIV(1,IMSUM(IMDIV(1,IMPRODUCT(B102,'Design the AEF circuit'!$G$14*0.001)),IMDIV(1,'Design the AEF circuit'!$H$14*1000),IMPRODUCT(B102,'Design the AEF circuit'!$I$14*0.000000000001))),COMPLEX(I102,J102,"j")) -> 1457,31539995129+2145,8105818354j
A103: ='Frequency vector'!G103 -> 14106.69535 | B103: =COMPLEX(0,2*PI()*'Frequency vector'!G103,"j") -> 88634,9809541722j | C103: =IF(IF(CMdata=1,IMABS(K103),'CM choke'!C107)=0, C102, IF(CMdata=1,IMABS(K103),'CM choke'!C107)) -> 2635.363113 | D103: =IF(IF(CMdata=1,DEGREES(IMARGUMENT(K103)),'CM choke'!D107)=0, D102, IF(CMdata=1,DEGREES(IMARGUMENT(K103)),'CM choke'!D107)) -> 55.23959441 | E103: =IF(IF(CMdata=1,IMABS(L103),'CM choke'!E107)=0, E102, IF(CMdata=1,IMABS(L103),'CM choke'!E107)) -> 2635.363113 | F103: =IF(IF(CMdata=1,DEGREES(IMARGUMENT(L103)),'CM choke'!F107)=0, F102, IF(CMdata=1,DEGREES(IMARGUMENT(L103)),'CM choke'!F107)) -> 55.23959441 | G103: 1502.541669 | H103: 2165.065189 | I103: 1502.541669 | J103: 2165.065189 | K103: =IF(CMdata=1,IMDIV(1,IMSUM(IMDIV(1,IMPRODUCT(B103,'Design the AEF circuit'!$G$13*0.001)),IMDIV(1,'Design the AEF circuit'!$H$13*1000),IMPRODUCT(B103,'Design the AEF circuit'!$I$13*0.000000000001))),COMPLEX(G103,H103,"j")) -> 1502,54166882701+2165,06518863885j | L103: =IF(CMdata=1,IMDIV(1,IMSUM(IMDIV(1,IMPRODUCT(B103,'Design the AEF circuit'!$G$14*0.001)),IMDIV(1,'Design the AEF circuit'!$H$14*1000),IMPRODUCT(B103,'Design the AEF circuit'!$I$14*0.000000000001))),COMPLEX(I103,J103,"j")) -> 1502,54166882701+2165,06518863885j
A104: ='Frequency vector'!G104 -> 14485.03471 | B104: =COMPLEX(0,2*PI()*'Frequency vector'!G104,"j") -> 91012,1572646224j | C104: =IF(IF(CMdata=1,IMABS(K104),'CM choke'!C108)=0, C103, IF(CMdata=1,IMABS(K104),'CM choke'!C108)) -> 2676.704172 | D104: =IF(IF(CMdata=1,DEGREES(IMARGUMENT(K104)),'CM choke'!D108)=0, D103, IF(CMdata=1,DEGREES(IMARGUMENT(K104)),'CM choke'!D108)) -> 54.66305905 | E104: =IF(IF(CMdata=1,IMABS(L104),'CM choke'!E108)=0, E103, IF(CMdata=1,IMABS(L104),'CM choke'!E108)) -> 2676.704172 | F104: =IF(IF(CMdata=1,DEGREES(IMARGUMENT(L104)),'CM choke'!F108)=0, F103, IF(CMdata=1,DEGREES(IMARGUMENT(L104)),'CM choke'!F108)) -> 54.66305905 | G104: 1548.162067 | H104: 2183.561182 | I104: 1548.162067 | J104: 2183.561182 | K104: =IF(CMdata=1,IMDIV(1,IMSUM(IMDIV(1,IMPRODUCT(B104,'Design the AEF circuit'!$G$13*0.001)),IMDIV(1,'Design the AEF circuit'!$H$13*1000),IMPRODUCT(B104,'Design the AEF circuit'!$I$13*0.000000000001))),COMPLEX(G104,H104,"j")) -> 1548,16206727458+2183,56118197858j | L104: =IF(CMdata=1,IMDIV(1,IMSUM(IMDIV(1,IMPRODUCT(B104,'Design the AEF circuit'!$G$14*0.001)),IMDIV(1,'Design the AEF circuit'!$H$14*1000),IMPRODUCT(B104,'Design the AEF circuit'!$I$14*0.000000000001))),COMPLEX(I104,J104,"j")) -> 1548,16206727458+2183,56118197858j
A105: ='Frequency vector'!G105 -> 14873.52107 | B105: =COMPLEX(0,2*PI()*'Frequency vector'!G105,"j") -> 93453,0890714924j | C105: =IF(IF(CMdata=1,IMABS(K105),'CM choke'!C109)=0, C104, IF(CMdata=1,IMABS(K105),'CM choke'!C109)) -> 2717.888965 | D105: =IF(IF(CMdata=1,DEGREES(IMARGUMENT(K105)),'CM choke'!D109)=0, D104, IF(CMdata=1,DEGREES(IMARGUMENT(K105)),'CM choke'!D109)) -> 54.08879365 | E105: =IF(IF(CMdata=1,IMABS(L105),'CM choke'!E109)=0, E104, IF(CMdata=1,IMABS(L105),'CM choke'!E109)) -> 2717.888965 | F105: =IF(IF(CMdata=1,DEGREES(IMARGUMENT(L105)),'CM choke'!F109)=0, F104, IF(CMdata=1,DEGREES(IMARGUMENT(L105)),'CM choke'!F109)) -> 54.08879365 | G105: 1594.125534 | H105: 2201.291486 | I105: 1594.125534 | J105: 2201.291486 | K105: =IF(CMdata=1,IMDIV(1,IMSUM(IMDIV(1,IMPRODUCT(B105,'Design the AEF circuit'!$G$13*0.001)),IMDIV(1,'Design the AEF circuit'!$H$13*1000),IMPRODUCT(B105,'Design the AEF circuit'!$I$13*0.000000000001))),COMPLEX(G105,H105,"j")) -> 1594,12553372958+2201,29148621749j | L105: =IF(CMdata=1,IMDIV(1,IMSUM(IMDIV(1,IMPRODUCT(B105,'Design the AEF circuit'!$G$14*0.001)),IMDIV(1,'Design the AEF circuit'!$H$14*1000),IMPRODUCT(B105,'Design the AEF circuit'!$I$14*0.000000000001))),COMPLEX(I105,J105,"j")) -> 1594,12553372958+2201,29148621749j
A106: ='Frequency vector'!G106 -> 15272.42658 | B106: =COMPLEX(0,2*PI()*'Frequency vector'!G106,"j") -> 95959,4862872143j | C106: =IF(IF(CMdata=1,IMABS(K106),'CM choke'!C110)=0, C105, IF(CMdata=1,IMABS(K106),'CM choke'!C110)) -> 2758.893533 | D106: =IF(IF(CMdata=1,DEGREES(IMARGUMENT(K106)),'CM choke'!D110)=0, D105, IF(CMdata=1,DEGREES(IMARGUMENT(K106)),'CM choke'!D110)) -> 53.51737137 | E106: =IF(IF(CMdata=1,IMABS(L106),'CM choke'!E110)=0, E105, IF(CMdata=1,IMABS(L106),'CM choke'!E110)) -> 2758.893533 | F106: =IF(IF(CMdata=1,DEGREES(IMARGUMENT(L106)),'CM choke'!F110)=0, F105, IF(CMdata=1,DEGREES(IMARGUMENT(L106)),'CM choke'!F110)) -> 53.51737137 | G106: 1640.380268 | H106: 2218.252939 | I106: 1640.380268 | J106: 2218.252939 | K106: =IF(CMdata=1,IMDIV(1,IMSUM(IMDIV(1,IMPRODUCT(B106,'Design the AEF circuit'!$G$13*0.001)),IMDIV(1,'Design the AEF circuit'!$H$13*1000),IMPRODUCT(B106,'Design the AEF circuit'!$I$13*0.000000000001))),COMPLEX(G106,H106,"j")) -> 1640,38026821489+2218,25293941797j | L106: =IF(CMdata=1,IMDIV(1,IMSUM(IMDIV(1,IMPRODUCT(B106,'Design the AEF circuit'!$G$14*0.001)),IMDIV(1,'Design the AEF circuit'!$H$14*1000),IMPRODUCT(B106,'Design the AEF circuit'!$I$14*0.000000000001))),COMPLEX(I106,J106,"j")) -> 1640,38026821489+2218,25293941797j
A107: ='Frequency vector'!G107 -> 15682.03067 | B107: =COMPLEX(0,2*PI()*'Frequency vector'!G107,"j") -> 98533,1046838022j | C107: =IF(IF(CMdata=1,IMABS(K107),'CM choke'!C111)=0, C106, IF(CMdata=1,IMABS(K107),'CM choke'!C111)) -> 2799.695476 | D107: =IF(IF(CMdata=1,DEGREES(IMARGUMENT(K107)),'CM choke'!D111)=0, D106, IF(CMdata=1,DEGREES(IMARGUMENT(K107)),'CM choke'!D111)) -> 52.94936681 | E107: =IF(IF(CMdata=1,IMABS(L107),'CM choke'!E111)=0, E106, IF(CMdata=1,IMABS(L107),'CM choke'!E111)) -> 2799.695476 | F107: =IF(IF(CMdata=1,DEGREES(IMARGUMENT(L107)),'CM choke'!F111)=0, F106, IF(CMdata=1,DEGREES(IMARGUMENT(L107)),'CM choke'!F111)) -> 52.94936681 | G107: 1686.874072 | H107: 2234.44638 | I107: 1686.874072 | J107: 2234.44638 | K107: =IF(CMdata=1,IMDIV(1,IMSUM(IMDIV(1,IMPRODUCT(B107,'Design the AEF circuit'!$G$13*0.001)),IMDIV(1,'Design the AEF circuit'!$H$13*1000),IMPRODUCT(B107,'Design the AEF circuit'!$I$13*0.000000000001))),COMPLEX(G107,H107,"j")) -> 1686,87407184681+2234,44637995396j | L107: =IF(CMdata=1,IMDIV(1,IMSUM(IMDIV(1,IMPRODUCT(B107,'Design the AEF circuit'!$G$14*0.001)),IMDIV(1,'Design the AEF circuit'!$H$14*1000),IMPRODUCT(B107,'Design the AEF circuit'!$I$14*0.000000000001))),COMPLEX(I107,J107,"j")) -> 1686,87407184681+2234,44637995396j
A108: ='Frequency vector'!G108 -> 16102.62028 | B108: =COMPLEX(0,2*PI()*'Frequency vector'!G108,"j") -> 101175,747122802j | C108: =IF(IF(CMdata=1,IMABS(K108),'CM choke'!C112)=0, C107, IF(CMdata=1,IMABS(K108),'CM choke'!C112)) -> 2840.274115 | D108: =IF(IF(CMdata=1,DEGREES(IMARGUMENT(K108)),'CM choke'!D112)=0, D107, IF(CMdata=1,DEGREES(IMARGUMENT(K108)),'CM choke'!D112)) -> 52.38535378 | E108: =IF(IF(CMdata=1,IMABS(L108),'CM choke'!E112)=0, E107, IF(CMdata=1,IMABS(L108),'CM choke'!E112)) -> 2840.274115 | F108: =IF(IF(CMdata=1,DEGREES(IMARGUMENT(L108)),'CM choke'!F112)=0, F107, IF(CMdata=1,DEGREES(IMARGUMENT(L108)),'CM choke'!F112)) -> 52.38535378 | G108: 1733.554696 | H108: 2249.8767 | I108: 1733.554696 | J108: 2249.8767 | K108: =IF(CMdata=1,IMDIV(1,IMSUM(IMDIV(1,IMPRODUCT(B108,'Design the AEF circuit'!$G$13*0.001)),IMDIV(1,'Design the AEF circuit'!$H$13*1000),IMPRODUCT(B108,'Design the AEF circuit'!$I$13*0.000000000001))),COMPLEX(G108,H108,"j")) -> 1733,55469590848+2249,87669950533j | L108: =IF(CMdata=1,IMDIV(1,IMSUM(IMDIV(1,IMPRODUCT(B108,'Design the AEF circuit'!$G$14*0.001)),IMDIV(1,'Design the AEF circuit'!$H$14*1000),IMPRODUCT(B108,'Design the AEF circuit'!$I$14*0.000000000001))),COMPLEX(I108,J108,"j")) -> 1733,55469590848+2249,87669950533j
A109: ='Frequency vector'!G109 -> 16534.49003 | B109: =COMPLEX(0,2*PI()*'Frequency vector'!G109,"j") -> 103889,264818222j | C109: =IF(IF(CMdata=1,IMABS(K109),'CM choke'!C113)=0, C108, IF(CMdata=1,IMABS(K109),'CM choke'!C113)) -> 2880.610647 | D109: =IF(IF(CMdata=1,DEGREES(IMARGUMENT(K109)),'CM choke'!D113)=0, D108, IF(CMdata=1,DEGREES(IMARGUMENT(K109)),'CM choke'!D113)) -> 51.82590314 | E109: =IF(IF(CMdata=1,IMABS(L109),'CM choke'!E113)=0, E108, IF(CMdata=1,IMABS(L109),'CM choke'!E113)) -> 2880.610647 | F109: =IF(IF(CMdata=1,DEGREES(IMARGUMENT(L109)),'CM choke'!F113)=0, F108, IF(CMdata=1,DEGREES(IMARGUMENT(L109)),'CM choke'!F113)) -> 51.82590314 | G109: 1780.370197 | H109: 2264.552861 | I109: 1780.370197 | J109: 2264.552861 | K109: =IF(CMdata=1,IMDIV(1,IMSUM(IMDIV(1,IMPRODUCT(B109,'Design the AEF circuit'!$G$13*0.001)),IMDIV(1,'Design the AEF circuit'!$H$13*1000),IMPRODUCT(B109,'Design the AEF circuit'!$I$13*0.000000000001))),COMPLEX(G109,H109,"j")) -> 1780,3701965845+2264,55286141401j | L109: =IF(CMdata=1,IMDIV(1,IMSUM(IMDIV(1,IMPRODUCT(B109,'Design the AEF circuit'!$G$14*0.001)),IMDIV(1,'Design the AEF circuit'!$H$14*1000),IMPRODUCT(B109,'Design the AEF circuit'!$I$14*0.000000000001))),COMPLEX(I109,J109,"j")) -> 1780,3701965845+2264,55286141401j
A110: ='Frequency vector'!G110 -> 16977.94246 | B110: =COMPLEX(0,2*PI()*'Frequency vector'!G110,"j") -> 106675,558633342j | C110: =IF(IF(CMdata=1,IMABS(K110),'CM choke'!C114)=0, C109, IF(CMdata=1,IMABS(K110),'CM choke'!C114)) -> 2920.688292 | D110: =IF(IF(CMdata=1,DEGREES(IMARGUMENT(K110)),'CM choke'!D114)=0, D109, IF(CMdata=1,DEGREES(IMARGUMENT(K110)),'CM choke'!D114)) -> 51.27158053 | E110: =IF(IF(CMdata=1,IMABS(L110),'CM choke'!E114)=0, E109, IF(CMdata=1,IMABS(L110),'CM choke'!E114)) -> 2920.688292 | F110: =IF(IF(CMdata=1,DEGREES(IMARGUMENT(L110)),'CM choke'!F114)=0, F109, IF(CMdata=1,DEGREES(IMARGUMENT(L110)),'CM choke'!F114)) -> 51.27158053 | G110: 1827.269291 | H110: 2278.487884 | I110: 1827.269291 | J110: 2278.487884 | K110: =IF(CMdata=1,IMDIV(1,IMSUM(IMDIV(1,IMPRODUCT(B110,'Design the AEF circuit'!$G$13*0.001)),IMDIV(1,'Design the AEF circuit'!$H$13*1000),IMPRODUCT(B110,'Design the AEF circuit'!$I$13*0.000000000001))),COMPLEX(G110,H110,"j")) -> 1827,26929134202+2278,48788390805j | L110: =IF(CMdata=1,IMDIV(1,IMSUM(IMDIV(1,IMPRODUCT(B110,'Design the AEF circuit'!$G$14*0.001)),IMDIV(1,'Design the AEF circuit'!$H$14*1000),IMPRODUCT(B110,'Design the AEF circuit'!$I$14*0.000000000001))),COMPLEX(I110,J110,"j")) -> 1827,26929134202+2278,48788390805j
A111: ='Frequency vector'!G111 -> 17433.28822 | B111: =COMPLEX(0,2*PI()*'Frequency vector'!G111,"j") -> 109536,580412297j | C111: =IF(IF(CMdata=1,IMABS(K111),'CM choke'!C115)=0, C110, IF(CMdata=1,IMABS(K111),'CM choke'!C115)) -> 2960.492425 | D111: =IF(IF(CMdata=1,DEGREES(IMARGUMENT(K111)),'CM choke'!D115)=0, D110, IF(CMdata=1,DEGREES(IMARGUMENT(K111)),'CM choke'!D115)) -> 50.72294414 | E111: =IF(IF(CMdata=1,IMABS(L111),'CM choke'!E115)=0, E110, IF(CMdata=1,IMABS(L111),'CM choke'!E115)) -> 2960.492425 | F111: =IF(IF(CMdata=1,DEGREES(IMARGUMENT(L111)),'CM choke'!F115)=0, F110, IF(CMdata=1,DEGREES(IMARGUMENT(L111)),'CM choke'!F115)) -> 50.72294414 | G111: 1874.201713 | H111: 2291.698788 | I111: 1874.201713 | J111: 2291.698788 | K111: =IF(CMdata=1,IMDIV(1,IMSUM(IMDIV(1,IMPRODUCT(B111,'Design the AEF circuit'!$G$13*0.001)),IMDIV(1,'Design the AEF circuit'!$H$13*1000),IMPRODUCT(B111,'Design the AEF circuit'!$I$13*0.000000000001))),COMPLEX(G111,H111,"j")) -> 1874,20171291512+2291,69878823781j | L111: =IF(CMdata=1,IMDIV(1,IMSUM(IMDIV(1,IMPRODUCT(B111,'Design the AEF circuit'!$G$14*0.001)),IMDIV(1,'Design the AEF circuit'!$H$14*1000),IMPRODUCT(B111,'Design the AEF circuit'!$I$14*0.000000000001))),COMPLEX(I111,J111,"j")) -> 1874,20171291512+2291,69878823781j
A112: ='Frequency vector'!G112 -> 17900.84628 | B112: =COMPLEX(0,2*PI()*'Frequency vector'!G112,"j") -> 112474,334347376j | C112: =IF(IF(CMdata=1,IMABS(K112),'CM choke'!C116)=0, C111, IF(CMdata=1,IMABS(K112),'CM choke'!C116)) -> 3000.010693 | D112: =IF(IF(CMdata=1,DEGREES(IMARGUMENT(K112)),'CM choke'!D116)=0, D111, IF(CMdata=1,DEGREES(IMARGUMENT(K112)),'CM choke'!D116)) -> 50.1805425 | E112: =IF(IF(CMdata=1,IMABS(L112),'CM choke'!E116)=0, E111, IF(CMdata=1,IMABS(L112),'CM choke'!E116)) -> 3000.010693 | F112: =IF(IF(CMdata=1,DEGREES(IMARGUMENT(L112)),'CM choke'!F116)=0, F111, IF(CMdata=1,DEGREES(IMARGUMENT(L112)),'CM choke'!F116)) -> 50.1805425 | G112: 1921.118557 | H112: 2304.206512 | I112: 1921.118557 | J112: 2304.206512 | K112: =IF(CMdata=1,IMDIV(1,IMSUM(IMDIV(1,IMPRODUCT(B112,'Design the AEF circuit'!$G$13*0.001)),IMDIV(1,'Design the AEF circuit'!$H$13*1000),IMPRODUCT(B112,'Design the AEF circuit'!$I$13*0.000000000001))),COMPLEX(G112,H112,"j")) -> 1921,11855690196+2304,20651230359j | L112: =IF(CMdata=1,IMDIV(1,IMSUM(IMDIV(1,IMPRODUCT(B112,'Design the AEF circuit'!$G$14*0.001)),IMDIV(1,'Design the AEF circuit'!$H$14*1000),IMPRODUCT(B112,'Design the AEF circuit'!$I$14*0.000000000001))),COMPLEX(I112,J112,"j")) -> 1921,11855690196+2304,20651230359j
A113: ='Frequency vector'!G113 -> 18380.94418 | B113: =COMPLEX(0,2*PI()*'Frequency vector'!G113,"j") -> 115490,878382991j | C113: =IF(IF(CMdata=1,IMABS(K113),'CM choke'!C117)=0, C112, IF(CMdata=1,IMABS(K113),'CM choke'!C117)) -> 3039.233129 | D113: =IF(IF(CMdata=1,DEGREES(IMARGUMENT(K113)),'CM choke'!D117)=0, D112, IF(CMdata=1,DEGREES(IMARGUMENT(K113)),'CM choke'!D117)) -> 49.64491219 | E113: =IF(IF(CMdata=1,IMABS(L113),'CM choke'!E117)=0, E112, IF(CMdata=1,IMABS(L113),'CM choke'!E117)) -> 3039.233129 | F113: =IF(IF(CMdata=1,DEGREES(IMARGUMENT(L113)),'CM choke'!F117)=0, F112, IF(CMdata=1,DEGREES(IMARGUMENT(L113)),'CM choke'!F117)) -> 49.64491219 | G113: 1967.972619 | H113: 2316.035791 | I113: 1967.972619 | J113: 2316.035791 | K113: =IF(CMdata=1,IMDIV(1,IMSUM(IMDIV(1,IMPRODUCT(B113,'Design the AEF circuit'!$G$13*0.001)),IMDIV(1,'Design the AEF circuit'!$H$13*1000),IMPRODUCT(B113,'Design the AEF circuit'!$I$13*0.000000000001))),COMPLEX(G113,H113,"j")) -> 1967,9726191167+2316,03579087259j | L113: =IF(CMdata=1,IMDIV(1,IMSUM(IMDIV(1,IMPRODUCT(B113,'Design the AEF circuit'!$G$14*0.001)),IMDIV(1,'Design the AEF circuit'!$H$14*1000),IMPRODUCT(B113,'Design the AEF circuit'!$I$14*0.000000000001))),COMPLEX(I113,J113,"j")) -> 1967,9726191167+2316,03579087259j
A114: ='Frequency vector'!G114 -> 18873.91822 | B114: =COMPLEX(0,2*PI()*'Frequency vector'!G114,"j") -> 118588,325657302j | C114: =IF(IF(CMdata=1,IMABS(K114),'CM choke'!C118)=0, C113, IF(CMdata=1,IMABS(K114),'CM choke'!C118)) -> 3078.152237 | D114: =IF(IF(CMdata=1,DEGREES(IMARGUMENT(K114)),'CM choke'!D118)=0, D113, IF(CMdata=1,DEGREES(IMARGUMENT(K114)),'CM choke'!D118)) -> 49.11657572 | E114: =IF(IF(CMdata=1,IMABS(L114),'CM choke'!E118)=0, E113, IF(CMdata=1,IMABS(L114),'CM choke'!E118)) -> 3078.152237 | F114: =IF(IF(CMdata=1,DEGREES(IMARGUMENT(L114)),'CM choke'!F118)=0, F113, IF(CMdata=1,DEGREES(IMARGUMENT(L114)),'CM choke'!F118)) -> 49.11657572 | G114: 2014.718719 | H114: 2327.215004 | I114: 2014.718719 | J114: 2327.215004 | K114: =IF(CMdata=1,IMDIV(1,IMSUM(IMDIV(1,IMPRODUCT(B114,'Design the AEF circuit'!$G$13*0.001)),IMDIV(1,'Design the AEF circuit'!$H$13*1000),IMPRODUCT(B114,'Design the AEF circuit'!$I$13*0.000000000001))),COMPLEX(G114,H114,"j")) -> 2014,71871904545+2327,21500397297j | L114: =IF(CMdata=1,IMDIV(1,IMSUM(IMDIV(1,IMPRODUCT(B114,'Design the AEF circuit'!$G$14*0.001)),IMDIV(1,'Design the AEF circuit'!$H$14*1000),IMPRODUCT(B114,'Design the AEF circuit'!$I$14*0.000000000001))),COMPLEX(I114,J114,"j")) -> 2014,71871904545+2327,21500397297j
A115: ='Frequency vector'!G115 -> 19380.11375 | B115: =COMPLEX(0,2*PI()*'Frequency vector'!G115,"j") -> 121768,845982502j | C115: =IF(IF(CMdata=1,IMABS(K115),'CM choke'!C119)=0, C114, IF(CMdata=1,IMABS(K115),'CM choke'!C119)) -> 3116.76307 | D115: =IF(IF(CMdata=1,DEGREES(IMARGUMENT(K115)),'CM choke'!D119)=0, D114, IF(CMdata=1,DEGREES(IMARGUMENT(K115)),'CM choke'!D119)) -> 48.59603937 | E115: =IF(IF(CMdata=1,IMABS(L115),'CM choke'!E119)=0, E114, IF(CMdata=1,IMABS(L115),'CM choke'!E119)) -> 3116.76307 | F115: =IF(IF(CMdata=1,DEGREES(IMARGUMENT(L115)),'CM choke'!F119)=0, F114, IF(CMdata=1,DEGREES(IMARGUMENT(L115)),'CM choke'!F119)) -> 48.59603937 | G115: 2061.314006 | H115: 2337.775996 | I115: 2061.314006 | J115: 2337.775996 | K115: =IF(CMdata=1,IMDIV(1,IMSUM(IMDIV(1,IMPRODUCT(B115,'Design the AEF circuit'!$G$13*0.001)),IMDIV(1,'Design the AEF circuit'!$H$13*1000),IMPRODUCT(B115,'Design the AEF circuit'!$I$13*0.000000000001))),COMPLEX(G115,H115,"j")) -> 2061,31400603216+2337,77599550097j | L115: =IF(CMdata=1,IMDIV(1,IMSUM(IMDIV(1,IMPRODUCT(B115,'Design the AEF circuit'!$G$14*0.001)),IMDIV(1,'Design the AEF circuit'!$H$14*1000),IMPRODUCT(B115,'Design the AEF circuit'!$I$14*0.000000000001))),COMPLEX(I115,J115,"j")) -> 2061,31400603216+2337,77599550097j
A116: ='Frequency vector'!G116 -> 19899.88537 | B116: =COMPLEX(0,2*PI()*'Frequency vector'!G116,"j") -> 125034,667364807j | C116: =IF(IF(CMdata=1,IMABS(K116),'CM choke'!C120)=0, C115, IF(CMdata=1,IMABS(K116),'CM choke'!C120)) -> 3155.063297 | D116: =IF(IF(CMdata=1,DEGREES(IMARGUMENT(K116)),'CM choke'!D120)=0, D115, IF(CMdata=1,DEGREES(IMARGUMENT(K116)),'CM choke'!D120)) -> 48.0837911 | E116: =IF(IF(CMdata=1,IMABS(L116),'CM choke'!E120)=0, E115, IF(CMdata=1,IMABS(L116),'CM choke'!E120)) -> 3155.063297 | F116: =IF(IF(CMdata=1,DEGREES(IMARGUMENT(L116)),'CM choke'!F120)=0, F115, IF(CMdata=1,DEGREES(IMARGUMENT(L116)),'CM choke'!F120)) -> 48.0837911 | G116: 2107.718245 | H116: 2347.753864 | I116: 2107.718245 | J116: 2347.753864 | K116: =IF(CMdata=1,IMDIV(1,IMSUM(IMDIV(1,IMPRODUCT(B116,'Design the AEF circuit'!$G$13*0.001)),IMDIV(1,'Design the AEF circuit'!$H$13*1000),IMPRODUCT(B116,'Design the AEF circuit'!$I$13*0.000000000001))),COMPLEX(G116,H116,"j")) -> 2107,71824515625+2347,75386447473j | L116: =IF(CMdata=1,IMDIV(1,IMSUM(IMDIV(1,IMPRODUCT(B116,'Design the AEF circuit'!$G$14*0.001)),IMDIV(1,'Design the AEF circuit'!$H$14*1000),IMPRODUCT(B116,'Design the AEF circuit'!$I$14*0.000000000001))),COMPLEX(I116,J116,"j")) -> 2107,71824515625+2347,75386447473j
A117: ='Frequency vector'!G117 -> 20433.59718 | B117: =COMPLEX(0,2*PI()*'Frequency vector'!G117,"j") -> 128388,077565215j | C117: =IF(IF(CMdata=1,IMABS(K117),'CM choke'!C121)=0, C116, IF(CMdata=1,IMABS(K117),'CM choke'!C121)) -> 3193.05324 | D117: =IF(IF(CMdata=1,DEGREES(IMARGUMENT(K117)),'CM choke'!D121)=0, D116, IF(CMdata=1,DEGREES(IMARGUMENT(K117)),'CM choke'!D121)) -> 47.58029859 | E117: =IF(IF(CMdata=1,IMABS(L117),'CM choke'!E121)=0, E116, IF(CMdata=1,IMABS(L117),'CM choke'!E121)) -> 3193.05324 | F117: =IF(IF(CMdata=1,DEGREES(IMARGUMENT(L117)),'CM choke'!F121)=0, F116, IF(CMdata=1,DEGREES(IMARGUMENT(L117)),'CM choke'!F121)) -> 47.58029859 | G117: 2153.89408 | H117: 2357.186732 | I117: 2153.89408 | J117: 2357.186732 | K117: =IF(CMdata=1,IMDIV(1,IMSUM(IMDIV(1,IMPRODUCT(B117,'Design the AEF circuit'!$G$13*0.001)),IMDIV(1,'Design the AEF circuit'!$H$13*1000),IMPRODUCT(B117,'Design the AEF circuit'!$I$13*0.000000000001))),COMPLEX(G117,H117,"j")) -> 2153,89408015024+2357,18673170402j | L117: =IF(CMdata=1,IMDIV(1,IMSUM(IMDIV(1,IMPRODUCT(B117,'Design the AEF circuit'!$G$14*0.001)),IMDIV(1,'Design the AEF circuit'!$H$14*1000),IMPRODUCT(B117,'Design the AEF circuit'!$I$14*0.000000000001))),COMPLEX(I117,J117,"j")) -> 2153,89408015024+2357,18673170402j
A118: ='Frequency vector'!G118 -> 20981.62306 | B118: =COMPLEX(0,2*PI()*'Frequency vector'!G118,"j") -> 131831,425702108j | C118: =IF(IF(CMdata=1,IMABS(K118),'CM choke'!C122)=0, C117, IF(CMdata=1,IMABS(K118),'CM choke'!C122)) -> 3230.73591 | D118: =IF(IF(CMdata=1,DEGREES(IMARGUMENT(K118)),'CM choke'!D122)=0, D117, IF(CMdata=1,DEGREES(IMARGUMENT(K118)),'CM choke'!D122)) -> 47.0860073 | E118: =IF(IF(CMdata=1,IMABS(L118),'CM choke'!E122)=0, E117, IF(CMdata=1,IMABS(L118),'CM choke'!E122)) -> 3230.73591 | F118: =IF(IF(CMdata=1,DEGREES(IMARGUMENT(L118)),'CM choke'!F122)=0, F117, IF(CMdata=1,DEGREES(IMARGUMENT(L118)),'CM choke'!F122)) -> 47.0860073 | G118: 2199.807271 | H118: 2366.115485 | I118: 2199.807271 | J118: 2366.115485 | K118: =IF(CMdata=1,IMDIV(1,IMSUM(IMDIV(1,IMPRODUCT(B118,'Design the AEF circuit'!$G$13*0.001)),IMDIV(1,'Design the AEF circuit'!$H$13*1000),IMPRODUCT(B118,'Design the AEF circuit'!$I$13*0.000000000001))),COMPLEX(G118,H118,"j")) -> 2199,80727113125+2366,11548491825j | L118: =IF(CMdata=1,IMDIV(1,IMSUM(IMDIV(1,IMPRODUCT(B118,'Design the AEF circuit'!$G$14*0.001)),IMDIV(1,'Design the AEF circuit'!$H$14*1000),IMPRODUCT(B118,'Design the AEF circuit'!$I$14*0.000000000001))),COMPLEX(I118,J118,"j")) -> 2199,80727113125+2366,11548491825j
A119: ='Frequency vector'!G119 -> 21544.3469 | B119: =COMPLEX(0,2*PI()*'Frequency vector'!G119,"j") -> 135367,123896864j | C119: =IF(IF(CMdata=1,IMABS(K119),'CM choke'!C123)=0, C118, IF(CMdata=1,IMABS(K119),'CM choke'!C123)) -> 3268.117013 | D119: =IF(IF(CMdata=1,DEGREES(IMARGUMENT(K119)),'CM choke'!D123)=0, D118, IF(CMdata=1,DEGREES(IMARGUMENT(K119)),'CM choke'!D123)) -> 46.60133864 | E119: =IF(IF(CMdata=1,IMABS(L119),'CM choke'!E123)=0, E118, IF(CMdata=1,IMABS(L119),'CM choke'!E123)) -> 3268.117013 | F119: =IF(IF(CMdata=1,DEGREES(IMARGUMENT(L119)),'CM choke'!F123)=0, F118, IF(CMdata=1,DEGREES(IMARGUMENT(L119)),'CM choke'!F123)) -> 46.60133864 | G119: 2245.426905 | H119: 2374.583506 | I119: 2245.426905 | J119: 2374.583506 | K119: =IF(CMdata=1,IMDIV(1,IMSUM(IMDIV(1,IMPRODUCT(B119,'Design the AEF circuit'!$G$13*0.001)),IMDIV(1,'Design the AEF circuit'!$H$13*1000),IMPRODUCT(B119,'Design the AEF circuit'!$I$13*0.000000000001))),COMPLEX(G119,H119,"j")) -> 2245,42690537048+2374,58350559245j | L119: =IF(CMdata=1,IMDIV(1,IMSUM(IMDIV(1,IMPRODUCT(B119,'Design the AEF circuit'!$G$14*0.001)),IMDIV(1,'Design the AEF circuit'!$H$14*1000),IMPRODUCT(B119,'Design the AEF circuit'!$I$14*0.000000000001))),COMPLEX(I119,J119,"j")) -> 2245,42690537048+2374,58350559245j
A120: ='Frequency vector'!G120 -> 22122.16291 | B120: =COMPLEX(0,2*PI()*'Frequency vector'!G120,"j") -> 138997,648963572j | C120: =IF(IF(CMdata=1,IMABS(K120),'CM choke'!C124)=0, C119, IF(CMdata=1,IMABS(K120),'CM choke'!C124)) -> 3305.204957 | D120: =IF(IF(CMdata=1,DEGREES(IMARGUMENT(K120)),'CM choke'!D124)=0, D119, IF(CMdata=1,DEGREES(IMARGUMENT(K120)),'CM choke'!D124)) -> 46.12668829 | E120: =IF(IF(CMdata=1,IMABS(L120),'CM choke'!E124)=0, E119, IF(CMdata=1,IMABS(L120),'CM choke'!E124)) -> 3305.204957 | F120: =IF(IF(CMdata=1,DEGREES(IMARGUMENT(L120)),'CM choke'!F124)=0, F119, IF(CMdata=1,DEGREES(IMARGUMENT(L120)),'CM choke'!F124)) -> 46.12668829 | G120: 2290.72558 | H120: 2382.636381 | I120: 2290.72558 | J120: 2382.636381 | K120: =IF(CMdata=1,IMDIV(1,IMSUM(IMDIV(1,IMPRODUCT(B120,'Design the AEF circuit'!$G$13*0.001)),IMDIV(1,'Design the AEF circuit'!$H$13*1000),IMPRODUCT(B120,'Design the AEF circuit'!$I$13*0.000000000001))),COMPLEX(G120,H120,"j")) -> 2290,72557979186+2382,63638084103j | L120: =IF(CMdata=1,IMDIV(1,IMSUM(IMDIV(1,IMPRODUCT(B120,'Design the AEF circuit'!$G$14*0.001)),IMDIV(1,'Design the AEF circuit'!$H$14*1000),IMPRODUCT(B120,'Design the AEF circuit'!$I$14*0.000000000001))),COMPLEX(I120,J120,"j")) -> 2290,72557979186+2382,63638084103j
A121: ='Frequency vector'!G121 -> 22715.47586 | B121: =COMPLEX(0,2*PI()*'Frequency vector'!G121,"j") -> 142725,544144091j | C121: =IF(IF(CMdata=1,IMABS(K121),'CM choke'!C125)=0, C120, IF(CMdata=1,IMABS(K121),'CM choke'!C125)) -> 3342.010824 | D121: =IF(IF(CMdata=1,DEGREES(IMARGUMENT(K121)),'CM choke'!D125)=0, D120, IF(CMdata=1,DEGREES(IMARGUMENT(K121)),'CM choke'!D125)) -> 45.66242458 | E121: =IF(IF(CMdata=1,IMABS(L121),'CM choke'!E125)=0, E120, IF(CMdata=1,IMABS(L121),'CM choke'!E125)) -> 3342.010824 | F121: =IF(IF(CMdata=1,DEGREES(IMARGUMENT(L121)),'CM choke'!F125)=0, F120, IF(CMdata=1,DEGREES(IMARGUMENT(L121)),'CM choke'!F125)) -> 45.66242458 | G121: 2335.679554 | H121: 2390.321604 | I121: 2335.679554 | J121: 2390.321604 | K121: =IF(CMdata=1,IMDIV(1,IMSUM(IMDIV(1,IMPRODUCT(B121,'Design the AEF circuit'!$G$13*0.001)),IMDIV(1,'Design the AEF circuit'!$H$13*1000),IMPRODUCT(B121,'Design the AEF circuit'!$I$13*0.000000000001))),COMPLEX(G121,H121,"j")) -> 2335,67955435795+2390,32160380428j | L121: =IF(CMdata=1,IMDIV(1,IMSUM(IMDIV(1,IMPRODUCT(B121,'Design the AEF circuit'!$G$14*0.001)),IMDIV(1,'Design the AEF circuit'!$H$14*1000),IMPRODUCT(B121,'Design the AEF circuit'!$I$14*0.000000000001))),COMPLEX(I121,J121,"j")) -> 2335,67955435795+2390,32160380428j
A122: ='Frequency vector'!G122 -> 23324.70136 | B122: =COMPLEX(0,2*PI()*'Frequency vector'!G122,"j") -> 146553,420889626j | C122: =IF(IF(CMdata=1,IMABS(K122),'CM choke'!C126)=0, C121, IF(CMdata=1,IMABS(K122),'CM choke'!C126)) -> 3378.548348 | D122: =IF(IF(CMdata=1,DEGREES(IMARGUMENT(K122)),'CM choke'!D126)=0, D121, IF(CMdata=1,DEGREES(IMARGUMENT(K122)),'CM choke'!D126)) -> 45.20888699 | E122: =IF(IF(CMdata=1,IMABS(L122),'CM choke'!E126)=0, E121, IF(CMdata=1,IMABS(L122),'CM choke'!E126)) -> 3378.548348 | F122: =IF(IF(CMdata=1,DEGREES(IMARGUMENT(L122)),'CM choke'!F126)=0, F121, IF(CMdata=1,DEGREES(IMARGUMENT(L122)),'CM choke'!F126)) -> 45.20888699 | G122: 2380.268876 | H122: 2397.688266 | I122: 2380.268876 | J122: 2397.688266 | K122: =IF(CMdata=1,IMDIV(1,IMSUM(IMDIV(1,IMPRODUCT(B122,'Design the AEF circuit'!$G$13*0.001)),IMDIV(1,'Design the AEF circuit'!$H$13*1000),IMPRODUCT(B122,'Design the AEF circuit'!$I$13*0.000000000001))),COMPLEX(G122,H122,"j")) -> 2380,2688759586+2397,68826593846j | L122: =IF(CMdata=1,IMDIV(1,IMSUM(IMDIV(1,IMPRODUCT(B122,'Design the AEF circuit'!$G$14*0.001)),IMDIV(1,'Design the AEF circuit'!$H$14*1000),IMPRODUCT(B122,'Design the AEF circuit'!$I$14*0.000000000001))),COMPLEX(I122,J122,"j")) -> 2380,2688759586+2397,68826593846j
A123: ='Frequency vector'!G123 -> 23950.2662 | B123: =COMPLEX(0,2*PI()*'Frequency vector'!G123,"j") -> 150483,960690094j | C123: =IF(IF(CMdata=1,IMABS(K123),'CM choke'!C127)=0, C122, IF(CMdata=1,IMABS(K123),'CM choke'!C127)) -> 3414.833862 | D123: =IF(IF(CMdata=1,DEGREES(IMARGUMENT(K123)),'CM choke'!D127)=0, D122, IF(CMdata=1,DEGREES(IMARGUMENT(K123)),'CM choke'!D127)) -> 44.76638483 | E123: =IF(IF(CMdata=1,IMABS(L123),'CM choke'!E127)=0, E122, IF(CMdata=1,IMABS(L123),'CM choke'!E127)) -> 3414.833862 | F123: =IF(IF(CMdata=1,DEGREES(IMARGUMENT(L123)),'CM choke'!F127)=0, F122, IF(CMdata=1,DEGREES(IMARGUMENT(L123)),'CM choke'!F127)) -> 44.76638483 | G123: 2424.477473 | H123: 2404.786745 | I123: 2424.477473 | J123: 2404.786745 | K123: =IF(CMdata=1,IMDIV(1,IMSUM(IMDIV(1,IMPRODUCT(B123,'Design the AEF circuit'!$G$13*0.001)),IMDIV(1,'Design the AEF circuit'!$H$13*1000),IMPRODUCT(B123,'Design the AEF circuit'!$I$13*0.000000000001))),COMPLEX(G123,H123,"j")) -> 2424,47747285656+2404,78674454352j | L123: =IF(CMdata=1,IMDIV(1,IMSUM(IMDIV(1,IMPRODUCT(B123,'Design the AEF circuit'!$G$14*0.001)),IMDIV(1,'Design the AEF circuit'!$H$14*1000),IMPRODUCT(B123,'Design the AEF circuit'!$I$14*0.000000000001))),COMPLEX(I123,J123,"j")) -> 2424,47747285656+2404,78674454352j
A124: ='Frequency vector'!G124 -> 24592.60859 | B124: =COMPLEX(0,2*PI()*'Frequency vector'!G124,"j") -> 154519,916952556j | C124: =IF(IF(CMdata=1,IMABS(K124),'CM choke'!C128)=0, C123, IF(CMdata=1,IMABS(K124),'CM choke'!C128)) -> 3450.886239 | D124: =IF(IF(CMdata=1,DEGREES(IMARGUMENT(K124)),'CM choke'!D128)=0, D123, IF(CMdata=1,DEGREES(IMARGUMENT(K124)),'CM choke'!D128)) -> 44.33519595 | E124: =IF(IF(CMdata=1,IMABS(L124),'CM choke'!E128)=0, E123, IF(CMdata=1,IMABS(L124),'CM choke'!E128)) -> 3450.886239 | F124: =IF(IF(CMdata=1,DEGREES(IMARGUMENT(L124)),'CM choke'!F128)=0, F123, IF(CMdata=1,DEGREES(IMARGUMENT(L124)),'CM choke'!F128)) -> 44.33519595 | G124: 2468.29322 | H124: 2411.668389 | I124: 2468.29322 | J124: 2411.668389 | K124: =IF(CMdata=1,IMDIV(1,IMSUM(IMDIV(1,IMPRODUCT(B124,'Design the AEF circuit'!$G$13*0.001)),IMDIV(1,'Design the AEF circuit'!$H$13*1000),IMPRODUCT(B124,'Design the AEF circuit'!$I$13*0.000000000001))),COMPLEX(G124,H124,"j")) -> 2468,29322015076+2411,6683887246j | L124: =IF(CMdata=1,IMDIV(1,IMSUM(IMDIV(1,IMPRODUCT(B124,'Design the AEF circuit'!$G$14*0.001)),IMDIV(1,'Design the AEF circuit'!$H$14*1000),IMPRODUCT(B124,'Design the AEF circuit'!$I$14*0.000000000001))),COMPLEX(I124,J124,"j")) -> 2468,29322015076+2411,6683887246j
A125: ='Frequency vector'!G125 -> 25252.1785 | B125: =COMPLEX(0,2*PI()*'Frequency vector'!G125,"j") -> 158664,116930014j | C125: =IF(IF(CMdata=1,IMABS(K125),'CM choke'!C129)=0, C124, IF(CMdata=1,IMABS(K125),'CM choke'!C129)) -> 3486.726828 | D125: =IF(IF(CMdata=1,DEGREES(IMARGUMENT(K125)),'CM choke'!D129)=0, D124, IF(CMdata=1,DEGREES(IMARGUMENT(K125)),'CM choke'!D129)) -> 43.91556566 | E125: =IF(IF(CMdata=1,IMABS(L125),'CM choke'!E129)=0, E124, IF(CMdata=1,IMABS(L125),'CM choke'!E129)) -> 3486.726828 | F125: =IF(IF(CMdata=1,DEGREES(IMARGUMENT(L125)),'CM choke'!F129)=0, F124, IF(CMdata=1,DEGREES(IMARGUMENT(L125)),'CM choke'!F129)) -> 43.91556566 | G125: 2511.707977 | H125: 2418.385207 | I125: 2511.707977 | J125: 2418.385207 | K125: =IF(CMdata=1,IMDIV(1,IMSUM(IMDIV(1,IMPRODUCT(B125,'Design the AEF circuit'!$G$13*0.001)),IMDIV(1,'Design the AEF circuit'!$H$13*1000),IMPRODUCT(B125,'Design the AEF circuit'!$I$13*0.000000000001))),COMPLEX(G125,H125,"j")) -> 2511,70797708907+2418,38520679526j | L125: =IF(CMdata=1,IMDIV(1,IMSUM(IMDIV(1,IMPRODUCT(B125,'Design the AEF circuit'!$G$14*0.001)),IMDIV(1,'Design the AEF circuit'!$H$14*1000),IMPRODUCT(B125,'Design the AEF circuit'!$I$14*0.000000000001))),COMPLEX(I125,J125,"j")) -> 2511,70797708907+2418,38520679526j
A126: ='Frequency vector'!G126 -> 25929.43797 | B126: =COMPLEX(0,2*PI()*'Frequency vector'!G126,"j") -> 162919,463701956j | C126: =IF(IF(CMdata=1,IMABS(K126),'CM choke'!C130)=0, C125, IF(CMdata=1,IMABS(K126),'CM choke'!C130)) -> 3522.37936 | D126: =IF(IF(CMdata=1,DEGREES(IMARGUMENT(K126)),'CM choke'!D130)=0, D125, IF(CMdata=1,DEGREES(IMARGUMENT(K126)),'CM choke'!D130)) -> 43.50770575 | E126: =IF(IF(CMdata=1,IMABS(L126),'CM choke'!E130)=0, E125, IF(CMdata=1,IMABS(L126),'CM choke'!E130)) -> 3522.37936 | F126: =IF(IF(CMdata=1,DEGREES(IMARGUMENT(L126)),'CM choke'!F130)=0, F125, IF(CMdata=1,DEGREES(IMARGUMENT(L126)),'CM choke'!F130)) -> 43.50770575 | G126: 2554.717597 | H126: 2424.989558 | I126: 2554.717597 | J126: 2424.989558 | K126: =IF(CMdata=1,IMDIV(1,IMSUM(IMDIV(1,IMPRODUCT(B126,'Design the AEF circuit'!$G$13*0.001)),IMDIV(1,'Design the AEF circuit'!$H$13*1000),IMPRODUCT(B126,'Design the AEF circuit'!$I$13*0.000000000001))),COMPLEX(G126,H126,"j")) -> 2554,71759738752+2424,98955789959j | L126: =IF(CMdata=1,IMDIV(1,IMSUM(IMDIV(1,IMPRODUCT(B126,'Design the AEF circuit'!$G$14*0.001)),IMDIV(1,'Design the AEF circuit'!$H$14*1000),IMPRODUCT(B126,'Design the AEF circuit'!$I$14*0.000000000001))),COMPLEX(I126,J126,"j")) -> 2554,71759738752+2424,98955789959j
A127: ='Frequency vector'!G127 -> 26624.86144 | B127: =COMPLEX(0,2*PI()*'Frequency vector'!G127,"j") -> 167288,938208005j | C127: =IF(IF(CMdata=1,IMABS(K127),'CM choke'!C131)=0, C126, IF(CMdata=1,IMABS(K127),'CM choke'!C131)) -> 3557.869867 | D127: =IF(IF(CMdata=1,DEGREES(IMARGUMENT(K127)),'CM choke'!D131)=0, D126, IF(CMdata=1,DEGREES(IMARGUMENT(K127)),'CM choke'!D131)) -> 43.11179367 | E127: =IF(IF(CMdata=1,IMABS(L127),'CM choke'!E131)=0, E126, IF(CMdata=1,IMABS(L127),'CM choke'!E131)) -> 3557.869867 | F127: =IF(IF(CMdata=1,DEGREES(IMARGUMENT(L127)),'CM choke'!F131)=0, F126, IF(CMdata=1,DEGREES(IMARGUMENT(L127)),'CM choke'!F131)) -> 43.11179367 | G127: 2597.321914 | H127: 2431.53385 | I127: 2597.321914 | J127: 2431.53385 | K127: =IF(CMdata=1,IMDIV(1,IMSUM(IMDIV(1,IMPRODUCT(B127,'Design the AEF circuit'!$G$13*0.001)),IMDIV(1,'Design the AEF circuit'!$H$13*1000),IMPRODUCT(B127,'Design the AEF circuit'!$I$13*0.000000000001))),COMPLEX(G127,H127,"j")) -> 2597,32191399245+2431,53385036526j | L127: =IF(CMdata=1,IMDIV(1,IMSUM(IMDIV(1,IMPRODUCT(B127,'Design the AEF circuit'!$G$14*0.001)),IMDIV(1,'Design the AEF circuit'!$H$14*1000),IMPRODUCT(B127,'Design the AEF circuit'!$I$14*0.000000000001))),COMPLEX(I127,J127,"j")) -> 2597,32191399245+2431,53385036526j
A128: ='Frequency vector'!G128 -> 27338.93606 | B128: =COMPLEX(0,2*PI()*'Frequency vector'!G128,"j") -> 171775,601336121j | C128: =IF(IF(CMdata=1,IMABS(K128),'CM choke'!C132)=0, C127, IF(CMdata=1,IMABS(K128),'CM choke'!C132)) -> 3593.22657 | D128: =IF(IF(CMdata=1,DEGREES(IMARGUMENT(K128)),'CM choke'!D132)=0, D127, IF(CMdata=1,DEGREES(IMARGUMENT(K128)),'CM choke'!D132)) -> 42.72797176 | E128: =IF(IF(CMdata=1,IMABS(L128),'CM choke'!E132)=0, E127, IF(CMdata=1,IMABS(L128),'CM choke'!E132)) -> 3593.22657 | F128: =IF(IF(CMdata=1,DEGREES(IMARGUMENT(L128)),'CM choke'!F132)=0, F127, IF(CMdata=1,DEGREES(IMARGUMENT(L128)),'CM choke'!F132)) -> 42.72797176 | G128: 2639.5247 | H128: 2438.070249 | I128: 2639.5247 | J128: 2438.070249 | K128: =IF(CMdata=1,IMDIV(1,IMSUM(IMDIV(1,IMPRODUCT(B128,'Design the AEF circuit'!$G$13*0.001)),IMDIV(1,'Design the AEF circuit'!$H$13*1000),IMPRODUCT(B128,'Design the AEF circuit'!$I$13*0.000000000001))),COMPLEX(G128,H128,"j")) -> 2639,52469994748+2438,07024900927j | L128: =IF(CMdata=1,IMDIV(1,IMSUM(IMDIV(1,IMPRODUCT(B128,'Design the AEF circuit'!$G$14*0.001)),IMDIV(1,'Design the AEF circuit'!$H$14*1000),IMPRODUCT(B128,'Design the AEF circuit'!$I$14*0.000000000001))),COMPLEX(I128,J128,"j")) -> 2639,52469994748+2438,07024900927j
A129: ='Frequency vector'!G129 -> 28072.16204 | B129: =COMPLEX(0,2*PI()*'Frequency vector'!G129,"j") -> 176382,596066798j | C129: =IF(IF(CMdata=1,IMABS(K129),'CM choke'!C133)=0, C128, IF(CMdata=1,IMABS(K129),'CM choke'!C133)) -> 3628.479772 | D129: =IF(IF(CMdata=1,DEGREES(IMARGUMENT(K129)),'CM choke'!D133)=0, D128, IF(CMdata=1,DEGREES(IMARGUMENT(K129)),'CM choke'!D133)) -> 42.35634673 | E129: =IF(IF(CMdata=1,IMABS(L129),'CM choke'!E133)=0, E128, IF(CMdata=1,IMABS(L129),'CM choke'!E133)) -> 3628.479772 | F129: =IF(IF(CMdata=1,DEGREES(IMARGUMENT(L129)),'CM choke'!F133)=0, F128, IF(CMdata=1,DEGREES(IMARGUMENT(L129)),'CM choke'!F133)) -> 42.35634673 | G129: 2681.333607 | H129: 2444.650393 | I129: 2681.333607 | J129: 2444.650393 | K129: =IF(CMdata=1,IMDIV(1,IMSUM(IMDIV(1,IMPRODUCT(B129,'Design the AEF circuit'!$G$13*0.001)),IMDIV(1,'Design the AEF circuit'!$H$13*1000),IMPRODUCT(B129,'Design the AEF circuit'!$I$13*0.000000000001))),COMPLEX(G129,H129,"j")) -> 2681,33360720351+2444,65039331385j | L129: =IF(CMdata=1,IMDIV(1,IMSUM(IMDIV(1,IMPRODUCT(B129,'Design the AEF circuit'!$G$14*0.001)),IMDIV(1,'Design the AEF circuit'!$H$14*1000),IMPRODUCT(B129,'Design the AEF circuit'!$I$14*0.000000000001))),COMPLEX(I129,J129,"j")) -> 2681,33360720351+2444,65039331385j
A130: ='Frequency vector'!G130 -> 28825.05303 | B130: =COMPLEX(0,2*PI()*'Frequency vector'!G130,"j") -> 181113,149674774j | C130: =IF(IF(CMdata=1,IMABS(K130),'CM choke'!C134)=0, C129, IF(CMdata=1,IMABS(K130),'CM choke'!C134)) -> 3663.661743 | D130: =IF(IF(CMdata=1,DEGREES(IMARGUMENT(K130)),'CM choke'!D134)=0, D129, IF(CMdata=1,DEGREES(IMARGUMENT(K130)),'CM choke'!D134)) -> 41.99698915 | E130: =IF(IF(CMdata=1,IMABS(L130),'CM choke'!E134)=0, E129, IF(CMdata=1,IMABS(L130),'CM choke'!E134)) -> 3663.661743 | F130: =IF(IF(CMdata=1,DEGREES(IMARGUMENT(L130)),'CM choke'!F134)=0, F129, IF(CMdata=1,DEGREES(IMARGUMENT(L130)),'CM choke'!F134)) -> 41.99698915 | G130: 2722.760085 | H130: 2451.325128 | I130: 2722.760085 | J130: 2451.325128 | K130: =IF(CMdata=1,IMDIV(1,IMSUM(IMDIV(1,IMPRODUCT(B130,'Design the AEF circuit'!$G$13*0.001)),IMDIV(1,'Design the AEF circuit'!$H$13*1000),IMPRODUCT(B130,'Design the AEF circuit'!$I$13*0.000000000001))),COMPLEX(G130,H130,"j")) -> 2722,76008533251+2451,32512807711j | L130: =IF(CMdata=1,IMDIV(1,IMSUM(IMDIV(1,IMPRODUCT(B130,'Design the AEF circuit'!$G$14*0.001)),IMDIV(1,'Design the AEF circuit'!$H$14*1000),IMPRODUCT(B130,'Design the AEF circuit'!$I$14*0.000000000001))),COMPLEX(I130,J130,"j")) -> 2722,76008533251+2451,32512807711j
A131: ='Frequency vector'!G131 -> 29598.13644 | B131: =COMPLEX(0,2*PI()*'Frequency vector'!G131,"j") -> 185970,57598979j | C131: =IF(IF(CMdata=1,IMABS(K131),'CM choke'!C135)=0, C130, IF(CMdata=1,IMABS(K131),'CM choke'!C135)) -> 3698.806587 | D131: =IF(IF(CMdata=1,DEGREES(IMARGUMENT(K131)),'CM choke'!D135)=0, D130, IF(CMdata=1,DEGREES(IMARGUMENT(K131)),'CM choke'!D135)) -> 41.64993322 | E131: =IF(IF(CMdata=1,IMABS(L131),'CM choke'!E135)=0, E130, IF(CMdata=1,IMABS(L131),'CM choke'!E135)) -> 3698.806587 | F131: =IF(IF(CMdata=1,DEGREES(IMARGUMENT(L131)),'CM choke'!F135)=0, F130, IF(CMdata=1,DEGREES(IMARGUMENT(L131)),'CM choke'!F135)) -> 41.64993322 | G131: =C131*COS(RADIANS(D131)) -> 2763.819282 | H131: =C131*SIN(RADIANS(D131)) -> 2458.144248 | I131: =E131*COS(RADIANS(F131)) -> 2763.819282 | J131: =E131*SIN(RADIANS(F131)) -> 2458.144248 | K131: =IF(CMdata=1,IMDIV(1,IMSUM(IMDIV(1,IMPRODUCT(B131,'Design the AEF circuit'!$G$13*0.001)),IMDIV(1,'Design the AEF circuit'!$H$13*1000),IMPRODUCT(B131,'Design the AEF circuit'!$I$13*0.000000000001))),COMPLEX(G131,H131,"j")) -> 2763,81928217995+2458,14424783276j | L131: =IF(CMdata=1,IMDIV(1,IMSUM(IMDIV(1,IMPRODUCT(B131,'Design the AEF circuit'!$G$14*0.001)),IMDIV(1,'Design the AEF circuit'!$H$14*1000),IMPRODUCT(B131,'Design the AEF circuit'!$I$14*0.000000000001))),COMPLEX(I131,J131,"j")) -> 2763,81928217995+2458,14424783276j
A132: ='Frequency vector'!G132 -> 30391.95382 | B132: =COMPLEX(0,2*PI()*'Frequency vector'!G132,"j") -> 190958,277717985j | C132: =IF(IF(CMdata=1,IMABS(K132),'CM choke'!C136)=0, C131, IF(CMdata=1,IMABS(K132),'CM choke'!C136)) -> 3733.950118 | D132: =IF(IF(CMdata=1,DEGREES(IMARGUMENT(K132)),'CM choke'!D136)=0, D131, IF(CMdata=1,DEGREES(IMARGUMENT(K132)),'CM choke'!D136)) -> 41.31517649 | E132: =IF(IF(CMdata=1,IMABS(L132),'CM choke'!E136)=0, E131, IF(CMdata=1,IMABS(L132),'CM choke'!E136)) -> 3733.950118 | F132: =IF(IF(CMdata=1,DEGREES(IMARGUMENT(L132)),'CM choke'!F136)=0, F131, IF(CMdata=1,DEGREES(IMARGUMENT(L132)),'CM choke'!F136)) -> 41.31517649 | G132: 2804.529929 | H132: 2465.156256 | I132: 2804.529929 | J132: 2465.156256 | K132: =IF(CMdata=1,IMDIV(1,IMSUM(IMDIV(1,IMPRODUCT(B132,'Design the AEF circuit'!$G$13*0.001)),IMDIV(1,'Design the AEF circuit'!$H$13*1000),IMPRODUCT(B132,'Design the AEF circuit'!$I$13*0.000000000001))),COMPLEX(G132,H132,"j")) -> 2804,52992851891+2465,15625603248j | L132: =IF(CMdata=1,IMDIV(1,IMSUM(IMDIV(1,IMPRODUCT(B132,'Design the AEF circuit'!$G$14*0.001)),IMDIV(1,'Design the AEF circuit'!$H$14*1000),IMPRODUCT(B132,'Design the AEF circuit'!$I$14*0.000000000001))),COMPLEX(I132,J132,"j")) -> 2804,52992851891+2465,15625603248j
A133: ='Frequency vector'!G133 -> 31207.06127 | B133: =COMPLEX(0,2*PI()*'Frequency vector'!G133,"j") -> 196079,74882554j | C133: =IF(IF(CMdata=1,IMABS(K133),'CM choke'!C137)=0, C132, IF(CMdata=1,IMABS(K133),'CM choke'!C137)) -> 3769.129722 | D133: =IF(IF(CMdata=1,DEGREES(IMARGUMENT(K133)),'CM choke'!D137)=0, D132, IF(CMdata=1,DEGREES(IMARGUMENT(K133)),'CM choke'!D137)) -> 40.99267989 | E133: =IF(IF(CMdata=1,IMABS(L133),'CM choke'!E137)=0, E132, IF(CMdata=1,IMABS(L133),'CM choke'!E137)) -> 3769.129722 | F133: =IF(IF(CMdata=1,DEGREES(IMARGUMENT(L133)),'CM choke'!F137)=0, F132, IF(CMdata=1,DEGREES(IMARGUMENT(L133)),'CM choke'!F137)) -> 40.99267989 | G133: 2844.914209 | H133: 2472.40814 | I133: 2844.914209 | J133: 2472.40814 | K133: =IF(CMdata=1,IMDIV(1,IMSUM(IMDIV(1,IMPRODUCT(B133,'Design the AEF circuit'!$G$13*0.001)),IMDIV(1,'Design the AEF circuit'!$H$13*1000),IMPRODUCT(B133,'Design the AEF circuit'!$I$13*0.000000000001))),COMPLEX(G133,H133,"j")) -> 2844,91420875262+2472,40813969683j | L133: =IF(CMdata=1,IMDIV(1,IMSUM(IMDIV(1,IMPRODUCT(B133,'Design the AEF circuit'!$G$14*0.001)),IMDIV(1,'Design the AEF circuit'!$H$14*1000),IMPRODUCT(B133,'Design the AEF circuit'!$I$14*0.000000000001))),COMPLEX(I133,J133,"j")) -> 2844,91420875262+2472,40813969683j
A134: ='Frequency vector'!G134 -> 32044.02976 | B134: =COMPLEX(0,2*PI()*'Frequency vector'!G134,"j") -> 201338,576986263j | C134: =IF(IF(CMdata=1,IMABS(K134),'CM choke'!C138)=0, C133, IF(CMdata=1,IMABS(K134),'CM choke'!C138)) -> 3804.384216 | D134: =IF(IF(CMdata=1,DEGREES(IMARGUMENT(K134)),'CM choke'!D138)=0, D133, IF(CMdata=1,DEGREES(IMARGUMENT(K134)),'CM choke'!D138)) -> 40.68236774 | E134: =IF(IF(CMdata=1,IMABS(L134),'CM choke'!E138)=0, E133, IF(CMdata=1,IMABS(L134),'CM choke'!E138)) -> 3804.384216 | F134: =IF(IF(CMdata=1,DEGREES(IMARGUMENT(L134)),'CM choke'!F138)=0, F133, IF(CMdata=1,DEGREES(IMARGUMENT(L134)),'CM choke'!F138)) -> 40.68236774 | G134: 2884.99762 | H134: 2479.94516 | I134: 2884.99762 | J134: 2479.94516 | K134: =IF(CMdata=1,IMDIV(1,IMSUM(IMDIV(1,IMPRODUCT(B134,'Design the AEF circuit'!$G$13*0.001)),IMDIV(1,'Design the AEF circuit'!$H$13*1000),IMPRODUCT(B134,'Design the AEF circuit'!$I$13*0.000000000001))),COMPLEX(G134,H134,"j")) -> 2884,99761966105+2479,94515997657j | L134: =IF(CMdata=1,IMDIV(1,IMSUM(IMDIV(1,IMPRODUCT(B134,'Design the AEF circuit'!$G$14*0.001)),IMDIV(1,'Design the AEF circuit'!$H$14*1000),IMPRODUCT(B134,'Design the AEF circuit'!$I$14*0.000000000001))),COMPLEX(I134,J134,"j")) -> 2884,99761966105+2479,94515997657j
A135: ='Frequency vector'!G135 -> 32903.44562 | B135: =COMPLEX(0,2*PI()*'Frequency vector'!G135,"j") -> 206738,446094813j | C135: =IF(IF(CMdata=1,IMABS(K135),'CM choke'!C139)=0, C134, IF(CMdata=1,IMABS(K135),'CM choke'!C139)) -> 3839.753703 | D135: =IF(IF(CMdata=1,DEGREES(IMARGUMENT(K135)),'CM choke'!D139)=0, D134, IF(CMdata=1,DEGREES(IMARGUMENT(K135)),'CM choke'!D139)) -> 40.38412799 | E135: =IF(IF(CMdata=1,IMABS(L135),'CM choke'!E139)=0, E134, IF(CMdata=1,IMABS(L135),'CM choke'!E139)) -> 3839.753703 | F135: =IF(IF(CMdata=1,DEGREES(IMARGUMENT(L135)),'CM choke'!F139)=0, F134, IF(CMdata=1,DEGREES(IMARGUMENT(L135)),'CM choke'!F139)) -> 40.38412799 | G135: 2924.808819 | H135: 2487.810659 | I135: 2924.808819 | J135: 2487.810659 | K135: =IF(CMdata=1,IMDIV(1,IMSUM(IMDIV(1,IMPRODUCT(B135,'Design the AEF circuit'!$G$13*0.001)),IMDIV(1,'Design the AEF circuit'!$H$13*1000),IMPRODUCT(B135,'Design the AEF circuit'!$I$13*0.000000000001))),COMPLEX(G135,H135,"j")) -> 2924,8088191013+2487,81065882475j | L135: =IF(CMdata=1,IMDIV(1,IMSUM(IMDIV(1,IMPRODUCT(B135,'Design the AEF circuit'!$G$14*0.001)),IMDIV(1,'Design the AEF circuit'!$H$14*1000),IMPRODUCT(B135,'Design the AEF circuit'!$I$14*0.000000000001))),COMPLEX(I135,J135,"j")) -> 2924,8088191013+2487,81065882475j
A136: ='Frequency vector'!G136 -> 33785.91088 | B136: =COMPLEX(0,2*PI()*'Frequency vector'!G136,"j") -> 212283,138847327j | C136: =IF(IF(CMdata=1,IMABS(K136),'CM choke'!C140)=0, C135, IF(CMdata=1,IMABS(K136),'CM choke'!C140)) -> 3875.279431 | D136: =IF(IF(CMdata=1,DEGREES(IMARGUMENT(K136)),'CM choke'!D140)=0, D135, IF(CMdata=1,DEGREES(IMARGUMENT(K136)),'CM choke'!D140)) -> 40.09781258 | E136: =IF(IF(CMdata=1,IMABS(L136),'CM choke'!E140)=0, E135, IF(CMdata=1,IMABS(L136),'CM choke'!E140)) -> 3875.279431 | F136: =IF(IF(CMdata=1,DEGREES(IMARGUMENT(L136)),'CM choke'!F140)=0, F135, IF(CMdata=1,DEGREES(IMARGUMENT(L136)),'CM choke'!F140)) -> 40.09781258 | G136: 2964.379466 | H136: 2496.045882 | I136: 2964.379466 | J136: 2496.045882 | K136: =IF(CMdata=1,IMDIV(1,IMSUM(IMDIV(1,IMPRODUCT(B136,'Design the AEF circuit'!$G$13*0.001)),IMDIV(1,'Design the AEF circuit'!$H$13*1000),IMPRODUCT(B136,'Design the AEF circuit'!$I$13*0.000000000001))),COMPLEX(G136,H136,"j")) -> 2964,37946646218+2496,04588176914j | L136: =IF(CMdata=1,IMDIV(1,IMSUM(IMDIV(1,IMPRODUCT(B136,'Design the AEF circuit'!$G$14*0.001)),IMDIV(1,'Design the AEF circuit'!$H$14*1000),IMPRODUCT(B136,'Design the AEF circuit'!$I$14*0.000000000001))),COMPLEX(I136,J136,"j")) -> 2964,37946646218+2496,04588176914j
A137: ='Frequency vector'!G137 -> 34692.04372 | B137: =COMPLEX(0,2*PI()*'Frequency vector'!G137,"j") -> 217976,539391258j | C137: =IF(IF(CMdata=1,IMABS(K137),'CM choke'!C141)=0, C136, IF(CMdata=1,IMABS(K137),'CM choke'!C141)) -> 3911.003635 | D137: =IF(IF(CMdata=1,DEGREES(IMARGUMENT(K137)),'CM choke'!D141)=0, D136, IF(CMdata=1,DEGREES(IMARGUMENT(K137)),'CM choke'!D141)) -> 39.82323784 | E137: =IF(IF(CMdata=1,IMABS(L137),'CM choke'!E141)=0, E136, IF(CMdata=1,IMABS(L137),'CM choke'!E141)) -> 3911.003635 | F137: =IF(IF(CMdata=1,DEGREES(IMARGUMENT(L137)),'CM choke'!F141)=0, F136, IF(CMdata=1,DEGREES(IMARGUMENT(L137)),'CM choke'!F141)) -> 39.82323784 | G137: 3003.744057 | H137: 2504.689817 | I137: 3003.744057 | J137: 2504.689817 | K137: =IF(CMdata=1,IMDIV(1,IMSUM(IMDIV(1,IMPRODUCT(B137,'Design the AEF circuit'!$G$13*0.001)),IMDIV(1,'Design the AEF circuit'!$H$13*1000),IMPRODUCT(B137,'Design the AEF circuit'!$I$13*0.000000000001))),COMPLEX(G137,H137,"j")) -> 3003,74405653962+2504,68981659191j | L137: =IF(CMdata=1,IMDIV(1,IMSUM(IMDIV(1,IMPRODUCT(B137,'Design the AEF circuit'!$G$14*0.001)),IMDIV(1,'Design the AEF circuit'!$H$14*1000),IMPRODUCT(B137,'Design the AEF circuit'!$I$14*0.000000000001))),COMPLEX(I137,J137,"j")) -> 3003,74405653962+2504,68981659191j
A138: ='Frequency vector'!G138 -> 35622.4789 | B138: =COMPLEX(0,2*PI()*'Frequency vector'!G138,"j") -> 223822,636046286j | C138: =IF(IF(CMdata=1,IMABS(K138),'CM choke'!C142)=0, C137, IF(CMdata=1,IMABS(K138),'CM choke'!C142)) -> 3946.969396 | D138: =IF(IF(CMdata=1,DEGREES(IMARGUMENT(K138)),'CM choke'!D142)=0, D137, IF(CMdata=1,DEGREES(IMARGUMENT(K138)),'CM choke'!D142)) -> 39.56018515 | E138: =IF(IF(CMdata=1,IMABS(L138),'CM choke'!E142)=0, E137, IF(CMdata=1,IMABS(L138),'CM choke'!E142)) -> 3946.969396 | F138: =IF(IF(CMdata=1,DEGREES(IMARGUMENT(L138)),'CM choke'!F142)=0, F137, IF(CMdata=1,DEGREES(IMARGUMENT(L138)),'CM choke'!F142)) -> 39.56018515 | G138: 3042.939748 | H138: 2513.779048 | I138: 3042.939748 | J138: 2513.779048 | K138: =IF(CMdata=1,IMDIV(1,IMSUM(IMDIV(1,IMPRODUCT(B138,'Design the AEF circuit'!$G$13*0.001)),IMDIV(1,'Design the AEF circuit'!$H$13*1000),IMPRODUCT(B138,'Design the AEF circuit'!$I$13*0.000000000001))),COMPLEX(G138,H138,"j")) -> 3042,93974835532+2513,77904757491j | L138: =IF(CMdata=1,IMDIV(1,IMSUM(IMDIV(1,IMPRODUCT(B138,'Design the AEF circuit'!$G$14*0.001)),IMDIV(1,'Design the AEF circuit'!$H$14*1000),IMPRODUCT(B138,'Design the AEF circuit'!$I$14*0.000000000001))),COMPLEX(I138,J138,"j")) -> 3042,93974835532+2513,77904757491j
A139: ='Frequency vector'!G139 -> 36577.86821 | B139: =COMPLEX(0,2*PI()*'Frequency vector'!G139,"j") -> 229825,524098203j | C139: =IF(IF(CMdata=1,IMABS(K139),'CM choke'!C143)=0, C138, IF(CMdata=1,IMABS(K139),'CM choke'!C143)) -> 3983.22048 | D139: =IF(IF(CMdata=1,DEGREES(IMARGUMENT(K139)),'CM choke'!D143)=0, D138, IF(CMdata=1,DEGREES(IMARGUMENT(K139)),'CM choke'!D143)) -> 39.30840165 | E139: =IF(IF(CMdata=1,IMABS(L139),'CM choke'!E143)=0, E138, IF(CMdata=1,IMABS(L139),'CM choke'!E143)) -> 3983.22048 | F139: =IF(IF(CMdata=1,DEGREES(IMARGUMENT(L139)),'CM choke'!F143)=0, F138, IF(CMdata=1,DEGREES(IMARGUMENT(L139)),'CM choke'!F143)) -> 39.30840165 | G139: 3082.00619 | H139: 2523.347625 | I139: 3082.00619 | J139: 2523.347625 | K139: =IF(CMdata=1,IMDIV(1,IMSUM(IMDIV(1,IMPRODUCT(B139,'Design the AEF circuit'!$G$13*0.001)),IMDIV(1,'Design the AEF circuit'!$H$13*1000),IMPRODUCT(B139,'Design the AEF circuit'!$I$13*0.000000000001))),COMPLEX(G139,H139,"j")) -> 3082,00619028404+2523,34762485093j | L139: =IF(CMdata=1,IMDIV(1,IMSUM(IMDIV(1,IMPRODUCT(B139,'Design the AEF circuit'!$G$14*0.001)),IMDIV(1,'Design the AEF circuit'!$H$14*1000),IMPRODUCT(B139,'Design the AEF circuit'!$I$14*0.000000000001))),COMPLEX(I139,J139,"j")) -> 3082,00619028404+2523,34762485093j
A140: ='Frequency vector'!G140 -> 37558.88091 | B140: =COMPLEX(0,2*PI()*'Frequency vector'!G140,"j") -> 235989,408667721j | C140: =IF(IF(CMdata=1,IMABS(K140),'CM choke'!C144)=0, C139, IF(CMdata=1,IMABS(K140),'CM choke'!C144)) -> 4019.801191 | D140: =IF(IF(CMdata=1,DEGREES(IMARGUMENT(K140)),'CM choke'!D144)=0, D139, IF(CMdata=1,DEGREES(IMARGUMENT(K140)),'CM choke'!D144)) -> 39.06760105 | E140: =IF(IF(CMdata=1,IMABS(L140),'CM choke'!E144)=0, E139, IF(CMdata=1,IMABS(L140),'CM choke'!E144)) -> 4019.801191 | F140: =IF(IF(CMdata=1,DEGREES(IMARGUMENT(L140)),'CM choke'!F144)=0, F139, IF(CMdata=1,DEGREES(IMARGUMENT(L140)),'CM choke'!F144)) -> 39.06760105 | G140: 3120.985343 | H140: 2533.426948 | I140: 3120.985343 | J140: 2533.426948 | K140: =IF(CMdata=1,IMDIV(1,IMSUM(IMDIV(1,IMPRODUCT(B140,'Design the AEF circuit'!$G$13*0.001)),IMDIV(1,'Design the AEF circuit'!$H$13*1000),IMPRODUCT(B140,'Design the AEF circuit'!$I$13*0.000000000001))),COMPLEX(G140,H140,"j")) -> 3120,98534269637+2533,42694831494j | L140: =IF(CMdata=1,IMDIV(1,IMSUM(IMDIV(1,IMPRODUCT(B140,'Design the AEF circuit'!$G$14*0.001)),IMDIV(1,'Design the AEF circuit'!$H$14*1000),IMPRODUCT(B140,'Design the AEF circuit'!$I$14*0.000000000001))),COMPLEX(I140,J140,"j")) -> 3120,98534269637+2533,42694831494j
A141: ='Frequency vector'!G141 -> 38566.20421 | B141: =COMPLEX(0,2*PI()*'Frequency vector'!G141,"j") -> 242318,607656232j | C141: =IF(IF(CMdata=1,IMABS(K141),'CM choke'!C145)=0, C140, IF(CMdata=1,IMABS(K141),'CM choke'!C145)) -> 4056.756212 | D141: =IF(IF(CMdata=1,DEGREES(IMARGUMENT(K141)),'CM choke'!D145)=0, D140, IF(CMdata=1,DEGREES(IMARGUMENT(K141)),'CM choke'!D145)) -> 38.83746471 | E141: =IF(IF(CMdata=1,IMABS(L141),'CM choke'!E145)=0, E140, IF(CMdata=1,IMABS(L141),'CM choke'!E145)) -> 4056.756212 | F141: =IF(IF(CMdata=1,DEGREES(IMARGUMENT(L141)),'CM choke'!F145)=0, F140, IF(CMdata=1,DEGREES(IMARGUMENT(L141)),'CM choke'!F145)) -> 38.83746471 | G141: 3159.921299 | H141: 2544.045665 | I141: 3159.921299 | J141: 2544.045665 | K141: =IF(CMdata=1,IMDIV(1,IMSUM(IMDIV(1,IMPRODUCT(B141,'Design the AEF circuit'!$G$13*0.001)),IMDIV(1,'Design the AEF circuit'!$H$13*1000),IMPRODUCT(B141,'Design the AEF circuit'!$I$13*0.000000000001))),COMPLEX(G141,H141,"j")) -> 3159,92129916575+2544,04566549464j | L141: =IF(CMdata=1,IMDIV(1,IMSUM(IMDIV(1,IMPRODUCT(B141,'Design the AEF circuit'!$G$14*0.001)),IMDIV(1,'Design the AEF circuit'!$H$14*1000),IMPRODUCT(B141,'Design the AEF circuit'!$I$14*0.000000000001))),COMPLEX(I141,J141,"j")) -> 3159,92129916575+2544,04566549464j
A142: ='Frequency vector'!G142 -> 39600.54377 | B142: =COMPLEX(0,2*PI()*'Frequency vector'!G142,"j") -> 248817,554770571j | C142: =IF(IF(CMdata=1,IMABS(K142),'CM choke'!C146)=0, C141, IF(CMdata=1,IMABS(K142),'CM choke'!C146)) -> 4094.130458 | D142: =IF(IF(CMdata=1,DEGREES(IMARGUMENT(K142)),'CM choke'!D146)=0, D141, IF(CMdata=1,DEGREES(IMARGUMENT(K142)),'CM choke'!D146)) -> 38.61764269 | E142: =IF(IF(CMdata=1,IMABS(L142),'CM choke'!E146)=0, E141, IF(CMdata=1,IMABS(L142),'CM choke'!E146)) -> 4094.130458 | F142: =IF(IF(CMdata=1,DEGREES(IMARGUMENT(L142)),'CM choke'!F146)=0, F141, IF(CMdata=1,DEGREES(IMARGUMENT(L142)),'CM choke'!F146)) -> 38.61764269 | G142: 3198.860107 | H142: 2555.229583 | I142: 3198.860107 | J142: 2555.229583 | K142: =IF(CMdata=1,IMDIV(1,IMSUM(IMDIV(1,IMPRODUCT(B142,'Design the AEF circuit'!$G$13*0.001)),IMDIV(1,'Design the AEF circuit'!$H$13*1000),IMPRODUCT(B142,'Design the AEF circuit'!$I$13*0.000000000001))),COMPLEX(G142,H142,"j")) -> 3198,86010713563+2555,22958275101j | L142: =IF(CMdata=1,IMDIV(1,IMSUM(IMDIV(1,IMPRODUCT(B142,'Design the AEF circuit'!$G$14*0.001)),IMDIV(1,'Design the AEF circuit'!$H$14*1000),IMPRODUCT(B142,'Design the AEF circuit'!$I$14*0.000000000001))),COMPLEX(I142,J142,"j")) -> 3198,86010713563+2555,22958275101j
A143: ='Frequency vector'!G143 -> 40662.62415 | B143: =COMPLEX(0,2*PI()*'Frequency vector'!G143,"j") -> 255490,80262889j | C143: =IF(IF(CMdata=1,IMABS(K143),'CM choke'!C147)=0, C142, IF(CMdata=1,IMABS(K143),'CM choke'!C147)) -> 4131.968915 | D143: =IF(IF(CMdata=1,DEGREES(IMARGUMENT(K143)),'CM choke'!D147)=0, D142, IF(CMdata=1,DEGREES(IMARGUMENT(K143)),'CM choke'!D147)) -> 38.40775503 | E143: =IF(IF(CMdata=1,IMABS(L143),'CM choke'!E147)=0, E142, IF(CMdata=1,IMABS(L143),'CM choke'!E147)) -> 4131.968915 | F143: =IF(IF(CMdata=1,DEGREES(IMARGUMENT(L143)),'CM choke'!F147)=0, F142, IF(CMdata=1,DEGREES(IMARGUMENT(L143)),'CM choke'!F147)) -> 38.40775503 | G143: 3237.849589 | H143: 2567.001589 | I143: 3237.849589 | J143: 2567.001589 | K143: =IF(CMdata=1,IMDIV(1,IMSUM(IMDIV(1,IMPRODUCT(B143,'Design the AEF circuit'!$G$13*0.001)),IMDIV(1,'Design the AEF circuit'!$H$13*1000),IMPRODUCT(B143,'Design the AEF circuit'!$I$13*0.000000000001))),COMPLEX(G143,H143,"j")) -> 3237,84958880112+2567,00158917986j | L143: =IF(CMdata=1,IMDIV(1,IMSUM(IMDIV(1,IMPRODUCT(B143,'Design the AEF circuit'!$G$14*0.001)),IMDIV(1,'Design the AEF circuit'!$H$14*1000),IMPRODUCT(B143,'Design the AEF circuit'!$I$14*0.000000000001))),COMPLEX(I143,J143,"j")) -> 3237,84958880112+2567,00158917986j
A144: ='Frequency vector'!G144 -> 41753.18937 | B144: =COMPLEX(0,2*PI()*'Frequency vector'!G144,"j") -> 262343,025949852j | C144: =IF(IF(CMdata=1,IMABS(K144),'CM choke'!C148)=0, C143, IF(CMdata=1,IMABS(K144),'CM choke'!C148)) -> 4170.316496 | D144: =IF(IF(CMdata=1,DEGREES(IMARGUMENT(K144)),'CM choke'!D148)=0, D143, IF(CMdata=1,DEGREES(IMARGUMENT(K144)),'CM choke'!D148)) -> 38.20739314 | E144: =IF(IF(CMdata=1,IMABS(L144),'CM choke'!E148)=0, E143, IF(CMdata=1,IMABS(L144),'CM choke'!E148)) -> 4170.316496 | F144: =IF(IF(CMdata=1,DEGREES(IMARGUMENT(L144)),'CM choke'!F148)=0, F143, IF(CMdata=1,DEGREES(IMARGUMENT(L144)),'CM choke'!F148)) -> 38.20739314 | G144: 3276.939163 | H144: 2579.381593 | I144: 3276.939163 | J144: 2579.381593 | K144: =IF(CMdata=1,IMDIV(1,IMSUM(IMDIV(1,IMPRODUCT(B144,'Design the AEF circuit'!$G$13*0.001)),IMDIV(1,'Design the AEF circuit'!$H$13*1000),IMPRODUCT(B144,'Design the AEF circuit'!$I$13*0.000000000001))),COMPLEX(G144,H144,"j")) -> 3276,93916282911+2579,38159260611j | L144: =IF(CMdata=1,IMDIV(1,IMSUM(IMDIV(1,IMPRODUCT(B144,'Design the AEF circuit'!$G$14*0.001)),IMDIV(1,'Design the AEF circuit'!$H$14*1000),IMPRODUCT(B144,'Design the AEF circuit'!$I$14*0.000000000001))),COMPLEX(I144,J144,"j")) -> 3276,93916282911+2579,38159260611j
A145: ='Frequency vector'!G145 -> 42873.00337 | B145: =COMPLEX(0,2*PI()*'Frequency vector'!G145,"j") -> 269379,02482734j | C145: =IF(IF(CMdata=1,IMABS(K145),'CM choke'!C149)=0, C144, IF(CMdata=1,IMABS(K145),'CM choke'!C149)) -> 4209.217882 | D145: =IF(IF(CMdata=1,DEGREES(IMARGUMENT(K145)),'CM choke'!D149)=0, D144, IF(CMdata=1,DEGREES(IMARGUMENT(K145)),'CM choke'!D149)) -> 38.01612131 | E145: =IF(IF(CMdata=1,IMABS(L145),'CM choke'!E149)=0, E144, IF(CMdata=1,IMABS(L145),'CM choke'!E149)) -> 4209.217882 | F145: =IF(IF(CMdata=1,DEGREES(IMARGUMENT(L145)),'CM choke'!F149)=0, F144, IF(CMdata=1,DEGREES(IMARGUMENT(L145)),'CM choke'!F149)) -> 38.01612131 | G145: 3316.179667 | H145: 2592.386467 | I145: 3316.179667 | J145: 2592.386467 | K145: =IF(CMdata=1,IMDIV(1,IMSUM(IMDIV(1,IMPRODUCT(B145,'Design the AEF circuit'!$G$13*0.001)),IMDIV(1,'Design the AEF circuit'!$H$13*1000),IMPRODUCT(B145,'Design the AEF circuit'!$I$13*0.000000000001))),COMPLEX(G145,H145,"j")) -> 3316,17966742892+2592,38646710555j | L145: =IF(CMdata=1,IMDIV(1,IMSUM(IMDIV(1,IMPRODUCT(B145,'Design the AEF circuit'!$G$14*0.001)),IMDIV(1,'Design the AEF circuit'!$H$14*1000),IMPRODUCT(B145,'Design the AEF circuit'!$I$14*0.000000000001))),COMPLEX(I145,J145,"j")) -> 3316,17966742892+2592,38646710555j
A146: ='Frequency vector'!G146 -> 44022.8506 | B146: =COMPLEX(0,2*PI()*'Frequency vector'!G146,"j") -> 276603,728093002j | C146: =IF(IF(CMdata=1,IMABS(K146),'CM choke'!C150)=0, C145, IF(CMdata=1,IMABS(K146),'CM choke'!C150)) -> 4248.717381 | D146: =IF(IF(CMdata=1,DEGREES(IMARGUMENT(K146)),'CM choke'!D150)=0, D145, IF(CMdata=1,DEGREES(IMARGUMENT(K146)),'CM choke'!D150)) -> 37.83347834 | E146: =IF(IF(CMdata=1,IMABS(L146),'CM choke'!E150)=0, E145, IF(CMdata=1,IMABS(L146),'CM choke'!E150)) -> 4248.717381 | F146: =IF(IF(CMdata=1,DEGREES(IMARGUMENT(L146)),'CM choke'!F150)=0, F145, IF(CMdata=1,DEGREES(IMARGUMENT(L146)),'CM choke'!F150)) -> 37.83347834 | G146: 3355.623185 | H146: 2606.030012 | I146: 3355.623185 | J146: 2606.030012 | K146: =IF(CMdata=1,IMDIV(1,IMSUM(IMDIV(1,IMPRODUCT(B146,'Design the AEF circuit'!$G$13*0.001)),IMDIV(1,'Design the AEF circuit'!$H$13*1000),IMPRODUCT(B146,'Design the AEF circuit'!$I$13*0.000000000001))),COMPLEX(G146,H146,"j")) -> 3355,62318519153+2606,03001154795j | L146: =IF(CMdata=1,IMDIV(1,IMSUM(IMDIV(1,IMPRODUCT(B146,'Design the AEF circuit'!$G$14*0.001)),IMDIV(1,'Design the AEF circuit'!$H$14*1000),IMPRODUCT(B146,'Design the AEF circuit'!$I$14*0.000000000001))),COMPLEX(I146,J146,"j")) -> 3355,62318519153+2606,03001154795j
A147: ='Frequency vector'!G147 -> 45203.53656 | B147: =COMPLEX(0,2*PI()*'Frequency vector'!G147,"j") -> 284022,196768984j | C147: =IF(IF(CMdata=1,IMABS(K147),'CM choke'!C151)=0, C146, IF(CMdata=1,IMABS(K147),'CM choke'!C151)) -> 4288.858775 | D147: =IF(IF(CMdata=1,DEGREES(IMARGUMENT(K147)),'CM choke'!D151)=0, D146, IF(CMdata=1,DEGREES(IMARGUMENT(K147)),'CM choke'!D151)) -> 37.65897936 | E147: =IF(IF(CMdata=1,IMABS(L147),'CM choke'!E151)=0, E146, IF(CMdata=1,IMABS(L147),'CM choke'!E151)) -> 4288.858775 | F147: =IF(IF(CMdata=1,DEGREES(IMARGUMENT(L147)),'CM choke'!F151)=0, F146, IF(CMdata=1,DEGREES(IMARGUMENT(L147)),'CM choke'!F151)) -> 37.65897936 | G147: 3395.32287 | H147: 2620.322919 | I147: 3395.32287 | J147: 2620.322919 | K147: =IF(CMdata=1,IMDIV(1,IMSUM(IMDIV(1,IMPRODUCT(B147,'Design the AEF circuit'!$G$13*0.001)),IMDIV(1,'Design the AEF circuit'!$H$13*1000),IMPRODUCT(B147,'Design the AEF circuit'!$I$13*0.000000000001))),COMPLEX(G147,H147,"j")) -> 3395,32287004189+2620,32291872676j | L147: =IF(CMdata=1,IMDIV(1,IMSUM(IMDIV(1,IMPRODUCT(B147,'Design the AEF circuit'!$G$14*0.001)),IMDIV(1,'Design the AEF circuit'!$H$14*1000),IMPRODUCT(B147,'Design the AEF circuit'!$I$14*0.000000000001))),COMPLEX(I147,J147,"j")) -> 3395,32287004189+2620,32291872676j
A148: ='Frequency vector'!G148 -> 46415.88834 | B148: =COMPLEX(0,2*PI()*'Frequency vector'!G148,"j") -> 291639,627613249j | C148: =IF(IF(CMdata=1,IMABS(K148),'CM choke'!C152)=0, C147, IF(CMdata=1,IMABS(K148),'CM choke'!C152)) -> 4329.685182 | D148: =IF(IF(CMdata=1,DEGREES(IMARGUMENT(K148)),'CM choke'!D152)=0, D147, IF(CMdata=1,DEGREES(IMARGUMENT(K148)),'CM choke'!D152)) -> 37.49211765 | E148: =IF(IF(CMdata=1,IMABS(L148),'CM choke'!E152)=0, E147, IF(CMdata=1,IMABS(L148),'CM choke'!E152)) -> 4329.685182 | F148: =IF(IF(CMdata=1,DEGREES(IMARGUMENT(L148)),'CM choke'!F152)=0, F147, IF(CMdata=1,DEGREES(IMARGUMENT(L148)),'CM choke'!F152)) -> 37.49211765 | G148: 3435.332777 | H148: 2635.272755 | I148: 3435.332777 | J148: 2635.272755 | K148: =IF(CMdata=1,IMDIV(1,IMSUM(IMDIV(1,IMPRODUCT(B148,'Design the AEF circuit'!$G$13*0.001)),IMDIV(1,'Design the AEF circuit'!$H$13*1000),IMPRODUCT(B148,'Design the AEF circuit'!$I$13*0.000000000001))),COMPLEX(G148,H148,"j")) -> 3435,33277659866+2635,27275472286j | L148: =IF(CMdata=1,IMDIV(1,IMSUM(IMDIV(1,IMPRODUCT(B148,'Design the AEF circuit'!$G$14*0.001)),IMDIV(1,'Design the AEF circuit'!$H$14*1000),IMPRODUCT(B148,'Design the AEF circuit'!$I$14*0.000000000001))),COMPLEX(I148,J148,"j")) -> 3435,33277659866+2635,27275472286j
A149: ='Frequency vector'!G149 -> 47660.75519 | B149: =COMPLEX(0,2*PI()*'Frequency vector'!G149,"j") -> 299461,356759996j | C149: =IF(IF(CMdata=1,IMABS(K149),'CM choke'!C153)=0, C148, IF(CMdata=1,IMABS(K149),'CM choke'!C153)) -> 4371.238917 | D149: =IF(IF(CMdata=1,DEGREES(IMARGUMENT(K149)),'CM choke'!D153)=0, D148, IF(CMdata=1,DEGREES(IMARGUMENT(K149)),'CM choke'!D153)) -> 37.33236671 | E149: =IF(IF(CMdata=1,IMABS(L149),'CM choke'!E153)=0, E148, IF(CMdata=1,IMABS(L149),'CM choke'!E153)) -> 4371.238917 | F149: =IF(IF(CMdata=1,DEGREES(IMARGUMENT(L149)),'CM choke'!F153)=0, F148, IF(CMdata=1,DEGREES(IMARGUMENT(L149)),'CM choke'!F153)) -> 37.33236671 | G149: 3475.707692 | H149: 2650.883948 | I149: 3475.707692 | J149: 2650.883948 | K149: =IF(CMdata=1,IMDIV(1,IMSUM(IMDIV(1,IMPRODUCT(B149,'Design the AEF circuit'!$G$13*0.001)),IMDIV(1,'Design the AEF circuit'!$H$13*1000),IMPRODUCT(B149,'Design the AEF circuit'!$I$13*0.000000000001))),COMPLEX(G149,H149,"j")) -> 3475,70769220895+2650,883948237j | L149: =IF(CMdata=1,IMDIV(1,IMSUM(IMDIV(1,IMPRODUCT(B149,'Design the AEF circuit'!$G$14*0.001)),IMDIV(1,'Design the AEF circuit'!$H$14*1000),IMPRODUCT(B149,'Design the AEF circuit'!$I$14*0.000000000001))),COMPLEX(I149,J149,"j")) -> 3475,70769220895+2650,883948237j
A150: ='Frequency vector'!G150 -> 48939.00918 | B150: =COMPLEX(0,2*PI()*'Frequency vector'!G150,"j") -> 307492,863457707j | C150: =IF(IF(CMdata=1,IMABS(K150),'CM choke'!C154)=0, C149, IF(CMdata=1,IMABS(K150),'CM choke'!C154)) -> 4413.561354 | D150: =IF(IF(CMdata=1,DEGREES(IMARGUMENT(K150)),'CM choke'!D154)=0, D149, IF(CMdata=1,DEGREES(IMARGUMENT(K150)),'CM choke'!D154)) -> 37.17918234 | E150: =IF(IF(CMdata=1,IMABS(L150),'CM choke'!E154)=0, E149, IF(CMdata=1,IMABS(L150),'CM choke'!E154)) -> 4413.561354 | F150: =IF(IF(CMdata=1,DEGREES(IMARGUMENT(L150)),'CM choke'!F154)=0, F149, IF(CMdata=1,DEGREES(IMARGUMENT(L150)),'CM choke'!F154)) -> 37.17918234 | G150: 3516.502972 | H150: 2667.15779 | I150: 3516.502972 | J150: 2667.15779 | K150: =IF(CMdata=1,IMDIV(1,IMSUM(IMDIV(1,IMPRODUCT(B150,'Design the AEF circuit'!$G$13*0.001)),IMDIV(1,'Design the AEF circuit'!$H$13*1000),IMPRODUCT(B150,'Design the AEF circuit'!$I$13*0.000000000001))),COMPLEX(G150,H150,"j")) -> 3516,50297192175+2667,15778971389j | L150: =IF(CMdata=1,IMDIV(1,IMSUM(IMDIV(1,IMPRODUCT(B150,'Design the AEF circuit'!$G$14*0.001)),IMDIV(1,'Design the AEF circuit'!$H$14*1000),IMPRODUCT(B150,'Design the AEF circuit'!$I$14*0.000000000001))),COMPLEX(I150,J150,"j")) -> 3516,50297192175+2667,15778971389j
A151: ='Frequency vector'!G151 -> 50251.54575 | B151: =COMPLEX(0,2*PI()*'Frequency vector'!G151,"j") -> 315739,773907453j | C151: =IF(IF(CMdata=1,IMABS(K151),'CM choke'!C155)=0, C150, IF(CMdata=1,IMABS(K151),'CM choke'!C155)) -> 4456.692803 | D151: =IF(IF(CMdata=1,DEGREES(IMARGUMENT(K151)),'CM choke'!D155)=0, D150, IF(CMdata=1,DEGREES(IMARGUMENT(K151)),'CM choke'!D155)) -> 37.03200488 | E151: =IF(IF(CMdata=1,IMABS(L151),'CM choke'!E155)=0, E150, IF(CMdata=1,IMABS(L151),'CM choke'!E155)) -> 4456.692803 | F151: =IF(IF(CMdata=1,DEGREES(IMARGUMENT(L151)),'CM choke'!F155)=0, F150, IF(CMdata=1,DEGREES(IMARGUMENT(L151)),'CM choke'!F155)) -> 37.03200488 | G151: 3557.774377 | H151: 2684.09244 | I151: 3557.774377 | J151: 2684.09244 | K151: =IF(CMdata=1,IMDIV(1,IMSUM(IMDIV(1,IMPRODUCT(B151,'Design the AEF circuit'!$G$13*0.001)),IMDIV(1,'Design the AEF circuit'!$H$13*1000),IMPRODUCT(B151,'Design the AEF circuit'!$I$13*0.000000000001))),COMPLEX(G151,H151,"j")) -> 3557,77437668566+2684,09244016817j | L151: =IF(CMdata=1,IMDIV(1,IMSUM(IMDIV(1,IMPRODUCT(B151,'Design the AEF circuit'!$G$14*0.001)),IMDIV(1,'Design the AEF circuit'!$H$14*1000),IMPRODUCT(B151,'Design the AEF circuit'!$I$14*0.000000000001))),COMPLEX(I151,J151,"j")) -> 3557,77437668566+2684,09244016817j
A152: ='Frequency vector'!G152 -> 51599.28434 | B152: =COMPLEX(0,2*PI()*'Frequency vector'!G152,"j") -> 324207,865204134j | C152: =IF(IF(CMdata=1,IMABS(K152),'CM choke'!C156)=0, C151, IF(CMdata=1,IMABS(K152),'CM choke'!C156)) -> 4500.672386 | D152: =IF(IF(CMdata=1,DEGREES(IMARGUMENT(K152)),'CM choke'!D156)=0, D151, IF(CMdata=1,DEGREES(IMARGUMENT(K152)),'CM choke'!D156)) -> 36.89026148 | E152: =IF(IF(CMdata=1,IMABS(L152),'CM choke'!E156)=0, E151, IF(CMdata=1,IMABS(L152),'CM choke'!E156)) -> 4500.672386 | F152: =IF(IF(CMdata=1,DEGREES(IMARGUMENT(L152)),'CM choke'!F156)=0, F151, IF(CMdata=1,DEGREES(IMARGUMENT(L152)),'CM choke'!F156)) -> 36.89026148 | G152: 3599.577915 | H152: 2701.68295 | I152: 3599.577915 | J152: 2701.68295 | K152: =IF(CMdata=1,IMDIV(1,IMSUM(IMDIV(1,IMPRODUCT(B152,'Design the AEF circuit'!$G$13*0.001)),IMDIV(1,'Design the AEF circuit'!$H$13*1000),IMPRODUCT(B152,'Design the AEF circuit'!$I$13*0.000000000001))),COMPLEX(G152,H152,"j")) -> 3599,57791510059+2701,68294970227j | L152: =IF(CMdata=1,IMDIV(1,IMSUM(IMDIV(1,IMPRODUCT(B152,'Design the AEF circuit'!$G$14*0.001)),IMDIV(1,'Design the AEF circuit'!$H$14*1000),IMPRODUCT(B152,'Design the AEF circuit'!$I$14*0.000000000001))),COMPLEX(I152,J152,"j")) -> 3599,57791510059+2701,68294970227j
A153: ='Frequency vector'!G153 -> 52983.16906 | B153: =COMPLEX(0,2*PI()*'Frequency vector'!G153,"j") -> 332903,069383433j | C153: =IF(IF(CMdata=1,IMABS(K153),'CM choke'!C157)=0, C152, IF(CMdata=1,IMABS(K153),'CM choke'!C157)) -> 4545.537924 | D153: =IF(IF(CMdata=1,DEGREES(IMARGUMENT(K153)),'CM choke'!D157)=0, D152, IF(CMdata=1,DEGREES(IMARGUMENT(K153)),'CM choke'!D157)) -> 36.75336853 | E153: =IF(IF(CMdata=1,IMABS(L153),'CM choke'!E157)=0, E152, IF(CMdata=1,IMABS(L153),'CM choke'!E157)) -> 4545.537924 | F153: =IF(IF(CMdata=1,DEGREES(IMARGUMENT(L153)),'CM choke'!F157)=0, F152, IF(CMdata=1,DEGREES(IMARGUMENT(L153)),'CM choke'!F157)) -> 36.75336853 | G153: 3641.969689 | H153: 2719.921286 | I153: 3641.969689 | J153: 2719.921286 | K153: =IF(CMdata=1,IMDIV(1,IMSUM(IMDIV(1,IMPRODUCT(B153,'Design the AEF circuit'!$G$13*0.001)),IMDIV(1,'Design the AEF circuit'!$H$13*1000),IMPRODUCT(B153,'Design the AEF circuit'!$I$13*0.000000000001))),COMPLEX(G153,H153,"j")) -> 3641,96968912195+2719,92128577727j | L153: =IF(CMdata=1,IMDIV(1,IMSUM(IMDIV(1,IMPRODUCT(B153,'Design the AEF circuit'!$G$14*0.001)),IMDIV(1,'Design the AEF circuit'!$H$14*1000),IMPRODUCT(B153,'Design the AEF circuit'!$I$14*0.000000000001))),COMPLEX(I153,J153,"j")) -> 3641,96968912195+2719,92128577727j
A154: ='Frequency vector'!G154 -> 54404.16936 | B154: =COMPLEX(0,2*PI()*'Frequency vector'!G154,"j") -> 341831,477577298j | C154: =IF(IF(CMdata=1,IMABS(K154),'CM choke'!C158)=0, C153, IF(CMdata=1,IMABS(K154),'CM choke'!C158)) -> 4591.325832 | D154: =IF(IF(CMdata=1,DEGREES(IMARGUMENT(K154)),'CM choke'!D158)=0, D153, IF(CMdata=1,DEGREES(IMARGUMENT(K154)),'CM choke'!D158)) -> 36.62073407 | E154: =IF(IF(CMdata=1,IMABS(L154),'CM choke'!E158)=0, E153, IF(CMdata=1,IMABS(L154),'CM choke'!E158)) -> 4591.325832 | F154: =IF(IF(CMdata=1,DEGREES(IMARGUMENT(L154)),'CM choke'!F158)=0, F153, IF(CMdata=1,DEGREES(IMARGUMENT(L154)),'CM choke'!F158)) -> 36.62073407 | G154: 3685.005744 | H154: 2738.796371 | I154: 3685.005744 | J154: 2738.796371 | K154: =IF(CMdata=1,IMDIV(1,IMSUM(IMDIV(1,IMPRODUCT(B154,'Design the AEF circuit'!$G$13*0.001)),IMDIV(1,'Design the AEF circuit'!$H$13*1000),IMPRODUCT(B154,'Design the AEF circuit'!$I$13*0.000000000001))),COMPLEX(G154,H154,"j")) -> 3685,00574420355+2738,79637135323j | L154: =IF(CMdata=1,IMDIV(1,IMSUM(IMDIV(1,IMPRODUCT(B154,'Design the AEF circuit'!$G$14*0.001)),IMDIV(1,'Design the AEF circuit'!$H$14*1000),IMPRODUCT(B154,'Design the AEF circuit'!$I$14*0.000000000001))),COMPLEX(I154,J154,"j")) -> 3685,00574420355+2738,79637135323j
A155: ='Frequency vector'!G155 -> 55863.28066 | B155: =COMPLEX(0,2*PI()*'Frequency vector'!G155,"j") -> 350999,344280884j | C155: =IF(IF(CMdata=1,IMABS(K155),'CM choke'!C159)=0, C154, IF(CMdata=1,IMABS(K155),'CM choke'!C159)) -> 4638.071028 | D155: =IF(IF(CMdata=1,DEGREES(IMARGUMENT(K155)),'CM choke'!D159)=0, D154, IF(CMdata=1,DEGREES(IMARGUMENT(K155)),'CM choke'!D159)) -> 36.4917603 | E155: =IF(IF(CMdata=1,IMABS(L155),'CM choke'!E159)=0, E154, IF(CMdata=1,IMABS(L155),'CM choke'!E159)) -> 4638.071028 | F155: =IF(IF(CMdata=1,DEGREES(IMARGUMENT(L155)),'CM choke'!F159)=0, F154, IF(CMdata=1,DEGREES(IMARGUMENT(L155)),'CM choke'!F159)) -> 36.4917603 | G155: 3728.741924 | H155: 2758.294133 | I155: 3728.741924 | J155: 2758.294133 | K155: =IF(CMdata=1,IMDIV(1,IMSUM(IMDIV(1,IMPRODUCT(B155,'Design the AEF circuit'!$G$13*0.001)),IMDIV(1,'Design the AEF circuit'!$H$13*1000),IMPRODUCT(B155,'Design the AEF circuit'!$I$13*0.000000000001))),COMPLEX(G155,H155,"j")) -> 3728,7419244768+2758,2941330553j | L155: =IF(CMdata=1,IMDIV(1,IMSUM(IMDIV(1,IMPRODUCT(B155,'Design the AEF circuit'!$G$14*0.001)),IMDIV(1,'Design the AEF circuit'!$H$14*1000),IMPRODUCT(B155,'Design the AEF circuit'!$I$14*0.000000000001))),COMPLEX(I155,J155,"j")) -> 3728,7419244768+2758,2941330553j
A156: ='Frequency vector'!G156 -> 57361.5251 | B156: =COMPLEX(0,2*PI()*'Frequency vector'!G156,"j") -> 360413,091733928j | C156: =IF(IF(CMdata=1,IMABS(K156),'CM choke'!C160)=0, C155, IF(CMdata=1,IMABS(K156),'CM choke'!C160)) -> 4685.806847 | D156: =IF(IF(CMdata=1,DEGREES(IMARGUMENT(K156)),'CM choke'!D160)=0, D155, IF(CMdata=1,DEGREES(IMARGUMENT(K156)),'CM choke'!D160)) -> 36.36584611 | E156: =IF(IF(CMdata=1,IMABS(L156),'CM choke'!E160)=0, E155, IF(CMdata=1,IMABS(L156),'CM choke'!E160)) -> 4685.806847 | F156: =IF(IF(CMdata=1,DEGREES(IMARGUMENT(L156)),'CM choke'!F160)=0, F155, IF(CMdata=1,DEGREES(IMARGUMENT(L156)),'CM choke'!F160)) -> 36.36584611 | G156: 3773.233734 | H156: 2778.39756 | I156: 3773.233734 | J156: 2778.39756 | K156: =IF(CMdata=1,IMDIV(1,IMSUM(IMDIV(1,IMPRODUCT(B156,'Design the AEF circuit'!$G$13*0.001)),IMDIV(1,'Design the AEF circuit'!$H$13*1000),IMPRODUCT(B156,'Design the AEF circuit'!$I$13*0.000000000001))),COMPLEX(G156,H156,"j")) -> 3773,23373368864+2778,39755953838j | L156: =IF(CMdata=1,IMDIV(1,IMSUM(IMDIV(1,IMPRODUCT(B156,'Design the AEF circuit'!$G$14*0.001)),IMDIV(1,'Design the AEF circuit'!$H$14*1000),IMPRODUCT(B156,'Design the AEF circuit'!$I$14*0.000000000001))),COMPLEX(I156,J156,"j")) -> 3773,23373368864+2778,39755953838j
A157: ='Frequency vector'!G157 -> 58899.95223 | B157: =COMPLEX(0,2*PI()*'Frequency vector'!G157,"j") -> 370079,314419628j | C157: =IF(IF(CMdata=1,IMABS(K157),'CM choke'!C161)=0, C156, IF(CMdata=1,IMABS(K157),'CM choke'!C161)) -> 4734.564973 | D157: =IF(IF(CMdata=1,DEGREES(IMARGUMENT(K157)),'CM choke'!D161)=0, D156, IF(CMdata=1,DEGREES(IMARGUMENT(K157)),'CM choke'!D161)) -> 36.24238959 | E157: =IF(IF(CMdata=1,IMABS(L157),'CM choke'!E161)=0, E156, IF(CMdata=1,IMABS(L157),'CM choke'!E161)) -> 4734.564973 | F157: =IF(IF(CMdata=1,DEGREES(IMARGUMENT(L157)),'CM choke'!F161)=0, F156, IF(CMdata=1,DEGREES(IMARGUMENT(L157)),'CM choke'!F161)) -> 36.24238959 | G157: 3818.536203 | H157: 2799.08677 | I157: 3818.536203 | J157: 2799.08677 | K157: =IF(CMdata=1,IMDIV(1,IMSUM(IMDIV(1,IMPRODUCT(B157,'Design the AEF circuit'!$G$13*0.001)),IMDIV(1,'Design the AEF circuit'!$H$13*1000),IMPRODUCT(B157,'Design the AEF circuit'!$I$13*0.000000000001))),COMPLEX(G157,H157,"j")) -> 3818,53620276308+2799,0867702163j | L157: =IF(CMdata=1,IMDIV(1,IMSUM(IMDIV(1,IMPRODUCT(B157,'Design the AEF circuit'!$G$14*0.001)),IMDIV(1,'Design the AEF circuit'!$H$14*1000),IMPRODUCT(B157,'Design the AEF circuit'!$I$14*0.000000000001))),COMPLEX(I157,J157,"j")) -> 3818,53620276308+2799,0867702163j
A158: ='Frequency vector'!G158 -> 60479.63972 | B158: =COMPLEX(0,2*PI()*'Frequency vector'!G158,"j") -> 380004,783684191j | C158: =IF(IF(CMdata=1,IMABS(K158),'CM choke'!C162)=0, C157, IF(CMdata=1,IMABS(K158),'CM choke'!C162)) -> 4784.375382 | D158: =IF(IF(CMdata=1,DEGREES(IMARGUMENT(K158)),'CM choke'!D162)=0, D157, IF(CMdata=1,DEGREES(IMARGUMENT(K158)),'CM choke'!D162)) -> 36.12079057 | E158: =IF(IF(CMdata=1,IMABS(L158),'CM choke'!E162)=0, E157, IF(CMdata=1,IMABS(L158),'CM choke'!E162)) -> 4784.375382 | F158: =IF(IF(CMdata=1,DEGREES(IMARGUMENT(L158)),'CM choke'!F162)=0, F157, IF(CMdata=1,DEGREES(IMARGUMENT(L158)),'CM choke'!F162)) -> 36.12079057 | G158: 3864.703765 | H158: 2820.339094 | I158: 3864.703765 | J158: 2820.339094 | K158: =IF(CMdata=1,IMDIV(1,IMSUM(IMDIV(1,IMPRODUCT(B158,'Design the AEF circuit'!$G$13*0.001)),IMDIV(1,'Design the AEF circuit'!$H$13*1000),IMPRODUCT(B158,'Design the AEF circuit'!$I$13*0.000000000001))),COMPLEX(G158,H158,"j")) -> 3864,70376500442+2820,33909448585j | L158: =IF(CMdata=1,IMDIV(1,IMSUM(IMDIV(1,IMPRODUCT(B158,'Design the AEF circuit'!$G$14*0.001)),IMDIV(1,'Design the AEF circuit'!$H$14*1000),IMPRODUCT(B158,'Design the AEF circuit'!$I$14*0.000000000001))),COMPLEX(I158,J158,"j")) -> 3864,70376500442+2820,33909448585j
A159: ='Frequency vector'!G159 -> 62101.69419 | B159: =COMPLEX(0,2*PI()*'Frequency vector'!G159,"j") -> 390196,452480269j | C159: =IF(IF(CMdata=1,IMABS(K159),'CM choke'!C163)=0, C158, IF(CMdata=1,IMABS(K159),'CM choke'!C163)) -> 4835.266308 | D159: =IF(IF(CMdata=1,DEGREES(IMARGUMENT(K159)),'CM choke'!D163)=0, D158, IF(CMdata=1,DEGREES(IMARGUMENT(K159)),'CM choke'!D163)) -> 36.0004531 | E159: =IF(IF(CMdata=1,IMABS(L159),'CM choke'!E163)=0, E158, IF(CMdata=1,IMABS(L159),'CM choke'!E163)) -> 4835.266308 | F159: =IF(IF(CMdata=1,DEGREES(IMARGUMENT(L159)),'CM choke'!F163)=0, F158, IF(CMdata=1,DEGREES(IMARGUMENT(L159)),'CM choke'!F163)) -> 36.0004531 | G159: 3911.79014 | H159: 2842.129162 | I159: 3911.79014 | J159: 2842.129162 | K159: =IF(CMdata=1,IMDIV(1,IMSUM(IMDIV(1,IMPRODUCT(B159,'Design the AEF circuit'!$G$13*0.001)),IMDIV(1,'Design the AEF circuit'!$H$13*1000),IMPRODUCT(B159,'Design the AEF circuit'!$I$13*0.000000000001))),COMPLEX(G159,H159,"j")) -> 3911,79014011966+2842,12916151046j | L159: =IF(CMdata=1,IMDIV(1,IMSUM(IMDIV(1,IMPRODUCT(B159,'Design the AEF circuit'!$G$14*0.001)),IMDIV(1,'Design the AEF circuit'!$H$14*1000),IMPRODUCT(B159,'Design the AEF circuit'!$I$14*0.000000000001))),COMPLEX(I159,J159,"j")) -> 3911,79014011966+2842,12916151046j
A160: ='Frequency vector'!G160 -> 63767.2519 | B160: =COMPLEX(0,2*PI()*'Frequency vector'!G160,"j") -> 400661,460237615j | C160: =IF(IF(CMdata=1,IMABS(K160),'CM choke'!C164)=0, C159, IF(CMdata=1,IMABS(K160),'CM choke'!C164)) -> 4887.264213 | D160: =IF(IF(CMdata=1,DEGREES(IMARGUMENT(K160)),'CM choke'!D164)=0, D159, IF(CMdata=1,DEGREES(IMARGUMENT(K160)),'CM choke'!D164)) -> 35.88078788 | E160: =IF(IF(CMdata=1,IMABS(L160),'CM choke'!E164)=0, E159, IF(CMdata=1,IMABS(L160),'CM choke'!E164)) -> 4887.264213 | F160: =IF(IF(CMdata=1,DEGREES(IMARGUMENT(L160)),'CM choke'!F164)=0, F159, IF(CMdata=1,DEGREES(IMARGUMENT(L160)),'CM choke'!F164)) -> 35.88078788 | G160: 3959.848228 | H160: 2864.429001 | I160: 3959.848228 | J160: 2864.429001 | K160: =IF(CMdata=1,IMDIV(1,IMSUM(IMDIV(1,IMPRODUCT(B160,'Design the AEF circuit'!$G$13*0.001)),IMDIV(1,'Design the AEF circuit'!$H$13*1000),IMPRODUCT(B160,'Design the AEF circuit'!$I$13*0.000000000001))),COMPLEX(G160,H160,"j")) -> 3959,84822840235+2864,4290005285j | L160: =IF(CMdata=1,IMDIV(1,IMSUM(IMDIV(1,IMPRODUCT(B160,'Design the AEF circuit'!$G$14*0.001)),IMDIV(1,'Design the AEF circuit'!$H$14*1000),IMPRODUCT(B160,'Design the AEF circuit'!$I$14*0.000000000001))),COMPLEX(I160,J160,"j")) -> 3959,84822840235+2864,4290005285j
A161: ='Frequency vector'!G161 -> 65477.47961 | B161: =COMPLEX(0,2*PI()*'Frequency vector'!G161,"j") -> 411407,137864369j | C161: =IF(IF(CMdata=1,IMABS(K161),'CM choke'!C165)=0, C160, IF(CMdata=1,IMABS(K161),'CM choke'!C165)) -> 4940.393789 | D161: =IF(IF(CMdata=1,DEGREES(IMARGUMENT(K161)),'CM choke'!D165)=0, D160, IF(CMdata=1,DEGREES(IMARGUMENT(K161)),'CM choke'!D165)) -> 35.76121463 | E161: =IF(IF(CMdata=1,IMABS(L161),'CM choke'!E165)=0, E160, IF(CMdata=1,IMABS(L161),'CM choke'!E165)) -> 4940.393789 | F161: =IF(IF(CMdata=1,DEGREES(IMARGUMENT(L161)),'CM choke'!F165)=0, F160, IF(CMdata=1,DEGREES(IMARGUMENT(L161)),'CM choke'!F165)) -> 35.76121463 | G161: 4008.930017 | H161: 2887.208152 | I161: 4008.930017 | J161: 2887.208152 | K161: =IF(CMdata=1,IMDIV(1,IMSUM(IMDIV(1,IMPRODUCT(B161,'Design the AEF circuit'!$G$13*0.001)),IMDIV(1,'Design the AEF circuit'!$H$13*1000),IMPRODUCT(B161,'Design the AEF circuit'!$I$13*0.000000000001))),COMPLEX(G161,H161,"j")) -> 4008,93001658216+2887,20815151782j | L161: =IF(CMdata=1,IMDIV(1,IMSUM(IMDIV(1,IMPRODUCT(B161,'Design the AEF circuit'!$G$14*0.001)),IMDIV(1,'Design the AEF circuit'!$H$14*1000),IMPRODUCT(B161,'Design the AEF circuit'!$I$14*0.000000000001))),COMPLEX(I161,J161,"j")) -> 4008,93001658216+2887,20815151782j
A162: ='Frequency vector'!G162 -> 67233.57536 | B162: =COMPLEX(0,2*PI()*'Frequency vector'!G162,"j") -> 422441,012882482j | C162: =IF(IF(CMdata=1,IMABS(K162),'CM choke'!C166)=0, C161, IF(CMdata=1,IMABS(K162),'CM choke'!C166)) -> 4994.677969 | D162: =IF(IF(CMdata=1,DEGREES(IMARGUMENT(K162)),'CM choke'!D166)=0, D161, IF(CMdata=1,DEGREES(IMARGUMENT(K162)),'CM choke'!D166)) -> 35.6411643 | E162: =IF(IF(CMdata=1,IMABS(L162),'CM choke'!E166)=0, E161, IF(CMdata=1,IMABS(L162),'CM choke'!E166)) -> 4994.677969 | F162: =IF(IF(CMdata=1,DEGREES(IMARGUMENT(L162)),'CM choke'!F166)=0, F161, IF(CMdata=1,DEGREES(IMARGUMENT(L162)),'CM choke'!F166)) -> 35.6411643 | G162: 4059.086497 | H162: 2910.433786 | I162: 4059.086497 | J162: 2910.433786 | K162: =IF(CMdata=1,IMDIV(1,IMSUM(IMDIV(1,IMPRODUCT(B162,'Design the AEF circuit'!$G$13*0.001)),IMDIV(1,'Design the AEF circuit'!$H$13*1000),IMPRODUCT(B162,'Design the AEF circuit'!$I$13*0.000000000001))),COMPLEX(G162,H162,"j")) -> 4059,08649699939+2910,43378587651j | L162: =IF(CMdata=1,IMDIV(1,IMSUM(IMDIV(1,IMPRODUCT(B162,'Design the AEF circuit'!$G$14*0.001)),IMDIV(1,'Design the AEF circuit'!$H$14*1000),IMPRODUCT(B162,'Design the AEF circuit'!$I$14*0.000000000001))),COMPLEX(I162,J162,"j")) -> 4059,08649699939+2910,43378587651j
A163: ='Frequency vector'!G163 -> 69036.76933 | B163: =COMPLEX(0,2*PI()*'Frequency vector'!G163,"j") -> 433770,814700861j | C163: =IF(IF(CMdata=1,IMABS(K163),'CM choke'!C167)=0, C162, IF(CMdata=1,IMABS(K163),'CM choke'!C167)) -> 5050.137968 | D163: =IF(IF(CMdata=1,DEGREES(IMARGUMENT(K163)),'CM choke'!D167)=0, D162, IF(CMdata=1,DEGREES(IMARGUMENT(K163)),'CM choke'!D167)) -> 35.52008116 | E163: =IF(IF(CMdata=1,IMABS(L163),'CM choke'!E167)=0, E162, IF(CMdata=1,IMABS(L163),'CM choke'!E167)) -> 5050.137968 | F163: =IF(IF(CMdata=1,DEGREES(IMARGUMENT(L163)),'CM choke'!F167)=0, F162, IF(CMdata=1,DEGREES(IMARGUMENT(L163)),'CM choke'!F167)) -> 35.52008116 | G163: 4110.367602 | H163: 2934.070837 | I163: 4110.367602 | J163: 2934.070837 | K163: =IF(CMdata=1,IMDIV(1,IMSUM(IMDIV(1,IMPRODUCT(B163,'Design the AEF circuit'!$G$13*0.001)),IMDIV(1,'Design the AEF circuit'!$H$13*1000),IMPRODUCT(B163,'Design the AEF circuit'!$I$13*0.000000000001))),COMPLEX(G163,H163,"j")) -> 4110,36760190744+2934,07083657288j | L163: =IF(CMdata=1,IMDIV(1,IMSUM(IMDIV(1,IMPRODUCT(B163,'Design the AEF circuit'!$G$14*0.001)),IMDIV(1,'Design the AEF circuit'!$H$14*1000),IMPRODUCT(B163,'Design the AEF circuit'!$I$14*0.000000000001))),COMPLEX(I163,J163,"j")) -> 4110,36760190744+2934,07083657288j
A164: ='Frequency vector'!G164 -> 70888.32467 | B164: =COMPLEX(0,2*PI()*'Frequency vector'!G164,"j") -> 445404,480029954j | C164: =IF(IF(CMdata=1,IMABS(K164),'CM choke'!C168)=0, C163, IF(CMdata=1,IMABS(K164),'CM choke'!C168)) -> 5106.79334 | D164: =IF(IF(CMdata=1,DEGREES(IMARGUMENT(K164)),'CM choke'!D168)=0, D163, IF(CMdata=1,DEGREES(IMARGUMENT(K164)),'CM choke'!D168)) -> 35.39742483 | E164: =IF(IF(CMdata=1,IMABS(L164),'CM choke'!E168)=0, E163, IF(CMdata=1,IMABS(L164),'CM choke'!E168)) -> 5106.79334 | F164: =IF(IF(CMdata=1,DEGREES(IMARGUMENT(L164)),'CM choke'!F168)=0, F163, IF(CMdata=1,DEGREES(IMARGUMENT(L164)),'CM choke'!F168)) -> 35.39742483 | G164: 4162.822155 | H164: 2958.082137 | I164: 4162.822155 | J164: 2958.082137 | K164: =IF(CMdata=1,IMDIV(1,IMSUM(IMDIV(1,IMPRODUCT(B164,'Design the AEF circuit'!$G$13*0.001)),IMDIV(1,'Design the AEF circuit'!$H$13*1000),IMPRODUCT(B164,'Design the AEF circuit'!$I$13*0.000000000001))),COMPLEX(G164,H164,"j")) -> 4162,82215483037+2958,0821369721j | L164: =IF(CMdata=1,IMDIV(1,IMSUM(IMDIV(1,IMPRODUCT(B164,'Design the AEF circuit'!$G$14*0.001)),IMDIV(1,'Design the AEF circuit'!$H$14*1000),IMPRODUCT(B164,'Design the AEF circuit'!$I$14*0.000000000001))),COMPLEX(I164,J164,"j")) -> 4162,82215483037+2958,0821369721j
A165: ='Frequency vector'!G165 -> 72789.53844 | B165: =COMPLEX(0,2*PI()*'Frequency vector'!G165,"j") -> 457350,158441537j | C165: =IF(IF(CMdata=1,IMABS(K165),'CM choke'!C169)=0, C164, IF(CMdata=1,IMABS(K165),'CM choke'!C169)) -> 5164.662061 | D165: =IF(IF(CMdata=1,DEGREES(IMARGUMENT(K165)),'CM choke'!D169)=0, D164, IF(CMdata=1,DEGREES(IMARGUMENT(K165)),'CM choke'!D169)) -> 35.27267193 | E165: =IF(IF(CMdata=1,IMABS(L165),'CM choke'!E169)=0, E164, IF(CMdata=1,IMABS(L165),'CM choke'!E169)) -> 5164.662061 | F165: =IF(IF(CMdata=1,DEGREES(IMARGUMENT(L165)),'CM choke'!F169)=0, F164, IF(CMdata=1,DEGREES(IMARGUMENT(L165)),'CM choke'!F169)) -> 35.27267193 | G165: 4216.497841 | H165: 2982.428567 | I165: 4216.497841 | J165: 2982.428567 | K165: =IF(CMdata=1,IMDIV(1,IMSUM(IMDIV(1,IMPRODUCT(B165,'Design the AEF circuit'!$G$13*0.001)),IMDIV(1,'Design the AEF circuit'!$H$13*1000),IMPRODUCT(B165,'Design the AEF circuit'!$I$13*0.000000000001))),COMPLEX(G165,H165,"j")) -> 4216,49784100351+2982,42856726691j | L165: =IF(CMdata=1,IMDIV(1,IMSUM(IMDIV(1,IMPRODUCT(B165,'Design the AEF circuit'!$G$14*0.001)),IMDIV(1,'Design the AEF circuit'!$H$14*1000),IMPRODUCT(B165,'Design the AEF circuit'!$I$14*0.000000000001))),COMPLEX(I165,J165,"j")) -> 4216,49784100351+2982,42856726691j
A166: ='Frequency vector'!G166 -> 74741.74246 | B166: =COMPLEX(0,2*PI()*'Frequency vector'!G166,"j") -> 469616,218077628j | C166: =IF(IF(CMdata=1,IMABS(K166),'CM choke'!C170)=0, C165, IF(CMdata=1,IMABS(K166),'CM choke'!C170)) -> 5223.760631 | D166: =IF(IF(CMdata=1,DEGREES(IMARGUMENT(K166)),'CM choke'!D170)=0, D165, IF(CMdata=1,DEGREES(IMARGUMENT(K166)),'CM choke'!D170)) -> 35.14531772 | E166: =IF(IF(CMdata=1,IMABS(L166),'CM choke'!E170)=0, E165, IF(CMdata=1,IMABS(L166),'CM choke'!E170)) -> 5223.760631 | F166: =IF(IF(CMdata=1,DEGREES(IMARGUMENT(L166)),'CM choke'!F170)=0, F165, IF(CMdata=1,DEGREES(IMARGUMENT(L166)),'CM choke'!F170)) -> 35.14531772 | G166: 4271.441199 | H166: 3007.069207 | I166: 4271.441199 | J166: 3007.069207 | K166: =IF(CMdata=1,IMDIV(1,IMSUM(IMDIV(1,IMPRODUCT(B166,'Design the AEF circuit'!$G$13*0.001)),IMDIV(1,'Design the AEF circuit'!$H$13*1000),IMPRODUCT(B166,'Design the AEF circuit'!$I$13*0.000000000001))),COMPLEX(G166,H166,"j")) -> 4271,4411989951+3007,06920712416j | L166: =IF(CMdata=1,IMDIV(1,IMSUM(IMDIV(1,IMPRODUCT(B166,'Design the AEF circuit'!$G$14*0.001)),IMDIV(1,'Design the AEF circuit'!$H$14*1000),IMPRODUCT(B166,'Design the AEF circuit'!$I$14*0.000000000001))),COMPLEX(I166,J166,"j")) -> 4271,4411989951+3007,06920712416j
A167: ='Frequency vector'!G167 -> 76746.30429 | B167: =COMPLEX(0,2*PI()*'Frequency vector'!G167,"j") -> 482211,2515125j | C167: =IF(IF(CMdata=1,IMABS(K167),'CM choke'!C171)=0, C166, IF(CMdata=1,IMABS(K167),'CM choke'!C171)) -> 5284.104212 | D167: =IF(IF(CMdata=1,DEGREES(IMARGUMENT(K167)),'CM choke'!D171)=0, D166, IF(CMdata=1,DEGREES(IMARGUMENT(K167)),'CM choke'!D171)) -> 35.01487739 | E167: =IF(IF(CMdata=1,IMABS(L167),'CM choke'!E171)=0, E166, IF(CMdata=1,IMABS(L167),'CM choke'!E171)) -> 5284.104212 | F167: =IF(IF(CMdata=1,DEGREES(IMARGUMENT(L167)),'CM choke'!F171)=0, F166, IF(CMdata=1,DEGREES(IMARGUMENT(L167)),'CM choke'!F171)) -> 35.01487739 | G167: 4327.697636 | H167: 3031.961493 | I167: 4327.697636 | J167: 3031.961493 | K167: =IF(CMdata=1,IMDIV(1,IMSUM(IMDIV(1,IMPRODUCT(B167,'Design the AEF circuit'!$G$13*0.001)),IMDIV(1,'Design the AEF circuit'!$H$13*1000),IMPRODUCT(B167,'Design the AEF circuit'!$I$13*0.000000000001))),COMPLEX(G167,H167,"j")) -> 4327,69763564065+3031,96149281304j | L167: =IF(CMdata=1,IMDIV(1,IMSUM(IMDIV(1,IMPRODUCT(B167,'Design the AEF circuit'!$G$14*0.001)),IMDIV(1,'Design the AEF circuit'!$H$14*1000),IMPRODUCT(B167,'Design the AEF circuit'!$I$14*0.000000000001))),COMPLEX(I167,J167,"j")) -> 4327,69763564065+3031,96149281304j
A168: ='Frequency vector'!G168 -> 78804.62816 | B168: =COMPLEX(0,2*PI()*'Frequency vector'!G168,"j") -> 495144,081771927j | C168: =IF(IF(CMdata=1,IMABS(K168),'CM choke'!C172)=0, C167, IF(CMdata=1,IMABS(K168),'CM choke'!C172)) -> 5345.706774 | D168: =IF(IF(CMdata=1,DEGREES(IMARGUMENT(K168)),'CM choke'!D172)=0, D167, IF(CMdata=1,DEGREES(IMARGUMENT(K168)),'CM choke'!D172)) -> 34.88088711 | E168: =IF(IF(CMdata=1,IMABS(L168),'CM choke'!E172)=0, E167, IF(CMdata=1,IMABS(L168),'CM choke'!E172)) -> 5345.706774 | F168: =IF(IF(CMdata=1,DEGREES(IMARGUMENT(L168)),'CM choke'!F172)=0, F167, IF(CMdata=1,DEGREES(IMARGUMENT(L168)),'CM choke'!F172)) -> 34.88088711 | G168: 4385.311466 | H168: 3057.061377 | I168: 4385.311466 | J168: 3057.061377 | K168: =IF(CMdata=1,IMDIV(1,IMSUM(IMDIV(1,IMPRODUCT(B168,'Design the AEF circuit'!$G$13*0.001)),IMDIV(1,'Design the AEF circuit'!$H$13*1000),IMPRODUCT(B168,'Design the AEF circuit'!$I$13*0.000000000001))),COMPLEX(G168,H168,"j")) -> 4385,31146641239+3057,06137670638j | L168: =IF(CMdata=1,IMDIV(1,IMSUM(IMDIV(1,IMPRODUCT(B168,'Design the AEF circuit'!$G$14*0.001)),IMDIV(1,'Design the AEF circuit'!$H$14*1000),IMPRODUCT(B168,'Design the AEF circuit'!$I$14*0.000000000001))),COMPLEX(I168,J168,"j")) -> 4385,31146641239+3057,06137670638j
A169: ='Frequency vector'!G169 -> 80918.15594 | B169: =COMPLEX(0,2*PI()*'Frequency vector'!G169,"j") -> 508423,768513848j | C169: =IF(IF(CMdata=1,IMABS(K169),'CM choke'!C173)=0, C168, IF(CMdata=1,IMABS(K169),'CM choke'!C173)) -> 5408.581286 | D169: =IF(IF(CMdata=1,DEGREES(IMARGUMENT(K169)),'CM choke'!D173)=0, D168, IF(CMdata=1,DEGREES(IMARGUMENT(K169)),'CM choke'!D173)) -> 34.74290482 | E169: =IF(IF(CMdata=1,IMABS(L169),'CM choke'!E173)=0, E168, IF(CMdata=1,IMABS(L169),'CM choke'!E173)) -> 5408.581286 | F169: =IF(IF(CMdata=1,DEGREES(IMARGUMENT(L169)),'CM choke'!F173)=0, F168, IF(CMdata=1,DEGREES(IMARGUMENT(L169)),'CM choke'!F173)) -> 34.74290482 | G169: 4444.325983 | H169: 3082.323487 | I169: 4444.325983 | J169: 3082.323487 | K169: =IF(CMdata=1,IMDIV(1,IMSUM(IMDIV(1,IMPRODUCT(B169,'Design the AEF circuit'!$G$13*0.001)),IMDIV(1,'Design the AEF circuit'!$H$13*1000),IMPRODUCT(B169,'Design the AEF circuit'!$I$13*0.000000000001))),COMPLEX(G169,H169,"j")) -> 4444,32598329197+3082,32348664982j | L169: =IF(CMdata=1,IMDIV(1,IMSUM(IMDIV(1,IMPRODUCT(B169,'Design the AEF circuit'!$G$14*0.001)),IMDIV(1,'Design the AEF circuit'!$H$14*1000),IMPRODUCT(B169,'Design the AEF circuit'!$I$14*0.000000000001))),COMPLEX(I169,J169,"j")) -> 4444,32598329197+3082,32348664982j
A170: ='Frequency vector'!G170 -> 83088.36822 | B170: =COMPLEX(0,2*PI()*'Frequency vector'!G170,"j") -> 522059,614374814j | C170: =IF(IF(CMdata=1,IMABS(K170),'CM choke'!C174)=0, C169, IF(CMdata=1,IMABS(K170),'CM choke'!C174)) -> 5472.739909 | D170: =IF(IF(CMdata=1,DEGREES(IMARGUMENT(K170)),'CM choke'!D174)=0, D169, IF(CMdata=1,DEGREES(IMARGUMENT(K170)),'CM choke'!D174)) -> 34.60051075 | E170: =IF(IF(CMdata=1,IMABS(L170),'CM choke'!E174)=0, E169, IF(CMdata=1,IMABS(L170),'CM choke'!E174)) -> 5472.739909 | F170: =IF(IF(CMdata=1,DEGREES(IMARGUMENT(L170)),'CM choke'!F174)=0, F169, IF(CMdata=1,DEGREES(IMARGUMENT(L170)),'CM choke'!F174)) -> 34.60051075 | G170: 4504.783552 | H170: 3107.701282 | I170: 4504.783552 | J170: 3107.701282 | K170: =IF(CMdata=1,IMDIV(1,IMSUM(IMDIV(1,IMPRODUCT(B170,'Design the AEF circuit'!$G$13*0.001)),IMDIV(1,'Design the AEF circuit'!$H$13*1000),IMPRODUCT(B170,'Design the AEF circuit'!$I$13*0.000000000001))),COMPLEX(G170,H170,"j")) -> 4504,7835521059+3107,7012822796j | L170: =IF(CMdata=1,IMDIV(1,IMSUM(IMDIV(1,IMPRODUCT(B170,'Design the AEF circuit'!$G$14*0.001)),IMDIV(1,'Design the AEF circuit'!$H$14*1000),IMPRODUCT(B170,'Design the AEF circuit'!$I$14*0.000000000001))),COMPLEX(I170,J170,"j")) -> 4504,7835521059+3107,7012822796j
A171: ='Frequency vector'!G171 -> 85316.78524 | B171: =COMPLEX(0,2*PI()*'Frequency vector'!G171,"j") -> 536061,171486627j | C171: =IF(IF(CMdata=1,IMABS(K171),'CM choke'!C175)=0, C170, IF(CMdata=1,IMABS(K171),'CM choke'!C175)) -> 5538.194237 | D171: =IF(IF(CMdata=1,DEGREES(IMARGUMENT(K171)),'CM choke'!D175)=0, D170, IF(CMdata=1,DEGREES(IMARGUMENT(K171)),'CM choke'!D175)) -> 34.45330756 | E171: =IF(IF(CMdata=1,IMABS(L171),'CM choke'!E175)=0, E170, IF(CMdata=1,IMABS(L171),'CM choke'!E175)) -> 5538.194237 | F171: =IF(IF(CMdata=1,DEGREES(IMARGUMENT(L171)),'CM choke'!F175)=0, F170, IF(CMdata=1,DEGREES(IMARGUMENT(L171)),'CM choke'!F175)) -> 34.45330756 | G171: 4566.725741 | H171: 3133.147205 | I171: 4566.725741 | J171: 3133.147205 | K171: =IF(CMdata=1,IMDIV(1,IMSUM(IMDIV(1,IMPRODUCT(B171,'Design the AEF circuit'!$G$13*0.001)),IMDIV(1,'Design the AEF circuit'!$H$13*1000),IMPRODUCT(B171,'Design the AEF circuit'!$I$13*0.000000000001))),COMPLEX(G171,H171,"j")) -> 4566,72574112048+3133,14720494319j | L171: =IF(CMdata=1,IMDIV(1,IMSUM(IMDIV(1,IMPRODUCT(B171,'Design the AEF circuit'!$G$14*0.001)),IMDIV(1,'Design the AEF circuit'!$H$14*1000),IMPRODUCT(B171,'Design the AEF circuit'!$I$14*0.000000000001))),COMPLEX(I171,J171,"j")) -> 4566,72574112048+3133,14720494319j
A172: ='Frequency vector'!G172 -> 87604.96806 | B172: =COMPLEX(0,2*PI()*'Frequency vector'!G172,"j") -> 550438,248167771j | C172: =IF(IF(CMdata=1,IMABS(K172),'CM choke'!C176)=0, C171, IF(CMdata=1,IMABS(K172),'CM choke'!C176)) -> 5604.955541 | D172: =IF(IF(CMdata=1,DEGREES(IMARGUMENT(K172)),'CM choke'!D176)=0, D171, IF(CMdata=1,DEGREES(IMARGUMENT(K172)),'CM choke'!D176)) -> 34.30092024 | E172: =IF(IF(CMdata=1,IMABS(L172),'CM choke'!E176)=0, E171, IF(CMdata=1,IMABS(L172),'CM choke'!E176)) -> 5604.955541 | F172: =IF(IF(CMdata=1,DEGREES(IMARGUMENT(L172)),'CM choke'!F176)=0, F171, IF(CMdata=1,DEGREES(IMARGUMENT(L172)),'CM choke'!F176)) -> 34.30092024 | G172: 4630.193482 | H172: 3158.612817 | I172: 4630.193482 | J172: 3158.612817 | K172: =IF(CMdata=1,IMDIV(1,IMSUM(IMDIV(1,IMPRODUCT(B172,'Design the AEF circuit'!$G$13*0.001)),IMDIV(1,'Design the AEF circuit'!$H$13*1000),IMPRODUCT(B172,'Design the AEF circuit'!$I$13*0.000000000001))),COMPLEX(G172,H172,"j")) -> 4630,19348247166+3158,61281744802j | L172: =IF(CMdata=1,IMDIV(1,IMSUM(IMDIV(1,IMPRODUCT(B172,'Design the AEF circuit'!$G$14*0.001)),IMDIV(1,'Design the AEF circuit'!$H$14*1000),IMPRODUCT(B172,'Design the AEF circuit'!$I$14*0.000000000001))),COMPLEX(I172,J172,"j")) -> 4630,19348247166+3158,61281744802j
A173: ='Frequency vector'!G173 -> 89954.51959 | B173: =COMPLEX(0,2*PI()*'Frequency vector'!G173,"j") -> 565200,915794297j | C173: =IF(IF(CMdata=1,IMABS(K173),'CM choke'!C177)=0, C172, IF(CMdata=1,IMABS(K173),'CM choke'!C177)) -> 5673.03505 | D173: =IF(IF(CMdata=1,DEGREES(IMARGUMENT(K173)),'CM choke'!D177)=0, D172, IF(CMdata=1,DEGREES(IMARGUMENT(K173)),'CM choke'!D177)) -> 34.14299558 | E173: =IF(IF(CMdata=1,IMABS(L173),'CM choke'!E177)=0, E172, IF(CMdata=1,IMABS(L173),'CM choke'!E177)) -> 5673.03505 | F173: =IF(IF(CMdata=1,DEGREES(IMARGUMENT(L173)),'CM choke'!F177)=0, F172, IF(CMdata=1,DEGREES(IMARGUMENT(L173)),'CM choke'!F177)) -> 34.14299558 | G173: 4695.227268 | H173: 3184.048929 | I173: 4695.227268 | J173: 3184.048929 | K173: =IF(CMdata=1,IMDIV(1,IMSUM(IMDIV(1,IMPRODUCT(B173,'Design the AEF circuit'!$G$13*0.001)),IMDIV(1,'Design the AEF circuit'!$H$13*1000),IMPRODUCT(B173,'Design the AEF circuit'!$I$13*0.000000000001))),COMPLEX(G173,H173,"j")) -> 4695,22726772499+3184,04892943619j | L173: =IF(CMdata=1,IMDIV(1,IMSUM(IMDIV(1,IMPRODUCT(B173,'Design the AEF circuit'!$G$14*0.001)),IMDIV(1,'Design the AEF circuit'!$H$14*1000),IMPRODUCT(B173,'Design the AEF circuit'!$I$14*0.000000000001))),COMPLEX(I173,J173,"j")) -> 4695,22726772499+3184,04892943619j
A174: ='Frequency vector'!G174 -> 92367.08572 | B174: =COMPLEX(0,2*PI()*'Frequency vector'!G174,"j") -> 580359,515854981j | C174: =IF(IF(CMdata=1,IMABS(K174),'CM choke'!C178)=0, C173, IF(CMdata=1,IMABS(K174),'CM choke'!C178)) -> 5742.444245 | D174: =IF(IF(CMdata=1,DEGREES(IMARGUMENT(K174)),'CM choke'!D178)=0, D173, IF(CMdata=1,DEGREES(IMARGUMENT(K174)),'CM choke'!D178)) -> 33.97920139 | E174: =IF(IF(CMdata=1,IMABS(L174),'CM choke'!E178)=0, E173, IF(CMdata=1,IMABS(L174),'CM choke'!E178)) -> 5742.444245 | F174: =IF(IF(CMdata=1,DEGREES(IMARGUMENT(L174)),'CM choke'!F178)=0, F173, IF(CMdata=1,DEGREES(IMARGUMENT(L174)),'CM choke'!F178)) -> 33.97920139 | G174: 4761.867379 | H174: 3209.405704 | I174: 4761.867379 | J174: 3209.405704 | K174: =IF(CMdata=1,IMDIV(1,IMSUM(IMDIV(1,IMPRODUCT(B174,'Design the AEF circuit'!$G$13*0.001)),IMDIV(1,'Design the AEF circuit'!$H$13*1000),IMPRODUCT(B174,'Design the AEF circuit'!$I$13*0.000000000001))),COMPLEX(G174,H174,"j")) -> 4761,8673785184+3209,40570376492j | L174: =IF(CMdata=1,IMDIV(1,IMSUM(IMDIV(1,IMPRODUCT(B174,'Design the AEF circuit'!$G$14*0.001)),IMDIV(1,'Design the AEF circuit'!$H$14*1000),IMPRODUCT(B174,'Design the AEF circuit'!$I$14*0.000000000001))),COMPLEX(I174,J174,"j")) -> 4761,8673785184+3209,40570376492j
A175: ='Frequency vector'!G175 -> 94844.35649 | B175: =COMPLEX(0,2*PI()*'Frequency vector'!G175,"j") -> 595924,667195713j | C175: =IF(IF(CMdata=1,IMABS(K175),'CM choke'!C179)=0, C174, IF(CMdata=1,IMABS(K175),'CM choke'!C179)) -> 5813.195171 | D175: =IF(IF(CMdata=1,DEGREES(IMARGUMENT(K175)),'CM choke'!D179)=0, D174, IF(CMdata=1,DEGREES(IMARGUMENT(K175)),'CM choke'!D179)) -> 33.80922529 | E175: =IF(IF(CMdata=1,IMABS(L175),'CM choke'!E179)=0, E174, IF(CMdata=1,IMABS(L175),'CM choke'!E179)) -> 5813.195171 | F175: =IF(IF(CMdata=1,DEGREES(IMARGUMENT(L175)),'CM choke'!F179)=0, F174, IF(CMdata=1,DEGREES(IMARGUMENT(L175)),'CM choke'!F179)) -> 33.80922529 | G175: 4830.154153 | H175: 3234.632739 | I175: 4830.154153 | J175: 3234.632739 | K175: =IF(CMdata=1,IMDIV(1,IMSUM(IMDIV(1,IMPRODUCT(B175,'Design the AEF circuit'!$G$13*0.001)),IMDIV(1,'Design the AEF circuit'!$H$13*1000),IMPRODUCT(B175,'Design the AEF circuit'!$I$13*0.000000000001))),COMPLEX(G175,H175,"j")) -> 4830,15415284133+3234,63273887331j | L175: =IF(CMdata=1,IMDIV(1,IMSUM(IMDIV(1,IMPRODUCT(B175,'Design the AEF circuit'!$G$14*0.001)),IMDIV(1,'Design the AEF circuit'!$H$14*1000),IMPRODUCT(B175,'Design the AEF circuit'!$I$14*0.000000000001))),COMPLEX(I175,J175,"j")) -> 4830,15415284133+3234,63273887331j
A176: ='Frequency vector'!G176 -> 97388.06728 | B176: =COMPLEX(0,2*PI()*'Frequency vector'!G176,"j") -> 611907,273458163j | C176: =IF(IF(CMdata=1,IMABS(K176),'CM choke'!C180)=0, C175, IF(CMdata=1,IMABS(K176),'CM choke'!C180)) -> 5885.300774 | D176: =IF(IF(CMdata=1,DEGREES(IMARGUMENT(K176)),'CM choke'!D180)=0, D175, IF(CMdata=1,DEGREES(IMARGUMENT(K176)),'CM choke'!D180)) -> 33.63277321 | E176: =IF(IF(CMdata=1,IMABS(L176),'CM choke'!E180)=0, E175, IF(CMdata=1,IMABS(L176),'CM choke'!E180)) -> 5885.300774 | F176: =IF(IF(CMdata=1,DEGREES(IMARGUMENT(L176)),'CM choke'!F180)=0, F175, IF(CMdata=1,DEGREES(IMARGUMENT(L176)),'CM choke'!F180)) -> 33.63277321 | G176: 4900.128287 | H176: 3259.679122 | I176: 4900.128287 | J176: 3259.679122 | K176: =IF(CMdata=1,IMDIV(1,IMSUM(IMDIV(1,IMPRODUCT(B176,'Design the AEF circuit'!$G$13*0.001)),IMDIV(1,'Design the AEF circuit'!$H$13*1000),IMPRODUCT(B176,'Design the AEF circuit'!$I$13*0.000000000001))),COMPLEX(G176,H176,"j")) -> 4900,12828704631+3259,67912173803j | L176: =IF(CMdata=1,IMDIV(1,IMSUM(IMDIV(1,IMPRODUCT(B176,'Design the AEF circuit'!$G$14*0.001)),IMDIV(1,'Design the AEF circuit'!$H$14*1000),IMPRODUCT(B176,'Design the AEF circuit'!$I$14*0.000000000001))),COMPLEX(I176,J176,"j")) -> 4900,12828704631+3259,67912173803j
A177: ='Frequency vector'!G177 -> 100000 | B177: =COMPLEX(0,2*PI()*'Frequency vector'!G177,"j") -> 628318,530717965j | C177: =IF(IF(CMdata=1,IMABS(K177),'CM choke'!C181)=0, C176, IF(CMdata=1,IMABS(K177),'CM choke'!C181)) -> 5958.775244 | D177: =IF(IF(CMdata=1,DEGREES(IMARGUMENT(K177)),'CM choke'!D181)=0, D176, IF(CMdata=1,DEGREES(IMARGUMENT(K177)),'CM choke'!D181)) -> 33.4495675 | E177: =IF(IF(CMdata=1,IMABS(L177),'CM choke'!E181)=0, E176, IF(CMdata=1,IMABS(L177),'CM choke'!E181)) -> 5958.775244 | F177: =IF(IF(CMdata=1,DEGREES(IMARGUMENT(L177)),'CM choke'!F181)=0, F176, IF(CMdata=1,DEGREES(IMARGUMENT(L177)),'CM choke'!F181)) -> 33.4495675 | G177: 4971.831173 | H177: 3284.493446 | I177: 4971.831173 | J177: 3284.493446 | K177: =IF(CMdata=1,IMDIV(1,IMSUM(IMDIV(1,IMPRODUCT(B177,'Design the AEF circuit'!$G$13*0.001)),IMDIV(1,'Design the AEF circuit'!$H$13*1000),IMPRODUCT(B177,'Design the AEF circuit'!$I$13*0.000000000001))),COMPLEX(G177,H177,"j")) -> 4971,83117317656+3284,4934456723j | L177: =IF(CMdata=1,IMDIV(1,IMSUM(IMDIV(1,IMPRODUCT(B177,'Design the AEF circuit'!$G$14*0.001)),IMDIV(1,'Design the AEF circuit'!$H$14*1000),IMPRODUCT(B177,'Design the AEF circuit'!$I$14*0.000000000001))),COMPLEX(I177,J177,"j")) -> 4971,83117317656+3284,4934456723j
A178: ='Frequency vector'!G178 -> 102681.9843 | B178: =COMPLEX(0,2*PI()*'Frequency vector'!G178,"j") -> 645169,935327751j | C178: =IF(IF(CMdata=1,IMABS(K178),'CM choke'!C182)=0, C177, IF(CMdata=1,IMABS(K178),'CM choke'!C182)) -> 6033.634369 | D178: =IF(IF(CMdata=1,DEGREES(IMARGUMENT(K178)),'CM choke'!D182)=0, D177, IF(CMdata=1,DEGREES(IMARGUMENT(K178)),'CM choke'!D182)) -> 33.25934471 | E178: =IF(IF(CMdata=1,IMABS(L178),'CM choke'!E182)=0, E177, IF(CMdata=1,IMABS(L178),'CM choke'!E182)) -> 6033.634369 | F178: =IF(IF(CMdata=1,DEGREES(IMARGUMENT(L178)),'CM choke'!F182)=0, F177, IF(CMdata=1,DEGREES(IMARGUMENT(L178)),'CM choke'!F182)) -> 33.25934471 | G178: 5045.305271 | H178: 3309.023787 | I178: 5045.305271 | J178: 3309.023787 | K178: =IF(CMdata=1,IMDIV(1,IMSUM(IMDIV(1,IMPRODUCT(B178,'Design the AEF circuit'!$G$13*0.001)),IMDIV(1,'Design the AEF circuit'!$H$13*1000),IMPRODUCT(B178,'Design the AEF circuit'!$I$13*0.000000000001))),COMPLEX(G178,H178,"j")) -> 5045,30527063366+3309,02378690802j | L178: =IF(CMdata=1,IMDIV(1,IMSUM(IMDIV(1,IMPRODUCT(B178,'Design the AEF circuit'!$G$14*0.001)),IMDIV(1,'Design the AEF circuit'!$H$14*1000),IMPRODUCT(B178,'Design the AEF circuit'!$I$14*0.000000000001))),COMPLEX(I178,J178,"j")) -> 5045,30527063366+3309,02378690802j
A179: ='Frequency vector'!G179 -> 105435.8991 | B179: =COMPLEX(0,2*PI()*'Frequency vector'!G179,"j") -> 662473,291970522j | C179: =IF(IF(CMdata=1,IMABS(K179),'CM choke'!C183)=0, C178, IF(CMdata=1,IMABS(K179),'CM choke'!C183)) -> 6109.895902 | D179: =IF(IF(CMdata=1,DEGREES(IMARGUMENT(K179)),'CM choke'!D183)=0, D178, IF(CMdata=1,DEGREES(IMARGUMENT(K179)),'CM choke'!D183)) -> 33.06185306 | E179: =IF(IF(CMdata=1,IMABS(L179),'CM choke'!E183)=0, E178, IF(CMdata=1,IMABS(L179),'CM choke'!E183)) -> 6109.895902 | F179: =IF(IF(CMdata=1,DEGREES(IMARGUMENT(L179)),'CM choke'!F183)=0, F178, IF(CMdata=1,DEGREES(IMARGUMENT(L179)),'CM choke'!F183)) -> 33.06185306 | G179: 5120.594511 | H179: 3333.217634 | I179: 5120.594511 | J179: 3333.217634 | K179: =IF(CMdata=1,IMDIV(1,IMSUM(IMDIV(1,IMPRODUCT(B179,'Design the AEF circuit'!$G$13*0.001)),IMDIV(1,'Design the AEF circuit'!$H$13*1000),IMPRODUCT(B179,'Design the AEF circuit'!$I$13*0.000000000001))),COMPLEX(G179,H179,"j")) -> 5120,59451060031+3333,21763362021j | L179: =IF(CMdata=1,IMDIV(1,IMSUM(IMDIV(1,IMPRODUCT(B179,'Design the AEF circuit'!$G$14*0.001)),IMDIV(1,'Design the AEF circuit'!$H$14*1000),IMPRODUCT(B179,'Design the AEF circuit'!$I$14*0.000000000001))),COMPLEX(I179,J179,"j")) -> 5120,59451060031+3333,21763362021j
A180: ='Frequency vector'!G180 -> 108263.6734 | B180: =COMPLEX(0,2*PI()*'Frequency vector'!G180,"j") -> 680240,721929045j | C180: =IF(IF(CMdata=1,IMABS(K180),'CM choke'!C184)=0, C179, IF(CMdata=1,IMABS(K180),'CM choke'!C184)) -> 6187.57993 | D180: =IF(IF(CMdata=1,DEGREES(IMARGUMENT(K180)),'CM choke'!D184)=0, D179, IF(CMdata=1,DEGREES(IMARGUMENT(K180)),'CM choke'!D184)) -> 32.8568495 | E180: =IF(IF(CMdata=1,IMABS(L180),'CM choke'!E184)=0, E179, IF(CMdata=1,IMABS(L180),'CM choke'!E184)) -> 6187.57993 | F180: =IF(IF(CMdata=1,DEGREES(IMARGUMENT(L180)),'CM choke'!F184)=0, F179, IF(CMdata=1,DEGREES(IMARGUMENT(L180)),'CM choke'!F184)) -> 32.8568495 | G180: 5197.744731 | H180: 3357.021761 | I180: 5197.744731 | J180: 3357.021761 | K180: =IF(CMdata=1,IMDIV(1,IMSUM(IMDIV(1,IMPRODUCT(B180,'Design the AEF circuit'!$G$13*0.001)),IMDIV(1,'Design the AEF circuit'!$H$13*1000),IMPRODUCT(B180,'Design the AEF circuit'!$I$13*0.000000000001))),COMPLEX(G180,H180,"j")) -> 5197,74473098822+3357,02176081328j | L180: =IF(CMdata=1,IMDIV(1,IMSUM(IMDIV(1,IMPRODUCT(B180,'Design the AEF circuit'!$G$14*0.001)),IMDIV(1,'Design the AEF circuit'!$H$14*1000),IMPRODUCT(B180,'Design the AEF circuit'!$I$14*0.000000000001))),COMPLEX(I180,J180,"j")) -> 5197,74473098822+3357,02176081328j
A181: ='Frequency vector'!G181 -> 111167.2882 | B181: =COMPLEX(0,2*PI()*'Frequency vector'!G181,"j") -> 698484,671576971j | C181: =IF(IF(CMdata=1,IMABS(K181),'CM choke'!C185)=0, C180, IF(CMdata=1,IMABS(K181),'CM choke'!C185)) -> 6266.709239 | D181: =IF(IF(CMdata=1,DEGREES(IMARGUMENT(K181)),'CM choke'!D185)=0, D180, IF(CMdata=1,DEGREES(IMARGUMENT(K181)),'CM choke'!D185)) -> 32.64409656 | E181: =IF(IF(CMdata=1,IMABS(L181),'CM choke'!E185)=0, E180, IF(CMdata=1,IMABS(L181),'CM choke'!E185)) -> 6266.709239 | F181: =IF(IF(CMdata=1,DEGREES(IMARGUMENT(L181)),'CM choke'!F185)=0, F180, IF(CMdata=1,DEGREES(IMARGUMENT(L181)),'CM choke'!F185)) -> 32.64409656 | G181: 5276.804139 | H181: 3380.382044 | I181: 5276.804139 | J181: 3380.382044 | K181: =IF(CMdata=1,IMDIV(1,IMSUM(IMDIV(1,IMPRODUCT(B181,'Design the AEF circuit'!$G$13*0.001)),IMDIV(1,'Design the AEF circuit'!$H$13*1000),IMPRODUCT(B181,'Design the AEF circuit'!$I$13*0.000000000001))),COMPLEX(G181,H181,"j")) -> 5276,80413899445+3380,38204427908j | L181: =IF(CMdata=1,IMDIV(1,IMSUM(IMDIV(1,IMPRODUCT(B181,'Design the AEF circuit'!$G$14*0.001)),IMDIV(1,'Design the AEF circuit'!$H$14*1000),IMPRODUCT(B181,'Design the AEF circuit'!$I$14*0.000000000001))),COMPLEX(I181,J181,"j")) -> 5276,80413899445+3380,38204427908j
A182: ='Frequency vector'!G182 -> 114148.7774 | B182: =COMPLEX(0,2*PI()*'Frequency vector'!G182,"j") -> 717217,921097757j | C182: =IF(IF(CMdata=1,IMABS(K182),'CM choke'!C186)=0, C181, IF(CMdata=1,IMABS(K182),'CM choke'!C186)) -> 6347.30968 | D182: =IF(IF(CMdata=1,DEGREES(IMARGUMENT(K182)),'CM choke'!D186)=0, D181, IF(CMdata=1,DEGREES(IMARGUMENT(K182)),'CM choke'!D186)) -> 32.42335881 | E182: =IF(IF(CMdata=1,IMABS(L182),'CM choke'!E186)=0, E181, IF(CMdata=1,IMABS(L182),'CM choke'!E186)) -> 6347.30968 | F182: =IF(IF(CMdata=1,DEGREES(IMARGUMENT(L182)),'CM choke'!F186)=0, F181, IF(CMdata=1,DEGREES(IMARGUMENT(L182)),'CM choke'!F186)) -> 32.42335881 | G182: 5357.823798 | H182: 3403.243207 | I182: 5357.823798 | J182: 3403.243207 | K182: =IF(CMdata=1,IMDIV(1,IMSUM(IMDIV(1,IMPRODUCT(B182,'Design the AEF circuit'!$G$13*0.001)),IMDIV(1,'Design the AEF circuit'!$H$13*1000),IMPRODUCT(B182,'Design the AEF circuit'!$I$13*0.000000000001))),COMPLEX(G182,H182,"j")) -> 5357,82379763355+3403,24320666675j | L182: =IF(CMdata=1,IMDIV(1,IMSUM(IMDIV(1,IMPRODUCT(B182,'Design the AEF circuit'!$G$14*0.001)),IMDIV(1,'Design the AEF circuit'!$H$14*1000),IMPRODUCT(B182,'Design the AEF circuit'!$I$14*0.000000000001))),COMPLEX(I182,J182,"j")) -> 5357,82379763355+3403,24320666675j
A183: ='Frequency vector'!G183 -> 117210.2298 | B183: =COMPLEX(0,2*PI()*'Frequency vector'!G183,"j") -> 736453,593437386j | C183: =IF(IF(CMdata=1,IMABS(K183),'CM choke'!C187)=0, C182, IF(CMdata=1,IMABS(K183),'CM choke'!C187)) -> 6429.410522 | D183: =IF(IF(CMdata=1,DEGREES(IMARGUMENT(K183)),'CM choke'!D187)=0, D182, IF(CMdata=1,DEGREES(IMARGUMENT(K183)),'CM choke'!D187)) -> 32.19439913 | E183: =IF(IF(CMdata=1,IMABS(L183),'CM choke'!E187)=0, E182, IF(CMdata=1,IMABS(L183),'CM choke'!E187)) -> 6429.410522 | F183: =IF(IF(CMdata=1,DEGREES(IMARGUMENT(L183)),'CM choke'!F187)=0, F182, IF(CMdata=1,DEGREES(IMARGUMENT(L183)),'CM choke'!F187)) -> 32.19439913 | G183: 5440.858132 | H183: 3425.548489 | I183: 5440.858132 | J183: 3425.548489 | K183: =IF(CMdata=1,IMDIV(1,IMSUM(IMDIV(1,IMPRODUCT(B183,'Design the AEF circuit'!$G$13*0.001)),IMDIV(1,'Design the AEF circuit'!$H$13*1000),IMPRODUCT(B183,'Design the AEF circuit'!$I$13*0.000000000001))),COMPLEX(G183,H183,"j")) -> 5440,85813186374+3425,54848855743j | L183: =IF(CMdata=1,IMDIV(1,IMSUM(IMDIV(1,IMPRODUCT(B183,'Design the AEF circuit'!$G$14*0.001)),IMDIV(1,'Design the AEF circuit'!$H$14*1000),IMPRODUCT(B183,'Design the AEF circuit'!$I$14*0.000000000001))),COMPLEX(I183,J183,"j")) -> 5440,85813186374+3425,54848855743j
A184: ='Frequency vector'!G184 -> 120353.7898 | B184: =COMPLEX(0,2*PI()*'Frequency vector'!G184,"j") -> 756205,163497179j | C184: =IF(IF(CMdata=1,IMABS(K184),'CM choke'!C188)=0, C183, IF(CMdata=1,IMABS(K184),'CM choke'!C188)) -> 6513.044795 | D184: =IF(IF(CMdata=1,DEGREES(IMARGUMENT(K184)),'CM choke'!D188)=0, D183, IF(CMdata=1,DEGREES(IMARGUMENT(K184)),'CM choke'!D188)) -> 31.95697459 | E184: =IF(IF(CMdata=1,IMABS(L184),'CM choke'!E188)=0, E183, IF(CMdata=1,IMABS(L184),'CM choke'!E188)) -> 6513.044795 | F184: =IF(IF(CMdata=1,DEGREES(IMARGUMENT(L184)),'CM choke'!F188)=0, F183, IF(CMdata=1,DEGREES(IMARGUMENT(L184)),'CM choke'!F188)) -> 31.95697459 | G184: 5525.965449 | H184: 3447.239237 | I184: 5525.965449 | J184: 3447.239237 | K184: =IF(CMdata=1,IMDIV(1,IMSUM(IMDIV(1,IMPRODUCT(B184,'Design the AEF circuit'!$G$13*0.001)),IMDIV(1,'Design the AEF circuit'!$H$13*1000),IMPRODUCT(B184,'Design the AEF circuit'!$I$13*0.000000000001))),COMPLEX(G184,H184,"j")) -> 5525,96544914254+3447,23923731437j | L184: =IF(CMdata=1,IMDIV(1,IMSUM(IMDIV(1,IMPRODUCT(B184,'Design the AEF circuit'!$G$14*0.001)),IMDIV(1,'Design the AEF circuit'!$H$14*1000),IMPRODUCT(B184,'Design the AEF circuit'!$I$14*0.000000000001))),COMPLEX(I184,J184,"j")) -> 5525,96544914254+3447,23923731437j
A185: ='Frequency vector'!G185 -> 123581.6596 | B185: =COMPLEX(0,2*PI()*'Frequency vector'!G185,"j") -> 776486,467573216j | C185: =IF(IF(CMdata=1,IMABS(K185),'CM choke'!C189)=0, C184, IF(CMdata=1,IMABS(K185),'CM choke'!C189)) -> 6598.249612 | D185: =IF(IF(CMdata=1,DEGREES(IMARGUMENT(K185)),'CM choke'!D189)=0, D184, IF(CMdata=1,DEGREES(IMARGUMENT(K185)),'CM choke'!D189)) -> 31.71083227 | E185: =IF(IF(CMdata=1,IMABS(L185),'CM choke'!E189)=0, E184, IF(CMdata=1,IMABS(L185),'CM choke'!E189)) -> 6598.249612 | F185: =IF(IF(CMdata=1,DEGREES(IMARGUMENT(L185)),'CM choke'!F189)=0, F184, IF(CMdata=1,DEGREES(IMARGUMENT(L185)),'CM choke'!F189)) -> 31.71083227 | G185: 5613.208468 | H185: 3468.254406 | I185: 5613.208468 | J185: 3468.254406 | K185: =IF(CMdata=1,IMDIV(1,IMSUM(IMDIV(1,IMPRODUCT(B185,'Design the AEF circuit'!$G$13*0.001)),IMDIV(1,'Design the AEF circuit'!$H$13*1000),IMPRODUCT(B185,'Design the AEF circuit'!$I$13*0.000000000001))),COMPLEX(G185,H185,"j")) -> 5613,20846843123+3468,25440636887j | L185: =IF(CMdata=1,IMDIV(1,IMSUM(IMDIV(1,IMPRODUCT(B185,'Design the AEF circuit'!$G$14*0.001)),IMDIV(1,'Design the AEF circuit'!$H$14*1000),IMPRODUCT(B185,'Design the AEF circuit'!$I$14*0.000000000001))),COMPLEX(I185,J185,"j")) -> 5613,20846843123+3468,25440636887j
A186: ='Frequency vector'!G186 -> 126896.1003 | B186: =COMPLEX(0,2*PI()*'Frequency vector'!G186,"j") -> 797311,713048861j | C186: =IF(IF(CMdata=1,IMABS(K186),'CM choke'!C190)=0, C185, IF(CMdata=1,IMABS(K186),'CM choke'!C190)) -> 6685.066463 | D186: =IF(IF(CMdata=1,DEGREES(IMARGUMENT(K186)),'CM choke'!D190)=0, D185, IF(CMdata=1,DEGREES(IMARGUMENT(K186)),'CM choke'!D190)) -> 31.45570468 | E186: =IF(IF(CMdata=1,IMABS(L186),'CM choke'!E190)=0, E185, IF(CMdata=1,IMABS(L186),'CM choke'!E190)) -> 6685.066463 | F186: =IF(IF(CMdata=1,DEGREES(IMARGUMENT(L186)),'CM choke'!F190)=0, F185, IF(CMdata=1,DEGREES(IMARGUMENT(L186)),'CM choke'!F190)) -> 31.45570468 | G186: 5702.654851 | H186: 3488.529957 | I186: 5702.654851 | J186: 3488.529957 | K186: =IF(CMdata=1,IMDIV(1,IMSUM(IMDIV(1,IMPRODUCT(B186,'Design the AEF circuit'!$G$13*0.001)),IMDIV(1,'Design the AEF circuit'!$H$13*1000),IMPRODUCT(B186,'Design the AEF circuit'!$I$13*0.000000000001))),COMPLEX(G186,H186,"j")) -> 5702,65485080277+3488,52995749464j | L186: =IF(CMdata=1,IMDIV(1,IMSUM(IMDIV(1,IMPRODUCT(B186,'Design the AEF circuit'!$G$14*0.001)),IMDIV(1,'Design the AEF circuit'!$H$14*1000),IMPRODUCT(B186,'Design the AEF circuit'!$I$14*0.000000000001))),COMPLEX(I186,J186,"j")) -> 5702,65485080277+3488,52995749464j
